Workbook

Sheet Post Code Degree Days (hidden)
B1: Area | D1: 41.046
B2: CIBSE | C2: degree days | D2: 52 Week | E2: 39 week | F2: 39 Week
A3: AB | B3: -4.2 | C3: 2668 | D3: =SUM(C3/$D$1) -> 65.00024363 | E3: =SUM(C3*95%) -> 2534.6 | F3: =SUM(E3/41.046) -> 61.75023145 | G3: NE Scotland (Dyce) | H3: 8.5
A4: AL | B4: -2 | C4: 2033 | D4: =SUM(C4/$D$1) -> 49.52979584 | E4: =SUM(C4*95%) -> 1931.35 | F4: =SUM(E4/41.046) -> 47.05330605 | G4: Thames Valley (Heathrow) | H4: 11.3
A5: B | B5: -3.4 | C5: 2425 | D5: 59.08005652 | E5: 2303.75 | F5: 56.1260537 | G5: Midland (Elmdon) | H5: 9.8
A6: BA | B6: -1.7 | C6: 1835 | D6: 44.70593968 | E6: 1743.25 | F6: 42.47064269 | G6: Severn Valley (Filton) | H6: 10.6
A7: BB | B7: -2.2 | C7: 2228 | D7: 54.28056327 | E7: 2116.6 | F7: 51.56653511 | G7: W Pennines (Ringway) | H7: 10
A8: BD | B8: -2.5 | C8: 2307 | D8: 56.20523315 | E8: 2191.65 | F8: 53.3949715 | G8: E Pennines (Finningley) | H8: 10
A9: BH | B9: -1.5 | C9: 2224 | D9: 54.18311163 | E9: 2112.8 | F9: 51.47395605 | G9: Southern (Hurn) | H9: 10.4
A10: BL | B10: -2.2 | C10: 2228 | D10: 54.28056327 | E10: 2116.6 | F10: 51.56653511 | G10: W Pennines (Ringway) | H10: 10
A11: BN | B11: -2.1 | C11: 2224 | D11: 54.18311163 | E11: 2112.8 | F11: 51.47395605 | G11: Southern (Hurn) | H11: 10.4
A12: BR | B12: -3.2 | C12: 2255 | D12: 54.93836184 | E12: 2142.25 | F12: 52.19144375 | G12: South-eastern (Gatwick) | H12: 10.2
A13: BS | B13: -1.7 | C13: 1835 | D13: 44.70593968 | E13: 1743.25 | F13: 42.47064269 | G13: Severn Valley (Filton) | H13: 10.6
A14: BT | B14: -1.2 | C14: 2360 | D14: 57.49646738 | E14: 2242 | F14: 54.62164401 | G14: Northern Ireland (Belfast) | H14: 9.4
A15: CA | B15: -3.7 | C15: 2388 | D15: 58.17862886 | E15: 2268.6 | F15: 55.26969741 | G15: North-western (Carlisle) | H15: 9.4
A16: CB | B16: -2.5 | C16: 2033 | D16: 49.52979584 | E16: 1931.35 | F16: 47.05330605 | G16: Thames Valley (Heathrow) | H16: 11.3
A17: CF | B17: -1.6 | C17: 1835 | D17: 44.70593968 | E17: 1743.25 | F17: 42.47064269 | G17: Severn Valley (Filton) | H17: 10.6
A18: CH | B18: -2.2 | C18: 2228 | D18: 54.28056327 | E18: 2116.6 | F18: 51.56653511 | G18: W Pennines (Ringway) | H18: 10
A19: CM | B19: -2.3 | C19: 2033 | D19: 49.52979584 | E19: 1931.35 | F19: 47.05330605 | G19: Thames Valley (Heathrow) | H19: 11.3
A20: CO | B20: -2.3 | C20: 2254 | D20: 54.91399893 | E20: 2141.3 | F20: 52.16829898 | G20: E Anglia (Honington) | H20: 10
A21: CR | B21: -2 | C21: 2224 | D21: 54.18311163 | E21: 2112.8 | F21: 51.47395605 | G21: Southern (Hurn) | H21: 10.4
A22: CT | B22: -3.2 | C22: 2255 | D22: 54.93836184 | E22: 2142.25 | F22: 52.19144375 | G22: South-eastern (Gatwick) | H22: 10.2
A23: CV | B23: -3.4 | C23: 2425 | D23: 59.08005652 | E23: 2303.75 | F23: 56.1260537 | G23: Midland (Elmdon) | H23: 9.8
A24: CW | B24: -2.7 | C24: 2228 | D24: 54.28056327 | E24: 2116.6 | F24: 51.56653511 | G24: W Pennines (Ringway) | H24: 10
A25: DA | B25: -3.2 | C25: 2255 | D25: 54.93836184 | E25: 2142.25 | F25: 52.19144375 | G25: South-eastern (Gatwick) | H25: 10.2
A26: DD | B26: -3.8 | C26: 2577 | D26: 62.78321883 | E26: 2448.15 | F26: 59.64405789 | G26: E Scotland (Leuchars) | H26: 8.8
A27: DE | B27: -2.2 | C27: 2228 | D27: 54.28056327 | E27: 2116.6 | F27: 51.56653511 | G27: W Pennines (Ringway) | H27: 10
A28: DG | B28: -3.8 | C28: 2483 | D28: 60.4931053 | E28: 2358.85 | F28: 57.46845003 | G28: Borders (Boulmer) | H28: 9
A29: DH | B29: -3.7 | C29: 2370 | D29: 57.74009648 | E29: 2251.5 | F29: 54.85309165 | G29: North-eastern (Leeming) | H29: 9.4
A30: DL | B30: -3.7 | C30: 2388 | D30: 58.17862886 | E30: 2268.6 | F30: 55.26969741 | G30: North-western (Carlisle) | H30: 9.4
A31: DN | B31: -3.4 | C31: 2307 | D31: 56.20523315 | E31: 2191.65 | F31: 53.3949715 | G31: E Pennines (Finningley) | H31: 10
A32: DT | B32: -1.7 | C32: 2224 | D32: 54.18311163 | E32: 2112.8 | F32: 51.47395605 | G32: Southern (Hurn) | H32: 10.4
A33: DY | B33: -3.4 | C33: 2425 | D33: 59.08005652 | E33: 2303.75 | F33: 56.1260537 | G33: Midland (Elmdon) | H33: 9.8
A34: E | B34: -1.8 | C34: 2033 | D34: 49.52979584 | E34: 1931.35 | F34: 47.05330605 | G34: Thames Valley (Heathrow) | H34: 11.3
A35: EC | B35: -1.8 | C35: 2033 | D35: 49.52979584 | E35: 1931.35 | F35: 47.05330605 | G35: Thames Valley (Heathrow) | H35: 11.3
A36: EH | B36: -3.4 | C36: 2577 | D36: 62.78321883 | E36: 2448.15 | F36: 59.64405789 | G36: E Scotland (Leuchars) | H36: 8.8
A37: EN | B37: -2.1 | C37: 2255 | D37: 54.93836184 | E37: 2142.25 | F37: 52.19144375 | G37: South-eastern (Gatwick) | H37: 10.2
A38: EX | B38: -1.5 | C38: 1858 | D38: 45.26628661 | E38: 1765.1 | F38: 43.00297228 | G38: South-western (Plymouth) | H38: 11
A39: FK | B39: -3.7 | C39: 2577 | D39: 62.78321883 | E39: 2448.15 | F39: 59.64405789 | G39: E Scotland (Leuchars) | H39: 8.8
A40: FY | B40: -2.2 | C40: 2388 | D40: 58.17862886 | E40: 2268.6 | F40: 55.26969741 | G40: North-western (Carlisle) | H40: 9.4
A41: G | B41: -3.9 | C41: 2494 | D41: 60.76109731 | E41: 2369.3 | F41: 57.72304244 | G41: W Scotland (Abbotsinch) | H41: 9.1
A42: GL | B42: -3.3 | C42: 2425 | D42: 59.08005652 | E42: 2303.75 | F42: 56.1260537 | G42: Midland (Elmdon) | H42: 9.8
A43: GU | B43: -2.2 | C43: 2033 | D43: 49.52979584 | E43: 1931.35 | F43: 47.05330605 | G43: Thames Valley (Heathrow) | H43: 11.3
A44: GY | B44: -1 | C44: 1800 | D44: 43.85323783 | E44: 1710 | F44: 41.66057594 | G44: South-eastern (Gatwick) | H44: 10.2
A45: HA | B45: -1.8 | C45: 2033 | D45: 49.52979584 | E45: 1931.35 | F45: 47.05330605 | G45: Thames Valley (Heathrow) | H45: 11.3
A46: HD | B46: -3.5 | C46: 2307 | D46: 56.20523315 | E46: 2191.65 | F46: 53.3949715 | G46: E Pennines (Finningley) | H46: 10
A47: HG | B47: -3.5 | C47: 2307 | D47: 56.20523315 | E47: 2191.65 | F47: 53.3949715 | G47: E Pennines (Finningley) | H47: 10
A48: HP | B48: -2 | C48: 2033 | D48: 49.52979584 | E48: 1931.35 | F48: 47.05330605 | G48: Thames Valley (Heathrow) | H48: 11.3
A49: HR | B49: -2 | C49: 2425 | D49: 59.08005652 | E49: 2303.75 | F49: 56.1260537 | G49: Midland (Elmdon) | H49: 9.8
A50: HS | B50: -1 | C50: 1800 | D50: 43.85323783 | E50: 1710 | F50: 41.66057594 | G50: NW Scotland (Stornoway) | H50: 8.6
A51: HU | B51: -3 | C51: 2307 | D51: 56.20523315 | E51: 2191.65 | F51: 53.3949715 | G51: E Pennines (Finningley) | H51: 10
A52: HX | B52: -2.5 | C52: 2228 | D52: 54.28056327 | E52: 2116.6 | F52: 51.56653511 | G52: W Pennines (Ringway) | H52: 10
A53: IG | B53: -1.8 | C53: 2033 | D53: 49.52979584 | E53: 1931.35 | F53: 47.05330605 | G53: Thames Valley (Heathrow) | H53: 11.3
A54: IM | B54: -2.5 | C54: 2228 | D54: 54.28056327 | E54: 2116.6 | F54: 51.56653511 | G54: W Pennines (Ringway) | H54: 10
A55: IP | B55: -2.3 | C55: 2254 | D55: 54.91399893 | E55: 2141.3 | F55: 52.16829898 | G55: E Anglia (Honington) | H55: 10
A56: IV | B56: -4 | C56: 2668 | D56: 65.00024363 | E56: 2534.6 | F56: 61.75023145 | G56: NE Scotland (Dyce) | H56: 8.5
A57: JE | B57: -1 | C57: 1800 | D57: 43.85323783 | E57: 1710 | F57: 41.66057594 | G57: South-eastern (Gatwick) | H57: 10.2
A58: KA | B58: -3.7 | C58: 2494 | D58: 60.76109731 | E58: 2369.3 | F58: 57.72304244 | G58: W Scotland (Abbotsinch) | H58: 9.1
A59: KT | B59: -1.8 | C59: 2033 | D59: 49.52979584 | E59: 1931.35 | F59: 47.05330605 | G59: Thames Valley (Heathrow) | H59: 11.3
A60: KW | B60: -4.2 | C60: 2668 | D60: 65.00024363 | E60: 2534.6 | F60: 61.75023145 | G60: NE Scotland (Dyce) | H60: 8.5
A61: KY | B61: -3.4 | C61: 2577 | D61: 62.78321883 | E61: 2448.15 | F61: 59.64405789 | G61: E Scotland (Leuchars) | H61: 8.8
A62: L | B62: -2.4 | C62: 2228 | D62: 54.28056327 | E62: 2116.6 | F62: 51.56653511 | G62: W Pennines (Ringway) | H62: 10
A63: LA | B63: -2.2 | C63: 2388 | D63: 58.17862886 | E63: 2268.6 | F63: 55.26969741 | G63: North-western (Carlisle) | H63: 9.4
A64: LD | B64: -2.9 | C64: 2161 | D64: 52.64824831 | E64: 2052.95 | F64: 50.01583589 | G64: Wales (Aberporth) | H64: 9.9
A65: LE | B65: -3 | C65: 2425 | D65: 59.08005652 | E65: 2303.75 | F65: 56.1260537 | G65: Midland (Elmdon) | H65: 9.8
A66: LL | B66: -3 | C66: 2228 | D66: 54.28056327 | E66: 2116.6 | F66: 51.56653511 | G66: W Pennines (Ringway) | H66: 10
A67: LN | B67: -3 | C67: 2307 | D67: 56.20523315 | E67: 2191.65 | F67: 53.3949715 | G67: E Pennines (Finningley) | H67: 10
A68: LS | B68: -2.5 | C68: 2307 | D68: 56.20523315 | E68: 2191.65 | F68: 53.3949715 | G68: E Pennines (Finningley) | H68: 10
A69: LU | B69: -2.4 | C69: 2033 | D69: =SUM(C69/$D$1) -> 49.52979584 | E69: =SUM(C69*95%) -> 1931.35 | F69: =SUM(E69/41.046) -> 47.05330605 | G69: Thames Valley (Heathrow) | H69: 11.3
A70: M | B70: -2.2 | C70: 2228 | D70: 54.28056327 | E70: 2116.6 | F70: 51.56653511 | G70: W Pennines (Ringway) | H70: 10
A71: ME | B71: -1.8 | C71: 2033 | D71: 49.52979584 | E71: 1931.35 | F71: 47.05330605 | G71: Thames Valley (Heathrow) | H71: 11.3
A72: MK | B72: -3.4 | C72: 2425 | D72: 59.08005652 | E72: 2303.75 | F72: 56.1260537 | G72: Midland (Elmdon) | H72: 9.8
A73: ML | B73: -3.9 | C73: 2494 | D73: 60.76109731 | E73: 2369.3 | F73: 57.72304244 | G73: W Scotland (Abbotsinch) | H73: 9.1
A74: N | B74: -1.8 | C74: 2033 | D74: 49.52979584 | E74: 1931.35 | F74: 47.05330605 | G74: Thames Valley (Heathrow) | H74: 11.3
A75: NE | B75: -3.4 | C75: 2370 | D75: 57.74009648 | E75: 2251.5 | F75: 54.85309165 | G75: North-eastern (Leeming) | H75: 9.4
A76: NG | B76: -3.2 | C76: 2254 | D76: 54.91399893 | E76: 2141.3 | F76: 52.16829898 | G76: E Anglia (Honington) | H76: 10
A77: NN | B77: -3 | C77: 2425 | D77: 59.08005652 | E77: 2303.75 | F77: 56.1260537 | G77: Midland (Elmdon) | H77: 9.8
A78: NP | B78: -1.6 | C78: 2425 | D78: 59.08005652 | E78: 2303.75 | F78: 56.1260537 | G78: Midland (Elmdon) | H78: 9.8
A79: NR | B79: -2.4 | C79: 2254 | D79: 54.91399893 | E79: 2141.3 | F79: 52.16829898 | G79: E Anglia (Honington) | H79: 10
A80: NW | B80: -1.8 | C80: 2033 | D80: 49.52979584 | E80: 1931.35 | F80: 47.05330605 | G80: Thames Valley (Heathrow) | H80: 11.3
A81: OL | B81: -3.2 | C81: 2228 | D81: 54.28056327 | E81: 2116.6 | F81: 51.56653511 | G81: W Pennines (Ringway) | H81: 10
A82: OX | B82: -2.4 | C82: 2425 | D82: 59.08005652 | E82: 2303.75 | F82: 56.1260537 | G82: Midland (Elmdon) | H82: 9.8
A83: PA | B83: -4 | C83: 2494 | D83: 60.76109731 | E83: 2369.3 | F83: 57.72304244 | G83: W Scotland (Abbotsinch) | H83: 9.1
A84: PE | B84: -3 | C84: 2254 | D84: 54.91399893 | E84: 2141.3 | F84: 52.16829898 | G84: E Anglia (Honington) | H84: 10
A85: PH | B85: -3.8 | C85: 2668 | D85: 65.00024363 | E85: 2534.6 | F85: 61.75023145 | G85: NE Scotland (Dyce) | H85: 8.5
A86: PL | B86: -0.2 | C86: 1858 | D86: 45.26628661 | E86: 1765.1 | F86: 43.00297228 | G86: South-western (Plymouth) | H86: 11
A87: PO | B87: -1.8 | C87: 2224 | D87: 54.18311163 | E87: 2112.8 | F87: 51.47395605 | G87: Southern (Hurn) | H87: 10.4
A88: PR | B88: -3.2 | C88: 2388 | D88: 58.17862886 | E88: 2268.6 | F88: 55.26969741 | G88: North-western (Carlisle) | H88: 9.4
A89: RG | B89: -2.2 | C89: 2033 | D89: 49.52979584 | E89: 1931.35 | F89: 47.05330605 | G89: Thames Valley (Heathrow) | H89: 11.3
A90: RH | B90: -1.9 | C90: 2033 | D90: 49.52979584 | E90: 1931.35 | F90: 47.05330605 | G90: Thames Valley (Heathrow) | H90: 11.3
A91: RM | B91: -1.8 | C91: 2033 | D91: 49.52979584 | E91: 1931.35 | F91: 47.05330605 | G91: Thames Valley (Heathrow) | H91: 11.3
A92: S | B92: -2.8 | C92: 2228 | D92: 54.28056327 | E92: 2116.6 | F92: 51.56653511 | G92: W Pennines (Ringway) | H92: 10
A93: SA | B93: -1.6 | C93: 2161 | D93: 52.64824831 | E93: 2052.95 | F93: 50.01583589 | G93: Wales (Aberporth) | H93: 9.9
A94: SE | B94: -1.8 | C94: 2033 | D94: 49.52979584 | E94: 1931.35 | F94: 47.05330605 | G94: Thames Valley (Heathrow) | H94: 11.3
A95: SG | B95: -2 | C95: 2033 | D95: 49.52979584 | E95: 1931.35 | F95: 47.05330605 | G95: Thames Valley (Heathrow) | H95: 11.3
A96: SK | B96: -2.9 | C96: 2228 | D96: 54.28056327 | E96: 2116.6 | F96: 51.56653511 | G96: W Pennines (Ringway) | H96: 10
A97: SL | B97: -2 | C97: 2033 | D97: 49.52979584 | E97: 1931.35 | F97: 47.05330605 | G97: Thames Valley (Heathrow) | H97: 11.3
A98: SM | B98: -1.8 | C98: 2033 | D98: 49.52979584 | E98: 1931.35 | F98: 47.05330605 | G98: Thames Valley (Heathrow) | H98: 11.3
A99: SN | B99: -2.2 | C99: 2425 | D99: 59.08005652 | E99: 2303.75 | F99: 56.1260537 | G99: Midland (Elmdon) | H99: 9.8
A100: SO | B100: -1.8 | C100: 2224 | D100: 54.18311163 | E100: 2112.8 | F100: 51.47395605 | G100: Southern (Hurn) | H100: 10.4
A101: SP | B101: -1.8 | C101: 2224 | D101: 54.18311163 | E101: 2112.8 | F101: 51.47395605 | G101: Southern (Hurn) | H101: 10.4
A102: SR | B102: -3.7 | C102: 2370 | D102: 57.74009648 | E102: 2251.5 | F102: 54.85309165 | G102: North-eastern (Leeming) | H102: 9.4
A103: SS | B103: -2.3 | C103: 2033 | D103: 49.52979584 | E103: 1931.35 | F103: 47.05330605 | G103: Thames Valley (Heathrow) | H103: 11.3
A104: ST | B104: -3 | C104: 2228 | D104: 54.28056327 | E104: 2116.6 | F104: 51.56653511 | G104: W Pennines (Ringway) | H104: 10
A105: SW | B105: -1.8 | C105: 2033 | D105: 49.52979584 | E105: 1931.35 | F105: 47.05330605 | G105: Thames Valley (Heathrow) | H105: 11.3
A106: SY | B106: -3.3 | C106: 2161 | D106: 52.64824831 | E106: 2052.95 | F106: 50.01583589 | G106: Wales (Aberporth) | H106: 9.9
A107: TA | B107: -2.1 | C107: 1835 | D107: 44.70593968 | E107: 1743.25 | F107: 42.47064269 | G107: Severn Valley (Filton) | H107: 10.6
A108: TD | B108: -3.8 | C108: 2483 | D108: 60.4931053 | E108: 2358.85 | F108: 57.46845003 | G108: Borders (Boulmer) | H108: 9
A109: TF | B109: -3.4 | C109: 2425 | D109: 59.08005652 | E109: 2303.75 | F109: 56.1260537 | G109: Midland (Elmdon) | H109: 9.8
A110: TN | B110: -3.2 | C110: 2255 | D110: 54.93836184 | E110: 2142.25 | F110: 52.19144375 | G110: South-eastern (Gatwick) | H110: 10.2
A111: TQ | B111: -1.3 | C111: 1858 | D111: 45.26628661 | E111: 1765.1 | F111: 43.00297228 | G111: South-western (Plymouth) | H111: 11
A112: TR | B112: -1.4 | C112: 1858 | D112: 45.26628661 | E112: 1765.1 | F112: 43.00297228 | G112: South-western (Plymouth) | H112: 11
A113: TS | B113: -2.9 | C113: 2370 | D113: 57.74009648 | E113: 2251.5 | F113: 54.85309165 | G113: North-eastern (Leeming) | H113: 9.4
A114: TW | B114: -1.8 | C114: 2203 | D114: 53.67149052 | E114: 2092.85 | F114: 50.987916 | G114: Thames Valley (Heathrow) | H114: 11.3
A115: UB | B115: -1.8 | C115: 2203 | D115: 53.67149052 | E115: 2092.85 | F115: 50.987916 | G115: Thames Valley (Heathrow) | H115: 11.3
A116: W | B116: -1.8 | C116: 2203 | D116: 53.67149052 | E116: 2092.85 | F116: 50.987916 | G116: Thames Valley (Heathrow) | H116: 11.3
A117: WA | B117: -2.1 | C117: 2228 | D117: 54.28056327 | E117: 2116.6 | F117: 51.56653511 | G117: W Pennines (Ringway) | H117: 10
A118: WC | B118: -1.8 | C118: 2203 | D118: 53.67149052 | E118: 2092.85 | F118: 50.987916 | G118: Thames Valley (Heathrow) | H118: 11.3
A119: WD | B119: -2 | C119: 2203 | D119: 53.67149052 | E119: 2092.85 | F119: 50.987916 | G119: Thames Valley (Heathrow) | H119: 11.3
A120: WF | B120: -2.5 | C120: 2307 | D120: 56.20523315 | E120: 2191.65 | F120: 53.3949715 | G120: E Pennines (Finningley) | H120: 10
A121: WN | B121: -2.1 | C121: 2228 | D121: 54.28056327 | E121: 2116.6 | F121: 51.56653511 | G121: W Pennines (Ringway) | H121: 10
A122: WR | B122: -3.3 | C122: 2425 | D122: 59.08005652 | E122: 2303.75 | F122: 56.1260537 | G122: Midland (Elmdon) | H122: 9.8
A123: WS | B123: -3.4 | C123: 2425 | D123: 59.08005652 | E123: 2303.75 | F123: 56.1260537 | G123: Midland (Elmdon) | H123: 9.8
A124: WV | B124: -3.4 | C124: 2425 | D124: 59.08005652 | E124: 2303.75 | F124: 56.1260537 | G124: Midland (Elmdon) | H124: 9.8
A125: YO | B125: -3.7 | C125: 2307 | D125: 56.20523315 | E125: 2191.65 | F125: 53.3949715 | G125: E Pennines (Finningley) | H125: 10
A126: ZE | B126: -3 | C126: 2668 | D126: 65.00024363 | E126: 2534.6 | F126: 61.75023145 | G126: NE Scotland (Dyce) | H126: 8.5

Sheet floor u values (hidden)
B1: Room Name | C1: External Wall | D1: Short length (depth) | E1: long length | F1: Insulation | G1: Type of floor | H1: External walls | I1: insulation select solid | J1: insulation select suspended | L1: =S5 -> Two adjacent | M1: =S6 -> Two opposite | N1: =S3 -> 3 edges (short single) | O1: =S2 -> 3 edges (long single) | P1: =S4 -> One edge
A2: 1 | B2: ='Design Details'!B87 -> Bed/Study | C2: =SUM('1'!$C$24:$C$26) -> 0 | D2: ='1'!$M$24 -> 0 | E2: ='1'!$O$24 -> 0 | F2: =IF('1'!$C$3="Ground Floor",'Design Details'!$E$45,IF('1'!$C$3="Single Storey",'Design Details'!$E$75,0)) -> 0 | G2: ='1'!$M$20 -> n/a | H2: ='1'!$M$22 -> 0 | I2: =IF(F2=0,3,IF(F2=25,4,IF(F2=50,5,IF(F2=75,6,IF(F2=100,7,0))))) -> 3 | J2: =IF(F2=0,9,IF(F2=25,10,IF(F2=50,11,IF(F2=75,12,IF(F2=100,13,0))))) -> 9 | K2: =IF(H2=$L$1,L2,IF(H2=$M$1,M2,IF(H2=$N$1,N2,IF(H2=$O$1,O2,IF(H2=$P$1,P2,0))))) -> 0 | L2: =VLOOKUP(C2,$C$36:$O$44,IF(G2=C33,I2,J2),TRUE) ->  | M2: =VLOOKUP(ROUNDDOWN(D2,0),$C$48:$O$53,IF(G2=$C$33,I2,J2),TRUE) ->  | N2: =IF(D2<4,VLOOKUP(E2,$C$58:$O$61,IF(G2=$C$33,I2,J2),TRUE),IF(AND(D2>=4,D2<5),VLOOKUP(E2,$C$62:$O$63,IF(G2=$C$33,I2,J2),TRUE),IF(AND(D2>=5,D2<6),VLOOKUP(E2,$C$64:$O$65,IF(G2=$C$33,I2,J2),TRUE),IF(D2>6,VLOOKUP(E2,$C$66:$O$67,IF(G2=$C$33,I2,J2),TRUE),0)))) ->  | O2: =IF(D2<4,VLOOKUP(E2,$C$71:$O$74,IF(G2=$C$33,I2,J2),TRUE),IF(AND(D2>=4,D2<5),VLOOKUP(E2,$C$75:$O$77,IF(G2=$C$33,I2,J2),TRUE),IF(AND(D2>=5,D2<6),VLOOKUP(E2,$C$78:$O$80,IF(G2=$C$33,I2,J2),TRUE),IF(D2>6,VLOOKUP(E2,$C$81:$O$82,IF(G2=$C$33,I2,J2),TRUE),0)))) ->  | P2: =VLOOKUP(D2,$C$86:$O$91,IF(G2=$C$33,I2,J2),TRUE) ->  | S2: 3 edges (long single)
A3: 2 | B3: ='Design Details'!B88 ->  | C3: =SUM('2'!$C$24:$C$26) -> 0 | D3: ='2'!$M$24 -> 0 | E3: ='2'!$O$24 -> 0 | F3: =IF('2'!$C$3="Ground Floor",'Design Details'!$E$45,IF('2'!$C$3="Single Storey",'Design Details'!$E$75,0)) -> 0 | G3: ='2'!$M$20 -> n/a | H3: ='2'!$M$22 -> 0 | I3: =IF(F3=0,3,IF(F3=25,4,IF(F3=50,5,IF(F3=75,6,IF(F3=100,7,0))))) -> 3 | J3: =IF(F3=0,9,IF(F3=25,10,IF(F3=50,11,IF(F3=75,12,IF(F3=100,13,0))))) -> 9 | K3: =IF(H3=$L$1,L3,IF(H3=$M$1,M3,IF(H3=$N$1,N3,IF(H3=$O$1,O3,IF(H3=$P$1,P3,0))))) -> 0 | L3: =VLOOKUP(C3,$C$36:$O$44,IF(G3=C34,I3,J3),TRUE) ->  | M3: =VLOOKUP(ROUNDDOWN(D3,0),$C$48:$O$53,IF(G3=$C$33,I3,J3),TRUE) ->  | N3: =IF(D3<4,VLOOKUP(E3,$C$58:$O$61,IF(G3=$C$33,I3,J3),TRUE),IF(AND(D3>=4,D3<5),VLOOKUP(E3,$C$62:$O$63,IF(G3=$C$33,I3,J3),TRUE),IF(AND(D3>=5,D3<6),VLOOKUP(E3,$C$64:$O$65,IF(G3=$C$33,I3,J3),TRUE),IF(D3>6,VLOOKUP(E3,$C$66:$O$67,IF(G3=$C$33,I3,J3),TRUE),0)))) ->  | O3: =IF(D3<4,VLOOKUP(E3,$C$71:$O$74,IF(G3=$C$33,I3,J3),TRUE),IF(AND(D3>=4,D3<5),VLOOKUP(E3,$C$75:$O$77,IF(G3=$C$33,I3,J3),TRUE),IF(AND(D3>=5,D3<6),VLOOKUP(E3,$C$78:$O$80,IF(G3=$C$33,I3,J3),TRUE),IF(D3>6,VLOOKUP(E3,$C$81:$O$82,IF(G3=$C$33,I3,J3),TRUE),0)))) ->  | P3: =VLOOKUP(D3,$C$86:$O$91,IF(G3=$C$33,I3,J3),TRUE) ->  | S3: 3 edges (short single)
A4: 3 | B4: ='Design Details'!B89 ->  | C4: =SUM('3'!$C$24:$C$26) -> 0 | D4: ='3'!$M$24 -> 0 | E4: ='3'!$O$24 -> 0 | F4: =IF('3'!$C$3="Ground Floor",'Design Details'!$E$45,IF('3'!$C$3="Single Storey",'Design Details'!$E$75,0)) -> 0 | G4: ='3'!$M$20 -> n/a | H4: ='3'!$M$22 -> 0 | I4: 3 | J4: 9 | K4: 0 | S4: One edge
A5: 4 | B5: ='Design Details'!B90 ->  | C5: =SUM('4'!$C$24:$C$26) -> 0 | D5: ='4'!$M$24 -> 0 | E5: ='4'!$O$24 -> 0 | F5: =IF('4'!$C$3="Ground Floor",'Design Details'!$E$45,IF('4'!$C$3="Single Storey",'Design Details'!$E$75,0)) -> 0 | G5: ='4'!$M$20 -> n/a | H5: ='4'!$M$22 -> 0 | I5: 3 | J5: 9 | K5: 0 | S5: Two adjacent
A6: 5 | B6: ='Design Details'!B91 ->  | C6: =SUM('5'!$C$24:$C$26) -> 0 | D6: ='5'!$M$24 -> 0 | E6: ='5'!$O$24 -> 0 | F6: =IF('5'!$C$3="Ground Floor",'Design Details'!$E$45,IF('5'!$C$3="Single Storey",'Design Details'!$E$75,0)) -> 0 | G6: ='5'!$M$20 -> n/a | H6: ='5'!$M$22 -> 0 | I6: 3 | J6: 9 | K6: 0 | S6: Two opposite
A7: 6 | B7: ='Design Details'!B92 ->  | C7: =SUM('6'!$C$24:$C$26) -> 0 | D7: ='6'!$M$24 -> 0 | E7: ='6'!$O$24 -> 0 | F7: =IF('6'!$C$3="Ground Floor",'Design Details'!$E$45,IF('6'!$C$3="Single Storey",'Design Details'!$E$75,0)) -> 0 | G7: ='6'!$M$20 -> n/a | H7: ='6'!$M$22 -> 0 | I7: 3 | J7: 9 | K7: 0
A8: 7 | B8: ='Design Details'!B93 ->  | C8: =SUM('7'!$C$24:$C$26) -> 0 | D8: ='7'!$M$24 -> 0 | E8: ='7'!$O$24 -> 0 | F8: =IF('7'!$C$3="Ground Floor",'Design Details'!$E$45,IF('7'!$C$3="Single Storey",'Design Details'!$E$75,0)) -> 0 | G8: ='7'!$M$20 -> n/a | H8: ='7'!$M$22 -> 0 | I8: 3 | J8: 9 | K8: 0
A9: 8 | B9: ='Design Details'!B94 ->  | C9: =SUM('8'!$C$24:$C$26) -> 0 | D9: ='8'!$M$24 -> 0 | E9: ='8'!$O$24 -> 0 | F9: =IF('8'!$C$3="Ground Floor",'Design Details'!$E$45,IF('8'!$C$3="Single Storey",'Design Details'!$E$75,0)) -> 0 | G9: ='8'!$M$20 -> n/a | H9: ='8'!$M$22 -> 0 | I9: 3 | J9: 9 | K9: 0
A10: 9 | B10: ='Design Details'!B95 ->  | C10: =SUM('9'!$C$24:$C$26) -> 0 | D10: ='9'!$M$24 -> 0 | E10: ='9'!$O$24 -> 0 | F10: =IF('9'!$C$3="Ground Floor",'Design Details'!$E$45,IF('9'!$C$3="Single Storey",'Design Details'!$E$75,0)) -> 0 | G10: ='9'!$M$20 -> n/a | H10: ='9'!$M$22 -> 0 | I10: 3 | J10: 9 | K10: 0
A11: 10 | B11: ='Design Details'!B96 ->  | C11: =SUM('10'!$C$24:$C$26) -> 0 | D11: ='10'!$M$24 -> 0 | E11: ='10'!$O$24 -> 0 | F11: =IF('10'!$C$3="Ground Floor",'Design Details'!$E$45,IF('10'!$C$3="Single Storey",'Design Details'!$E$75,0)) -> 0 | G11: ='10'!$M$20 -> n/a | H11: ='10'!$M$22 -> 0 | I11: 3 | J11: 9 | K11: 0
A12: 11 | B12: ='Design Details'!B97 ->  | C12: =SUM('11'!$C$24:$C$26) -> 0 | D12: ='11'!$M$24 -> 0 | E12: ='11'!$O$24 -> 0 | F12: =IF('11'!$C$3="Ground Floor",'Design Details'!$E$45,IF('11'!$C$3="Single Storey",'Design Details'!$E$75,0)) -> 0 | G12: ='11'!$M$20 -> n/a | H12: ='11'!$M$22 -> 0 | I12: 3 | J12: 9 | K12: 0
A13: 12 | B13: ='Design Details'!B98 ->  | C13: =SUM('12'!$C$24:$C$26) -> 0 | D13: ='12'!$M$24 -> 0 | E13: ='12'!$O$24 -> 0 | F13: =IF('12'!$C$3="Ground Floor",'Design Details'!$E$45,IF('12'!$C$3="Single Storey",'Design Details'!$E$75,0)) -> 0 | G13: ='12'!$M$20 -> n/a | H13: ='12'!$M$22 -> 0 | I13: 3 | J13: 9 | K13: 0
A14: 13 | B14: ='Design Details'!B99 ->  | C14: =SUM('13'!$C$24:$C$26) -> 0 | D14: ='13'!$M$24 -> 0 | E14: ='13'!$O$24 -> 0 | F14: =IF('13'!$C$3="Ground Floor",'Design Details'!$E$45,IF('13'!$C$3="Single Storey",'Design Details'!$E$75,0)) -> 0 | G14: ='13'!$M$20 -> n/a | H14: ='13'!$M$22 -> 0 | I14: 3 | J14: 9 | K14: 0
A15: 14 | B15: ='Design Details'!B100 ->  | C15: =SUM('14'!$C$24:$C$26) -> 0 | D15: ='14'!$M$24 -> 0 | E15: ='14'!$O$24 -> 0 | F15: =IF('14'!$C$3="Ground Floor",'Design Details'!$E$45,IF('14'!$C$3="Single Storey",'Design Details'!$E$75,0)) -> 0 | G15: ='14'!$M$20 -> n/a | H15: ='14'!$M$22 -> 0 | I15: 3 | J15: 9 | K15: 0
A16: 15 | B16: ='Design Details'!B101 ->  | C16: =SUM('15'!$C$24:$C$26) -> 0 | D16: ='15'!$M$24 -> 0 | E16: ='15'!$O$24 -> 0 | F16: =IF('15'!$C$3="Ground Floor",'Design Details'!$E$45,IF('15'!$C$3="Single Storey",'Design Details'!$E$75,0)) -> 0 | G16: ='15'!$M$20 -> n/a | H16: ='15'!$M$22 -> 0 | I16: 3 | J16: 9 | K16: 0
A17: 16 | B17: ='Design Details'!B102 ->  | C17: =SUM('16'!$C$24:$C$26) -> 0 | D17: ='16'!$M$24 -> 0 | E17: ='16'!$O$24 -> 0 | F17: =IF('16'!$C$3="Ground Floor",'Design Details'!$E$45,IF('16'!$C$3="Single Storey",'Design Details'!$E$75,0)) -> 0 | G17: ='16'!$M$20 -> n/a | H17: ='16'!$M$22 -> 0 | I17: 3 | J17: 9 | K17: 0
A18: 17 | B18: ='Design Details'!B103 ->  | C18: =SUM('17'!$C$24:$C$26) -> 0 | D18: ='17'!$M$24 -> 0 | E18: ='17'!$O$24 -> 0 | F18: =IF('17'!$C$3="Ground Floor",'Design Details'!$E$45,IF('17'!$C$3="Single Storey",'Design Details'!$E$75,0)) -> 0 | G18: ='17'!$M$20 -> n/a | H18: ='17'!$M$22 -> 0 | I18: 3 | J18: 9 | K18: 0
A19: 18 | B19: ='Design Details'!B104 ->  | C19: =SUM('18'!$C$24:$C$26) -> 0 | D19: ='18'!$M$24 -> 0 | E19: ='18'!$O$24 -> 0 | F19: =IF('18'!$C$3="Ground Floor",'Design Details'!$E$45,IF('18'!$C$3="Single Storey",'Design Details'!$E$75,0)) -> 0 | G19: ='18'!$M$20 -> n/a | H19: ='18'!$M$22 -> 0 | I19: 3 | J19: 9 | K19: 0
A20: 19 | B20: ='Design Details'!B105 ->  | C20: =SUM('19'!$C$24:$C$26) -> 0 | D20: ='19'!$M$24 -> 0 | E20: ='19'!$O$24 -> 0 | F20: =IF('19'!$C$3="Ground Floor",'Design Details'!$E$45,IF('19'!$C$3="Single Storey",'Design Details'!$E$75,0)) -> 0 | G20: ='19'!$M$20 -> n/a | H20: ='19'!$M$22 -> 0 | I20: 3 | J20: 9 | K20: 0
A21: 20 | B21: ='Design Details'!B106 ->  | C21: =SUM('20'!$C$24:$C$26) -> 0 | D21: ='20'!$M$24 -> 0 | E21: ='20'!$O$24 -> 0 | F21: =IF('20'!$C$3="Ground Floor",'Design Details'!$E$45,IF('20'!$C$3="Single Storey",'Design Details'!$E$75,0)) -> 0 | G21: ='20'!$M$20 -> n/a | H21: ='20'!$M$22 -> 0 | I21: 3 | J21: 9 | K21: 0
A22: 21 | B22: ='Design Details'!B107 ->  | C22: =SUM('21'!$C$24:$C$26) -> 0 | D22: ='21'!$M$24 -> 0 | E22: ='21'!$O$24 -> 0 | F22: =IF('21'!$C$3="Ground Floor",'Design Details'!$E$45,IF('21'!$C$3="Single Storey",'Design Details'!$E$75,0)) -> 0 | G22: ='21'!$M$20 -> n/a | H22: ='21'!$M$22 -> 0 | I22: 3 | J22: 9 | K22: 0
A23: 22 | B23: ='Design Details'!B108 ->  | C23: =SUM('22'!$C$24:$C$26) -> 0 | D23: ='22'!$M$24 -> 0 | E23: ='22'!$O$24 -> 0 | F23: =IF('22'!$C$3="Ground Floor",'Design Details'!$E$45,IF('22'!$C$3="Single Storey",'Design Details'!$E$75,0)) -> 0 | G23: ='22'!$M$20 -> n/a | H23: ='22'!$M$22 -> 0 | I23: 3 | J23: 9 | K23: 0
A24: 23 | B24: ='Design Details'!B109 ->  | C24: =SUM('23'!$C$24:$C$26) -> 0 | D24: ='23'!$M$24 -> 0 | E24: ='23'!$O$24 -> 0 | F24: =IF('23'!$C$3="Ground Floor",'Design Details'!$E$45,IF('23'!$C$3="Single Storey",'Design Details'!$E$75,0)) -> 0 | G24: ='23'!$M$20 -> n/a | H24: ='23'!$M$22 -> 0 | I24: 3 | J24: 9 | K24: 0
A25: 24 | B25: ='Design Details'!B110 ->  | C25: =SUM('24'!$C$24:$C$26) -> 0 | D25: ='24'!$M$24 -> 0 | E25: ='24'!$O$24 -> 0 | F25: =IF('24'!$C$3="Ground Floor",'Design Details'!$E$45,IF('24'!$C$3="Single Storey",'Design Details'!$E$75,0)) -> 0 | G25: ='24'!$M$20 -> n/a | H25: ='24'!$M$22 -> 0 | I25: 3 | J25: 9 | K25: 0
A26: 25 | B26: ='Design Details'!B111 ->  | C26: =SUM('25'!$C$24:$C$26) -> 0 | D26: ='25'!$M$24 -> 0 | E26: ='25'!$O$24 -> 0 | F26: =IF('25'!$C$3="Ground Floor",'Design Details'!$E$45,IF('25'!$C$3="Single Storey",'Design Details'!$E$75,0)) -> 0 | G26: ='25'!$M$20 -> n/a | H26: ='25'!$M$22 -> 0 | I26: 3 | J26: 9 | K26: 0
A27: 26 | B27: ='Design Details'!B112 ->  | C27: =SUM('26'!$C$24:$C$26) -> 0 | D27: ='26'!$M$24 -> 0 | E27: ='26'!$O$24 -> 0 | F27: =IF('26'!$C$3="Ground Floor",'Design Details'!$E$45,IF('26'!$C$3="Single Storey",'Design Details'!$E$75,0)) -> 0 | G27: ='26'!$M$20 -> n/a | H27: ='26'!$M$22 -> 0 | I27: 3 | J27: 9 | K27: 0
A28: 27 | B28: ='Design Details'!B113 ->  | C28: =SUM('27'!$C$24:$C$26) -> 0 | D28: ='27'!$M$24 -> 0 | E28: ='27'!$O$24 -> 0 | F28: =IF('27'!$C$3="Ground Floor",'Design Details'!$E$45,IF('27'!$C$3="Single Storey",'Design Details'!$E$75,0)) -> 0 | G28: ='27'!$M$20 -> n/a | H28: ='27'!$M$22 -> 0 | I28: 3 | J28: 9 | K28: 0
A29: 28 | B29: ='Design Details'!B114 ->  | C29: =SUM('28'!$C$24:$C$26) -> 0 | D29: ='28'!$M$24 -> 0 | E29: ='28'!$O$24 -> 0 | F29: =IF('28'!$C$3="Ground Floor",'Design Details'!$E$45,IF('28'!$C$3="Single Storey",'Design Details'!$E$75,0)) -> 0 | G29: ='28'!$M$20 -> n/a | H29: ='28'!$M$22 -> 0 | I29: 3 | J29: 9 | K29: 0
A30: 29 | B30: ='Design Details'!B115 ->  | C30: =SUM('29'!$C$24:$C$26) -> 0 | D30: ='29'!$M$24 -> 0 | E30: ='29'!$O$24 -> 0 | F30: =IF('29'!$C$3="Ground Floor",'Design Details'!$E$45,IF('29'!$C$3="Single Storey",'Design Details'!$E$75,0)) -> 0 | G30: ='29'!$M$20 -> n/a | H30: ='29'!$M$22 -> 0 | I30: 3 | J30: 9 | K30: 0
A31: 30 | B31: ='Design Details'!B116 ->  | C31: =SUM('30'!$C$24:$C$26) -> 0 | D31: ='30'!$M$24 -> 0 | E31: ='30'!$O$24 -> 0 | F31: =IF('30'!$C$3="Ground Floor",'Design Details'!$E$45,IF('30'!$C$3="Single Storey",'Design Details'!$E$75,0)) -> 0 | G31: ='30'!$M$20 -> n/a | H31: ='30'!$M$22 -> 0 | I31: 3 | J31: 9 | K31: 0
C33: Solid Floor (in contact with ground) | J33: Suspended Floors
C34: Table 6.9 (Two adjacent edges exposed) | J34: Table 6.12 (Two adjacent edges exposed)
C35: a+b(m) | E35: 0 | F35: 25 | G35: 50 | H35: 75 | I35: 100 | K35: 0 | L35: 25 | M35: 50 | N35: 75 | O35: 100
B36: "5-6 | C36: 5 | E36: 1.02 | F36: 0.58 | G36: 0.41 | H36: 0.31 | I36: 0.26 | K36: 1.05 | L36: 0.59 | M36: 0.41 | N36: 0.32 | O36: 0.26
B37: "6-7 | C37: 6 | E37: 0.9 | F37: 0.54 | G37: 0.39 | H37: 0.3 | I37: 0.25 | K37: 0.93 | L37: 0.55 | M37: 0.39 | N37: 0.3 | O37: 0.25
B38: "7-8 | C38: 7 | E38: 0.82 | F38: 0.51 | G38: 0.37 | H38: 0.29 | I38: 0.24 | K38: 0.86 | L38: 0.53 | M38: 0.38 | N38: 0.3 | O38: 0.24
B39: "8-9 | C39: 8 | E39: 0.76 | F39: 0.49 | G39: 0.36 | H39: 0.28 | I39: 0.23 | K39: 0.79 | L39: 0.5 | M39: 0.37 | N39: 0.29 | O39: 0.24
B40: "9-10 | C40: 9 | E40: 0.7 | F40: 0.46 | G40: 0.34 | H40: 0.27 | I40: 0.23 | K40: 0.75 | L40: 0.48 | M40: 0.36 | N40: 0.28 | O40: 0.23
B41: "10-12 | C41: 10 | E41: 0.6 | F41: 0.41 | G41: 0.32 | H41: 0.26 | I41: 0.22 | K41: 0.65 | L41: 0.44 | M41: 0.33 | N41: 0.27 | O41: 0.22
B42: "12-14 | C42: 12 | E42: 0.52 | F42: 0.38 | G42: 0.29 | H42: 0.24 | I42: 0.21 | K42: 0.58 | L42: 0.41 | M42: 0.31 | N42: 0.25 | O42: 0.21
B43: "14-17 | C43: 14 | E43: 0.45 | F43: 0.34 | G43: 0.27 | H43: 0.23 | I43: 0.19 | K43: 0.71 | L43: 0.37 | M43: 0.29 | N43: 0.24 | O43: 0.2
B44: "17-20 | C44: 17 | E44: 0.39 | F44: 0.3 | G44: 0.25 | H44: 0.21 | I44: 0.18 | K44: 0.43 | L44: 0.33 | M44: 0.26 | N44: 0.22 | O44: 0.19
C46: Table 6.10c (Two opposite edges exposed) | H46: a | J46: Table 6.10c (Two opposite edges exposed) | O46: a
C47: a (m) | E47: 0 | F47: 25 | G47: 50 | H47: 75 | I47: 100 | K47: 0 | L47: 25 | M47: 50 | N47: 75 | O47: 100
B48: "2-3 | C48: 2 | E48: 1.15 | F48: 0.62 | G48: 0.43 | H48: 0.32 | I48: 0.26 | K48: 1.1 | L48: 0.61 | M48: 0.42 | N48: 0.32 | O48: 0.26
B49: "3-4 | C49: 3 | E49: 0.9 | F49: 0.54 | G49: 0.39 | H49: 0.3 | I49: 0.25 | K49: 0.95 | L49: 0.56 | M49: 0.4 | N49: 0.31 | O49: 0.25
B50: "4-5 | C50: 4 | E50: 0.73 | F50: 0.47 | G50: 0.35 | H50: 0.28 | I50: 0.23 | K50: 0.83 | L50: 0.51 | M50: 0.37 | N50: 0.29 | O50: 0.23
B51: "5-6 | C51: 5 | E51: 0.62 | F51: 0.43 | G51: 0.32 | H51: 0.26 | I51: 0.22 | K51: 0.74 | L51: 0.48 | M51: 0.35 | N51: 0.26 | O51: 0.23
B52: "6-8 | C52: 6 | E52: 0.55 | F52: 0.39 | G52: 0.3 | H52: 0.25 | I52: 0.21 | K52: 0.67 | L52: 0.45 | M52: 0.34 | N52: 0.27 | O52: 0.23
B53: "8-10 | C53: 8 | E53: 0.44 | F53: 0.33 | G53: 0.27 | H53: 0.22 | I53: 0.19 | K53: 0.55 | L53: 0.39 | M53: 0.3 | N53: 0.25 | O53: 0.21
C56: Table 6.10a (Three adjacent edges exposed) | H56: s | J56: Table 6.13a (Three adjacent edges exposed) | O56: s
B57: short | C57: long | E57: 0 | F57: 25 | G57: 50 | H57: 75 | I57: 100 | K57: 0 | L57: 25 | M57: 50 | N57: 75 | O57: 100
B58: 3 | C58: 3 | E58: 1.15 | F58: 0.62 | G58: 0.43 | H58: 0.32 | I58: 0.26 | K58: 1.15 | L58: 0.62 | M58: 0.43 | N58: 0.32 | O58: 0.26
B59: 3 | C59: 4 | E59: 1.03 | F59: 0.58 | G59: 0.41 | H59: 0.31 | I59: 0.26 | K59: 1.03 | L59: 0.58 | M59: 0.41 | N59: 0.31 | O59: 0.26
B60: 3 | C60: 6 | E60: 1 | F60: 0.57 | G60: 0.4 | H60: 0.31 | I60: 0.25 | K60: 1 | L60: 0.57 | M60: 0.4 | N60: 0.31 | O60: 0.25
B61: 3 | C61: 8 | E61: 0.96 | F61: 0.56 | G61: 0.4 | H61: 0.31 | I61: 0.25 | K61: 0.99 | L61: 0.56 | M61: 0.4 | N61: 0.31 | O61: 0.25
B62: 4 | C62: 4 | E62: 0.95 | F62: 0.56 | G62: 0.4 | H62: 0.31 | I62: 0.25 | K62: 0.95 | L62: 0.56 | M62: 0.4 | N62: 0.31 | O62: 0.25
B63: 4 | C63: 6 | E63: 0.85 | F63: 0.52 | G63: 0.38 | H63: 0.29 | I63: 0.24 | K63: 0.87 | L63: 0.53 | M63: 0.38 | N63: 0.3 | O63: 0.24
B64: 5 | C64: 5 | E64: 0.81 | F64: 0.51 | G64: 0.37 | H64: 0.29 | I64: 0.24 | K64: 0.83 | L64: 0.51 | M64: 0.37 | N64: 0.29 | O64: 0.24
B65: 5 | C65: 7 | E65: 0.74 | F65: 0.48 | G65: 0.35 | H65: 0.28 | I65: 0.23 | K65: 0.8 | L65: 0.5 | M65: 0.37 | N65: 0.29 | O65: 0.24
B66: 6 | C66: 6 | E66: 0.71 | F66: 0.46 | G66: 0.35 | H66: 0.28 | I66: 0.23 | K66: 0.75 | L66: 0.48 | M66: 0.36 | N66: 0.28 | O66: 0.23
B67: 6 | C67: 8 | E67: 0.65 | F67: 0.44 | G67: 0.33 | H67: 0.27 | I67: 0.22 | K67: 0.72 | L67: 0.47 | M67: 0.35 | N67: 0.28 | O67: 0.23
C69: Table 6.10b (Three adjacent edges exposed) | H69: L | J69: Table 6.13b (Three adjacent edges exposed) | O69: L
B70: short | C70: long | E70: 0 | F70: 25 | G70: 50 | H70: 75 | I70: 100 | K70: 0 | L70: 25 | M70: 50 | N70: 75 | O70: 100
B71: 3 | C71: 3 | E71: 1.05 | F71: 0.59 | G71: 0.41 | H71: 0.32 | I71: 0.26 | K71: 1 | L71: 0.57 | M71: 0.4 | N71: 0.31 | O71: 0.25
B72: 3 | C72: 5 | E72: 0.9 | F72: 0.54 | G72: 0.39 | H72: 0.3 | I72: 0.25 | K72: 0.85 | L72: 0.52 | M72: 0.38 | N72: 0.29 | O72: 0.24
B73: 3 | C73: 7 | E73: 0.85 | F73: 0.52 | G73: 0.38 | H73: 0.29 | I73: 0.24 | K73: 0.8 | L73: 0.5 | M73: 0.37 | N73: 0.29 | O73: 0.24
B74: 3 | C74: 9 | E74: 0.77 | F74: 0.49 | G74: 0.36 | H74: 0.28 | I74: 0.24 | K74: 0.77 | L74: 0.49 | M74: 0.36 | N74: 0.28 | O74: 0.24
B75: 4 | C75: 4 | E75: 0.95 | F75: 0.56 | G75: 0.4 | H75: 0.31 | I75: 0.25 | K75: 0.85 | L75: 0.52 | M75: 0.38 | N75: 0.29 | O75: 0.24
B76: 4 | C76: 6 | E76: 0.87 | F76: 0.53 | G76: 0.38 | H76: 0.3 | I76: 0.24 | K76: 0.79 | L76: 0.5 | M76: 0.37 | N76: 0.29 | O76: 0.24
B77: 4 | C77: 8 | E77: 0.76 | F77: 0.49 | G77: 0.36 | H77: 0.28 | I77: 0.24 | K77: 0.73 | L77: 0.47 | M77: 0.35 | N77: 0.28 | O77: 0.23
B78: 5 | C78: 5 | E78: 0.83 | F78: 0.51 | G78: 0.37 | H78: 0.29 | I78: 0.24 | K78: 0.77 | L78: 0.49 | M78: 0.36 | N78: 0.28 | O78: 0.24
B79: 5 | C79: 7 | E79: 0.77 | F79: 0.49 | G79: 0.36 | H79: 0.28 | I79: 0.24 | K79: 0.72 | L79: 0.47 | M79: 0.35 | N79: 0.28 | O79: 0.23
B80: 5 | C80: 9 | E80: 0.68 | F80: 0.45 | G80: 0.34 | H80: 0.27 | I80: 0.23 | K80: 0.66 | L80: 0.44 | M80: 0.33 | N80: 0.27 | O80: 0.23
B81: 6 | C81: 6 | E81: 0.75 | F81: 0.48 | G81: 0.36 | H81: 0.28 | I81: 0.23 | K81: 0.69 | L81: 0.46 | M81: 0.34 | N81: 0.27 | O81: 0.23
B82: 6 | C82: 8 | E82: 0.7 | F82: 0.46 | G82: 0.34 | H82: 0.27 | I82: 0.23 | K82: 0.67 | L82: 0.45 | M82: 0.34 | N82: 0.27 | O82: 0.23
C84: Table 6.11 (One adjacent edge exposed) | H84: a | J84: Table 6.14b (One adjacent edge exposed) | O84: a
C85: a(m) | E85: 0 | F85: 25 | G85: 50 | H85: 75 | I85: 100 | K85: 0 | L85: 25 | M85: 50 | N85: 75 | O85: 100
B86: "1.25-1.75 | C86: 1.25 | E86: 0.9 | F86: 0.54 | G86: 0.39 | H86: 0.3 | I86: 0.25 | K86: 1.1 | L86: 0.61 | M86: 0.42 | N86: 0.32 | O86: 0.26
B87: "1.75-2 | C87: 1.75 | E87: 0.73 | F87: 0.47 | G87: 0.35 | H87: 0.28 | I87: 0.23 | K87: 0.83 | L87: 0.51 | M87: 0.37 | N87: 0.29 | O87: 0.24
B88: "2-3 | C88: 2 | E88: 0.55 | F88: 0.39 | G88: 0.3 | H88: 0.25 | I88: 0.21 | K88: 0.67 | L88: 0.45 | M88: 0.34 | N88: 0.27 | O88: 0.23
B89: "3-5 | C89: 3 | E89: 0.45 | F89: 0.34 | G89: 0.27 | H89: 0.23 | I89: 0.19 | K89: 0.56 | L89: 0.4 | M89: 0.31 | N89: 0.25 | O89: 0.21
B90: "5-7 | C90: 5 | E90: 0.38 | F90: 0.3 | G90: 0.24 | H90: 0.21 | I90: 0.18 | K90: 0.48 | L90: 0.35 | M90: 0.28 | N90: 0.23 | O90: 0.2
B91: "7-10 | C91: 7 | E91: 0.28 | F91: 0.23 | G91: 0.2 | H91: 0.17 | I91: 0.15 | K91: 0.38 | L91: 0.3 | M91: 0.24 | N91: 0.21 | O91: 0.19
J94: Menu_floor_construction | K94: menu no | L94: col
J95: Solid floor - Enter a U-value | K95: 0
J96: Suspended floor - Enter U-value | K96: 0
J97: Solid no insulation | K97: 1 | L97: 3
J98: Solid 25mm insulation | K98: 2 | L98: 4
J99: Solid 50mm insulation | K99: 3 | L99: 5
J100: Solid 75mm insulation | K100: 4 | L100: 6
J101: Solid 100mm insulation | K101: 5 | L101: 7
J102: Suspended no insulation | K102: 6 | L102: 10
J103: Suspended 25mm insulation | K103: 7 | L103: 11
J104: Suspended 50mm insulation | K104: 8 | L104: 12
J105: Suspended 75mm insulation | K105: 9 | L105: 13
J106: Suspended 100mm insulation | K106: 10 | L106: 14
J108: Menu_floor_exposed_sides
J109: One edge (short) | K109: 1
J110: One edge (long) | K110: 2
J111: Two adjacent edges | K111: 3
J112: Two opposite edges | K112: 4
J113: Three edges (short outer edge) | K113: 5
J114: Three edges (long outer edge) | K114: 6

Sheet Scope
C3: MCS Heat Pump Heat Loss Calculator
C5: This spreadsheet provides a method for carrying out the design calculations required by MIS 3005. Its use is optional and installers may choose to use other calculations or tools provided they comply with the requirements of MIS 3005.
C8: The calculator is designed for use as an Excel Macro Enabled workbook. MCS welcomes any suggestions for improvement or notification of errors. Please submit feedback to feedback@mcscertified.com
C11: Please note the following: -the spreadsheet is locked and data can only be entered into editable cells -cells shown in grey contain default values and can be edited if the user wants to over-ride the default values -cells shown in light blue contain are locked and cannot be edited
C16: A copy of the MCS Compliance Certificate is also incorporated and populated using the data from the heat loss calculations. In order to upload the compliance certificate to the MCS Installation Database, select the tab and save as a PDF.
C19: Whilst all reasonable care has been taken in the preparation of this document it is provided on an “as is” basis without any guarantee of completeness or accuracy. The MCS Service Company Ltd and The MCS Charitable Foundation (and any related parties) do not accept liability for any errors or omissions in the document nor for the use or application of the information, standards or requirements contained in the document by any third party.
C24: COPYRIGHT © The MCS Charitable Foundation 2021
C26: Version 1.10

Sheet Design Details
B1: Design Details | AA1: Rooms | AB1: Temp | AC1: Pre 2000 | AD1: Post 2000 | AE1: Post 2006 | AF1: Non select a/c | AG1: selected column | AO1: Hot Water Energy Calculation | AS1: Calculations | AT1: Electric | AU1: Gas | AV1: LPG | AW1: Oil | AX1: Constants and Assumptions
B2: Project Reference: | F2: MCS Designer: | Q2: 0 | R2: Air Source | S2: Bungalow | T2: Pre 2000 | U2: 30 | V2: 0 | W2: 0 | X2: Fan Convector | Y2: Single Phase | Z2: Horizontal | AA2: Bath | AB2: 22 | AC2: 3 | AD2: 1.5 | AE2: 1.5 | AF2: 1 | AG2: =MATCH(C15,AA1:AG1,0) ->  | AI2: Up to 40 | AJ2: No | AK2: 5 | AL2: No | AM2: =IF(AND(F87=$AL$3,I87<=40),$AK$3,IF(AND(F87=$AL$3,I87>40),$AK$5,IF(AND(F87=$AL$4,I87<=40),$AK$2,IF(AND(F87=$AL$4,I87>40),$AK$4,0)))) -> 0 | AN2: 0 | AO2: HW energy HP/day | AP2: =IF(G14=0,0,G14+1)*G15*G21*(G33-AZ4)*AZ2/(AZ3*C34*(G34)) ->  | AQ2: kWh into HP for HW/day | AS2: CO2 kg | AT2: 0.519 | AU2: 0.216 | AV2: 0.241 | AW2: 0.298 | AX2: SHC Water | AZ2: 4187 | BA2: J/kgK
B3: Date: | F3: Company Name: | Q3: 25 | R3: Ground Source | S3: Detached | T3: Post 2000 | U3: 35 | V3: 1 | W3: 10 | X3: Radiators | Y3: Three Phase | Z3: Vertical | AA3: Bed & Ensuite | AB3: 21 | AC3: 2.0 | AD3: 1.5 | AE3: 1.0 | AF3: 1 | AI3: Up to 40 | AJ3: Yes | AK3: 3 | AL3: Yes (with throat restrictor) | AM3: 0 | AN3: 7 | AO3: HW energy immersion/week | AP3: =AZ2*IF(G14=0,0,G14+1)*G15*G21*(60-G33)/AZ3 -> 0 | AQ3: kWh into Immersion for HW/week | AS3: HP Capacity @ DOT °C/Flow temp | AT3: ='Design Details'!C31 -> 20 | AX3: J to kWh | AZ3: 3600000
B4: Customer Name: | F4: MCS No: | Q4: 50 | R4: Water Source | S4: End Terrace | T4: Post 2006 | U4: 40 | V4: 2 | W4: 20 | X4: Radiators/Fan Convectors | Z4: Water | AA4: Bed/Study | AB4: 21 | AC4: 1.5 | AD4: 1.5 | AE4: 0.5 | AF4: 1 | AI4: Up to 70 | AJ4: No | AK4: 4 | AL4: Yes (without throat restrictor) | AM4: 0 | AN4: 14 | AO4: Total HW energy/day | AP4: =IF(G14=0,0,G14+1)*G15*G21*(50-AZ4)*AZ2/AZ3 -> 0 | AQ4: kWh for HW/day | AS4: FLEQ space heating | AT4: =D117/AT3 -> 0 | AX4: water mains input temp | AZ4: 10 | BA4: °C
B5: Site Address: | F5: Address: | Q5: 75 | S5: Flat | U5: 45 | V5: 3 | W5: 30 | X5: UFH | Z5: n/a | AA5: Bedroom | AB5: =IF($C$15="Post 2006",21,18) -> 18 | AC5: 1.0 | AD5: 1.0 | AE5: 0.5 | AF5: 1 | AI5: Up to 70 | AJ5: Yes | AK5: 2 | AM5: 0 | AO5: HP Energy (kWh) | AP5: =AP2*365 ->  | AS5: SPF space heating | AT5: ='Design Details'!C33 -> 3.5 | AX5: kg to litres water | AZ5: 1
Q6: 100 | S6: Light Commercial | U6: 50 | V6: 4 | W6: 40 | X6: UFH/Fan Convectors | AA6: Bedsitting | AB6: 21 | AC6: 1.5 | AD6: 1.0 | AE6: 0.5 | AF6: 1 | AM6: 0 | AS6: Electrical Energy HP space heating | AT6: =D117/AT5 -> 0
S7: Semi-Detached | U7: 55 | V7: 5 | W7: 50 | X7: UFH/Radiators | AA7: Breakfast | AB7: 21 | AC7: 1.5 | AD7: 1.0 | AE7: 0.5 | AF7: 1 | AM7: 0 | AS7: Electrical Energy HP HW heating | AT7: =AP5 -> 
S8: Terrace | U8: 60 | V8: 6 | W8: 60 | X8: UFH/Radiators/Fan Convectors | AA8: Cloaks/WC | AB8: =IF($C$15="Post 2006",21,18) -> 18 | AC8: 2 | AD8: 1.5 | AE8: 1.5 | AF8: 1 | AM8: 0 | AS8: HW heat energy from HP | AT8: =AP2*C34*(G34)*365 -> 
B9: Post Code: | C9: Input Required | F9: Post Code: | U9: 65 | V9: 7 | W9: 70 | AA9: Dining | AB9: 21 | AC9: 1.5 | AD9: 1.0 | AE9: 0.5 | AF9: 1 | AM9: 0 | AS9: FLEQ HW heating | AT9: =AT8/C32 -> 
B10: Contact Nos. | F10: Contact Nos. | V10: 8 | W10: 80 | AA10: Dressing | AB10: =IF($C$15="Post 2006",21,18) -> 18 | AC10: 1.5 | AD10: 1.0 | AE10: 0.5 | AF10: 1 | AM10: 0 | AS10: Running Hours CH pump | AT10: =AT4+AT9 ->  | AU10: Running hours HW + space heating or 8760 if 24/7 operation
B11: Email Address: | F11: Email Address: | V11: 9 | W11: 90 | AA11: Family | AB11: 21 | AC11: 2 | AD11: 1.5 | AE11: 1.5 | AF11: 1 | AM11: 0 | AS11: Power CH Pump (W) | AU11: If known please use
V12: 10 | W12: 100 | AA12: Games | AB12: 21 | AC12: 1.5 | AD12: 1.0 | AE12: 0.5 | AF12: 1 | AM12: 0 | AS12: Running Hours Ground HX pump | AT12: =AT4+AT9 -> 
B13: Property Details | W13: 110 | AA13: Hall | AB13: =IF($C$15="Post 2006",21,18) -> 18 | AC13: 2.0 | AD13: 1.0 | AE13: 0.5 | AF13: 1 | AM13: 0 | AS13: Power Ground HX pump (W) | AT13: =IF('Design Details'!C28="Air Source",0,'GL Sizing'!F26) -> Input Required
B14: House Type | F14: Amount of Bedrooms | W14: 120 | AA14: Internal | AB14: =IF($C$15="Post 2006",21,18) -> 18 | AC14: 0.0 | AD14: 0.0 | AE14: 0.0 | AF14: 1 | AM14: 0
B15: Built (year) | F15: Occupants per Bedroom | G15: 1 | W15: 130 | AA15: Kitchen | AB15: =IF($C$15="Post 2006",21,18) -> 18 | AC15: 2 | AD15: 1.5 | AE15: 1.5 | AF15: 1 | AM15: 0
B16: Electrical Supply | F16: Total Floor Area (m²) | G16: =H117 -> 0 | W16: 140 | AA16: Landing | AB16: =IF($C$15="Post 2006",21,18) -> 18 | AC16: 2.0 | AD16: 1.0 | AE16: 0.5 | AF16: 1 | AM16: 0
F17: Total Volume (m³) | G17: =I117 -> 0 | W17: 150 | AA17: Living | AB17: 21 | AC17: 1.5 | AD17: 1 | AE17: 0.5 | AF17: 1 | AM17: 0
B18: Design Data | W18: 160 | AA18: Lounge | AB18: 21 | AC18: 1.5 | AD18: 1 | AE18: 0.5 | AF18: 1 | AM18: 0
B19: Outside Design Temp - ODT (⁰C) | C19: =LOOKUP(LEFT(C9,2),'Post Code Degree Days'!A3:B126,'Post Code Degree Days'!B3:B126)+IF(AND(G19>90,G19<200),-0.6,IF(AND(G19>190,G19<300),-1.2,IF(AND(G19>290,G19<400),-1.8,IF(AND(G19>390,G19<500),-2.4,0)))) -> -2.5 | F19: Altitude (m) | W19: 170 | AA19: Shower | AB19: 22 | AC19: 3 | AD19: 1.5 | AE19: 1.5 | AF19: 1 | AM19: 0
B20: Degree Days (DD) | C20: =LOOKUP((LEFT(C9,2)),'Post Code Degree Days'!A3:C126,'Post Code Degree Days'!C3:C126) -> 2228 | F20: Min Hot Water Cylinder (litres) | G20: =IFERROR(IF(G14=0,0,G21*(G14+1)*G15),0) -> 0 | W20: 180 | AA20: Store | AB20: 16 | AC20: 1.0 | AD20: 0.5 | AE20: 0.5 | AF20: 1 | AM20: 0
B21: Mean air temp - MAT (°C) | C21: =LOOKUP((LEFT(C9,2)),'Post Code Degree Days'!A3:H126,'Post Code Degree Days'!H3:H126) -> 10 | F21: Hot water per occupant (l/day) | G21: 45 | W21: 190 | AA21: Study | AB21: 21 | AC21: 1.5 | AD21: 1.5 | AE21: 0.5 | AF21: 1 | AM21: 0
B22: MAT Location | C22: =LOOKUP((LEFT(C9,2)),'Post Code Degree Days'!A3:H126,'Post Code Degree Days'!G3:G126) -> W Pennines (Ringway) | F22: Legionnaires' protection (days) | G22: 7 | W22: 200 | AA22: Toilet | AB22: =IF($C$15="Post 2006",21,18) -> 18 | AC22: 3 | AD22: 1.5 | AE22: 1.5 | AF22: 1 | AM22: 0
B23: Building Requirements | W23: 210 | AA23: Utility | AB23: =IF($C$15="Post 2006",21,18) -> 18 | AC23: 3 | AD23: 2 | AE23: 0.5 | AF23: 1 | AM23: 0
B24: Space Heating load (kW) | C24: =C117/1000 -> 0 | F24: Annual Hot water heating demand (kWh/yr) | G24: =IFERROR(AP4*365,0) -> 0 | W24: 220 | AM24: 0
B25: Heat loss W/m² | C25: =IFERROR(C117/H117,0) -> 0 | F25: Immersion Energy (kWh) | G25: =IFERROR(AP3*ROUND((365/G22),0),0) -> 0 | W25: 230 | AM25: 0
B26: Space Heating (kWh/yr) | C26: =D117 -> 0 | F26: Total Energy Usage (kWh/yr) | G26: =SUM(G24:I24,C26) -> 0 | W26: 240 | AM26: 0
B27: Selection | W27: 250 | AM27: 0
B28: Type of Heat Pump | F28: Buffer Vessel (litres) | W28: 260 | AM28: 0
B29: Manufacturer | F29: Hot Water Cylinder (litres) | W29: 270 | AM29: 0
B30: Model | F30: Type of Emitters | W30: 280 | AM30: 0
B31: Output @ ODT/DFT (kW) | C31: 20 | F31: Design Flow Temp - DFT (°C) | W31: 290 | AM31: 0
B32: Output @ 0°C/HW (kW) | C32: Input Required | F32: CH pump power (W) | W32: 300
B33: Manufacturers htg SCOP | C33: 3.5 | F33: Hot Water storage temp (°C) | G33: 50 | W33: 310
B34: Manufacturers HW SCOP | C34: Input Required | F34: Hot Water system efficiency | G34: 0.7 | W34: 320
W35: 330
B36: Estimated Running Costs | W36: 340
B37: Space Heating | C37: =IFERROR(AT6*G38,0) -> 0 | F37: Ground Pump | G37: =IFERROR(G38*AT12*AT13/1000,0) -> 0 | W37: 350
B38: Hot Water from Heat Pump | C38: =IFERROR(AT7*G38,0) -> 0 | F38: Electric (p/kWh) | G38: 0.14 | W38: 360
B39: Hot Water from Immersion | C39: =G25*G38 -> 0 | F39: Gas (p/kWh) | G39: 0.0464 | W39: 370
B40: Total Running Costs | C40: =SUM(C37:E39,G37:I37) -> 0 | F40: LPG (p/kWh) | G40: 0.521 | W40: 380
B41: Central Heating Pump | C41: =IFERROR(G38*AT10*G32/1000,0) -> 0 | F41: Oil (p/kWh) | G41: 0.61 | W41: 390
W42: 400
B43: Property assumed U Values
B44: Ground Floor | C44: U' Value | D44: Construction
B45: Floor | C45: 1.25 | D45: Floor Insulation: | E45: 0 | F45: mm If 'U' value not known please select insulation level and select exposed edges per room
B46: Windows | C46: =IFERROR(LOOKUP(D46,'U Value Calculator'!$O$3:$P$17,'U Value Calculator'!$P$3:$P$17),0) -> 0
B47: Door | C47: =IFERROR(LOOKUP(D47,'U Value Calculator'!$O$18:$P$26,'U Value Calculator'!$P$18:$P$26),0) -> 0
B48: External Wall | C48: =IFERROR(LOOKUP(D48,'U Value Calculator'!$K$3:$L$88,'U Value Calculator'!$L$3:$L$88),0) -> 0
B49: Ceiling | C49: =IFERROR(LOOKUP(D49,'U Value Calculator'!$K$116:$L$124,'U Value Calculator'!$L$116:$L$124),0) -> 0
B50: Pitched Roof | C50: =IFERROR(LOOKUP(D50,'U Value Calculator'!$K$96:$L$115,'U Value Calculator'!$L$96:$L$115),0) -> 0
B51: Internal Wall | C51: =IFERROR(LOOKUP(D51,'U Value Calculator'!$K$89:$L$95,'U Value Calculator'!$L$89:$L$95),0) -> 0
B52: Party Wall | C52: 0.5
B53: Roof Glazing | C53: =IFERROR(LOOKUP(D53,'U Value Calculator'!$O$3:$P$17,'U Value Calculator'!$P$3:$P$17),0) -> 0
B54: Mid-Floor | C54: U' Value | D54: Construction
B55: Floor | C55: =IFERROR(LOOKUP(D55,'U Value Calculator'!$K$116:$L$124,'U Value Calculator'!$L$116:$L$124),0) -> 0
B56: Windows | C56: =IFERROR(LOOKUP(D56,'U Value Calculator'!$O$3:$P$17,'U Value Calculator'!$P$3:$P$17),0) -> 0
B57: Door | C57: =IFERROR(LOOKUP(D57,'U Value Calculator'!$O$18:$P$26,'U Value Calculator'!$P$18:$P$26),0) -> 0
B58: External Wall | C58: =IFERROR(LOOKUP(D58,'U Value Calculator'!$K$3:$L$88,'U Value Calculator'!$L$3:$L$88),0) -> 0
B59: Ceiling | C59: =IFERROR(LOOKUP(D59,'U Value Calculator'!$K$116:$L$124,'U Value Calculator'!$L$116:$L$124),0) -> 0
B60: Pitched Roof | C60: =IFERROR(LOOKUP(D60,'U Value Calculator'!$K$96:$L$115,'U Value Calculator'!$L$96:$L$115),0) -> 0
B61: Internal Wall | C61: =IFERROR(LOOKUP(D61,'U Value Calculator'!$K$89:$L$95,'U Value Calculator'!$L$89:$L$95),0) -> 0
B62: Party Wall | C62: 0.5
B63: Roof Glazing | C63: =IFERROR(LOOKUP(D63,'U Value Calculator'!$O$3:$P$17,'U Value Calculator'!$P$3:$P$17),0) -> 0
B64: Upper-Floor | C64: U' Value | D64: Construction
B65: Floor | C65: =IFERROR(LOOKUP(D65,'U Value Calculator'!$K$116:$L$124,'U Value Calculator'!$L$116:$L$124),0) -> 0
B66: Windows | C66: =IFERROR(LOOKUP(D66,'U Value Calculator'!$O$3:$P$17,'U Value Calculator'!$P$3:$P$17),0) -> 0
B67: Door | C67: =IFERROR(LOOKUP(D67,'U Value Calculator'!$O$18:$P$26,'U Value Calculator'!$P$18:$P$26),0) -> 0
B68: External Wall | C68: =IFERROR(LOOKUP(D68,'U Value Calculator'!$K$3:$L$88,'U Value Calculator'!$L$3:$L$88),0) -> 0
B69: Flat Roof | C69: =IFERROR(LOOKUP(D69,'U Value Calculator'!$K$96:$L$115,'U Value Calculator'!$L$96:$L$115),0) -> 0
B70: Pitched Roof | C70: 0.6 | D70: Pitched roof - Slates or tiles, , ventilated air space, 100mm insulation between joists, 9.5 mm plasterboard
B71: Internal Wall | C71: =IFERROR(LOOKUP(D71,'U Value Calculator'!$K$89:$L$95,'U Value Calculator'!$L$89:$L$95),0) -> 0
B72: Party Wall | C72: 0.5
B73: Roof Glazing | C73: =IFERROR(LOOKUP(D73,'U Value Calculator'!$O$3:$P$17,'U Value Calculator'!$P$3:$P$17),0) -> 0
B74: Single Storey | C74: U' Value | D74: Construction
B75: Floor | C75: 0 | D75: Floor Insulation: | E75: 0 | F75: mm If 'U' value not known please select insulation level and select exposed edges per room
B76: Windows | C76: =IFERROR(LOOKUP(D76,'U Value Calculator'!$O$3:$P$17,'U Value Calculator'!$P$3:$P$17),0) -> 0
B77: Door | C77: =IFERROR(LOOKUP(D77,'U Value Calculator'!$O$18:$P$26,'U Value Calculator'!$P$18:$P$26),0) -> 0
B78: External Wall | C78: =IFERROR(LOOKUP(D78,'U Value Calculator'!$K$3:$L$88,'U Value Calculator'!$L$3:$L$88),0) -> 0
B79: Flat Roof | C79: =IFERROR(LOOKUP(D79,'U Value Calculator'!$K$96:$L$115,'U Value Calculator'!$L$96:$L$115),0) -> 0
B80: Pitched Roof | C80: =IFERROR(LOOKUP(D80,'U Value Calculator'!$K$96:$L$115,'U Value Calculator'!$L$96:$L$115),0) -> 0
B81: Internal Wall | C81: =IFERROR(LOOKUP(D81,'U Value Calculator'!$K$89:$L$95,'U Value Calculator'!$L$89:$L$95),0) -> 0
B82: Party Wall | C82: 0.5
B83: Roof Glazing | C83: =IFERROR(LOOKUP(D83,'U Value Calculator'!$O$3:$P$17,'U Value Calculator'!$P$3:$P$17),0) -> 0
B85: Space Heating
B86: Room | C86: Heat loss (W) | D86: Energy usage (kWh) | E86: Design Temp | F86: Open Flue | G86: ac/h | H86: Floor Area (m2) | I86: Volume (m3) | J86: W/m²
B87: =CONCATENATE('1'!$C$2," ",'1'!$D$2) -> Bed/Study | C87: ='1'!$O$6 -> 0 | D87: ='1'!$O$7 -> 0 | E87: =IFERROR(LOOKUP(B87,$AA$2:$AB$23,$AB$2:$AB$23),0) -> 21 | G87: =IFERROR(IF(LEFT(F87,3)="Yes",AM2,VLOOKUP(B87,$AA$2:$AF$23,$AG$2,TRUE)),0) -> 0 | H87: =SUM('1'!$G$20:$G$22) -> 0 | I87: =SUM('1'!$G$4) -> 0 | J87: =IFERROR(C87/H87,0) -> 0
B88: =CONCATENATE('2'!$C$2," ",'2'!$D$2) ->  | C88: ='2'!$O$6 -> 0 | D88: ='2'!$O$7 -> 0 | E88: 0 | G88: =IFERROR(IF(LEFT(F88,3)="Yes",AM3,VLOOKUP(B88,$AA$2:$AF$23,$AG$2,TRUE)),0) -> 0 | H88: =SUM('2'!$G$20:$G$22) -> 0 | I88: =SUM('2'!$G$4) -> 0 | J88: =IFERROR(C88/H88,0) -> 0
B89: =CONCATENATE('3'!$C$2," ",'3'!$D$2) ->  | C89: ='3'!$O$6 -> 0 | D89: ='3'!$O$7 -> 0 | E89: 0 | G89: 0 | H89: =SUM('3'!$G$20:$G$22) -> 0 | I89: =SUM('3'!$G$4) -> 0 | J89: =IFERROR(C89/H89,0) -> 0
B90: =CONCATENATE('4'!$C$2," ",'4'!$D$2) ->  | C90: ='4'!$O$6 -> 0 | D90: ='4'!$O$7 -> 0 | E90: 0 | G90: 0 | H90: =SUM('4'!$G$20:$G$22) -> 0 | I90: =SUM('4'!$G$4) -> 0 | J90: 0
B91: =CONCATENATE('5'!$C$2," ",'5'!$D$2) ->  | C91: ='5'!$O$6 -> 0 | D91: ='5'!$O$7 -> 0 | E91: 0 | G91: 0 | H91: =SUM('5'!$G$20:$G$22) -> 0 | I91: =SUM('5'!$G$4) -> 0 | J91: 0
B92: =CONCATENATE('6'!$C$2," ",'6'!$D$2) ->  | C92: ='6'!$O$6 -> 0 | D92: ='6'!$O$7 -> 0 | E92: 0 | G92: 0 | H92: =SUM('6'!$G$20:$G$22) -> 0 | I92: =SUM('6'!$G$4) -> 0 | J92: 0
B93: =CONCATENATE('7'!$C$2," ",'7'!$D$2) ->  | C93: ='7'!$O$6 -> 0 | D93: ='7'!$O$7 -> 0 | E93: 0 | G93: 0 | H93: =SUM('7'!$G$20:$G$22) -> 0 | I93: =SUM('7'!$G$4) -> 0 | J93: 0
B94: =CONCATENATE('8'!$C$2," ",'8'!$D$2) ->  | C94: ='8'!$O$6 -> 0 | D94: ='8'!$O$7 -> 0 | E94: 0 | G94: 0 | H94: =SUM('8'!$G$20:$G$22) -> 0 | I94: =SUM('8'!$G$4) -> 0 | J94: 0
B95: =CONCATENATE('9'!$C$2," ",'9'!$D$2) ->  | C95: ='9'!$O$6 -> 0 | D95: ='9'!$O$7 -> 0 | E95: 0 | G95: 0 | H95: =SUM('9'!$G$20:$G$22) -> 0 | I95: =SUM('9'!$G$4) -> 0 | J95: 0
B96: =CONCATENATE('10'!$C$2," ",'10'!$D$2) ->  | C96: ='10'!$O$6 -> 0 | D96: ='10'!$O$7 -> 0 | E96: 0 | G96: 0 | H96: =SUM('10'!$G$20:$G$22) -> 0 | I96: =SUM('10'!$G$4) -> 0 | J96: 0
B97: =CONCATENATE('11'!$C$2," ",'11'!$D$2) ->  | C97: ='11'!$O$6 -> 0 | D97: ='11'!$O$7 -> 0 | E97: 0 | G97: 0 | H97: =SUM('11'!$G$20:$G$22) -> 0 | I97: =SUM('11'!$G$4) -> 0 | J97: 0
B98: =CONCATENATE('12'!$C$2," ",'12'!$D$2) ->  | C98: ='12'!$O$6 -> 0 | D98: ='12'!$O$7 -> 0 | E98: 0 | G98: 0 | H98: =SUM('12'!$G$20:$G$22) -> 0 | I98: =SUM('12'!$G$4) -> 0 | J98: 0
B99: =CONCATENATE('13'!$C$2," ",'13'!$D$2) ->  | C99: ='13'!$O$6 -> 0 | D99: ='13'!$O$7 -> 0 | E99: 0 | G99: 0 | H99: =SUM('13'!$G$20:$G$22) -> 0 | I99: =SUM('13'!$G$4) -> 0 | J99: 0
B100: =CONCATENATE('14'!$C$2," ",'14'!$D$2) ->  | C100: ='14'!$O$6 -> 0 | D100: ='14'!$O$7 -> 0 | E100: 0 | G100: 0 | H100: =SUM('14'!$G$20:$G$22) -> 0 | I100: =SUM('14'!$G$4) -> 0 | J100: 0
B101: =CONCATENATE('15'!$C$2," ",'15'!$D$2) ->  | C101: ='15'!$O$6 -> 0 | D101: ='15'!$O$7 -> 0 | E101: 0 | G101: 0 | H101: =SUM('15'!$G$20:$G$22) -> 0 | I101: =SUM('15'!$G$4) -> 0 | J101: 0
B102: =CONCATENATE('16'!$C$2," ",'16'!$D$2) ->  | C102: ='16'!$O$6 -> 0 | D102: ='16'!$O$7 -> 0 | E102: 0 | G102: 0 | H102: =SUM('16'!$G$20:$G$22) -> 0 | I102: =SUM('16'!$G$4) -> 0 | J102: 0
B103: =CONCATENATE('17'!$C$2," ",'17'!$D$2) ->  | C103: ='17'!$O$6 -> 0 | D103: ='17'!$O$7 -> 0 | E103: 0 | G103: 0 | H103: =SUM('17'!$G$20:$G$22) -> 0 | I103: =SUM('17'!$G$4) -> 0 | J103: 0
B104: =CONCATENATE('18'!$C$2," ",'18'!$D$2) ->  | C104: ='18'!$O$6 -> 0 | D104: ='18'!$O$7 -> 0 | E104: 0 | G104: 0 | H104: =SUM('18'!$G$20:$G$22) -> 0 | I104: =SUM('18'!$G$4) -> 0 | J104: 0
B105: =CONCATENATE('19'!$C$2," ",'19'!$D$2) ->  | C105: ='19'!$O$6 -> 0 | D105: ='19'!$O$7 -> 0 | E105: 0 | G105: 0 | H105: =SUM('19'!$G$20:$G$22) -> 0 | I105: =SUM('19'!$G$4) -> 0 | J105: 0
B106: =CONCATENATE('20'!$C$2," ",'20'!$D$2) ->  | C106: ='20'!$O$6 -> 0 | D106: ='20'!$O$7 -> 0 | E106: 0 | G106: 0 | H106: =SUM('20'!$G$20:$G$22) -> 0 | I106: =SUM('20'!$G$4) -> 0 | J106: 0
B107: =CONCATENATE('21'!$C$2," ",'21'!$D$2) ->  | C107: ='21'!$O$6 -> 0 | D107: ='21'!$O$7 -> 0 | E107: 0 | G107: 0 | H107: =SUM('21'!$G$20:$G$22) -> 0 | I107: =SUM('21'!$G$4) -> 0 | J107: 0
B108: =CONCATENATE('22'!$C$2," ",'22'!$D$2) ->  | C108: ='22'!$O$6 -> 0 | D108: ='22'!$O$7 -> 0 | E108: 0 | G108: 0 | H108: =SUM('22'!$G$20:$G$22) -> 0 | I108: =SUM('22'!$G$4) -> 0 | J108: 0
B109: =CONCATENATE('23'!$C$2," ",'23'!$D$2) ->  | C109: ='23'!$O$6 -> 0 | D109: ='23'!$O$7 -> 0 | E109: 0 | G109: 0 | H109: =SUM('23'!$G$20:$G$22) -> 0 | I109: =SUM('23'!$G$4) -> 0 | J109: 0
B110: =CONCATENATE('24'!$C$2," ",'24'!$D$2) ->  | C110: ='24'!$O$6 -> 0 | D110: ='24'!$O$7 -> 0 | E110: 0 | G110: 0 | H110: =SUM('24'!$G$20:$G$22) -> 0 | I110: =SUM('24'!$G$4) -> 0 | J110: 0
B111: =CONCATENATE('25'!$C$2," ",'25'!$D$2) ->  | C111: ='25'!$O$6 -> 0 | D111: ='25'!$O$7 -> 0 | E111: 0 | G111: 0 | H111: =SUM('25'!$G$20:$G$22) -> 0 | I111: =SUM('25'!$G$4) -> 0 | J111: 0
B112: =CONCATENATE('26'!$C$2," ",'26'!$D$2) ->  | C112: ='26'!$O$6 -> 0 | D112: ='26'!$O$7 -> 0 | E112: 0 | G112: 0 | H112: =SUM('26'!$G$20:$G$22) -> 0 | I112: =SUM('26'!$G$4) -> 0 | J112: 0
B113: =CONCATENATE('27'!$C$2," ",'27'!$D$2) ->  | C113: ='27'!$O$6 -> 0 | D113: ='27'!$O$7 -> 0 | E113: 0 | G113: 0 | H113: =SUM('27'!$G$20:$G$22) -> 0 | I113: =SUM('27'!$G$4) -> 0 | J113: 0
B114: =CONCATENATE('28'!$C$2," ",'28'!$D$2) ->  | C114: ='28'!$O$6 -> 0 | D114: ='28'!$O$7 -> 0 | E114: 0 | G114: 0 | H114: =SUM('28'!$G$20:$G$22) -> 0 | I114: =SUM('28'!$G$4) -> 0 | J114: 0
B115: =CONCATENATE('29'!$C$2," ",'29'!$D$2) ->  | C115: ='29'!$O$6 -> 0 | D115: ='29'!$O$7 -> 0 | E115: 0 | G115: 0 | H115: =SUM('29'!$G$20:$G$22) -> 0 | I115: =SUM('29'!$G$4) -> 0 | J115: 0
B116: =CONCATENATE('30'!$C$2," ",'30'!$D$2) ->  | C116: ='30'!$O$6 -> 0 | D116: ='30'!$O$7 -> 0 | E116: 0 | G116: 0 | H116: =SUM('30'!$G$20:$G$22) -> 0 | I116: =SUM('30'!$G$4) -> 0 | J116: 0
B117: Total | C117: =SUM(C87:C116) -> 0 | D117: =SUM(D87:D116) -> 0 | H117: =SUM(H87:H116) -> 0 | I117: =SUM(I87:I116) -> 0 | J117: =IFERROR(C117/H117,0) -> 0

Sheet U Value Calculator
K1: Wall/Roof/ceiling/non-ground floors U-values (SOURCE Domestic heating guide section 6) | L1: U-value W/m²K | O1: Window_description | P1: U-value W/m²K | S1: Type of surface/air gap | T1: Thermal resistance | V1: Element | W1: Material | X1: Density kg/m³ | Y1: k factor W/mK
B2: U VALUE CALCULATOR | K2: Enter a U-value | O2: Enter a U-value | S2: Outside surface of exterior wall | T2: 0.06 | V2: Walls | W2: Asbestos cement sheet | X2: 700 | Y2: 0.36
B3: Fabric Type: | K3: 19mm Render, 75mm foam board, Brick 102mm, Plaster | L3: 0.3 | O3: Metal Double Glazed | P3: 3.4 | S3: Inside surface of wall | T3: 0.12 | W3: Autoclaved aerated concrete block | X3: 600 | Y3: 0.18
K4: 19mm Render, 75mm foam board, Brick 228mm, Plaster | L4: 0.28 | O4: Metal Double Glazed, low-E glass | P4: 2.8 | S4: Air Gap | T4: 0.18 | W4: Brickwork (inner leaf) | X4: 1700 | Y4: 0.62
A5: Layer | B5: Element | C5: Material | D5: Thickness (mm) | E5: Thermal Conductivity (W/mK) | F5: Resistance R m²K/W | K5: 19mm Render, 75mm foam board, Brick 343mm, Plaster | L5: 0.27 | O5: Metal Double Glazed, low-E glass, argon filled | P5: 2.6 | W5: Brickwork (outer leaf) | X5: 1700 | Y5: 0.84
A6: 1 | E6: =IFERROR(IF(B6="Air Gap","n/a",LOOKUP(C6,$W$2:$W$62,$Y$2:$Y$62)),"") ->  | F6: =IFERROR(IF(B6="Air Gap",$T$4,(D6/1000)/E6),"") ->  | K6: 19mm Render, 75mm foam board, concrete 102mm, Plaster | L6: 0.31 | O6: Metal Single Glazed | P6: 5.7 | S6: Fabric Type | W6: Concrete (lightweight) | X6: 1200 | Y6: 0.38
A7: 2 | K7: 19mm Render, 75mm foam board, concrete 152mm, Plaster | L7: 0.3 | O7: Metal Triple Glazed | P7: 2.6 | S7: External wall | W7: Concrete (medium density) | X7: 1800 | Y7: 1.13
A8: 3 | K8: 19mm Render, 75mm foam board, concrete 204mm, Plaster | L8: 0.3 | O8: Metal Triple Glazed, low-E glass | P8: 2.1 | S8: Internal wall | W8: Concrete (dense) | X8: 2100 | Y8: 1.4
A9: 4 | K9: 19mm Render, 75mm foam board, concrete 254mm, Plaster | L9: 0.3 | O9: Metal Triple Glazed, low-E glass, argon filled | P9: 2 | S9: Roof | W9: Concrete (high density) | X9: 2400 | Y9: 1.93
A10: 5 | K10: Brick 102 mm, plaster | L10: 2.97 | O10: Single glazed window with Secondary Glazing | P10: 2.4 | W10: Concrete block (heavyweight) | X10: 2300 | Y10: 1.63
A11: 6 | K11: Brick 102.5mm, cavity, membrane, plywood 10mm, studding 100mm, with infill insulation 80mm, vapour membrane, plasterboard 12.5mm | L11: 0.32 | O11: Wood/PVC Double Glazed | P11: 2.8 | W11: Concrete block (lightweight) | X11: 600 | Y11: 0.19
A12: 7 | K12: Brick 102.5mm, cavity, membrane, plywood 10mm, studding 100mm, with infill insulation 60mm, vapour membrane, plasterboard 12.5mm | L12: 0.43 | O12: Wood/PVC Double Glazed, low-E glass | P12: 2.3 | W12: Concrete block (medium weight) | X12: 1400 | Y12: 0.51
A13: 8 | K13: Brick 102.5mm, cavity, membrane, plywood 10mm, studding 100mm, with infill insulation 80mm, vapour membrane, plasterboard 12.5mm | L13: 0.36 | O13: Wood/PVC Double Glazed, low-E glass, argon filled | P13: 2.1 | S13: Walls | W13: Fibreboard | X13: 300 | Y13: 0.06
E14: Total Resistance | F14: =IF(C3="External wall",SUM(F6:F13,T2:T3),IF(C3="Internal wall",SUM(F6:F13,T3,T3),SUM(F6:F13))) -> 0 | K14: Brick 102mm, 50mm mineral slab, brick 102mm, 13mm plaster | L14: 0.56 | O14: Wood/PVC Single Glazed | P14: 4.8 | S14: Surface Finishes | W14: Gypsum | X14: 600 | Y14: 0.18
E15: U value of construction (W/m²K) | F15: =1/F14 ->  | K15: Brick 102mm, 50mm mineral slab, brick 102mm, 12.5mm plasterboard on dabs | L15: 0.53 | O15: Wood/PVC Triple Glazed | P15: 2.1 | S15: Roofs | W15: Lightweight aggregate concrete block | X15: 1400 | Y15: 0.57
K16: Brick 102mm, 75mm foam board, 12.5mm plasterboard | L16: 0.3 | O16: Wood/PVC Triple Glazed, low-E glass | P16: 1.7 | S16: Floors | W16: Limestone (soft) | X16: 1800 | Y16: 1.1
K17: Brick 102mm, cavity, 100mm high performance aerated block (k=0.11), 12.5mm plasterboard on dabs | L17: 0.64 | O17: Wood/PVC Triple Glazed, low-E glass, argon filled | P17: 1.6 | S17: Insulation | W17: Limestone (hard) | X17: 2200 | Y17: 1.7
A18: EXTERNAL WALL TYPE - SOLID | D18: Description | F18: U-value W/m²K | K18: Brick 102mm, cavity, 100mm high performance aerated block (k=0.11), 13mm plaster | L18: 0.68 | O18: =$O$27&" "&O1 -> Glazed wood or PVC-U door Window_description | P18: =P1 -> U-value W/m²K | S18: Air Gap | W18: Mortar (exposed | X18: 1750 | Y18: 0.94
A19: Solid Brick Wall | D19: Brick 102mm, Plaster | F19: 2.97 | K19: Brick 102mm, cavity, 100mm standard aerated block (k=0.17), 12.5mm plasterboard on dabs | L19: 0.8 | O19: Glazed wood or PVC-U door Enter a U-value | P19: 0 | W19: Mortar (protected) | X19: 1750 | Y19: 0.88
D20: Brick 228mm, Plaster | F20: 2.11 | K20: Brick 102mm, cavity, 100mm standard aerated block (k=0.17), 13mm plaster | L20: 0.87 | O20: Glazed wood or PVC-U door Metal Double Glazed | P20: 3.4 | W20: Plasterboard | X20: 650 | Y20: 0.16
D21: Brick 343mm, Plaster | F21: 1.64 | K21: Brick 102mm, cavity, 125mm high performance aerated block (k=0.11), 12.5mm plasterboard on dabs | L21: 0.56 | O21: Glazed wood or PVC-U door Metal Double Glazed, low-E glass | P21: 2.8 | W21: Reinforced concrete (1% steel) | X21: 2300 | Y21: 2.3
A22: Solid Brick Insulated Externally | D22: 19mm Render, 75mm foam board, Brick 102mm, Plaster | F22: 0.3 | K22: Brick 102mm, cavity, 125mm high performance aerated block (k=0.11), 13mm plaster | L22: 0.59 | O22: Glazed wood or PVC-U door Metal Double Glazed, low-E glass, argon filled | P22: 2.6 | W22: Reinforced concrete (2% steel) | X22: 2400 | Y22: 2.5
D23: 19mm Render, 75mm foam board, Brick 228mm, Plaster | F23: 0.28 | K23: Brick 102mm, cavity, 125mm standard aerated block (k=0.17), 12.5mm plasterboard on dabs | L23: 0.72 | O23: Glazed wood or PVC-U door Metal Single Glazed | P23: 5.7 | W23: Sandstone | X23: 2600 | Y23: 2.3
D24: 19mm Render, 75mm foam board, Brick 343mm, Plaster | F24: 0.27 | K24: Brick 102mm, cavity, 125mm standard aerated block (k=0.17), 13mm plaster | L24: 0.77 | O24: Glazed wood or PVC-U door Metal Triple Glazed | P24: 2.6 | W24: Stone (artificial) | X24: 1750 | Y24: 1.3
A25: Solid Brink Insulated Internally | D25: Brick 102mm, 75mm foam board, 12.5mm plasterboard | F25: 0.3 | K25: Brick 102mm, cavity, brick 102mm, 12.5mm plasterboard on dabs | L25: 1.21 | O25: solid wood door (external) | P25: 3 | W25: Stone (granite) | X25: 2640 | Y25: 2.93
D26: Brick 228mm, 75mm foam board, 12.5mm plasterboard | F26: 0.29 | K26: Brick 102mm, cavity, brick 102mm, 13mm plaster | L26: 1.37 | O26: Solid wood door to unheated corridor | P26: 1.4 | W26: Tile Hanging | X26: 1900 | Y26: 0.84
D27: Brick 343mm, 75mm foam board, 12.5mm plasterboard | F27: 0.28 | K27: Brick 102mm, mineral wool slab in cavity 50mm, 100mm high performance aerated block (k=0.11), 13mm plaster | L27: 0.39 | O27: Glazed wood or PVC-U door | W27: Timber (Hardwood) | X27: 700 | Y27: 0.18
A28: Solid Stone Wall, Unplastered | D28: Stone 305mm (12") | F28: 2.78 | K28: Brick 102mm, mineral wool slab in cavity 50mm, 100mm standard aerated block (k=0.17), 13mm plaster | L28: 0.45 | W28: Timber (softwood, plywood, chipboard) | X28: 500 | Y28: 0.13
D29: Stone 457mm (18") | F29: 2.23 | K29: Brick 102mm, mineral wool slab in cavity 50mm, 120mm high performance aerated block (k=0.11), 13mm plaster | L29: 0.36 | V29: Surface Finishes | W29: External rendering | X29: 1330 | Y29: 0.57
D30: Stone 610mm (24") | F30: 1.86 | K30: Brick 102mm, mineral wool slab in cavity 50mm, 120mm standard aerated block (k=0.17), 13mm plaster | L30: 0.42 | W30: Fibreboard | X30: 400 | Y30: 0.1
A31: Solid Stone Wall, Internally Insulated | D31: Stone 305mm, 100mm mineral wool, plasterboard on battens | F31: 0.33 | K31: Brick 102mm, mineral wool slab in cavity 50mm,100mm high performance aerated block (k=0.11), 12.5mm plasterboard on dabs | L31: 0.38 | W31: Plaster (dense) | X31: 1300 | Y31: 0.57
D32: Stone 457mm, 100mm mineral wool, plasterboard on battens | F32: 0.32 | K32: Brick 102mm, mineral wool slab in cavity 50mm,100mm standard aerated block (k=0.17), 12.5mm plasterboard on dabs | L32: 0.43 | W32: Plaster (lightweight | X32: 600 | Y32: 0.18
D33: Stone 610mm, 100mm mineral wool, plasterboard on battens | F33: 0.32 | K33: Brick 102mm, mineral wool slab in cavity 50mm,125mm high performance aerated block (k=0.11), 12.5mm plasterboard on dabs | L33: 0.35 | W33: Plasterboard | X33: 900 | Y33: 0.25
A34: Solid Concrete Wall, Dense Plaster | D34: Concrete 102mm, Plaster | F34: 3.51 | K34: Brick 102mm, mineral wool slab in cavity 50mm,125mm standard aerated block (k=0.17), 12.5mm plasterboard on dabs | L34: 0.41 | W34: Tiles (ceramic) | X34: 2300 | Y34: 1.3
D35: Concrete 152mm, Plaster | F35: 3.12 | K35: Brick 228 mm, plaster | L35: 2.11 | V35: Roofs | W35: Aerated concrete slab | X35: 500 | Y35: 0.16
D36: Concrete 204mm, Plaster | F36: 2.8 | K36: Brick 228mm, 75mm foam board, 12.5mm plasterboard | L36: 0.29 | W36: Asphalt | X36: 1700 | Y36: 0.5
D37: Concrete 254mm, Plaster | F37: 2.54 | K37: Brick 343 mm, plaster | L37: 1.64 | W37: Asphalt | X37: 2100 | Y37: 0.7
A38: Solid Concrete Wall Insulated External, Dense Plaster | D38: 19mm Render, 75mm foam board, concrete 102mm, Plaster | F38: 0.31 | K38: Brick 343mm, 75mm foam board, 12.5mm plasterboard | L38: 0.28 | W38: Felt/Bitumen layers | X38: 1100 | Y38: 0.23
D39: 19mm Render, 75mm foam board, concrete 152mm, Plaster | F39: 0.3 | K39: Concrete 102mm, plaster | L39: 3.51 | W39: Felt/Bitumen layers | X39: 1700 | Y39: 0.5
D40: 19mm Render, 75mm foam board, concrete 204mm, Plaster | F40: 0.3 | K40: Concrete 152mm, plaster | L40: 3.12 | W40: Screed (light weight) | X40: 1200 | Y40: 0.41
D41: 19mm Render, 75mm foam board, concrete 254mm, Plaster | F41: 0.3 | K41: Concrete 204mm, plaster | L41: 2.8 | W41: Stone Chippings | X41: 1800 | Y41: 0.96
K42: Concrete 254 mm, plaster | L42: 2.54 | W42: Tiles (clay) | X42: 2000 | Y42: 1
A43: EXTERNAL WALL TYPE - CAVITY | D43: Description | F43: U-value W/m²K | K43: Render 19mm, brick 102mm, 50mm mineral wool slab, brick 102mm, 13mm plaster | L43: 0.54 | W43: Tiles (concrete) | X43: 2100 | Y43: 1.5
F44: Open Cavity | G44: Mineral Wool 50mm | K44: Render 19mm, brick 102mm, 50mm mineral wool slab, brick 102mm, 12.5mm plasterboard on dabs | L44: 0.51 | W44: Wood wool slab | X44: 500 | Y44: 0.1
A45: Cavity Wall (Open cavity or mineral Wool Slab), Lightweight Plaster | D45: Brick 102mm, Brick 102mm, 13mm Plaster & Skim | F45: 1.37 | G45: 0.56 | K45: Render 19mm, brick 102mm, cavity, 100mm standard aerated block, 13mm plaster | L45: 0.82 | V45: Floors | W45: Cast concrete | X45: 2000 | Y45: 1.35
D46: Brick 102mm, Brick 102mm, 12mm Plaster on dabs | F46: 1.21 | G46: 0.53 | K46: Render 19mm, brick 102mm, cavity, 125mm standard aerated block, 13mm plaster | L46: 0.73 | W46: Metal tray (steel) | X46: 7800 | Y46: 50
F47: Inner Leaf Thickness | K47: Render 19mm, brick 102mm, cavity, brick 102mm, 12.5mm plasterboard on dabs | L47: 1.11 | W47: Screed (concrete) | X47: 1950 | Y47: 1.2
F48: 100mm | G48: 125mm | K48: Render 19mm, brick 102mm, cavity, brick 102mm, 13mm plaster | L48: 1.25 | W48: Timber (softwood, plywood, chipboard) | X48: 500 | Y48: 0.13
A49: Cavity Wall, aerated block inner leaf, lightweight plaster | D49: Brick 102mm open cavity, standard aerated block (k=0.17), 13mm Plaster | F49: 0.87 | G49: 0.77 | K49: Render 19mm, brick 102mm, mineral wool slab in cavity 50mm, 100mm standard aerated block, 13mm plaster | L49: 0.44 | W49: Timber (hardwood) | X49: 700 | Y49: 0.18
K50: Render 19mm, brick 102mm, mineral wool slab in cavity 50mm, 125mm standard aerated block, 13mm plaster | L50: 0.41 | W50: Timber flooring | X50: 650 | Y50: 0.14
D51: Brick 102mm open cavity, standard aerated block (k=0.17), 12.5mm plasterboard on dabs | F51: 0.8 | G51: 0.72 | K51: Render 19mm, high performance aerated block (k=0.11) 215mm, 13mm plaster | L51: 0.44 | W51: Wood blocks | X51: 650 | Y51: 0.14
K52: Render 19mm, standard aerated block 100mm, cavity, 100mm high performance aerated block (k=0.11), 13mm plaster | L52: 0.51 | V52: Insulation | W52: Expanded polystyrene slab | X52: 15 | Y52: 0.04
D53: Brick 102mm, mineral wool slab in cavity 50mm, standard aerated block (k=0.17), 13mm Plaster | F53: 0.45 | G53: 0.42 | K53: Render 19mm, standard aerated block 100mm, cavity, 100mm standard aerated block, 13mm plaster | L53: 0.61 | W53: Expanded polystyrene slab | X53: 25 | Y53: 0.035
K54: Render 19mm, standard aerated block 100mm, cavity, 125mm high performance aerated block (k=0.11), 13mm plaster | L54: 0.45 | W54: Glass fibre quilt | X54: 12 | Y54: 0.04
D55: Brick 102mm, mineral wool slab in cavity 50mm, standard aerated block (k=0.17), 12.5mm plasterboard on dabs | F55: 0.43 | G55: 0.41 | K55: Render 19mm, standard aerated block 100mm, cavity, 125mm standard aerated block, 13mm plaster | L55: 0.56 | W55: Glass fibre slab | X55: 25 | Y55: 0.035
K56: Render 19mm, standard aerated block 100mm, mineral wool slab in cavity 50mm, 100mm high performance aerated block (k=0.11), 13mm plaster | L56: 0.33 | W56: Mineral fibre slab | X56: 30 | Y56: 0.035
A57: Cavity Wall, high performance aerated block inner leaf, lightweight plaster or plasterboard | D57: Brick 102mm open cavity, high performance aerated block (k=0.11), 13mm Plaster | F57: 0.68 | G57: 0.59 | K57: Render 19mm, standard aerated block 100mm, mineral wool slab in cavity 50mm, 100mm standard aerated block, 13mm plaster | L57: 0.37 | W57: Mineral wool batt | X57: 25 | Y57: 0.038
K58: Render 19mm, standard aerated block 100mm, mineral wool slab in cavity 50mm, 125mm high performance aerated block (k=0.11), 13mm plaster | L58: 0.31 | W58: Mineral wool quilt | X58: 12 | Y58: 0.042
D59: Brick 102mm open cavity, high performance aerated block (k=0.11), 12.5mm plasterboard on dabs | F59: 0.64 | G59: 0.56 | K59: Render 19mm, standard aerated block 100mm, mineral wool slab in cavity 50mm, 125mm standard aerated block, 13mm plaster | L59: 0.35 | W59: Phenolic foam | X59: 30 | Y59: 0.04
K60: shiplap boards, airspace, cavity, membrane, plywood 10mm, studding 100mm, with infill insulation 80mm, vapour membrane, plasterboard 12.5mm | L60: 0.32 | W60: Phenolic foam board | X60: 30 | Y60: 0.025
D61: Brick 102mm, mineral wool slab in cavity 50mm, high performance aerated block (k=0.11), 13mm Plaster | F61: 0.39 | G61: 0.36 | K61: shiplap boards, airspace, cavity, membrane, plywood 10mm, studding 100mm, with infill insulation 60mm, vapour membrane, plasterboard 12.5mm | L61: 0.44 | W61: Polyurethane board | X61: 30 | Y61: 0.025
K62: shiplap boards, airspace, cavity, membrane, plywood 10mm, studding 100mm, with infill insulation 80mm, vapour membrane, plasterboard 12.5mm | L62: 0.36 | W62: Urea formaldehyde foam | X62: 10 | Y62: 0.04
D63: Brick 102mm, mineral wool slab in cavity 50mm, high performance aerated block (k=0.11), 12.5mm plasterboard on dabs | F63: 0.38 | G63: 0.35 | K63: Shiplap boards, airspace, standard aerated block 100mm, cavity, 100mm high performance block (K=0.11), 13mm plaster | L63: 0.45
K64: Shiplap boards, airspace, standard aerated block 100mm, cavity, 125mm high performance block (K=0.11), 13mm plaster | L64: 0.41
K65: Shiplap boards, airspace, standard aerated block 100mm, cavity, standard aerated block 100mm, 13mm plaster | L65: 0.53
A66: EXTERNAL WALL TYPE - RENDERED EXTERNALLY | D66: Description | F66: U-value W/m²K | K66: Shiplap boards, airspace, standard aerated block 100mm, cavity, standard aerated block 125mm, 13mm plaster | L66: 0.49
F67: Open Cavity | G67: Mineral Wool 50mm | K67: Shiplap boards, airspace, standard aerated block 100mm, mineral wool slab in cavity 50mm, 125mm high performance block (K=0.11), 13mm plaster | L67: 0.29
A68: Cavity Wall (Open cavity or mineral Wool Slab), Lightweight Plaster | D68: Render 19mm, Brick 102mm, Brick 102mm, 13mm Plaster | F68: 1.25 | G68: 0.54 | K68: Shiplap boards, airspace, standard aerated block 100mm, mineral wool slab in cavity 50mm, standard aerated block 100mm, 13mm plaster | L68: 0.34
D69: Render 19mm, Brick 102mm, Brick 102mm, 12mm Plaster on dabs | F69: 1.11 | G69: 0.51 | K69: Shiplap boards, airspace, standard aerated block 100mm, mineral wool slab in cavity 50mm, standard aerated block 125mm, 13mm plaster | L69: 0.32
K70: Shiplap boards, airspace, standard aerated block 125mm, mineral wool slab in cavity 50mm, 100mm high performance block (K=0.11), 13mm plaster | L70: 0.31
F71: Inner Leaf Thickness | K71: Stone 305mm (12in) | L71: 2.78
F72: 100mm | G72: 125mm | K72: Stone 305mm, 100mm mineral wool, plasterboard on battens | L72: 0.33
A73: Cavity Wall, aerated block inner leaf, lightweight plaster or plasterboard | D73: Render 19mm, brick 102mm, cavity, standard aerated block, 13mm plaster | F73: 0.82 | G73: 0.73 | K73: Stone 457mm (18in) | L73: 2.23
K74: Stone 457mm, 100mm mineral wool, plasterboard on battens | L74: 0.32
D75: Render 19mm, brick 102.5mm, mineral wool slab in cavity 50mm, standard aerated block, 13mm plaster | F75: 0.44 | G75: 0.41 | K75: Stone 610mm (24in) | L75: 1.86
K76: Stone 610mm, 100mm mineral wool, plasterboard on battens | L76: 0.32
D77: Render 19mm, standard aerated block 100mm, cavity, standard aerated block, 13mm plaster | F77: 0.61 | G77: 0.56 | K77: Tiles, airspace, cavity, membrane, plywood 10mm, studding 100mm, with infill insulation 80mm, vapour membrane, plasterboard 12.5mm | L77: 0.34
K78: Tiles, airspace, cavity, membrane, plywood 10mm, studding 100mm, with infill insulation 60mm, vapour membrane, plasterboard 12.5mm | L78: 0.47
A79: Cavity blockwork wall, inner aerated block, lightweight plaster | D79: Render 19mm, standard aerated block 100mm mineral wool slab in cavity 50mm, standard aerated block, 13mm plaster | F79: 0.37 | G79: 0.35 | K79: Tiles, airspace, cavity, membrane, plywood 10mm, studding 100mm, with infill insulation 80mm, vapour membrane, plasterboard 12.5mm | L79: 0.38
K80: Tiles, airspace, high performance aerated block, 215mm, 13mm plaster | L80: 0.43
A81: Cavity wall, rendered, aerated block inner, lightweight plaster | D81: Render 19mm, standard aerated block 100mm, cavity, high performance aerated block (k=0.11), 13mm plaster | F81: 0.51 | G81: 0.45 | K81: Tiles, airspace, standard aerated block 100mm, 13mm plaster | L81: 0.58
K82: Tiles, airspace, standard aerated block 100mm, cavity, 100mm high performance aerated block (k=0.11), 13mm plaster | L82: 0.49
D83: Render 19mm, standard aerated block 100mm,mineral wool slab in cavity 50 mm, high performance aerated block (k=0.11), 13mm plaster | F83: 0.33 | G83: 0.31 | K83: Tiles, airspace, standard aerated block 100mm, cavity, 125mm high performance aerated block (k=0.11), 13mm plaster | L83: 0.44
K84: Tiles, airspace, standard aerated block 100mm, mineral wool slab in cavity 50mm, 100mm high performance aerated block (k=0.11), 13mm plaster | L84: 0.32
K85: Tiles, airspace, standard aerated block 100mm, mineral wool slab in cavity 50mm, 100mm standard aerated block, 13mm plaster | L85: 0.36
A86: Solid Wall, rendered outside, plaster inside | D86: Render 19mm, high performance aerated block (k=0.11), 13mm plaster | F86: 0.44 | K86: Tiles, airspace, standard aerated block 100mm, mineral wool slab in cavity 50mm, 120mm standard aerated block, 13mm plaster | L86: 0.34
K87: Tiles, airspace, standard aerated block 100mm, mineral wool slab in cavity 50mm, 125mm high performance aerated block (k=0.11), 13mm plaster | L87: 0.3
K88: Tiles, airspace, standard aerated block 125mm, 13mm plaster | L88: 0.53
A89: EXTERNAL WALL TYPE - VARIATIONS | D89: Description | F89: U-value W/m²K | K89: Plaster 13mm, block 10mm, cavity, block 100mm, plaster 13mm | L89: 1.02
F90: Inner Leaf Thickness | K90: Plaster 13mm, brick 102.5mm, plaster 13mm | L90: 1.76
F91: 100mm | G91: 125mm | K91: Plaster 13mm, brick 215mm, plaster 13mm | L91: 1.33
A92: Cavity wall, tile clad, (open cavity or mineral wool slab), lightweight plaster | D92: Tiles, air space, standard aerated block, 13mm plaster | F92: 0.58 | G92: 0.53 | K92: Plaster 13mm, standard aerated block 100mm, plaster 13mm | L92: 1.66
D93: Tiles, air space, standard aerated block 100mm, mineral wool slab in cavity 50mm, standard aerated block, 13mm plaster | F93: 0.36 | G93: 0.34 | K93: Plaster 13mm, standard aerated block 125mm, plaster 13mm | L93: 1.53
K94: Plaster, breeze block 100mm, plaster | L94: 1.58
D95: Tiles, air space, standard aerated block 100mm, cavity, high performance aerated block (k=0.11), 13mm plaster | F95: 0.49 | G95: 0.44 | K95: Plasterboard 12.5mm, studding 75mm, plasterboard 12.5mm | L95: 1.72
K96: Chippings, 3 layers of felt, boarding, air space, 100mm insulation, 9.5 mm plasterboard | L96: 0.32
D97: Tiles, air space, standard aerated block 100mm, mineral wool slab in cavity 50mm, high performance aerated block (k=0.11), 13mm plaster | F97: 0.32 | G97: 0.3 | K97: Chippings, 3 layers of felt, boarding, air space, 200mm insulation, 9.5 mm plasterboard | L97: 0.17
K98: Chippings, 3 layers of felt, boarding, air space, 300insulation, 9.5 mm plasterboard | L98: 0.12
A99: Solid wall, tile clad externally | D99: Tiles, air space, high performance aerated block 215mm, 13mm plaster | F99: 0.43 | K99: Chippings, 3 layers of felt, boarding, air space, 50mm insulation, 9.5 mm plasterboard | L99: 0.53
A100: Cavity wall timber clad externally | D100: Shiplap boards, airspace, standard aerated block 100mm, cavity, standard aerated block, 13mm plaster | F100: 0.53 | G100: 0.49 | K100: Chippings, 3 layers of felt, boarding, air space, no insulation, 9.5 mm plasterboard | L100: 1.69
K101: Pitched roof - Slates or tiles, , ventilated air space, 100mm insulation between joists, 9.5 mm plasterboard | L101: 0.35
D102: Shiplap boards, airspace, standard aerated block 100mm, mineral wool slab in cavity 50mm, standard aerated block, 13mm plaster | F102: 0.34 | G102: 0.32 | K102: Pitched roof - Slates or tiles, , ventilated air space, 200mm insulation between joists, 9.5 mm plasterboard | L102: 0.18
K103: Pitched roof - Slates or tiles, , ventilated air space, 300mm insulation between joists, 9.5 mm plasterboard | L103: 0.12
D104: Shiplap boards airspace, standard aerated block 100mm, cavity, high performance aerated block, 13mm plaster | F104: 0.45 | G104: 0.41 | K104: Pitched roof - Slates or tiles, , ventilated air space, 50mm insulation between joists, 9.5 mm plasterboard | L104: 0.62
K105: Pitched roof - Slates or tiles, , ventilated air space, no insulation, 9.5 mm plasterboard | L105: 3.13
D106: Shiplap boards, airspace, standard aerated block 100mm, mineral wool slab in cavity 50mm, high performance aerated block, 13mm plaster | F106: 0.31 | G106: 0.29 | K106: Pitched roof - Slates or tiles, sarking felt, ventilated air space, 100mm insulation between joists, 9.5 mm plasterboard | L106: 0.34
K107: Pitched roof - Slates or tiles, sarking felt, ventilated air space, 100mm insulation between rafters, 9.5 mm plasterboard | L107: 0.34
F108: Insulation Thickness | K108: Pitched roof - Slates or tiles, sarking felt, ventilated air space, 200mm insulation between joists, 9.5 mm plasterboard | L108: 0.18
F109: 60 mm | G109: 80 mm | H109: 100 mm | K109: Pitched roof - Slates or tiles, sarking felt, ventilated air space, 200mm insulation between rafters, 9.5 mm plasterboard | L109: 0.18
A110: Brick outer timber frame wall, dp membrane, plywood sheathing, studding, vapour membrane, plasterboard | D110: Brick 102.5mm, cavity, membrane, plywood 10mm, studding 100m, with infill insulation, vapour membrane, plasterboard 12.5mm | F110: 0.43 | G110: 0.36 | H110: 0.32 | K110: Pitched roof - Slates or tiles, sarking felt, ventilated air space, 300mm insulation between joists, 9.5 mm plasterboard | L110: 0.12
K111: Pitched roof - Slates or tiles, sarking felt, ventilated air space, 300mm insulation between rafters, 9.5 mm plasterboard | L111: 0.12
D112: Tiles, airspace, membrane, plywood 10mm, studding 100mm, with infill insulation, vapour membrane, plasterboard 12.5mm | F112: 0.47 | G112: 0.38 | H112: 0.34 | K112: Pitched roof - Slates or tiles, sarking felt, ventilated air space, 50mm insulation between joists, 9.5 mm plasterboard | L112: 0.6
K113: Pitched roof - Slates or tiles, sarking felt, ventilated air space, 50mm insulation between rafters, 9.5 mm plasterboard | L113: 0.6
D114: Shiplap boards, airspace, membrane, plywood 10mm, studding 100mm with infill insulation | F114: 0.44 | G114: 0.36 | H114: 0.32 | K114: Pitched roof - Slates or tiles, sarking felt, ventilated air space, no insulation, 9.5 mm plasterboard | L114: 2.51
K115: Pitched roof - Slates or tiles, sarking felt, ventilated air space, no insulation, 9.5 mm plasterboard | L115: 2.51
K116: Boarding 19mm, airspace between joists, 100mm insulation, 6mm sheeting - heat flow downward exposed to outside air or unheated space | L116: 0.33
K117: Boarding 19mm, airspace between joists, 150mm insulation, 6mm sheeting - heat flow downward exposed to outside air or unheated space | L117: 0.23
K118: Boarding 19mm, airspace between joists, no insulation, 6mm sheeting - heat flow downward exposed to outside air or unheated space | L118: 1.75
K119: Intermediate floors, boarding 19mm, airspace 100mm insulation between joists, 9.5mm plasterboard heat flow downward | L119: 0.31
K120: Intermediate floors, boarding 19mm, airspace 100mm insulation between joists, 9.5mm plasterboard heat flow upward | L120: 0.32
K121: Intermediate floors, boarding 19mm, airspace between joists, 9.5mm plasterboard heat flow downward | L121: 1.41
K122: Intermediate floors, boarding 19mm, airspace between joists, 9.5mm plasterboard heat flow upward | L122: 1.73
K123: Screed 50mm, concrete slab 150mm, 100mm insulation between battens, 6mm sheeting, heat flow downward - exposed to outside air or unheated space | L123: 0.57
K124: Screed 50mm, concrete slab 150mm, no insulation between battens, 6mm sheeting, heat flow downward - exposed to outside air or unheated space | L124: 1.82

Sheet Design Tables
A1: Degree Day data from CIBSE Guide A (base temperature 15.5 °C) 1976-1995 | E1: Design Room Operative Temperature and Natural Ventilation Rates
A2: & Mean Air Temp data (from MIS 3005 Appendix B) | E2: Room | F2: Temp (°C) | G2: Category A | H2: Category B | I2: Category C | J2: Room | K2: Temp (°C) | L2: Category A | M2: Category B | N2: Category C
B3: Degree | C3: Mean Air | E3: Lounge | F3: 21 | G3: 1.5** | H3: 1.0** | I3: 0.5 | J3: Games | K3: 21 | L3: 1.5 | M3: 1.0 | N3: 0.5
B4: Day (K*day) | C4: Temp (°C) | E4: Living | F4: 21 | G4: 1.5** | H4: 1.0** | I4: 0.5 | J4: Bedroom | K4: 18 | L4: 1.0 | M4: 1.0 | N4: 0.5
A5: Borders (Boulmer) | B5: 2483 | C5: 9 | E5: Breakfast | F5: 21 | G5: 1.5 | H5: 1.0 | I5: 0.5 | J5: Bedsitting | K5: 21 | L5: 1.5 | M5: 1.0 | N5: 0.5
A6: E Anglia (Honington) | B6: 2254 | C6: 10.1 | E6: Dining | F6: 21 | G6: 1.5 | H6: 1.0 | I6: 0.5 | J6: Bed & Ensuite | K6: 21 | L6: 2.0 | M6: 1.5 | N6: 1.0
A7: E Pennines (Finningley) | B7: 2307 | C7: 10 | E7: Kitchen | F7: 18 | G7: 2.0* | H7: 1.5* | I7: 1.5* | J7: Internal | K7: 18 | L7: 0.0 | M7: 0.0 | N7: 0.0
A8: E Scotland (Leuchars) | B8: 2577 | C8: 8.8 | E8: Family | F8: 21 | G8: 2.0* | H8: 1.5* | I8: 1.5* | J8: Bed/Study | K8: 21 | L8: 1.5 | M8: 1.5 | N8: 0.5
A9: Midland (Elmdon) | B9: 2425 | C9: 9.8 | E9: Hall | F9: 18 | G9: 2.0 | H9: 1.0 | I9: 0.5 | J9: Landing | K9: 18 | L9: 2.0 | M9: 1.0 | N9: 0.5
A10: N Ireland (Aldergrove) | B10: 2360 | C10: 9.4 | E10: Cloaks/WC | F10: 18 | G10: 2.0* | H10: 1.5* | I10: 1.5* | J10: Bath | K10: 22 | L10: 3.0* | M10: 1.5* | N10: 1.5*
A11: NE Scotland (Dyce) | B11: 2668 | C11: 8.5 | E11: Toilet | F11: 18 | G11: 3.0* | H11: 1.5* | I11: 1.5* | J11: Shower | K11: 22 | L11: 3.0* | M11: 1.5* | N11: 1.5*
A12: North-eastern (Lemming) | B12: 2370 | C12: 9.4 | E12: Utility | F12: 18 | G12: 3.0* | H12: 2.0* | I12: 0.5* | J12: Dressing | K12: 18 | L12: 1.5 | M12: 1.0 | N12: 0.5
A13: North-western (Carlisle) | B13: 2388 | C13: 9.4 | E13: Study | F13: 21 | G13: 1.5 | H13: 1.5 | I13: 0.5 | J13: Store | K13: 16 | L13: 1.0 | M13: 0.5 | N13: 0.5
A14: NW Scotland (Stornoway) | B14: 2671 | C14: 8.6
A15: Severn Valley (Filton) | B15: 1835 | C15: 10.6 | E15: Category A: | F15: Air change rates for older existing buildings (pre 2000). Those with several chimneys and/or subject to preservation orders may require greater infiltration allowance than shown above
A16: South-eastern (Gatwick) | B16: 2255 | C16: 10.2
A17: Southern (Hurn) | B17: 2224 | C17: 10.4 | E17: Category B: | F17: Air change rates for modern buildings (2000 or later) with double glazing and regulatory minimum insulation
A18: South-western (Plymouth) | B18: 1858 | C18: 11
A19: Thames Valley (Heathrow) | B19: 2033 | C19: 11.3 | E19: Category C: | F19: New (or existing) buildings constructed after 2006 and complying with all current building regulations.
A20: W Pennines (Ringway) | B20: 2228 | C20: 10
A21: W Scotland (Abbotsinch) | B21: 2494 | C21: 9.1 | E21: * | F21: Where mechanical extract ventilation is to be installed in a room and the extract volume exceeds the natural infiltration, then it is advisable to make due allowances for the air extracted from any connecting room or corridor.
A22: Wales (Aberporth) | B22: 2161 | C22: 9.9
E23: ** | F23: Where a room contains an open fire or chimney, due ventilation allowance must be made from table below (Rooms with Chimneys and Open Flues).
A24: Location | B24: Alt (m) | C24: External
C25: Temp ** | E25: Note: | F25: All new (Post 2006), well insulated buildings use a design temp of 21°C throughout, except bathrooms (22°C) and Store (16°C)
A26: Belfast | B26: 68 | C26: -1.2 | E26: Rooms with Chimneys and Open Flues
A27: Birmingham | B27: 96 | C27: -3.4 | E27: Room Volume (m³) | G27: Throat restrictor fitted to flue | J27: Air changes per hour
A28: Cardiff | B28: 67 | C28: -1.6 | E28: Up to 40 | G28: No | J28: 5
A29: Edinburgh | B29: 35 | C29: -3.4 | E29: Up to 40 | G29: Yes | J29: 3
A30: Glasgow | B30: 5 | C30: -3.9 | E30: Up to 70 | G30: No | J30: 4
A31: London | B31: 25 | C31: -1.8 | E31: Up to 70 | G31: Yes | J31: 2
A32: Manchester | B32: 75 | C32: -2.2
A33: Plymouth | B33: 27 | C33: -1.2 | E33: Table and information taken from The Domestic Heating Design Guide 2015 - please refer to the guide for further information

Sheet 1
B1: Room Information | E1: Ventilation Heat Loss | H1: Fabric | I1: Heat Loss (W) | J1: Usage (kWh) | K1: Additional heat loss | M1: Addition | N1: Watts | O1: kWh
B2: Room | C2: Bed/Study | E2: Air Changes per hour | G2: ='Design Details'!G87 -> 0 | H2: Floor | I2: =SUM(K20:K22) -> 0 | J2: =SUM(L20:L22) -> 0 | K2: Thermal Bridging (New Build >2006) | M2: 0 | N2: =SUM(I$2:I$6)*M2 -> 0 | O2: =SUM(J$2:J$6)*M2 -> 0 | Q2: 3 edges (long single) | R2: Level | Y2: 1
B3: Level | C3: Upper floor | E3: Air Change Factor (W/m³K) | G3: 0.33 | H3: Ext Wall | I3: =K27 -> 0 | J3: =L27 -> 0 | K3: Exposed location | M3: 0 | N3: =SUM(I$2:I$6)*M3 -> 0 | O3: =SUM(J$2:J$6)*M3 -> 0 | Q3: 3 edges (short single) | R3: Please Select Floor | S3: =IF($C$3="Ground floor","Solid Floor (in contact with ground)",IF($C$3="Single Storey","Solid Floor (in contact with ground)","n/a")) -> n/a | T3: ='Design Details'!C21 -> 10 | U3: unheated | V3: 0 | W3: 0 | X3: 0 | Y3: 2
B4: Design Room Temp (°C) | D4: ='Design Details'!E87 -> 21 | E4: Total Volume (m³) | G4: =SUM(I10:I12,I14:I18) -> 0 | H4: Roof | I4: =SUM(K32,K36) -> 0 | J4: =SUM(L32,L36) -> 0 | K4: High ceiling | M4: 0 | N4: =SUM(I$2:I$6)*M4 -> 0 | O4: =SUM(J$2:J$6)*M4 -> 0 | Q4: One edge | R4: Ground floor | S4: =IF($C$3="Ground floor","Suspended Floor",IF($C$3="Single Storey","Suspended Floor","n/a")) -> n/a | U4: 16 | V4: 0.1 | W4: 0.2 | X4: 0.025 | Y4: 3
B5: Outside Design Temp (°C) | D5: ='Design Details'!C19 -> -2.5 | E5: Heat loss (W) | G5: =G4*G3*D6*G2 -> 0 | H5: Glazing | I5: =SUM(K38:K44,K46:K49,K51:K54) -> 0 | J5: =SUM(L38:L44,L46:L49,L51:L54) -> 0 | K5: Intermittent heating | M5: 0 | N5: =SUM(I$2:I$6)*M5 -> 0 | O5: =SUM(J$2:J$6)*M5 -> 0 | Q5: Two adjacent | R5: Mid-floor | U5: 18 | X5: 0.05 | Y5: 4
B6: Temp Difference (°C) | D6: =D4-D5 -> 23.5 | E6: Estimated Energy usage (kWh) | G6: =G4*G3*D7*24/1000 -> 0 | H6: Int./Party Wall | I6: =SUM(K56:K59,K61) -> 0 | J6: =SUM(L61) -> 0 | N6: Total Room Heat Loss (W) | O6: =SUM(G5,I2:I6,N2:N5) -> 0 | Q6: Two opposite | R6: Single storey | U6: 21 | X6: 0.075 | Y6: 5
B7: Degree Days | D7: ='Design Details'!C20 -> 2228 | N7: Total Room Energy Usage (kWh) | O7: =SUM(G6,J2:J6,O2:O5) -> 0 | R7: Upper floor | U7: 22 | X7: 0.1 | Y7: 6
R8: =IF($C$3="Ground floor",'Design Details'!C$45,IF($C$3="Mid-floor",'Design Details'!C$55,IF($C$3="Upper floor",'Design Details'!C$65,IF($C$3="Single Storey",'Design Details'!C$75,0)))) -> 0 | Y8: 7
B9: Room Dimensions | Y9: 8
B10: Length (m) | D10: Width (m) | F10: Height (m) | H10: Volume (m³) | I10: =C10*E10*G10 -> 0 | Y10: 9
B11: Length (m) | D11: Width (m) | F11: Height (m) | H11: Volume (m³) | I11: =C11*E11*G11 -> 0 | Y11: 10
B12: Length (m) | D12: Width (m) | F12: Height (m) | H12: Volume (m³) | I12: =C12*E12*G12 -> 0
B13: Awkward Room Dimensions
B14: Length (m) | D14: Width (m) | F14: Height (m) | H14: Volume (m³) | I14: =((G14*E14)/2)*C14 -> 0 | J14: Pitched
B15: Length (m) | D15: Width (m) | F15: Height (m) | H15: Volume (m³) | I15: =C15*E15*G15/2 -> 0 | J15: Single Pitch
B16: Length (m) | D16: Height (m) | F16: Depth (m) | H16: Volume (m³) | I16: =E16*G16*C16/2 -> 0 | J16: Dormer 1
B17: Length (m) | D17: Height (m) | F17: Depth (m) | H17: Volume (m³) | I17: =E17*G17*C17/2 -> 0 | J17: Dormer 2
B18: Length (m) | D18: Height (m) | F18: Depth (m) | H18: Volume (m³) | I18: =E18*G18*C18/2 -> 0 | J18: Dormer 3
B19: Floor | J19: Temp Difference | K19: Heat Loss (W) | L19: Usage (kWh) | M19: =IF($C$3="Ground Floor","Select type of Ground Floor",IF($C$3="Single Storey","Select type of Ground Floor","#N/A")) -> #N/A
B20: =B10 -> Length (m) | D20: =D10 -> Width (m) | F20: Area (m²) | G20: =C20*E20 -> 0 | H20: U Value (W/m²K) | I20: =IF(M22="",R8,'floor u values'!K2) -> 0 | J20: =IF(C$3="Ground Floor",IF(M20="Solid Floor (in contact with ground)",D$4-T$3,D$4-D$5),IF(C$3="Single Storey",IF(M20="Solid Floor (in contact with ground)",D$4-T$3,D$4-D$5),0)) -> 0 | K20: =G20*I20*J20 -> 0 | L20: =IF($C$3=$R$5,0,IF($C$3=$R$7,0,G20*I20*$D$7*24/1000)) -> 0 | M20: n/a
B21: Length (m) | D21: Width (m) | F21: Area (m²) | G21: =C21*E21 -> 0 | H21: U Value (W/m²K) | I21: =I20 -> 0 | J21: =IF(C$3="Ground Floor",IF(M20="Solid Floor (in contact with ground)",D$4-T$3,D$4-D$5),IF(C$3="Single Storey",IF(M20="Solid Floor (in contact with ground)",D$4-T$3,D$4-D$5),0)) -> 0 | K21: =G21*I21*J21 -> 0 | L21: =IF($C$3=$R$5,0,IF($C$3=$R$7,0,G21*I21*$D$7*24/1000)) -> 0 | M21: Exposed floor (external)
B22: Length (m) | D22: Width (m) | F22: Area (m²) | G22: 0 | H22: U Value (W/m²K) | I22: =I20 -> 0 | J22: =IF(C$3="Ground Floor",IF(M20="Solid Floor (in contact with ground)",D$4-T$3,D$4-D$5),IF(C$3="Single Storey",IF(M20="Solid Floor (in contact with ground)",D$4-T$3,D$4-D$5),0)) -> 0 | K22: =G22*I22*J22 -> 0 | L22: =IF($C$3=$R$5,0,IF($C$3=$R$7,0,G22*I22*$D$7*24/1000)) -> 0
B23: External Wall | M23: =IF(M22="Two opposite","Between edges",IF(M22="One edge","Depth of room",IF(M22="3 edges (short single)","Short length",IF(M22="3 edges (long single)","Short length","")))) ->  | O23: =IF(M22="3 edges (short single)","Long length",IF(M22="3 edges (long single)","Long length","")) -> 
B24: Length (m) | D24: Height (m) | F24: Area (m²) | G24: 0
B25: Length (m) | D25: Height (m) | F25: Area (m²) | G25: 0
B26: Length (m) | D26: Height (m) | F26: Area (m²) | G26: 0
E27: Total | F27: Area (m²) | G27: =SUM(G24:G26)-SUM(G38:G44,G51:G54) -> 0 | H27: U Value (W/m²K) | I27: =IF($C$3="Ground floor",'Design Details'!C$48,IF($C$3="Mid-floor",'Design Details'!C$58,IF($C$3="Upper floor",'Design Details'!C$68,IF($C$3="Single Storey",'Design Details'!C$78,0)))) -> 0 | J27: =$D$6 -> 23.5 | K27: =G27*I27*J27 -> 0 | L27: =G27*I27*$D$7*24/1000 -> 0
B28: Ceiling (Flat)
B29: Length (m) | D29: Width (m) | F29: Area (m²) | G29: 0
B30: Length (m) | D30: Width (m) | F30: Area (m²) | G30: 0
B31: Length (m) | D31: Width (m) | F31: Area (m²) | G31: 0 | M31: Select Temp/Type of Space Above
E32: Total | F32: Area (m²) | G32: =SUM(G29:G31)-SUM(G46:G49) -> 0 | H32: U Value (W/m²K) | I32: =IF($C$3="Ground floor",'Design Details'!C$49,IF($C$3="Mid-floor",'Design Details'!C$59,IF($C$3="Upper floor",INDIRECT(T52),IF($C$3="Single Storey",INDIRECT(T53),0)))) -> 0.6 | J32: =U51 -> 11 | K32: =G32*I32*J32 -> 0 | L32: =IF($C$3=$R$4,0,IF($C$3=$R$5,0,G32*I32*$D$7*24/1000)) -> 0 | M32: Unheated
B33: Ceiling (Awkward)
B34: Length (m) | C34: =C14*2 -> 0 | D34: Pitch (m) | E34: =SQRT(POWER(E14,2)+POWER(G14,2)) -> 0 | F34: Area (m²) | G34: =C34*E34 -> 0 | H34: Pitched
B35: Length (m) | C35: =C15 -> 0 | D35: Pitch (m) | E35: =SQRT(POWER(E15,2)+POWER(G15,2)) -> 0 | F35: Area (m²) | G35: 0 | H35: Single Pitch
E36: Total | F36: Area (m²) | G36: =SUM(G34:G35)-SUM(G46:G49) -> 0 | H36: U Value (W/m²K) | I36: =IF($C$3="Ground floor",'Design Details'!C$50,IF($C$3="Mid-floor",'Design Details'!C$60,IF($C$3="Upper floor",'Design Details'!C$70,IF($C$3="Single Storey",'Design Details'!C$80,0)))) -> 0.6 | J36: =$D$6 -> 23.5 | K36: 0 | L36: =IF($C$3=$R$4,0,IF($C$3=$R$5,0,G36*I36*$D$7*24/1000)) -> 0
B37: Windows
B38: Width (m) | D38: Height (m) | F38: Area (m²) | G38: 0 | H38: U Value (W/m²K) | I38: =IF($C$3="Ground floor",'Design Details'!C$46,IF($C$3="Mid-floor",'Design Details'!C$56,IF($C$3="Upper floor",'Design Details'!C$66,IF($C$3="Single Storey",'Design Details'!C$76,0)))) -> 0 | J38: 23.5 | K38: 0 | L38: =G38*I38*$D$7*24/1000 -> 0
B39: Width (m) | D39: Height (m) | F39: Area (m²) | G39: 0 | H39: U Value (W/m²K) | I39: =IF($C$3="Ground floor",'Design Details'!C$46,IF($C$3="Mid-floor",'Design Details'!C$56,IF($C$3="Upper floor",'Design Details'!C$66,IF($C$3="Single Storey",'Design Details'!C$76,0)))) -> 0 | J39: 23.5 | K39: 0 | L39: 0
B40: Width (m) | D40: Height (m) | F40: Area (m²) | G40: 0 | H40: U Value (W/m²K) | I40: =IF($C$3="Ground floor",'Design Details'!C$46,IF($C$3="Mid-floor",'Design Details'!C$56,IF($C$3="Upper floor",'Design Details'!C$66,IF($C$3="Single Storey",'Design Details'!C$76,0)))) -> 0 | J40: 23.5 | K40: 0 | L40: 0
B41: Width (m) | D41: Height (m) | F41: Area (m²) | G41: 0 | H41: U Value (W/m²K) | I41: =IF($C$3="Ground floor",'Design Details'!C$46,IF($C$3="Mid-floor",'Design Details'!C$56,IF($C$3="Upper floor",'Design Details'!C$66,IF($C$3="Single Storey",'Design Details'!C$76,0)))) -> 0 | J41: 23.5 | K41: 0 | L41: 0
B42: Width (m) | D42: Height (m) | F42: Area (m²) | G42: 0 | H42: U Value (W/m²K) | I42: =IF($C$3="Ground floor",'Design Details'!C$46,IF($C$3="Mid-floor",'Design Details'!C$56,IF($C$3="Upper floor",'Design Details'!C$66,IF($C$3="Single Storey",'Design Details'!C$76,0)))) -> 0 | J42: 23.5 | K42: 0 | L42: 0
B43: Width (m) | D43: Height (m) | F43: Area (m²) | G43: 0 | H43: U Value (W/m²K) | I43: =IF($C$3="Ground floor",'Design Details'!C$46,IF($C$3="Mid-floor",'Design Details'!C$56,IF($C$3="Upper floor",'Design Details'!C$66,IF($C$3="Single Storey",'Design Details'!C$76,0)))) -> 0 | J43: 23.5 | K43: 0 | L43: 0
B44: Width (m) | D44: Height (m) | F44: Area (m²) | G44: 0 | H44: U Value (W/m²K) | I44: =IF($C$3="Ground floor",'Design Details'!C$46,IF($C$3="Mid-floor",'Design Details'!C$56,IF($C$3="Upper floor",'Design Details'!C$66,IF($C$3="Single Storey",'Design Details'!C$76,0)))) -> 0 | J44: 23.5 | K44: 0 | L44: 0
B45: Roof Glazing | Q45: Options for upper floor or single storey | R45: Options for Ground or Mid Floor | S45: Drop-Down List | T45: U-Value Selector | U45: Temp Diff Selector
B46: Width (m) | D46: Height (m) | F46: Area (m²) | G46: 0 | H46: U Value (W/m²K) | I46: =IF($C$3="Ground floor",'Design Details'!C$53,IF($C$3="Mid-floor",'Design Details'!C$63,IF($C$3="Upper floor",'Design Details'!C$73,IF($C$3="Single Storey",'Design Details'!C$83,0)))) -> 0 | J46: 23.5 | K46: 0 | L46: =G46*I46*$D$7*24/1000 -> 0
B47: Width (m) | D47: Height (m) | F47: Area (m²) | G47: 0 | H47: U Value (W/m²K) | I47: =IF($C$3="Ground floor",'Design Details'!C$53,IF($C$3="Mid-floor",'Design Details'!C$63,IF($C$3="Upper floor",'Design Details'!C$73,IF($C$3="Single Storey",'Design Details'!C$83,0)))) -> 0 | J47: 23.5 | K47: 0 | L47: =G47*I47*$D$7*24/1000 -> 0
B48: Width (m) | D48: Height (m) | F48: Area (m²) | G48: 0 | H48: U Value (W/m²K) | I48: =IF($C$3="Ground floor",'Design Details'!C$53,IF($C$3="Mid-floor",'Design Details'!C$63,IF($C$3="Upper floor",'Design Details'!C$73,IF($C$3="Single Storey",'Design Details'!C$83,0)))) -> 0 | J48: 23.5 | K48: 0 | L48: =G48*I48*$D$7*24/1000 -> 0
B49: Width (m) | D49: Height (m) | F49: Area (m²) | G49: 0 | H49: U Value (W/m²K) | I49: =IF($C$3="Ground floor",'Design Details'!C$53,IF($C$3="Mid-floor",'Design Details'!C$63,IF($C$3="Upper floor",'Design Details'!C$73,IF($C$3="Single Storey",'Design Details'!C$83,0)))) -> 0 | J49: 23.5 | K49: 0 | L49: =G49*I49*$D$7*24/1000 -> 0
B50: External Doors | S50: Select...
B51: Width (m) | D51: Height (m) | F51: Area (m²) | G51: 0 | H51: U Value (W/m²K) | I51: =IF($C$3="Ground floor",'Design Details'!C$47,IF($C$3="Mid-floor",'Design Details'!C$57,IF($C$3="Upper floor",'Design Details'!C$67,IF($C$3="Single Storey",'Design Details'!C$77,0)))) -> 0 | J51: 23.5 | K51: 0 | L51: =G51*I51*$D$7*24/1000 -> 0 | Q51: Outside | R51: Unheated | S51: =IF(OR($C$3="Ground Floor",$C$3="Mid-floor"),R51,Q51) -> Outside | T51: =IF(M32="Unheated",1,0) -> 1 | U51: =IF(M32="Select...",0,(IF(M32="Outside",D6,IF(M32="Unheated",D4-10,D4-M32)))) -> 11
B52: Width (m) | D52: Height (m) | F52: Area (m²) | G52: 0 | H52: U Value (W/m²K) | I52: =IF($C$3="Ground floor",'Design Details'!C$47,IF($C$3="Mid-floor",'Design Details'!C$57,IF($C$3="Upper floor",'Design Details'!C$67,IF($C$3="Single Storey",'Design Details'!C$77,0)))) -> 0 | J52: 23.5 | K52: 0 | L52: =G52*I52*$D$7*24/1000 -> 0 | Q52: Unheated | R52: 16 | S52: =IF(OR($C$3="Ground Floor",$C$3="Mid-floor"),R52,Q52) -> Unheated | T52: ="'Design Details'!C$"&69+T51 -> 'Design Details'!C$70
B53: Width (m) | D53: Height (m) | F53: Area (m²) | G53: 0 | H53: U Value (W/m²K) | I53: =IF($C$3="Ground floor",'Design Details'!C$47,IF($C$3="Mid-floor",'Design Details'!C$57,IF($C$3="Upper floor",'Design Details'!C$67,IF($C$3="Single Storey",'Design Details'!C$77,0)))) -> 0 | J53: 23.5 | K53: 0 | L53: =G53*I53*$D$7*24/1000 -> 0 | R53: 18 | S53: =IF(OR($C$3="Ground Floor",$C$3="Mid-floor"),R53,Q53) -> 0 | T53: ="'Design Details'!C$"&79+T51 -> 'Design Details'!C$80
B54: Width (m) | D54: Height (m) | F54: Area (m²) | G54: 0 | H54: U Value (W/m²K) | I54: =IF($C$3="Ground floor",'Design Details'!C$47,IF($C$3="Mid-floor",'Design Details'!C$57,IF($C$3="Upper floor",'Design Details'!C$67,IF($C$3="Single Storey",'Design Details'!C$77,0)))) -> 0 | J54: 23.5 | K54: 0 | L54: =G54*I54*$D$7*24/1000 -> 0 | R54: 21 | S54: =IF(OR($C$3="Ground Floor",$C$3="Mid-floor"),R54,Q54) -> 0
B55: Internal Walls | M55: Adjoining Room Temp (°C) | R55: 22 | S55: =IF(OR($C$3="Ground Floor",$C$3="Mid-floor"),R55,Q37) -> 0
B56: Length (m) | D56: Height (m) | F56: Area (m²) | G56: 0 | H56: U Value (W/m²K) | I56: =IF($C$3="Ground floor",'Design Details'!C$51,IF($C$3="Mid-floor",'Design Details'!C$61,IF($C$3="Upper floor",'Design Details'!C$71,IF($C$3="Single Storey",'Design Details'!C$81,0)))) -> 0 | J56: =IF(M56="",0,IF(M56="unheated",D$4-10,D$4-M56)) -> 0 | K56: 0
B57: Length (m) | D57: Height (m) | F57: Area (m²) | G57: 0 | H57: U Value (W/m²K) | I57: =IF($C$3="Ground floor",'Design Details'!C$51,IF($C$3="Mid-floor",'Design Details'!C$61,IF($C$3="Upper floor",'Design Details'!C$71,IF($C$3="Single Storey",'Design Details'!C$81,0)))) -> 0 | J57: =IF(M57="",0,IF(M57="unheated",D$4-10,D$4-M57)) -> 0 | K57: 0
B58: Length (m) | D58: Height (m) | F58: Area (m²) | G58: 0 | H58: U Value (W/m²K) | I58: =IF($C$3="Ground floor",'Design Details'!C$51,IF($C$3="Mid-floor",'Design Details'!C$61,IF($C$3="Upper floor",'Design Details'!C$71,IF($C$3="Single Storey",'Design Details'!C$81,0)))) -> 0 | J58: =IF(M58="",0,IF(M58="unheated",D$4-10,D$4-M58)) -> 0 | K58: 0
B59: Length (m) | D59: Height (m) | F59: Area (m²) | G59: 0 | H59: U Value (W/m²K) | I59: =IF($C$3="Ground floor",'Design Details'!C$51,IF($C$3="Mid-floor",'Design Details'!C$61,IF($C$3="Upper floor",'Design Details'!C$71,IF($C$3="Single Storey",'Design Details'!C$81,0)))) -> 0 | J59: =IF(M59="",0,IF(M59="unheated",D$4-10,D$4-M59)) -> 0 | K59: 0
B60: Party Wall
B61: Length (m) | D61: Height (m) | F61: Area (m²) | G61: 0 | H61: U Value (W/m²K) | I61: =IF($C$3="Ground floor",'Design Details'!C$52,IF($C$3="Mid-floor",'Design Details'!C$62,IF($C$3="Upper floor",'Design Details'!C$72,IF($C$3="Single Storey",'Design Details'!C$82,0)))) -> 0.5 | J61: =D4-10 -> 11 | K61: 0 | L61: =G61*I61*$D$7*24/1000 -> 0

Sheet 2
B1: Room Information | E1: Ventilation Heat Loss | H1: Fabric | I1: Heat Loss (W) | J1: Usage (kWh) | K1: Additional heat loss | M1: Addition | N1: Watts | O1: kWh
B2: Room | E2: Air Changes per hour | G2: ='Design Details'!G88 -> 0 | H2: Floor | I2: =SUM(K20:K22) -> 0 | J2: =SUM(L20:L22) -> 0 | K2: Thermal Bridging (New Build >2006) | M2: 0 | N2: =SUM(I$2:I$6)*M2 -> 0 | O2: =SUM(J$2:J$6)*M2 -> 0 | Q2: 3 edges (long single) | R2: Level | Y2: 1
B3: Level | E3: Air Change Factor (W/m³K) | G3: 0.33 | H3: Ext Wall | I3: =K27 -> 0 | J3: =L27 -> 0 | K3: Exposed location | M3: 0 | N3: =SUM(I$2:I$6)*M3 -> 0 | O3: =SUM(J$2:J$6)*M3 -> 0 | Q3: 3 edges (short single) | R3: Please Select Floor | S3: =IF($C$3="Ground floor","Solid Floor (in contact with ground)",IF($C$3="Single Storey","Solid Floor (in contact with ground)","n/a")) -> n/a | T3: ='Design Details'!C21 -> 10 | U3: unheated | V3: 0 | W3: 0 | X3: 0 | Y3: 2
B4: Design Room Temp (°C) | D4: ='Design Details'!E88 -> 0 | E4: Total Volume (m³) | G4: =SUM(I10:I12,I14:I18) -> 0 | H4: Roof | I4: =SUM(K32,K36) -> 0 | J4: =SUM(L32,L36) -> 0 | K4: High ceiling | M4: 0 | N4: =SUM(I$2:I$6)*M4 -> 0 | O4: =SUM(J$2:J$6)*M4 -> 0 | Q4: One edge | R4: Ground floor | S4: =IF($C$3="Ground floor","Suspended Floor",IF($C$3="Single Storey","Suspended Floor","n/a")) -> n/a | U4: 16 | V4: 0.1 | W4: 0.2 | X4: 0.025 | Y4: 3
B5: Outside Design Temp (°C) | D5: ='Design Details'!C19 -> -2.5 | E5: Heat loss (W) | G5: =G4*G3*D6*G2 -> 0 | H5: Glazing | I5: =SUM(K38:K44,K46:K49,K51:K54) -> 0 | J5: =SUM(L38:L44,L46:L49,L51:L54) -> 0 | K5: Intermittent heating | M5: 0 | N5: =SUM(I$2:I$6)*M5 -> 0 | O5: =SUM(J$2:J$6)*M5 -> 0 | Q5: Two adjacent | R5: Mid-floor | U5: 18 | X5: 0.05 | Y5: 4
B6: Temp Difference (°C) | D6: =D4-D5 -> 2.5 | E6: Estimated Energy usage (kWh) | G6: =G4*G3*D7*24/1000 -> 0 | H6: Int./Party Wall | I6: =SUM(K56:K59,K61) -> 0 | J6: =SUM(L61) -> 0 | N6: Total Room Heat Loss (W) | O6: =SUM(G5,I2:I6,N2:N5) -> 0 | Q6: Two opposite | R6: Single storey | U6: 21 | X6: 0.075 | Y6: 5
B7: Degree Days | D7: ='Design Details'!C20 -> 2228 | N7: Total Room Energy Usage (kWh) | O7: =SUM(G6,J2:J6,O2:O5) -> 0 | R7: Upper floor | U7: 22 | X7: 0.1 | Y7: 6
R8: =IF($C$3="Ground floor",'Design Details'!C$45,IF($C$3="Mid-floor",'Design Details'!C$55,IF($C$3="Upper floor",'Design Details'!C$65,IF($C$3="Single Storey",'Design Details'!C$75,0)))) -> 0 | Y8: 7
B9: Room Dimensions | Y9: 8
B10: Length (m) | D10: Width (m) | F10: Height (m) | H10: Volume (m³) | I10: =C10*E10*G10 -> 0 | Y10: 9
B11: Length (m) | D11: Width (m) | F11: Height (m) | H11: Volume (m³) | I11: =C11*E11*G11 -> 0 | Y11: 10
B12: Length (m) | D12: Width (m) | F12: Height (m) | H12: Volume (m³) | I12: =C12*E12*G12 -> 0
B13: Awkward Room Dimensions
B14: Length (m) | D14: Width (m) | F14: Height (m) | H14: Volume (m³) | I14: =((G14*E14)/2)*C14 -> 0 | J14: Pitched
B15: Length (m) | D15: Width (m) | F15: Height (m) | H15: Volume (m³) | I15: =C15*E15*G15/2 -> 0 | J15: Single Pitch
B16: Length (m) | D16: Height (m) | F16: Depth (m) | H16: Volume (m³) | I16: =E16*G16*C16/2 -> 0 | J16: Dormer 1
B17: Length (m) | D17: Height (m) | F17: Depth (m) | H17: Volume (m³) | I17: =E17*G17*C17/2 -> 0 | J17: Dormer 2
B18: Length (m) | D18: Height (m) | F18: Depth (m) | H18: Volume (m³) | I18: =E18*G18*C18/2 -> 0 | J18: Dormer 3
B19: Floor | J19: Temp Difference | K19: Heat Loss (W) | L19: Usage (kWh) | M19: =IF($C$3="Ground Floor","Select type of Ground Floor",IF($C$3="Single Storey","Select type of Ground Floor","#N/A")) -> #N/A
B20: =B10 -> Length (m) | D20: =D10 -> Width (m) | F20: Area (m²) | G20: =C20*E20 -> 0 | H20: U Value (W/m²K) | I20: =IF(M22="",R8,'floor u values'!K3) -> 0 | J20: =IF(C$3="Ground Floor",IF(M20="Solid Floor (in contact with ground)",D$4-T$3,D$4-D$5),IF(C$3="Single Storey",IF(M20="Solid Floor (in contact with ground)",D$4-T$3,D$4-D$5),0)) -> 0 | K20: =G20*I20*J20 -> 0 | L20: =IF($C$3=$R$5,0,IF($C$3=$R$7,0,G20*I20*$D$7*24/1000)) -> 0 | M20: n/a
B21: =B11 -> Length (m) | D21: Width (m) | F21: Area (m²) | G21: =C21*E21 -> 0 | H21: U Value (W/m²K) | I21: =I20 -> 0 | J21: =IF(C$3="Ground Floor",IF(M20="Solid Floor (in contact with ground)",D$4-T$3,D$4-D$5),IF(C$3="Single Storey",IF(M20="Solid Floor (in contact with ground)",D$4-T$3,D$4-D$5),0)) -> 0 | K21: =G21*I21*J21 -> 0 | L21: =IF($C$3=$R$5,0,IF($C$3=$R$7,0,G21*I21*$D$7*24/1000)) -> 0 | M21: Exposed floor (external)
B22: =B12 -> Length (m) | D22: Width (m) | F22: Area (m²) | G22: 0 | H22: U Value (W/m²K) | I22: =I20 -> 0 | J22: =IF(C$3="Ground Floor",IF(M20="Solid Floor (in contact with ground)",D$4-T$3,D$4-D$5),IF(C$3="Single Storey",IF(M20="Solid Floor (in contact with ground)",D$4-T$3,D$4-D$5),0)) -> 0 | K22: =G22*I22*J22 -> 0 | L22: =IF($C$3=$R$5,0,IF($C$3=$R$7,0,G22*I22*$D$7*24/1000)) -> 0
B23: External Wall | M23: =IF(M22="Two opposite","Between edges",IF(M22="One edge","Depth of room",IF(M22="3 edges (short single)","Short length",IF(M22="3 edges (long single)","Short length","")))) ->  | O23: =IF(M22="3 edges (short single)","Long length",IF(M22="3 edges (long single)","Long length","")) -> 
B24: Length (m) | D24: Height (m) | F24: Area (m²) | G24: 0
B25: Length (m) | D25: Height (m) | F25: Area (m²) | G25: 0
B26: Length (m) | D26: Height (m) | F26: Area (m²) | G26: 0
E27: Total | F27: Area (m²) | G27: =SUM(G24:G26)-SUM(G38:G44,G51:G54) -> 0 | H27: U Value (W/m²K) | I27: =IF($C$3="Ground floor",'Design Details'!C$48,IF($C$3="Mid-floor",'Design Details'!C$58,IF($C$3="Upper floor",'Design Details'!C$68,IF($C$3="Single Storey",'Design Details'!C$78,0)))) -> 0 | J27: =$D$6 -> 2.5 | K27: =G27*I27*J27 -> 0 | L27: =G27*I27*$D$7*24/1000 -> 0
B28: Ceiling (Flat)
B29: Length (m) | D29: Width (m) | F29: Area (m²) | G29: 0
B30: Length (m) | D30: Width (m) | F30: Area (m²) | G30: 0
B31: Length (m) | D31: Width (m) | F31: Area (m²) | G31: 0 | M31: Select Temp/Type of Space Above
E32: Total | F32: Area (m²) | G32: =SUM(G29:G31)-SUM(G46:G49) -> 0 | H32: U Value (W/m²K) | I32: =IF($C$3="Ground floor",'Design Details'!C$49,IF($C$3="Mid-floor",'Design Details'!C$59,IF($C$3="Upper floor",INDIRECT(T52),IF($C$3="Single Storey",INDIRECT(T53),0)))) -> 0 | J32: =U51 -> 0 | K32: 0 | L32: =IF($C$3=$R$4,0,IF($C$3=$R$5,0,G32*I32*$D$7*24/1000)) -> 0 | M32: Select...
B33: Ceiling (Awkward)
B34: Length (m) | C34: =C14*2 -> 0 | D34: Pitch (m) | E34: =SQRT(POWER(E14,2)+POWER(G14,2)) -> 0 | F34: Area (m²) | G34: 0 | H34: Pitched
B35: Length (m) | C35: =C15 -> 0 | D35: Pitch (m) | E35: =SQRT(POWER(E15,2)+POWER(G15,2)) -> 0 | F35: Area (m²) | G35: 0 | H35: Single Pitch
E36: Total | F36: Area (m²) | G36: =SUM(G34:G35)-SUM(G46:G49) -> 0 | H36: U Value (W/m²K) | I36: =IF($C$3="Ground floor",'Design Details'!C$50,IF($C$3="Mid-floor",'Design Details'!C$60,IF($C$3="Upper floor",'Design Details'!C$70,IF($C$3="Single Storey",'Design Details'!C$80,0)))) -> 0 | J36: 2.5 | K36: 0 | L36: =IF($C$3=$R$4,0,IF($C$3=$R$5,0,G36*I36*$D$7*24/1000)) -> 0
B37: Windows
B38: Width (m) | D38: Height (m) | F38: Area (m²) | G38: 0 | H38: U Value (W/m²K) | I38: =IF($C$3="Ground floor",'Design Details'!C$46,IF($C$3="Mid-floor",'Design Details'!C$56,IF($C$3="Upper floor",'Design Details'!C$66,IF($C$3="Single Storey",'Design Details'!C$76,0)))) -> 0 | J38: 2.5 | K38: 0 | L38: =G38*I38*$D$7*24/1000 -> 0
B39: Width (m) | D39: Height (m) | F39: Area (m²) | G39: 0 | H39: U Value (W/m²K) | I39: =IF($C$3="Ground floor",'Design Details'!C$46,IF($C$3="Mid-floor",'Design Details'!C$56,IF($C$3="Upper floor",'Design Details'!C$66,IF($C$3="Single Storey",'Design Details'!C$76,0)))) -> 0 | J39: 2.5 | K39: 0 | L39: 0
B40: Width (m) | D40: Height (m) | F40: Area (m²) | G40: 0 | H40: U Value (W/m²K) | I40: =IF($C$3="Ground floor",'Design Details'!C$46,IF($C$3="Mid-floor",'Design Details'!C$56,IF($C$3="Upper floor",'Design Details'!C$66,IF($C$3="Single Storey",'Design Details'!C$76,0)))) -> 0 | J40: 2.5 | K40: 0 | L40: 0
B41: Width (m) | D41: Height (m) | F41: Area (m²) | G41: 0 | H41: U Value (W/m²K) | I41: =IF($C$3="Ground floor",'Design Details'!C$46,IF($C$3="Mid-floor",'Design Details'!C$56,IF($C$3="Upper floor",'Design Details'!C$66,IF($C$3="Single Storey",'Design Details'!C$76,0)))) -> 0 | J41: 2.5 | K41: 0 | L41: 0
B42: Width (m) | D42: Height (m) | F42: Area (m²) | G42: 0 | H42: U Value (W/m²K) | I42: =IF($C$3="Ground floor",'Design Details'!C$46,IF($C$3="Mid-floor",'Design Details'!C$56,IF($C$3="Upper floor",'Design Details'!C$66,IF($C$3="Single Storey",'Design Details'!C$76,0)))) -> 0 | J42: 2.5 | K42: 0 | L42: 0
B43: Width (m) | D43: Height (m) | F43: Area (m²) | G43: 0 | H43: U Value (W/m²K) | I43: =IF($C$3="Ground floor",'Design Details'!C$46,IF($C$3="Mid-floor",'Design Details'!C$56,IF($C$3="Upper floor",'Design Details'!C$66,IF($C$3="Single Storey",'Design Details'!C$76,0)))) -> 0 | J43: 2.5 | K43: 0 | L43: 0
B44: Width (m) | D44: Height (m) | F44: Area (m²) | G44: 0 | H44: U Value (W/m²K) | I44: =IF($C$3="Ground floor",'Design Details'!C$46,IF($C$3="Mid-floor",'Design Details'!C$56,IF($C$3="Upper floor",'Design Details'!C$66,IF($C$3="Single Storey",'Design Details'!C$76,0)))) -> 0 | J44: 2.5 | K44: 0 | L44: 0
B45: Roof Glazing | Q45: Options for upper floor or single storey | R45: Options for Ground or Mid Floor | S45: Drop-Down List | T45: U-Value Selector | U45: Temp Diff Selector
B46: Width (m) | D46: Height (m) | F46: Area (m²) | G46: 0 | H46: U Value (W/m²K) | I46: =IF($C$3="Ground floor",'Design Details'!C$53,IF($C$3="Mid-floor",'Design Details'!C$63,IF($C$3="Upper floor",'Design Details'!C$73,IF($C$3="Single Storey",'Design Details'!C$83,0)))) -> 0 | J46: 2.5 | K46: 0 | L46: =G46*I46*$D$7*24/1000 -> 0
B47: Width (m) | D47: Height (m) | F47: Area (m²) | G47: 0 | H47: U Value (W/m²K) | I47: =IF($C$3="Ground floor",'Design Details'!C$53,IF($C$3="Mid-floor",'Design Details'!C$63,IF($C$3="Upper floor",'Design Details'!C$73,IF($C$3="Single Storey",'Design Details'!C$83,0)))) -> 0 | J47: 2.5 | K47: 0 | L47: =G47*I47*$D$7*24/1000 -> 0
B48: Width (m) | D48: Height (m) | F48: Area (m²) | G48: 0 | H48: U Value (W/m²K) | I48: =IF($C$3="Ground floor",'Design Details'!C$53,IF($C$3="Mid-floor",'Design Details'!C$63,IF($C$3="Upper floor",'Design Details'!C$73,IF($C$3="Single Storey",'Design Details'!C$83,0)))) -> 0 | J48: 2.5 | K48: 0 | L48: =G48*I48*$D$7*24/1000 -> 0
B49: Width (m) | D49: Height (m) | F49: Area (m²) | G49: 0 | H49: U Value (W/m²K) | I49: =IF($C$3="Ground floor",'Design Details'!C$53,IF($C$3="Mid-floor",'Design Details'!C$63,IF($C$3="Upper floor",'Design Details'!C$73,IF($C$3="Single Storey",'Design Details'!C$83,0)))) -> 0 | J49: 2.5 | K49: 0 | L49: =G49*I49*$D$7*24/1000 -> 0
B50: External Doors | S50: Select...
B51: Width (m) | D51: Height (m) | F51: Area (m²) | G51: 0 | H51: U Value (W/m²K) | I51: =IF($C$3="Ground floor",'Design Details'!C$47,IF($C$3="Mid-floor",'Design Details'!C$57,IF($C$3="Upper floor",'Design Details'!C$67,IF($C$3="Single Storey",'Design Details'!C$77,0)))) -> 0 | J51: 2.5 | K51: 0 | L51: =G51*I51*$D$7*24/1000 -> 0 | Q51: Outside | R51: Unheated | S51: =IF(OR($C$3="Ground Floor",$C$3="Mid-floor"),R51,Q51) -> Outside | T51: =IF(M32="Unheated",1,0) -> 0 | U51: =IF(M32="Select...",0,(IF(M32="Outside",D6,IF(M32="Unheated",D4-10,D4-M32)))) -> 0
B52: Width (m) | D52: Height (m) | F52: Area (m²) | G52: 0 | H52: U Value (W/m²K) | I52: =IF($C$3="Ground floor",'Design Details'!C$47,IF($C$3="Mid-floor",'Design Details'!C$57,IF($C$3="Upper floor",'Design Details'!C$67,IF($C$3="Single Storey",'Design Details'!C$77,0)))) -> 0 | J52: 2.5 | K52: 0 | L52: =G52*I52*$D$7*24/1000 -> 0 | Q52: Unheated | R52: 16 | S52: =IF(OR($C$3="Ground Floor",$C$3="Mid-floor"),R52,Q52) -> Unheated | T52: ="'Design Details'!C$"&69+T51 -> 'Design Details'!C$69
B53: Width (m) | D53: Height (m) | F53: Area (m²) | G53: 0 | H53: U Value (W/m²K) | I53: =IF($C$3="Ground floor",'Design Details'!C$47,IF($C$3="Mid-floor",'Design Details'!C$57,IF($C$3="Upper floor",'Design Details'!C$67,IF($C$3="Single Storey",'Design Details'!C$77,0)))) -> 0 | J53: 2.5 | K53: 0 | L53: =G53*I53*$D$7*24/1000 -> 0 | R53: 18 | S53: =IF(OR($C$3="Ground Floor",$C$3="Mid-floor"),R53,Q53) -> 0 | T53: ="'Design Details'!C$"&79+T51 -> 'Design Details'!C$79
B54: Width (m) | D54: Height (m) | F54: Area (m²) | G54: 0 | H54: U Value (W/m²K) | I54: =IF($C$3="Ground floor",'Design Details'!C$47,IF($C$3="Mid-floor",'Design Details'!C$57,IF($C$3="Upper floor",'Design Details'!C$67,IF($C$3="Single Storey",'Design Details'!C$77,0)))) -> 0 | J54: 2.5 | K54: 0 | L54: =G54*I54*$D$7*24/1000 -> 0 | R54: 21 | S54: =IF(OR($C$3="Ground Floor",$C$3="Mid-floor"),R54,Q54) -> 0
B55: Internal Walls | M55: Adjoining Room Temp (°C) | R55: 22 | S55: =IF(OR($C$3="Ground Floor",$C$3="Mid-floor"),R55,Q37) -> 0
B56: Length (m) | D56: Height (m) | F56: Area (m²) | G56: 0 | H56: U Value (W/m²K) | I56: =IF($C$3="Ground floor",'Design Details'!C$51,IF($C$3="Mid-floor",'Design Details'!C$61,IF($C$3="Upper floor",'Design Details'!C$71,IF($C$3="Single Storey",'Design Details'!C$81,0)))) -> 0 | J56: =IF(M56="",0,IF(M56="unheated",D$4-10,D$4-M56)) -> 0 | K56: 0
B57: Length (m) | D57: Height (m) | F57: Area (m²) | G57: 0 | H57: U Value (W/m²K) | I57: =IF($C$3="Ground floor",'Design Details'!C$51,IF($C$3="Mid-floor",'Design Details'!C$61,IF($C$3="Upper floor",'Design Details'!C$71,IF($C$3="Single Storey",'Design Details'!C$81,0)))) -> 0 | J57: =IF(M57="",0,IF(M57="unheated",D$4-10,D$4-M57)) -> 0 | K57: 0
B58: Length (m) | D58: Height (m) | F58: Area (m²) | G58: 0 | H58: U Value (W/m²K) | I58: =IF($C$3="Ground floor",'Design Details'!C$51,IF($C$3="Mid-floor",'Design Details'!C$61,IF($C$3="Upper floor",'Design Details'!C$71,IF($C$3="Single Storey",'Design Details'!C$81,0)))) -> 0 | J58: =IF(M58="",0,IF(M58="unheated",D$4-10,D$4-M58)) -> 0 | K58: 0
B59: Length (m) | D59: Height (m) | F59: Area (m²) | G59: 0 | H59: U Value (W/m²K) | I59: =IF($C$3="Ground floor",'Design Details'!C$51,IF($C$3="Mid-floor",'Design Details'!C$61,IF($C$3="Upper floor",'Design Details'!C$71,IF($C$3="Single Storey",'Design Details'!C$81,0)))) -> 0 | J59: =IF(M59="",0,IF(M59="unheated",D$4-10,D$4-M59)) -> 0 | K59: 0
B60: Party Wall
B61: Length (m) | D61: Height (m) | F61: Area (m²) | G61: 0 | H61: U Value (W/m²K) | I61: =IF($C$3="Ground floor",'Design Details'!C$52,IF($C$3="Mid-floor",'Design Details'!C$62,IF($C$3="Upper floor",'Design Details'!C$72,IF($C$3="Single Storey",'Design Details'!C$82,0)))) -> 0 | J61: =D4-10 -> -10 | K61: 0 | L61: =G61*I61*$D$7*24/1000 -> 0

Sheet 3
B1: Room Information | E1: Ventilation Heat Loss | H1: Fabric | I1: Heat Loss (W) | J1: Usage (kWh) | K1: Additional heat loss | M1: Addition | N1: Watts | O1: kWh
B2: Room | E2: Air Changes per hour | G2: ='Design Details'!G89 -> 0 | H2: Floor | I2: =SUM(K20:K22) -> 0 | J2: =SUM(L20:L22) -> 0 | K2: Thermal Bridging (New Build >2006) | M2: 0 | N2: =SUM(I$2:I$6)*M2 -> 0 | O2: =SUM(J$2:J$6)*M2 -> 0 | Q2: 3 edges (long single) | R2: Level | Y2: 1
B3: Level | E3: Air Change Factor (W/m³K) | G3: 0.33 | H3: Ext Wall | I3: =K27 -> 0 | J3: =L27 -> 0 | K3: Exposed location | M3: 0 | N3: =SUM(I$2:I$6)*M3 -> 0 | O3: =SUM(J$2:J$6)*M3 -> 0 | Q3: 3 edges (short single) | R3: Please Select Floor | S3: =IF($C$3="Ground floor","Solid Floor (in contact with ground)",IF($C$3="Single Storey","Solid Floor (in contact with ground)","n/a")) -> n/a | T3: ='Design Details'!C21 -> 10 | U3: unheated | V3: 0 | W3: 0 | X3: 0 | Y3: 2
B4: Design Room Temp (°C) | D4: ='Design Details'!E89 -> 0 | E4: Total Volume (m³) | G4: =SUM(I10:I12,I14:I18) -> 0 | H4: Roof | I4: =SUM(K32,K36) -> 0 | J4: =SUM(L32,L36) -> 0 | K4: High ceiling | M4: 0 | N4: =SUM(I$2:I$6)*M4 -> 0 | O4: =SUM(J$2:J$6)*M4 -> 0 | Q4: One edge | R4: Ground floor | S4: =IF($C$3="Ground floor","Suspended Floor",IF($C$3="Single Storey","Suspended Floor","n/a")) -> n/a | U4: 16 | V4: 0.1 | W4: 0.2 | X4: 0.025 | Y4: 3
B5: Outside Design Temp (°C) | D5: ='Design Details'!C19 -> -2.5 | E5: Heat loss (W) | G5: =G4*G3*D6*G2 -> 0 | H5: Glazing | I5: =SUM(K38:K44,K46:K49,K51:K54) -> 0 | J5: =SUM(L38:L44,L46:L49,L51:L54) -> 0 | K5: Intermittent heating | M5: 0 | N5: =SUM(I$2:I$6)*M5 -> 0 | O5: =SUM(J$2:J$6)*M5 -> 0 | Q5: Two adjacent | R5: Mid-floor | U5: 18 | X5: 0.05 | Y5: 4
B6: Temp Difference (°C) | D6: =D4-D5 -> 2.5 | E6: Estimated Energy usage (kWh) | G6: =G4*G3*D7*24/1000 -> 0 | H6: Int./Party Wall | I6: =SUM(K56:K59,K61) -> 0 | J6: =SUM(L61) -> 0 | N6: Total Room Heat Loss (W) | O6: =SUM(G5,I2:I6,N2:N5) -> 0 | Q6: Two opposite | R6: Single storey | U6: 21 | X6: 0.075 | Y6: 5
B7: Degree Days | D7: ='Design Details'!C20 -> 2228 | N7: Total Room Energy Usage (kWh) | O7: =SUM(G6,J2:J6,O2:O5) -> 0 | R7: Upper floor | U7: 22 | X7: 0.1 | Y7: 6
R8: =IF($C$3="Ground floor",'Design Details'!C$45,IF($C$3="Mid-floor",'Design Details'!C$55,IF($C$3="Upper floor",'Design Details'!C$65,IF($C$3="Single Storey",'Design Details'!C$75,0)))) -> 0 | Y8: 7
B9: Room Dimensions | Y9: 8
B10: Length (m) | D10: Width (m) | F10: Height (m) | H10: Volume (m³) | I10: =C10*E10*G10 -> 0 | Y10: 9
B11: Length (m) | D11: Width (m) | F11: Height (m) | H11: Volume (m³) | I11: =C11*E11*G11 -> 0 | Y11: 10
B12: Length (m) | D12: Width (m) | F12: Height (m) | H12: Volume (m³) | I12: =C12*E12*G12 -> 0
B13: Awkward Room Dimensions
B14: Length (m) | D14: Width (m) | F14: Height (m) | H14: Volume (m³) | I14: =((G14*E14)/2)*C14 -> 0 | J14: Pitched
B15: Length (m) | D15: Width (m) | F15: Height (m) | H15: Volume (m³) | I15: =C15*E15*G15/2 -> 0 | J15: Single Pitch
B16: Length (m) | D16: Height (m) | F16: Depth (m) | H16: Volume (m³) | I16: =E16*G16*C16/2 -> 0 | J16: Dormer 1
B17: Length (m) | D17: Height (m) | F17: Depth (m) | H17: Volume (m³) | I17: =E17*G17*C17/2 -> 0 | J17: Dormer 2
B18: Length (m) | D18: Height (m) | F18: Depth (m) | H18: Volume (m³) | I18: =E18*G18*C18/2 -> 0 | J18: Dormer 3
B19: Floor | J19: Temp Difference | K19: Heat Loss (W) | L19: Usage (kWh) | M19: =IF($C$3="Ground Floor","Select type of Ground Floor",IF($C$3="Single Storey","Select type of Ground Floor","#N/A")) -> #N/A
B20: =B10 -> Length (m) | D20: =D10 -> Width (m) | F20: Area (m²) | G20: =C20*E20 -> 0 | H20: U Value (W/m²K) | I20: =IF(M22="",R8,'floor u values'!K4) -> 0 | J20: =IF(C$3="Ground Floor",IF(M20="Solid Floor (in contact with ground)",D$4-T$3,D$4-D$5),IF(C$3="Single Storey",IF(M20="Solid Floor (in contact with ground)",D$4-T$3,D$4-D$5),0)) -> 0 | K20: =G20*I20*J20 -> 0 | L20: =IF($C$3=$R$5,0,IF($C$3=$R$7,0,G20*I20*$D$7*24/1000)) -> 0 | M20: n/a
B21: Length (m) | D21: Width (m) | F21: Area (m²) | G21: =C21*E21 -> 0 | H21: U Value (W/m²K) | I21: =I20 -> 0 | J21: =IF(C$3="Ground Floor",IF(M20="Solid Floor (in contact with ground)",D$4-T$3,D$4-D$5),IF(C$3="Single Storey",IF(M20="Solid Floor (in contact with ground)",D$4-T$3,D$4-D$5),0)) -> 0 | K21: =G21*I21*J21 -> 0 | L21: =IF($C$3=$R$5,0,IF($C$3=$R$7,0,G21*I21*$D$7*24/1000)) -> 0 | M21: Exposed floor (external)
B22: Length (m) | D22: Width (m) | F22: Area (m²) | G22: 0 | H22: U Value (W/m²K) | I22: =I20 -> 0 | J22: =IF(C$3="Ground Floor",IF(M20="Solid Floor (in contact with ground)",D$4-T$3,D$4-D$5),IF(C$3="Single Storey",IF(M20="Solid Floor (in contact with ground)",D$4-T$3,D$4-D$5),0)) -> 0 | K22: =G22*I22*J22 -> 0 | L22: =IF($C$3=$R$5,0,IF($C$3=$R$7,0,G22*I22*$D$7*24/1000)) -> 0
B23: External Wall | M23: =IF(M22="Two opposite","Between edges",IF(M22="One edge","Depth of room",IF(M22="3 edges (short single)","Short length",IF(M22="3 edges (long single)","Short length","")))) ->  | O23: =IF(M22="3 edges (short single)","Long length",IF(M22="3 edges (long single)","Long length","")) -> 
B24: Length (m) | D24: Height (m) | F24: Area (m²) | G24: 0
B25: Length (m) | D25: Height (m) | F25: Area (m²) | G25: 0
B26: Length (m) | D26: Height (m) | F26: Area (m²) | G26: 0
E27: Total | F27: Area (m²) | G27: =SUM(G24:G26)-SUM(G38:G44,G51:G54) -> 0 | H27: U Value (W/m²K) | I27: =IF($C$3="Ground floor",'Design Details'!C$48,IF($C$3="Mid-floor",'Design Details'!C$58,IF($C$3="Upper floor",'Design Details'!C$68,IF($C$3="Single Storey",'Design Details'!C$78,0)))) -> 0 | J27: =$D$6 -> 2.5 | K27: =G27*I27*J27 -> 0 | L27: =G27*I27*$D$7*24/1000 -> 0
B28: Ceiling (Flat)
B29: Length (m) | D29: Width (m) | F29: Area (m²) | G29: 0
B30: Length (m) | D30: Width (m) | F30: Area (m²) | G30: 0
B31: Length (m) | D31: Width (m) | F31: Area (m²) | G31: 0 | M31: Select Temp/Type of Space Above
E32: Total | F32: Area (m²) | G32: =SUM(G29:G31)-SUM(G46:G49) -> 0 | H32: U Value (W/m²K) | I32: =IF($C$3="Ground floor",'Design Details'!C$49,IF($C$3="Mid-floor",'Design Details'!C$59,IF($C$3="Upper floor",INDIRECT(T52),IF($C$3="Single Storey",INDIRECT(T53),0)))) -> 0 | J32: =U51 -> 0 | K32: =G32*I32*J32 -> 0 | L32: =IF($C$3=$R$4,0,IF($C$3=$R$5,0,G32*I32*$D$7*24/1000)) -> 0 | M32: Select...
B33: Ceiling (Awkward)
B34: Length (m) | C34: =C14*2 -> 0 | D34: Pitch (m) | E34: =SQRT(POWER(E14,2)+POWER(G14,2)) -> 0 | F34: Area (m²) | G34: =C34*E34 -> 0 | H34: Pitched
B35: Length (m) | C35: =C15 -> 0 | D35: Pitch (m) | E35: =SQRT(POWER(E15,2)+POWER(G15,2)) -> 0 | F35: Area (m²) | G35: 0 | H35: Single Pitch
E36: Total | F36: Area (m²) | G36: =SUM(G34:G35)-SUM(G46:G49) -> 0 | H36: U Value (W/m²K) | I36: =IF($C$3="Ground floor",'Design Details'!C$50,IF($C$3="Mid-floor",'Design Details'!C$60,IF($C$3="Upper floor",'Design Details'!C$70,IF($C$3="Single Storey",'Design Details'!C$80,0)))) -> 0 | J36: =$D$6 -> 2.5 | K36: 0 | L36: =IF($C$3=$R$4,0,IF($C$3=$R$5,0,G36*I36*$D$7*24/1000)) -> 0
B37: Windows
B38: Width (m) | D38: Height (m) | F38: Area (m²) | G38: 0 | H38: U Value (W/m²K) | I38: =IF($C$3="Ground floor",'Design Details'!C$46,IF($C$3="Mid-floor",'Design Details'!C$56,IF($C$3="Upper floor",'Design Details'!C$66,IF($C$3="Single Storey",'Design Details'!C$76,0)))) -> 0 | J38: 2.5 | K38: 0 | L38: =G38*I38*$D$7*24/1000 -> 0
B39: Width (m) | D39: Height (m) | F39: Area (m²) | G39: 0 | H39: U Value (W/m²K) | I39: =IF($C$3="Ground floor",'Design Details'!C$46,IF($C$3="Mid-floor",'Design Details'!C$56,IF($C$3="Upper floor",'Design Details'!C$66,IF($C$3="Single Storey",'Design Details'!C$76,0)))) -> 0 | J39: 2.5 | K39: 0 | L39: 0
B40: Width (m) | D40: Height (m) | F40: Area (m²) | G40: 0 | H40: U Value (W/m²K) | I40: =IF($C$3="Ground floor",'Design Details'!C$46,IF($C$3="Mid-floor",'Design Details'!C$56,IF($C$3="Upper floor",'Design Details'!C$66,IF($C$3="Single Storey",'Design Details'!C$76,0)))) -> 0 | J40: 2.5 | K40: 0 | L40: 0
B41: Width (m) | D41: Height (m) | F41: Area (m²) | G41: 0 | H41: U Value (W/m²K) | I41: =IF($C$3="Ground floor",'Design Details'!C$46,IF($C$3="Mid-floor",'Design Details'!C$56,IF($C$3="Upper floor",'Design Details'!C$66,IF($C$3="Single Storey",'Design Details'!C$76,0)))) -> 0 | J41: 2.5 | K41: 0 | L41: 0
B42: Width (m) | D42: Height (m) | F42: Area (m²) | G42: 0 | H42: U Value (W/m²K) | I42: =IF($C$3="Ground floor",'Design Details'!C$46,IF($C$3="Mid-floor",'Design Details'!C$56,IF($C$3="Upper floor",'Design Details'!C$66,IF($C$3="Single Storey",'Design Details'!C$76,0)))) -> 0 | J42: 2.5 | K42: 0 | L42: 0
B43: Width (m) | D43: Height (m) | F43: Area (m²) | G43: 0 | H43: U Value (W/m²K) | I43: =IF($C$3="Ground floor",'Design Details'!C$46,IF($C$3="Mid-floor",'Design Details'!C$56,IF($C$3="Upper floor",'Design Details'!C$66,IF($C$3="Single Storey",'Design Details'!C$76,0)))) -> 0 | J43: 2.5 | K43: 0 | L43: 0
B44: Width (m) | D44: Height (m) | F44: Area (m²) | G44: 0 | H44: U Value (W/m²K) | I44: =IF($C$3="Ground floor",'Design Details'!C$46,IF($C$3="Mid-floor",'Design Details'!C$56,IF($C$3="Upper floor",'Design Details'!C$66,IF($C$3="Single Storey",'Design Details'!C$76,0)))) -> 0 | J44: 2.5 | K44: 0 | L44: 0
B45: Roof Glazing | Q45: Options for upper floor or single storey | R45: Options for Ground or Mid Floor | S45: Drop-Down List | T45: U-Value Selector | U45: Temp Diff Selector
B46: Width (m) | D46: Height (m) | F46: Area (m²) | G46: 0 | H46: U Value (W/m²K) | I46: =IF($C$3="Ground floor",'Design Details'!C$53,IF($C$3="Mid-floor",'Design Details'!C$63,IF($C$3="Upper floor",'Design Details'!C$73,IF($C$3="Single Storey",'Design Details'!C$83,0)))) -> 0 | J46: 2.5 | K46: 0 | L46: =G46*I46*$D$7*24/1000 -> 0
B47: Width (m) | D47: Height (m) | F47: Area (m²) | G47: 0 | H47: U Value (W/m²K) | I47: =IF($C$3="Ground floor",'Design Details'!C$53,IF($C$3="Mid-floor",'Design Details'!C$63,IF($C$3="Upper floor",'Design Details'!C$73,IF($C$3="Single Storey",'Design Details'!C$83,0)))) -> 0 | J47: 2.5 | K47: 0 | L47: =G47*I47*$D$7*24/1000 -> 0
B48: Width (m) | D48: Height (m) | F48: Area (m²) | G48: 0 | H48: U Value (W/m²K) | I48: =IF($C$3="Ground floor",'Design Details'!C$53,IF($C$3="Mid-floor",'Design Details'!C$63,IF($C$3="Upper floor",'Design Details'!C$73,IF($C$3="Single Storey",'Design Details'!C$83,0)))) -> 0 | J48: 2.5 | K48: 0 | L48: =G48*I48*$D$7*24/1000 -> 0
B49: Width (m) | D49: Height (m) | F49: Area (m²) | G49: 0 | H49: U Value (W/m²K) | I49: =IF($C$3="Ground floor",'Design Details'!C$53,IF($C$3="Mid-floor",'Design Details'!C$63,IF($C$3="Upper floor",'Design Details'!C$73,IF($C$3="Single Storey",'Design Details'!C$83,0)))) -> 0 | J49: 2.5 | K49: 0 | L49: =G49*I49*$D$7*24/1000 -> 0
B50: External Doors | S50: Select...
B51: Width (m) | D51: Height (m) | F51: Area (m²) | G51: 0 | H51: U Value (W/m²K) | I51: =IF($C$3="Ground floor",'Design Details'!C$47,IF($C$3="Mid-floor",'Design Details'!C$57,IF($C$3="Upper floor",'Design Details'!C$67,IF($C$3="Single Storey",'Design Details'!C$77,0)))) -> 0 | J51: 2.5 | K51: 0 | L51: =G51*I51*$D$7*24/1000 -> 0 | Q51: Outside | R51: Unheated | S51: =IF(OR($C$3="Ground Floor",$C$3="Mid-floor"),R51,Q51) -> Outside | T51: =IF(M32="Unheated",1,0) -> 0 | U51: =IF(M32="Select...",0,(IF(M32="Outside",D6,IF(M32="Unheated",D4-10,D4-M32)))) -> 0
B52: Width (m) | D52: Height (m) | F52: Area (m²) | G52: 0 | H52: U Value (W/m²K) | I52: =IF($C$3="Ground floor",'Design Details'!C$47,IF($C$3="Mid-floor",'Design Details'!C$57,IF($C$3="Upper floor",'Design Details'!C$67,IF($C$3="Single Storey",'Design Details'!C$77,0)))) -> 0 | J52: 2.5 | K52: 0 | L52: =G52*I52*$D$7*24/1000 -> 0 | Q52: Unheated | R52: 16 | S52: =IF(OR($C$3="Ground Floor",$C$3="Mid-floor"),R52,Q52) -> Unheated | T52: ="'Design Details'!C$"&69+T51 -> 'Design Details'!C$69
B53: Width (m) | D53: Height (m) | F53: Area (m²) | G53: 0 | H53: U Value (W/m²K) | I53: =IF($C$3="Ground floor",'Design Details'!C$47,IF($C$3="Mid-floor",'Design Details'!C$57,IF($C$3="Upper floor",'Design Details'!C$67,IF($C$3="Single Storey",'Design Details'!C$77,0)))) -> 0 | J53: 2.5 | K53: 0 | L53: =G53*I53*$D$7*24/1000 -> 0 | R53: 18 | S53: =IF(OR($C$3="Ground Floor",$C$3="Mid-floor"),R53,Q53) -> 0 | T53: ="'Design Details'!C$"&79+T51 -> 'Design Details'!C$79
B54: Width (m) | D54: Height (m) | F54: Area (m²) | G54: 0 | H54: U Value (W/m²K) | I54: =IF($C$3="Ground floor",'Design Details'!C$47,IF($C$3="Mid-floor",'Design Details'!C$57,IF($C$3="Upper floor",'Design Details'!C$67,IF($C$3="Single Storey",'Design Details'!C$77,0)))) -> 0 | J54: 2.5 | K54: 0 | L54: =G54*I54*$D$7*24/1000 -> 0 | R54: 21 | S54: =IF(OR($C$3="Ground Floor",$C$3="Mid-floor"),R54,Q54) -> 0
B55: Internal Walls | M55: Adjoining Room Temp (°C) | R55: 22 | S55: =IF(OR($C$3="Ground Floor",$C$3="Mid-floor"),R55,Q37) -> 0
B56: Length (m) | D56: Height (m) | F56: Area (m²) | G56: 0 | H56: U Value (W/m²K) | I56: =IF($C$3="Ground floor",'Design Details'!C$51,IF($C$3="Mid-floor",'Design Details'!C$61,IF($C$3="Upper floor",'Design Details'!C$71,IF($C$3="Single Storey",'Design Details'!C$81,0)))) -> 0 | J56: =IF(M56="",0,IF(M56="unheated",D$4-10,D$4-M56)) -> 0 | K56: 0
B57: Length (m) | D57: Height (m) | F57: Area (m²) | G57: 0 | H57: U Value (W/m²K) | I57: =IF($C$3="Ground floor",'Design Details'!C$51,IF($C$3="Mid-floor",'Design Details'!C$61,IF($C$3="Upper floor",'Design Details'!C$71,IF($C$3="Single Storey",'Design Details'!C$81,0)))) -> 0 | J57: =IF(M57="",0,IF(M57="unheated",D$4-10,D$4-M57)) -> 0 | K57: 0
B58: Length (m) | D58: Height (m) | F58: Area (m²) | G58: 0 | H58: U Value (W/m²K) | I58: =IF($C$3="Ground floor",'Design Details'!C$51,IF($C$3="Mid-floor",'Design Details'!C$61,IF($C$3="Upper floor",'Design Details'!C$71,IF($C$3="Single Storey",'Design Details'!C$81,0)))) -> 0 | J58: =IF(M58="",0,IF(M58="unheated",D$4-10,D$4-M58)) -> 0 | K58: 0
B59: Length (m) | D59: Height (m) | F59: Area (m²) | G59: 0 | H59: U Value (W/m²K) | I59: =IF($C$3="Ground floor",'Design Details'!C$51,IF($C$3="Mid-floor",'Design Details'!C$61,IF($C$3="Upper floor",'Design Details'!C$71,IF($C$3="Single Storey",'Design Details'!C$81,0)))) -> 0 | J59: =IF(M59="",0,IF(M59="unheated",D$4-10,D$4-M59)) -> 0 | K59: 0
B60: Party Wall
B61: Length (m) | D61: Height (m) | F61: Area (m²) | G61: 0 | H61: U Value (W/m²K) | I61: =IF($C$3="Ground floor",'Design Details'!C$52,IF($C$3="Mid-floor",'Design Details'!C$62,IF($C$3="Upper floor",'Design Details'!C$72,IF($C$3="Single Storey",'Design Details'!C$82,0)))) -> 0 | J61: =D4-10 -> -10 | K61: 0 | L61: =G61*I61*$D$7*24/1000 -> 0

Sheet 4
B1: Room Information | E1: Ventilation Heat Loss | H1: Fabric | I1: Heat Loss (W) | J1: Usage (kWh) | K1: Additional heat loss | M1: Addition | N1: Watts | O1: kWh
B2: Room | E2: Air Changes per hour | G2: ='Design Details'!G90 -> 0 | H2: Floor | I2: =SUM(K20:K22) -> 0 | J2: =SUM(L20:L22) -> 0 | K2: Thermal Bridging (New Build >2006) | M2: 0 | N2: =SUM(I$2:I$6)*M2 -> 0 | O2: =SUM(J$2:J$6)*M2 -> 0 | Q2: 3 edges (long single) | R2: Level | Y2: 1
B3: Level | E3: Air Change Factor (W/m³K) | G3: 0.33 | H3: Ext Wall | I3: =K27 -> 0 | J3: =L27 -> 0 | K3: Exposed location | M3: 0 | N3: =SUM(I$2:I$6)*M3 -> 0 | O3: =SUM(J$2:J$6)*M3 -> 0 | Q3: 3 edges (short single) | R3: Please Select Floor | S3: =IF($C$3="Ground floor","Solid Floor (in contact with ground)",IF($C$3="Single Storey","Solid Floor (in contact with ground)","n/a")) -> n/a | T3: ='Design Details'!C21 -> 10 | U3: unheated | V3: 0 | W3: 0 | X3: 0 | Y3: 2
B4: Design Room Temp (°C) | D4: ='Design Details'!E90 -> 0 | E4: Total Volume (m³) | G4: =SUM(I10:I12,I14:I18) -> 0 | H4: Roof | I4: =SUM(K32,K36) -> 0 | J4: =SUM(L32,L36) -> 0 | K4: High ceiling | M4: 0 | N4: =SUM(I$2:I$6)*M4 -> 0 | O4: =SUM(J$2:J$6)*M4 -> 0 | Q4: One edge | R4: Ground floor | S4: =IF($C$3="Ground floor","Suspended Floor",IF($C$3="Single Storey","Suspended Floor","n/a")) -> n/a | U4: 16 | V4: 0.1 | W4: 0.2 | X4: 0.025 | Y4: 3
B5: Outside Design Temp (°C) | D5: ='Design Details'!C19 -> -2.5 | E5: Heat loss (W) | G5: =G4*G3*D6*G2 -> 0 | H5: Glazing | I5: =SUM(K38:K44,K46:K49,K51:K54) -> 0 | J5: =SUM(L38:L44,L46:L49,L51:L54) -> 0 | K5: Intermittent heating | M5: 0 | N5: =SUM(I$2:I$6)*M5 -> 0 | O5: =SUM(J$2:J$6)*M5 -> 0 | Q5: Two adjacent | R5: Mid-floor | U5: 18 | X5: 0.05 | Y5: 4
B6: Temp Difference (°C) | D6: =D4-D5 -> 2.5 | E6: Estimated Energy usage (kWh) | G6: =G4*G3*D7*24/1000 -> 0 | H6: Int./Party Wall | I6: =SUM(K56:K59,K61) -> 0 | J6: =SUM(L61) -> 0 | N6: Total Room Heat Loss (W) | O6: =SUM(G5,I2:I6,N2:N5) -> 0 | Q6: Two opposite | R6: Single storey | U6: 21 | X6: 0.075 | Y6: 5
B7: Degree Days | D7: ='Design Details'!C20 -> 2228 | N7: Total Room Energy Usage (kWh) | O7: =SUM(G6,J2:J6,O2:O5) -> 0 | R7: Upper floor | U7: 22 | X7: 0.1 | Y7: 6
R8: =IF($C$3="Ground floor",'Design Details'!C$45,IF($C$3="Mid-floor",'Design Details'!C$55,IF($C$3="Upper floor",'Design Details'!C$65,IF($C$3="Single Storey",'Design Details'!C$75,0)))) -> 0 | Y8: 7
B9: Room Dimensions | Y9: 8
B10: Length (m) | D10: Width (m) | F10: Height (m) | H10: Volume (m³) | I10: =C10*E10*G10 -> 0 | Y10: 9
B11: Length (m) | D11: Width (m) | F11: Height (m) | H11: Volume (m³) | I11: =C11*E11*G11 -> 0 | Y11: 10
B12: Length (m) | D12: Width (m) | F12: Height (m) | H12: Volume (m³) | I12: =C12*E12*G12 -> 0
B13: Awkward Room Dimensions
B14: Length (m) | D14: Width (m) | F14: Height (m) | H14: Volume (m³) | I14: =((G14*E14)/2)*C14 -> 0 | J14: Pitched
B15: Length (m) | D15: Width (m) | F15: Height (m) | H15: Volume (m³) | I15: =C15*E15*G15/2 -> 0 | J15: Single Pitch
B16: Length (m) | D16: Height (m) | F16: Depth (m) | H16: Volume (m³) | I16: =E16*G16*C16/2 -> 0 | J16: Dormer 1
B17: Length (m) | D17: Height (m) | F17: Depth (m) | H17: Volume (m³) | I17: =E17*G17*C17/2 -> 0 | J17: Dormer 2
B18: Length (m) | D18: Height (m) | F18: Depth (m) | H18: Volume (m³) | I18: =E18*G18*C18/2 -> 0 | J18: Dormer 3
B19: Floor | J19: Temp Difference | K19: Heat Loss (W) | L19: Usage (kWh) | M19: =IF($C$3="Ground Floor","Select type of Ground Floor",IF($C$3="Single Storey","Select type of Ground Floor","#N/A")) -> #N/A
B20: =B10 -> Length (m) | D20: =D10 -> Width (m) | F20: Area (m²) | G20: =C20*E20 -> 0 | H20: U Value (W/m²K) | I20: =IF(M22="",R8,'floor u values'!K5) -> 0 | J20: =IF(C$3="Ground Floor",IF(M20="Solid Floor (in contact with ground)",D$4-T$3,D$4-D$5),IF(C$3="Single Storey",IF(M20="Solid Floor (in contact with ground)",D$4-T$3,D$4-D$5),0)) -> 0 | K20: =G20*I20*J20 -> 0 | L20: =IF($C$3=$R$5,0,IF($C$3=$R$7,0,G20*I20*$D$7*24/1000)) -> 0 | M20: n/a
B21: Length (m) | D21: Width (m) | F21: Area (m²) | G21: =C21*E21 -> 0 | H21: U Value (W/m²K) | I21: =I20 -> 0 | J21: =IF(C$3="Ground Floor",IF(M20="Solid Floor (in contact with ground)",D$4-T$3,D$4-D$5),IF(C$3="Single Storey",IF(M20="Solid Floor (in contact with ground)",D$4-T$3,D$4-D$5),0)) -> 0 | K21: =G21*I21*J21 -> 0 | L21: =IF($C$3=$R$5,0,IF($C$3=$R$7,0,G21*I21*$D$7*24/1000)) -> 0 | M21: Exposed floor (external)
B22: Length (m) | D22: Width (m) | F22: Area (m²) | G22: 0 | H22: U Value (W/m²K) | I22: =I20 -> 0 | J22: =IF(C$3="Ground Floor",IF(M20="Solid Floor (in contact with ground)",D$4-T$3,D$4-D$5),IF(C$3="Single Storey",IF(M20="Solid Floor (in contact with ground)",D$4-T$3,D$4-D$5),0)) -> 0 | K22: =G22*I22*J22 -> 0 | L22: =IF($C$3=$R$5,0,IF($C$3=$R$7,0,G22*I22*$D$7*24/1000)) -> 0
B23: External Wall | M23: =IF(M22="Two opposite","Between edges",IF(M22="One edge","Depth of room",IF(M22="3 edges (short single)","Short length",IF(M22="3 edges (long single)","Short length","")))) ->  | O23: =IF(M22="3 edges (short single)","Long length",IF(M22="3 edges (long single)","Long length","")) -> 
B24: Length (m) | D24: Height (m) | F24: Area (m²) | G24: 0
B25: Length (m) | D25: Height (m) | F25: Area (m²) | G25: 0
B26: Length (m) | D26: Height (m) | F26: Area (m²) | G26: 0
E27: Total | F27: Area (m²) | G27: =SUM(G24:G26)-SUM(G38:G44,G51:G54) -> 0 | H27: U Value (W/m²K) | I27: =IF($C$3="Ground floor",'Design Details'!C$48,IF($C$3="Mid-floor",'Design Details'!C$58,IF($C$3="Upper floor",'Design Details'!C$68,IF($C$3="Single Storey",'Design Details'!C$78,0)))) -> 0 | J27: =$D$6 -> 2.5 | K27: =G27*I27*J27 -> 0 | L27: =G27*I27*$D$7*24/1000 -> 0
B28: Ceiling (Flat)
B29: Length (m) | D29: Width (m) | F29: Area (m²) | G29: 0
B30: Length (m) | D30: Width (m) | F30: Area (m²) | G30: 0
B31: Length (m) | D31: Width (m) | F31: Area (m²) | G31: 0 | M31: Select Temp/Type of Space Above
E32: Total | F32: Area (m²) | G32: =SUM(G29:G31)-SUM(G46:G49) -> 0 | H32: U Value (W/m²K) | I32: =IF($C$3="Ground floor",'Design Details'!C$49,IF($C$3="Mid-floor",'Design Details'!C$59,IF($C$3="Upper floor",INDIRECT(T52),IF($C$3="Single Storey",INDIRECT(T53),0)))) -> 0 | J32: =U51 -> 0 | K32: =G32*I32*J32 -> 0 | L32: =IF($C$3=$R$4,0,IF($C$3=$R$5,0,G32*I32*$D$7*24/1000)) -> 0 | M32: Select...
B33: Ceiling (Awkward)
B34: Length (m) | C34: =C14*2 -> 0 | D34: Pitch (m) | E34: =SQRT(POWER(E14,2)+POWER(G14,2)) -> 0 | F34: Area (m²) | G34: =C34*E34 -> 0 | H34: Pitched
B35: Length (m) | C35: =C15 -> 0 | D35: Pitch (m) | E35: =SQRT(POWER(E15,2)+POWER(G15,2)) -> 0 | F35: Area (m²) | G35: 0 | H35: Single Pitch
E36: Total | F36: Area (m²) | G36: =SUM(G34:G35)-SUM(G46:G49) -> 0 | H36: U Value (W/m²K) | I36: =IF($C$3="Ground floor",'Design Details'!C$50,IF($C$3="Mid-floor",'Design Details'!C$60,IF($C$3="Upper floor",'Design Details'!C$70,IF($C$3="Single Storey",'Design Details'!C$80,0)))) -> 0 | J36: =$D$6 -> 2.5 | K36: 0 | L36: =IF($C$3=$R$4,0,IF($C$3=$R$5,0,G36*I36*$D$7*24/1000)) -> 0
B37: Windows
B38: Width (m) | D38: Height (m) | F38: Area (m²) | G38: 0 | H38: U Value (W/m²K) | I38: =IF($C$3="Ground floor",'Design Details'!C$46,IF($C$3="Mid-floor",'Design Details'!C$56,IF($C$3="Upper floor",'Design Details'!C$66,IF($C$3="Single Storey",'Design Details'!C$76,0)))) -> 0 | J38: 2.5 | K38: 0 | L38: =G38*I38*$D$7*24/1000 -> 0
B39: Width (m) | D39: Height (m) | F39: Area (m²) | G39: 0 | H39: U Value (W/m²K) | I39: =IF($C$3="Ground floor",'Design Details'!C$46,IF($C$3="Mid-floor",'Design Details'!C$56,IF($C$3="Upper floor",'Design Details'!C$66,IF($C$3="Single Storey",'Design Details'!C$76,0)))) -> 0 | J39: 2.5 | K39: 0 | L39: 0
B40: Width (m) | D40: Height (m) | F40: Area (m²) | G40: 0 | H40: U Value (W/m²K) | I40: =IF($C$3="Ground floor",'Design Details'!C$46,IF($C$3="Mid-floor",'Design Details'!C$56,IF($C$3="Upper floor",'Design Details'!C$66,IF($C$3="Single Storey",'Design Details'!C$76,0)))) -> 0 | J40: 2.5 | K40: 0 | L40: 0
B41: Width (m) | D41: Height (m) | F41: Area (m²) | G41: 0 | H41: U Value (W/m²K) | I41: =IF($C$3="Ground floor",'Design Details'!C$46,IF($C$3="Mid-floor",'Design Details'!C$56,IF($C$3="Upper floor",'Design Details'!C$66,IF($C$3="Single Storey",'Design Details'!C$76,0)))) -> 0 | J41: 2.5 | K41: 0 | L41: 0
B42: Width (m) | D42: Height (m) | F42: Area (m²) | G42: 0 | H42: U Value (W/m²K) | I42: =IF($C$3="Ground floor",'Design Details'!C$46,IF($C$3="Mid-floor",'Design Details'!C$56,IF($C$3="Upper floor",'Design Details'!C$66,IF($C$3="Single Storey",'Design Details'!C$76,0)))) -> 0 | J42: 2.5 | K42: 0 | L42: 0
B43: Width (m) | D43: Height (m) | F43: Area (m²) | G43: 0 | H43: U Value (W/m²K) | I43: =IF($C$3="Ground floor",'Design Details'!C$46,IF($C$3="Mid-floor",'Design Details'!C$56,IF($C$3="Upper floor",'Design Details'!C$66,IF($C$3="Single Storey",'Design Details'!C$76,0)))) -> 0 | J43: 2.5 | K43: 0 | L43: 0
B44: Width (m) | D44: Height (m) | F44: Area (m²) | G44: 0 | H44: U Value (W/m²K) | I44: =IF($C$3="Ground floor",'Design Details'!C$46,IF($C$3="Mid-floor",'Design Details'!C$56,IF($C$3="Upper floor",'Design Details'!C$66,IF($C$3="Single Storey",'Design Details'!C$76,0)))) -> 0 | J44: 2.5 | K44: 0 | L44: 0
B45: Roof Glazing | Q45: Options for upper floor or single storey | R45: Options for Ground or Mid Floor | S45: Drop-Down List | T45: U-Value Selector | U45: Temp Diff Selector
B46: Width (m) | D46: Height (m) | F46: Area (m²) | G46: 0 | H46: U Value (W/m²K) | I46: =IF($C$3="Ground floor",'Design Details'!C$53,IF($C$3="Mid-floor",'Design Details'!C$63,IF($C$3="Upper floor",'Design Details'!C$73,IF($C$3="Single Storey",'Design Details'!C$83,0)))) -> 0 | J46: 2.5 | K46: 0 | L46: =G46*I46*$D$7*24/1000 -> 0
B47: Width (m) | D47: Height (m) | F47: Area (m²) | G47: 0 | H47: U Value (W/m²K) | I47: =IF($C$3="Ground floor",'Design Details'!C$53,IF($C$3="Mid-floor",'Design Details'!C$63,IF($C$3="Upper floor",'Design Details'!C$73,IF($C$3="Single Storey",'Design Details'!C$83,0)))) -> 0 | J47: 2.5 | K47: 0 | L47: =G47*I47*$D$7*24/1000 -> 0
B48: Width (m) | D48: Height (m) | F48: Area (m²) | G48: 0 | H48: U Value (W/m²K) | I48: =IF($C$3="Ground floor",'Design Details'!C$53,IF($C$3="Mid-floor",'Design Details'!C$63,IF($C$3="Upper floor",'Design Details'!C$73,IF($C$3="Single Storey",'Design Details'!C$83,0)))) -> 0 | J48: 2.5 | K48: 0 | L48: =G48*I48*$D$7*24/1000 -> 0
B49: Width (m) | D49: Height (m) | F49: Area (m²) | G49: 0 | H49: U Value (W/m²K) | I49: =IF($C$3="Ground floor",'Design Details'!C$53,IF($C$3="Mid-floor",'Design Details'!C$63,IF($C$3="Upper floor",'Design Details'!C$73,IF($C$3="Single Storey",'Design Details'!C$83,0)))) -> 0 | J49: 2.5 | K49: 0 | L49: =G49*I49*$D$7*24/1000 -> 0
B50: External Doors | S50: Select...
B51: Width (m) | D51: Height (m) | F51: Area (m²) | G51: 0 | H51: U Value (W/m²K) | I51: =IF($C$3="Ground floor",'Design Details'!C$47,IF($C$3="Mid-floor",'Design Details'!C$57,IF($C$3="Upper floor",'Design Details'!C$67,IF($C$3="Single Storey",'Design Details'!C$77,0)))) -> 0 | J51: 2.5 | K51: 0 | L51: =G51*I51*$D$7*24/1000 -> 0 | Q51: Outside | R51: Unheated | S51: =IF(OR($C$3="Ground Floor",$C$3="Mid-floor"),R51,Q51) -> Outside | T51: =IF(M32="Unheated",1,0) -> 0 | U51: =IF(M32="Select...",0,(IF(M32="Outside",D6,IF(M32="Unheated",D4-10,D4-M32)))) -> 0
B52: Width (m) | D52: Height (m) | F52: Area (m²) | G52: 0 | H52: U Value (W/m²K) | I52: =IF($C$3="Ground floor",'Design Details'!C$47,IF($C$3="Mid-floor",'Design Details'!C$57,IF($C$3="Upper floor",'Design Details'!C$67,IF($C$3="Single Storey",'Design Details'!C$77,0)))) -> 0 | J52: 2.5 | K52: 0 | L52: =G52*I52*$D$7*24/1000 -> 0 | Q52: Unheated | R52: 16 | S52: =IF(OR($C$3="Ground Floor",$C$3="Mid-floor"),R52,Q52) -> Unheated | T52: ="'Design Details'!C$"&69+T51 -> 'Design Details'!C$69
B53: Width (m) | D53: Height (m) | F53: Area (m²) | G53: 0 | H53: U Value (W/m²K) | I53: =IF($C$3="Ground floor",'Design Details'!C$47,IF($C$3="Mid-floor",'Design Details'!C$57,IF($C$3="Upper floor",'Design Details'!C$67,IF($C$3="Single Storey",'Design Details'!C$77,0)))) -> 0 | J53: 2.5 | K53: 0 | L53: =G53*I53*$D$7*24/1000 -> 0 | R53: 18 | S53: =IF(OR($C$3="Ground Floor",$C$3="Mid-floor"),R53,Q53) -> 0 | T53: ="'Design Details'!C$"&79+T51 -> 'Design Details'!C$79
B54: Width (m) | D54: Height (m) | F54: Area (m²) | G54: 0 | H54: U Value (W/m²K) | I54: =IF($C$3="Ground floor",'Design Details'!C$47,IF($C$3="Mid-floor",'Design Details'!C$57,IF($C$3="Upper floor",'Design Details'!C$67,IF($C$3="Single Storey",'Design Details'!C$77,0)))) -> 0 | J54: 2.5 | K54: 0 | L54: =G54*I54*$D$7*24/1000 -> 0 | R54: 21 | S54: =IF(OR($C$3="Ground Floor",$C$3="Mid-floor"),R54,Q54) -> 0
B55: Internal Walls | M55: Adjoining Room Temp (°C) | R55: 22 | S55: =IF(OR($C$3="Ground Floor",$C$3="Mid-floor"),R55,Q37) -> 0
B56: Length (m) | D56: Height (m) | F56: Area (m²) | G56: 0 | H56: U Value (W/m²K) | I56: =IF($C$3="Ground floor",'Design Details'!C$51,IF($C$3="Mid-floor",'Design Details'!C$61,IF($C$3="Upper floor",'Design Details'!C$71,IF($C$3="Single Storey",'Design Details'!C$81,0)))) -> 0 | J56: =IF(M56="",0,IF(M56="unheated",D$4-10,D$4-M56)) -> 0 | K56: 0
B57: Length (m) | D57: Height (m) | F57: Area (m²) | G57: 0 | H57: U Value (W/m²K) | I57: =IF($C$3="Ground floor",'Design Details'!C$51,IF($C$3="Mid-floor",'Design Details'!C$61,IF($C$3="Upper floor",'Design Details'!C$71,IF($C$3="Single Storey",'Design Details'!C$81,0)))) -> 0 | J57: =IF(M57="",0,IF(M57="unheated",D$4-10,D$4-M57)) -> 0 | K57: 0
B58: Length (m) | D58: Height (m) | F58: Area (m²) | G58: 0 | H58: U Value (W/m²K) | I58: =IF($C$3="Ground floor",'Design Details'!C$51,IF($C$3="Mid-floor",'Design Details'!C$61,IF($C$3="Upper floor",'Design Details'!C$71,IF($C$3="Single Storey",'Design Details'!C$81,0)))) -> 0 | J58: =IF(M58="",0,IF(M58="unheated",D$4-10,D$4-M58)) -> 0 | K58: 0
B59: Length (m) | D59: Height (m) | F59: Area (m²) | G59: 0 | H59: U Value (W/m²K) | I59: =IF($C$3="Ground floor",'Design Details'!C$51,IF($C$3="Mid-floor",'Design Details'!C$61,IF($C$3="Upper floor",'Design Details'!C$71,IF($C$3="Single Storey",'Design Details'!C$81,0)))) -> 0 | J59: =IF(M59="",0,IF(M59="unheated",D$4-10,D$4-M59)) -> 0 | K59: 0
B60: Party Wall
B61: Length (m) | D61: Height (m) | F61: Area (m²) | G61: 0 | H61: U Value (W/m²K) | I61: =IF($C$3="Ground floor",'Design Details'!C$52,IF($C$3="Mid-floor",'Design Details'!C$62,IF($C$3="Upper floor",'Design Details'!C$72,IF($C$3="Single Storey",'Design Details'!C$82,0)))) -> 0 | J61: =D4-10 -> -10 | K61: 0 | L61: =G61*I61*$D$7*24/1000 -> 0

Sheet 5
B1: Room Information | E1: Ventilation Heat Loss | H1: Fabric | I1: Heat Loss (W) | J1: Usage (kWh) | K1: Additional heat loss | M1: Addition | N1: Watts | O1: kWh
B2: Room | E2: Air Changes per hour | G2: ='Design Details'!G91 -> 0 | H2: Floor | I2: =SUM(K20:K22) -> 0 | J2: =SUM(L20:L22) -> 0 | K2: Thermal Bridging (New Build >2006) | M2: 0 | N2: =SUM(I$2:I$6)*M2 -> 0 | O2: =SUM(J$2:J$6)*M2 -> 0 | Q2: 3 edges (long single) | R2: Level | Y2: 1
B3: Level | E3: Air Change Factor (W/m³K) | G3: 0.33 | H3: Ext Wall | I3: =K27 -> 0 | J3: =L27 -> 0 | K3: Exposed location | M3: 0 | N3: =SUM(I$2:I$6)*M3 -> 0 | O3: =SUM(J$2:J$6)*M3 -> 0 | Q3: 3 edges (short single) | R3: Please Select Floor | S3: =IF($C$3="Ground floor","Solid Floor (in contact with ground)",IF($C$3="Single Storey","Solid Floor (in contact with ground)","n/a")) -> n/a | T3: ='Design Details'!C21 -> 10 | U3: unheated | V3: 0 | W3: 0 | X3: 0 | Y3: 2
B4: Design Room Temp (°C) | D4: ='Design Details'!E91 -> 0 | E4: Total Volume (m³) | G4: =SUM(I10:I12,I14:I18) -> 0 | H4: Roof | I4: =SUM(K32,K36) -> 0 | J4: =SUM(L32,L36) -> 0 | K4: High ceiling | M4: 0 | N4: =SUM(I$2:I$6)*M4 -> 0 | O4: =SUM(J$2:J$6)*M4 -> 0 | Q4: One edge | R4: Ground floor | S4: =IF($C$3="Ground floor","Suspended Floor",IF($C$3="Single Storey","Suspended Floor","n/a")) -> n/a | U4: 16 | V4: 0.1 | W4: 0.2 | X4: 0.025 | Y4: 3
B5: Outside Design Temp (°C) | D5: ='Design Details'!C19 -> -2.5 | E5: Heat loss (W) | G5: =G4*G3*D6*G2 -> 0 | H5: Glazing | I5: =SUM(K38:K44,K46:K49,K51:K54) -> 0 | J5: =SUM(L38:L44,L46:L49,L51:L54) -> 0 | K5: Intermittent heating | M5: 0 | N5: =SUM(I$2:I$6)*M5 -> 0 | O5: =SUM(J$2:J$6)*M5 -> 0 | Q5: Two adjacent | R5: Mid-floor | U5: 18 | X5: 0.05 | Y5: 4
B6: Temp Difference (°C) | D6: =D4-D5 -> 2.5 | E6: Estimated Energy usage (kWh) | G6: =G4*G3*D7*24/1000 -> 0 | H6: Int./Party Wall | I6: =SUM(K56:K59,K61) -> 0 | J6: =SUM(L61) -> 0 | N6: Total Room Heat Loss (W) | O6: =SUM(G5,I2:I6,N2:N5) -> 0 | Q6: Two opposite | R6: Single storey | U6: 21 | X6: 0.075 | Y6: 5
B7: Degree Days | D7: ='Design Details'!C20 -> 2228 | N7: Total Room Energy Usage (kWh) | O7: =SUM(G6,J2:J6,O2:O5) -> 0 | R7: Upper floor | U7: 22 | X7: 0.1 | Y7: 6
R8: =IF($C$3="Ground floor",'Design Details'!C$45,IF($C$3="Mid-floor",'Design Details'!C$55,IF($C$3="Upper floor",'Design Details'!C$65,IF($C$3="Single Storey",'Design Details'!C$75,0)))) -> 0 | Y8: 7
B9: Room Dimensions | Y9: 8
B10: Length (m) | D10: Width (m) | F10: Height (m) | H10: Volume (m³) | I10: =C10*E10*G10 -> 0 | Y10: 9
B11: Length (m) | D11: Width (m) | F11: Height (m) | H11: Volume (m³) | I11: =C11*E11*G11 -> 0 | Y11: 10
B12: Length (m) | D12: Width (m) | F12: Height (m) | H12: Volume (m³) | I12: =C12*E12*G12 -> 0
B13: Awkward Room Dimensions
B14: Length (m) | D14: Width (m) | F14: Height (m) | H14: Volume (m³) | I14: =((G14*E14)/2)*C14 -> 0 | J14: Pitched
B15: Length (m) | D15: Width (m) | F15: Height (m) | H15: Volume (m³) | I15: =C15*E15*G15/2 -> 0 | J15: Single Pitch
B16: Length (m) | D16: Height (m) | F16: Depth (m) | H16: Volume (m³) | I16: =E16*G16*C16/2 -> 0 | J16: Dormer 1
B17: Length (m) | D17: Height (m) | F17: Depth (m) | H17: Volume (m³) | I17: =E17*G17*C17/2 -> 0 | J17: Dormer 2
B18: Length (m) | D18: Height (m) | F18: Depth (m) | H18: Volume (m³) | I18: =E18*G18*C18/2 -> 0 | J18: Dormer 3
B19: Floor | J19: Temp Difference | K19: Heat Loss (W) | L19: Usage (kWh) | M19: =IF($C$3="Ground Floor","Select type of Ground Floor",IF($C$3="Single Storey","Select type of Ground Floor","#N/A")) -> #N/A
B20: =B10 -> Length (m) | D20: =D10 -> Width (m) | F20: Area (m²) | G20: =C20*E20 -> 0 | H20: U Value (W/m²K) | I20: =IF(M22="",R8,'floor u values'!K6) -> 0 | J20: =IF(C$3="Ground Floor",IF(M20="Solid Floor (in contact with ground)",D$4-T$3,D$4-D$5),IF(C$3="Single Storey",IF(M20="Solid Floor (in contact with ground)",D$4-T$3,D$4-D$5),0)) -> 0 | K20: =G20*I20*J20 -> 0 | L20: =IF($C$3=$R$5,0,IF($C$3=$R$7,0,G20*I20*$D$7*24/1000)) -> 0 | M20: n/a
B21: Length (m) | D21: Width (m) | F21: Area (m²) | G21: =C21*E21 -> 0 | H21: U Value (W/m²K) | I21: =I20 -> 0 | J21: =IF(C$3="Ground Floor",IF(M20="Solid Floor (in contact with ground)",D$4-T$3,D$4-D$5),IF(C$3="Single Storey",IF(M20="Solid Floor (in contact with ground)",D$4-T$3,D$4-D$5),0)) -> 0 | K21: =G21*I21*J21 -> 0 | L21: =IF($C$3=$R$5,0,IF($C$3=$R$7,0,G21*I21*$D$7*24/1000)) -> 0 | M21: Exposed floor (external)
B22: Length (m) | D22: Width (m) | F22: Area (m²) | G22: 0 | H22: U Value (W/m²K) | I22: =I20 -> 0 | J22: =IF(C$3="Ground Floor",IF(M20="Solid Floor (in contact with ground)",D$4-T$3,D$4-D$5),IF(C$3="Single Storey",IF(M20="Solid Floor (in contact with ground)",D$4-T$3,D$4-D$5),0)) -> 0 | K22: =G22*I22*J22 -> 0 | L22: =IF($C$3=$R$5,0,IF($C$3=$R$7,0,G22*I22*$D$7*24/1000)) -> 0
B23: External Wall | M23: =IF(M22="Two opposite","Between edges",IF(M22="One edge","Depth of room",IF(M22="3 edges (short single)","Short length",IF(M22="3 edges (long single)","Short length","")))) ->  | O23: =IF(M22="3 edges (short single)","Long length",IF(M22="3 edges (long single)","Long length","")) -> 
B24: Length (m) | D24: Height (m) | F24: Area (m²) | G24: 0
B25: Length (m) | D25: Height (m) | F25: Area (m²) | G25: 0
B26: Length (m) | D26: Height (m) | F26: Area (m²) | G26: 0
E27: Total | F27: Area (m²) | G27: =SUM(G24:G26)-SUM(G38:G44,G51:G54) -> 0 | H27: U Value (W/m²K) | I27: =IF($C$3="Ground floor",'Design Details'!C$48,IF($C$3="Mid-floor",'Design Details'!C$58,IF($C$3="Upper floor",'Design Details'!C$68,IF($C$3="Single Storey",'Design Details'!C$78,0)))) -> 0 | J27: =$D$6 -> 2.5 | K27: =G27*I27*J27 -> 0 | L27: =G27*I27*$D$7*24/1000 -> 0
B28: Ceiling (Flat)
B29: Length (m) | D29: Width (m) | F29: Area (m²) | G29: 0
B30: Length (m) | D30: Width (m) | F30: Area (m²) | G30: 0
B31: Length (m) | D31: Width (m) | F31: Area (m²) | G31: 0 | M31: Select Temp/Type of Space Above
E32: Total | F32: Area (m²) | G32: =SUM(G29:G31)-SUM(G46:G49) -> 0 | H32: U Value (W/m²K) | I32: =IF($C$3="Ground floor",'Design Details'!C$49,IF($C$3="Mid-floor",'Design Details'!C$59,IF($C$3="Upper floor",INDIRECT(T52),IF($C$3="Single Storey",INDIRECT(T53),0)))) -> 0 | J32: =U51 -> 0 | K32: =G32*I32*J32 -> 0 | L32: =IF($C$3=$R$4,0,IF($C$3=$R$5,0,G32*I32*$D$7*24/1000)) -> 0 | M32: Select...
B33: Ceiling (Awkward)
B34: Length (m) | C34: =C14*2 -> 0 | D34: Pitch (m) | E34: =SQRT(POWER(E14,2)+POWER(G14,2)) -> 0 | F34: Area (m²) | G34: =C34*E34 -> 0 | H34: Pitched
B35: Length (m) | C35: =C15 -> 0 | D35: Pitch (m) | E35: =SQRT(POWER(E15,2)+POWER(G15,2)) -> 0 | F35: Area (m²) | G35: 0 | H35: Single Pitch
E36: Total | F36: Area (m²) | G36: =SUM(G34:G35)-SUM(G46:G49) -> 0 | H36: U Value (W/m²K) | I36: =IF($C$3="Ground floor",'Design Details'!C$50,IF($C$3="Mid-floor",'Design Details'!C$60,IF($C$3="Upper floor",'Design Details'!C$70,IF($C$3="Single Storey",'Design Details'!C$80,0)))) -> 0 | J36: =$D$6 -> 2.5 | K36: 0 | L36: =IF($C$3=$R$4,0,IF($C$3=$R$5,0,G36*I36*$D$7*24/1000)) -> 0
B37: Windows
B38: Width (m) | D38: Height (m) | F38: Area (m²) | G38: 0 | H38: U Value (W/m²K) | I38: =IF($C$3="Ground floor",'Design Details'!C$46,IF($C$3="Mid-floor",'Design Details'!C$56,IF($C$3="Upper floor",'Design Details'!C$66,IF($C$3="Single Storey",'Design Details'!C$76,0)))) -> 0 | J38: 2.5 | K38: 0 | L38: =G38*I38*$D$7*24/1000 -> 0
B39: Width (m) | D39: Height (m) | F39: Area (m²) | G39: 0 | H39: U Value (W/m²K) | I39: =IF($C$3="Ground floor",'Design Details'!C$46,IF($C$3="Mid-floor",'Design Details'!C$56,IF($C$3="Upper floor",'Design Details'!C$66,IF($C$3="Single Storey",'Design Details'!C$76,0)))) -> 0 | J39: 2.5 | K39: 0 | L39: 0
B40: Width (m) | D40: Height (m) | F40: Area (m²) | G40: 0 | H40: U Value (W/m²K) | I40: =IF($C$3="Ground floor",'Design Details'!C$46,IF($C$3="Mid-floor",'Design Details'!C$56,IF($C$3="Upper floor",'Design Details'!C$66,IF($C$3="Single Storey",'Design Details'!C$76,0)))) -> 0 | J40: 2.5 | K40: 0 | L40: 0
B41: Width (m) | D41: Height (m) | F41: Area (m²) | G41: 0 | H41: U Value (W/m²K) | I41: =IF($C$3="Ground floor",'Design Details'!C$46,IF($C$3="Mid-floor",'Design Details'!C$56,IF($C$3="Upper floor",'Design Details'!C$66,IF($C$3="Single Storey",'Design Details'!C$76,0)))) -> 0 | J41: 2.5 | K41: 0 | L41: 0
B42: Width (m) | D42: Height (m) | F42: Area (m²) | G42: 0 | H42: U Value (W/m²K) | I42: =IF($C$3="Ground floor",'Design Details'!C$46,IF($C$3="Mid-floor",'Design Details'!C$56,IF($C$3="Upper floor",'Design Details'!C$66,IF($C$3="Single Storey",'Design Details'!C$76,0)))) -> 0 | J42: 2.5 | K42: 0 | L42: 0
B43: Width (m) | D43: Height (m) | F43: Area (m²) | G43: 0 | H43: U Value (W/m²K) | I43: =IF($C$3="Ground floor",'Design Details'!C$46,IF($C$3="Mid-floor",'Design Details'!C$56,IF($C$3="Upper floor",'Design Details'!C$66,IF($C$3="Single Storey",'Design Details'!C$76,0)))) -> 0 | J43: 2.5 | K43: 0 | L43: 0
B44: Width (m) | D44: Height (m) | F44: Area (m²) | G44: 0 | H44: U Value (W/m²K) | I44: =IF($C$3="Ground floor",'Design Details'!C$46,IF($C$3="Mid-floor",'Design Details'!C$56,IF($C$3="Upper floor",'Design Details'!C$66,IF($C$3="Single Storey",'Design Details'!C$76,0)))) -> 0 | J44: 2.5 | K44: 0 | L44: 0
B45: Roof Glazing | Q45: Options for upper floor or single storey | R45: Options for Ground or Mid Floor | S45: Drop-Down List | T45: U-Value Selector | U45: Temp Diff Selector
B46: Width (m) | D46: Height (m) | F46: Area (m²) | G46: 0 | H46: U Value (W/m²K) | I46: =IF($C$3="Ground floor",'Design Details'!C$53,IF($C$3="Mid-floor",'Design Details'!C$63,IF($C$3="Upper floor",'Design Details'!C$73,IF($C$3="Single Storey",'Design Details'!C$83,0)))) -> 0 | J46: 2.5 | K46: 0 | L46: =G46*I46*$D$7*24/1000 -> 0
B47: Width (m) | D47: Height (m) | F47: Area (m²) | G47: 0 | H47: U Value (W/m²K) | I47: =IF($C$3="Ground floor",'Design Details'!C$53,IF($C$3="Mid-floor",'Design Details'!C$63,IF($C$3="Upper floor",'Design Details'!C$73,IF($C$3="Single Storey",'Design Details'!C$83,0)))) -> 0 | J47: 2.5 | K47: 0 | L47: =G47*I47*$D$7*24/1000 -> 0
B48: Width (m) | D48: Height (m) | F48: Area (m²) | G48: 0 | H48: U Value (W/m²K) | I48: =IF($C$3="Ground floor",'Design Details'!C$53,IF($C$3="Mid-floor",'Design Details'!C$63,IF($C$3="Upper floor",'Design Details'!C$73,IF($C$3="Single Storey",'Design Details'!C$83,0)))) -> 0 | J48: 2.5 | K48: 0 | L48: =G48*I48*$D$7*24/1000 -> 0
B49: Width (m) | D49: Height (m) | F49: Area (m²) | G49: 0 | H49: U Value (W/m²K) | I49: =IF($C$3="Ground floor",'Design Details'!C$53,IF($C$3="Mid-floor",'Design Details'!C$63,IF($C$3="Upper floor",'Design Details'!C$73,IF($C$3="Single Storey",'Design Details'!C$83,0)))) -> 0 | J49: 2.5 | K49: 0 | L49: =G49*I49*$D$7*24/1000 -> 0
B50: External Doors | S50: Select...
B51: Width (m) | D51: Height (m) | F51: Area (m²) | G51: 0 | H51: U Value (W/m²K) | I51: =IF($C$3="Ground floor",'Design Details'!C$47,IF($C$3="Mid-floor",'Design Details'!C$57,IF($C$3="Upper floor",'Design Details'!C$67,IF($C$3="Single Storey",'Design Details'!C$77,0)))) -> 0 | J51: 2.5 | K51: 0 | L51: =G51*I51*$D$7*24/1000 -> 0 | Q51: Outside | R51: Unheated | S51: =IF(OR($C$3="Ground Floor",$C$3="Mid-floor"),R51,Q51) -> Outside | T51: =IF(M32="Unheated",1,0) -> 0 | U51: =IF(M32="Select...",0,(IF(M32="Outside",D6,IF(M32="Unheated",D4-10,D4-M32)))) -> 0
B52: Width (m) | D52: Height (m) | F52: Area (m²) | G52: 0 | H52: U Value (W/m²K) | I52: =IF($C$3="Ground floor",'Design Details'!C$47,IF($C$3="Mid-floor",'Design Details'!C$57,IF($C$3="Upper floor",'Design Details'!C$67,IF($C$3="Single Storey",'Design Details'!C$77,0)))) -> 0 | J52: 2.5 | K52: 0 | L52: =G52*I52*$D$7*24/1000 -> 0 | Q52: Unheated | R52: 16 | S52: =IF(OR($C$3="Ground Floor",$C$3="Mid-floor"),R52,Q52) -> Unheated | T52: ="'Design Details'!C$"&69+T51 -> 'Design Details'!C$69
B53: Width (m) | D53: Height (m) | F53: Area (m²) | G53: 0 | H53: U Value (W/m²K) | I53: =IF($C$3="Ground floor",'Design Details'!C$47,IF($C$3="Mid-floor",'Design Details'!C$57,IF($C$3="Upper floor",'Design Details'!C$67,IF($C$3="Single Storey",'Design Details'!C$77,0)))) -> 0 | J53: 2.5 | K53: 0 | L53: =G53*I53*$D$7*24/1000 -> 0 | R53: 18 | S53: =IF(OR($C$3="Ground Floor",$C$3="Mid-floor"),R53,Q53) -> 0 | T53: ="'Design Details'!C$"&79+T51 -> 'Design Details'!C$79
B54: Width (m) | D54: Height (m) | F54: Area (m²) | G54: 0 | H54: U Value (W/m²K) | I54: =IF($C$3="Ground floor",'Design Details'!C$47,IF($C$3="Mid-floor",'Design Details'!C$57,IF($C$3="Upper floor",'Design Details'!C$67,IF($C$3="Single Storey",'Design Details'!C$77,0)))) -> 0 | J54: 2.5 | K54: 0 | L54: =G54*I54*$D$7*24/1000 -> 0 | R54: 21 | S54: =IF(OR($C$3="Ground Floor",$C$3="Mid-floor"),R54,Q54) -> 0
B55: Internal Walls | M55: Adjoining Room Temp (°C) | R55: 22 | S55: =IF(OR($C$3="Ground Floor",$C$3="Mid-floor"),R55,Q37) -> 0
B56: Length (m) | D56: Height (m) | F56: Area (m²) | G56: 0 | H56: U Value (W/m²K) | I56: =IF($C$3="Ground floor",'Design Details'!C$51,IF($C$3="Mid-floor",'Design Details'!C$61,IF($C$3="Upper floor",'Design Details'!C$71,IF($C$3="Single Storey",'Design Details'!C$81,0)))) -> 0 | J56: =IF(M56="",0,IF(M56="unheated",D$4-10,D$4-M56)) -> 0 | K56: 0
B57: Length (m) | D57: Height (m) | F57: Area (m²) | G57: 0 | H57: U Value (W/m²K) | I57: =IF($C$3="Ground floor",'Design Details'!C$51,IF($C$3="Mid-floor",'Design Details'!C$61,IF($C$3="Upper floor",'Design Details'!C$71,IF($C$3="Single Storey",'Design Details'!C$81,0)))) -> 0 | J57: =IF(M57="",0,IF(M57="unheated",D$4-10,D$4-M57)) -> 0 | K57: 0
B58: Length (m) | D58: Height (m) | F58: Area (m²) | G58: 0 | H58: U Value (W/m²K) | I58: =IF($C$3="Ground floor",'Design Details'!C$51,IF($C$3="Mid-floor",'Design Details'!C$61,IF($C$3="Upper floor",'Design Details'!C$71,IF($C$3="Single Storey",'Design Details'!C$81,0)))) -> 0 | J58: =IF(M58="",0,IF(M58="unheated",D$4-10,D$4-M58)) -> 0 | K58: 0
B59: Length (m) | D59: Height (m) | F59: Area (m²) | G59: 0 | H59: U Value (W/m²K) | I59: =IF($C$3="Ground floor",'Design Details'!C$51,IF($C$3="Mid-floor",'Design Details'!C$61,IF($C$3="Upper floor",'Design Details'!C$71,IF($C$3="Single Storey",'Design Details'!C$81,0)))) -> 0 | J59: =IF(M59="",0,IF(M59="unheated",D$4-10,D$4-M59)) -> 0 | K59: 0
B60: Party Wall
B61: Length (m) | D61: Height (m) | F61: Area (m²) | G61: 0 | H61: U Value (W/m²K) | I61: =IF($C$3="Ground floor",'Design Details'!C$52,IF($C$3="Mid-floor",'Design Details'!C$62,IF($C$3="Upper floor",'Design Details'!C$72,IF($C$3="Single Storey",'Design Details'!C$82,0)))) -> 0 | J61: =D4-10 -> -10 | K61: 0 | L61: =G61*I61*$D$7*24/1000 -> 0

Sheet 6
B1: Room Information | E1: Ventilation Heat Loss | H1: Fabric | I1: Heat Loss (W) | J1: Usage (kWh) | K1: Additional heat loss | M1: Addition | N1: Watts | O1: kWh
B2: Room | E2: Air Changes per hour | G2: ='Design Details'!G92 -> 0 | H2: Floor | I2: =SUM(K20:K22) -> 0 | J2: =SUM(L20:L22) -> 0 | K2: Thermal Bridging (New Build >2006) | M2: 0 | N2: =SUM(I$2:I$6)*M2 -> 0 | O2: =SUM(J$2:J$6)*M2 -> 0 | Q2: 3 edges (long single) | R2: Level | Y2: 1
B3: Level | E3: Air Change Factor (W/m³K) | G3: 0.33 | H3: Ext Wall | I3: =K27 -> 0 | J3: =L27 -> 0 | K3: Exposed location | M3: 0 | N3: =SUM(I$2:I$6)*M3 -> 0 | O3: =SUM(J$2:J$6)*M3 -> 0 | Q3: 3 edges (short single) | R3: Please Select Floor | S3: =IF($C$3="Ground floor","Solid Floor (in contact with ground)",IF($C$3="Single Storey","Solid Floor (in contact with ground)","n/a")) -> n/a | T3: ='Design Details'!C21 -> 10 | U3: unheated | V3: 0 | W3: 0 | X3: 0 | Y3: 2
B4: Design Room Temp (°C) | D4: ='Design Details'!E92 -> 0 | E4: Total Volume (m³) | G4: =SUM(I10:I12,I14:I18) -> 0 | H4: Roof | I4: =SUM(K32,K36) -> 0 | J4: =SUM(L32,L36) -> 0 | K4: High ceiling | M4: 0 | N4: =SUM(I$2:I$6)*M4 -> 0 | O4: =SUM(J$2:J$6)*M4 -> 0 | Q4: One edge | R4: Ground floor | S4: =IF($C$3="Ground floor","Suspended Floor",IF($C$3="Single Storey","Suspended Floor","n/a")) -> n/a | U4: 16 | V4: 0.1 | W4: 0.2 | X4: 0.025 | Y4: 3
B5: Outside Design Temp (°C) | D5: ='Design Details'!C19 -> -2.5 | E5: Heat loss (W) | G5: =G4*G3*D6*G2 -> 0 | H5: Glazing | I5: =SUM(K38:K44,K46:K49,K51:K54) -> 0 | J5: =SUM(L38:L44,L46:L49,L51:L54) -> 0 | K5: Intermittent heating | M5: 0 | N5: =SUM(I$2:I$6)*M5 -> 0 | O5: =SUM(J$2:J$6)*M5 -> 0 | Q5: Two adjacent | R5: Mid-floor | U5: 18 | X5: 0.05 | Y5: 4
B6: Temp Difference (°C) | D6: =D4-D5 -> 2.5 | E6: Estimated Energy usage (kWh) | G6: =G4*G3*D7*24/1000 -> 0 | H6: Int./Party Wall | I6: =SUM(K56:K59,K61) -> 0 | J6: =SUM(L61) -> 0 | N6: Total Room Heat Loss (W) | O6: =SUM(G5,I2:I6,N2:N5) -> 0 | Q6: Two opposite | R6: Single storey | U6: 21 | X6: 0.075 | Y6: 5
B7: Degree Days | D7: ='Design Details'!C20 -> 2228 | N7: Total Room Energy Usage (kWh) | O7: =SUM(G6,J2:J6,O2:O5) -> 0 | R7: Upper floor | U7: 22 | X7: 0.1 | Y7: 6
R8: =IF($C$3="Ground floor",'Design Details'!C$45,IF($C$3="Mid-floor",'Design Details'!C$55,IF($C$3="Upper floor",'Design Details'!C$65,IF($C$3="Single Storey",'Design Details'!C$75,0)))) -> 0 | Y8: 7
B9: Room Dimensions | Y9: 8
B10: Length (m) | D10: Width (m) | F10: Height (m) | H10: Volume (m³) | I10: =C10*E10*G10 -> 0 | Y10: 9
B11: Length (m) | D11: Width (m) | F11: Height (m) | H11: Volume (m³) | I11: =C11*E11*G11 -> 0 | Y11: 10
B12: Length (m) | D12: Width (m) | F12: Height (m) | H12: Volume (m³) | I12: =C12*E12*G12 -> 0
B13: Awkward Room Dimensions
B14: Length (m) | D14: Width (m) | F14: Height (m) | H14: Volume (m³) | I14: =((G14*E14)/2)*C14 -> 0 | J14: Pitched
B15: Length (m) | D15: Width (m) | F15: Height (m) | H15: Volume (m³) | I15: =C15*E15*G15/2 -> 0 | J15: Single Pitch
B16: Length (m) | D16: Height (m) | F16: Depth (m) | H16: Volume (m³) | I16: =E16*G16*C16/2 -> 0 | J16: Dormer 1
B17: Length (m) | D17: Height (m) | F17: Depth (m) | H17: Volume (m³) | I17: =E17*G17*C17/2 -> 0 | J17: Dormer 2
B18: Length (m) | D18: Height (m) | F18: Depth (m) | H18: Volume (m³) | I18: =E18*G18*C18/2 -> 0 | J18: Dormer 3
B19: Floor | J19: Temp Difference | K19: Heat Loss (W) | L19: Usage (kWh) | M19: =IF($C$3="Ground Floor","Select type of Ground Floor",IF($C$3="Single Storey","Select type of Ground Floor","#N/A")) -> #N/A
B20: =B10 -> Length (m) | D20: =D10 -> Width (m) | F20: Area (m²) | G20: =C20*E20 -> 0 | H20: U Value (W/m²K) | I20: =IF(M22="",R8,'floor u values'!K7) -> 0 | J20: =IF(C$3="Ground Floor",IF(M20="Solid Floor (in contact with ground)",D$4-T$3,D$4-D$5),IF(C$3="Single Storey",IF(M20="Solid Floor (in contact with ground)",D$4-T$3,D$4-D$5),0)) -> 0 | K20: =G20*I20*J20 -> 0 | L20: =IF($C$3=$R$5,0,IF($C$3=$R$7,0,G20*I20*$D$7*24/1000)) -> 0 | M20: n/a
B21: Length (m) | D21: Width (m) | F21: Area (m²) | G21: =C21*E21 -> 0 | H21: U Value (W/m²K) | I21: =I20 -> 0 | J21: =IF(C$3="Ground Floor",IF(M20="Solid Floor (in contact with ground)",D$4-T$3,D$4-D$5),IF(C$3="Single Storey",IF(M20="Solid Floor (in contact with ground)",D$4-T$3,D$4-D$5),0)) -> 0 | K21: =G21*I21*J21 -> 0 | L21: =IF($C$3=$R$5,0,IF($C$3=$R$7,0,G21*I21*$D$7*24/1000)) -> 0 | M21: Exposed floor (external)
B22: Length (m) | D22: Width (m) | F22: Area (m²) | G22: 0 | H22: U Value (W/m²K) | I22: =I20 -> 0 | J22: =IF(C$3="Ground Floor",IF(M20="Solid Floor (in contact with ground)",D$4-T$3,D$4-D$5),IF(C$3="Single Storey",IF(M20="Solid Floor (in contact with ground)",D$4-T$3,D$4-D$5),0)) -> 0 | K22: =G22*I22*J22 -> 0 | L22: =IF($C$3=$R$5,0,IF($C$3=$R$7,0,G22*I22*$D$7*24/1000)) -> 0
B23: External Wall | M23: =IF(M22="Two opposite","Between edges",IF(M22="One edge","Depth of room",IF(M22="3 edges (short single)","Short length",IF(M22="3 edges (long single)","Short length","")))) ->  | O23: =IF(M22="3 edges (short single)","Long length",IF(M22="3 edges (long single)","Long length","")) -> 
B24: Length (m) | D24: Height (m) | F24: Area (m²) | G24: 0
B25: Length (m) | D25: Height (m) | F25: Area (m²) | G25: 0
B26: Length (m) | D26: Height (m) | F26: Area (m²) | G26: 0
E27: Total | F27: Area (m²) | G27: =SUM(G24:G26)-SUM(G38:G44,G51:G54) -> 0 | H27: U Value (W/m²K) | I27: =IF($C$3="Ground floor",'Design Details'!C$48,IF($C$3="Mid-floor",'Design Details'!C$58,IF($C$3="Upper floor",'Design Details'!C$68,IF($C$3="Single Storey",'Design Details'!C$78,0)))) -> 0 | J27: =$D$6 -> 2.5 | K27: =G27*I27*J27 -> 0 | L27: =G27*I27*$D$7*24/1000 -> 0
B28: Ceiling (Flat)
B29: Length (m) | D29: Width (m) | F29: Area (m²) | G29: 0
B30: Length (m) | D30: Width (m) | F30: Area (m²) | G30: 0
B31: Length (m) | D31: Width (m) | F31: Area (m²) | G31: 0 | M31: Select Temp/Type of Space Above
E32: Total | F32: Area (m²) | G32: =SUM(G29:G31)-SUM(G46:G49) -> 0 | H32: U Value (W/m²K) | I32: =IF($C$3="Ground floor",'Design Details'!C$49,IF($C$3="Mid-floor",'Design Details'!C$59,IF($C$3="Upper floor",INDIRECT(T52),IF($C$3="Single Storey",INDIRECT(T53),0)))) -> 0 | J32: =U51 -> 0 | K32: =G32*I32*J32 -> 0 | L32: =IF($C$3=$R$4,0,IF($C$3=$R$5,0,G32*I32*$D$7*24/1000)) -> 0 | M32: Select...
B33: Ceiling (Awkward)
B34: Length (m) | C34: =C14*2 -> 0 | D34: Pitch (m) | E34: =SQRT(POWER(E14,2)+POWER(G14,2)) -> 0 | F34: Area (m²) | G34: =C34*E34 -> 0 | H34: Pitched
B35: Length (m) | C35: =C15 -> 0 | D35: Pitch (m) | E35: =SQRT(POWER(E15,2)+POWER(G15,2)) -> 0 | F35: Area (m²) | G35: 0 | H35: Single Pitch
E36: Total | F36: Area (m²) | G36: =SUM(G34:G35)-SUM(G46:G49) -> 0 | H36: U Value (W/m²K) | I36: =IF($C$3="Ground floor",'Design Details'!C$50,IF($C$3="Mid-floor",'Design Details'!C$60,IF($C$3="Upper floor",'Design Details'!C$70,IF($C$3="Single Storey",'Design Details'!C$80,0)))) -> 0 | J36: =$D$6 -> 2.5 | K36: 0 | L36: =IF($C$3=$R$4,0,IF($C$3=$R$5,0,G36*I36*$D$7*24/1000)) -> 0
B37: Windows
B38: Width (m) | D38: Height (m) | F38: Area (m²) | G38: 0 | H38: U Value (W/m²K) | I38: =IF($C$3="Ground floor",'Design Details'!C$46,IF($C$3="Mid-floor",'Design Details'!C$56,IF($C$3="Upper floor",'Design Details'!C$66,IF($C$3="Single Storey",'Design Details'!C$76,0)))) -> 0 | J38: 2.5 | K38: 0 | L38: =G38*I38*$D$7*24/1000 -> 0
B39: Width (m) | D39: Height (m) | F39: Area (m²) | G39: 0 | H39: U Value (W/m²K) | I39: =IF($C$3="Ground floor",'Design Details'!C$46,IF($C$3="Mid-floor",'Design Details'!C$56,IF($C$3="Upper floor",'Design Details'!C$66,IF($C$3="Single Storey",'Design Details'!C$76,0)))) -> 0 | J39: 2.5 | K39: 0 | L39: 0
B40: Width (m) | D40: Height (m) | F40: Area (m²) | G40: 0 | H40: U Value (W/m²K) | I40: =IF($C$3="Ground floor",'Design Details'!C$46,IF($C$3="Mid-floor",'Design Details'!C$56,IF($C$3="Upper floor",'Design Details'!C$66,IF($C$3="Single Storey",'Design Details'!C$76,0)))) -> 0 | J40: 2.5 | K40: 0 | L40: 0
B41: Width (m) | D41: Height (m) | F41: Area (m²) | G41: 0 | H41: U Value (W/m²K) | I41: =IF($C$3="Ground floor",'Design Details'!C$46,IF($C$3="Mid-floor",'Design Details'!C$56,IF($C$3="Upper floor",'Design Details'!C$66,IF($C$3="Single Storey",'Design Details'!C$76,0)))) -> 0 | J41: 2.5 | K41: 0 | L41: 0
B42: Width (m) | D42: Height (m) | F42: Area (m²) | G42: 0 | H42: U Value (W/m²K) | I42: =IF($C$3="Ground floor",'Design Details'!C$46,IF($C$3="Mid-floor",'Design Details'!C$56,IF($C$3="Upper floor",'Design Details'!C$66,IF($C$3="Single Storey",'Design Details'!C$76,0)))) -> 0 | J42: 2.5 | K42: 0 | L42: 0
B43: Width (m) | D43: Height (m) | F43: Area (m²) | G43: 0 | H43: U Value (W/m²K) | I43: =IF($C$3="Ground floor",'Design Details'!C$46,IF($C$3="Mid-floor",'Design Details'!C$56,IF($C$3="Upper floor",'Design Details'!C$66,IF($C$3="Single Storey",'Design Details'!C$76,0)))) -> 0 | J43: 2.5 | K43: 0 | L43: 0
B44: Width (m) | D44: Height (m) | F44: Area (m²) | G44: 0 | H44: U Value (W/m²K) | I44: =IF($C$3="Ground floor",'Design Details'!C$46,IF($C$3="Mid-floor",'Design Details'!C$56,IF($C$3="Upper floor",'Design Details'!C$66,IF($C$3="Single Storey",'Design Details'!C$76,0)))) -> 0 | J44: 2.5 | K44: 0 | L44: 0
B45: Roof Glazing | Q45: Options for upper floor or single storey | R45: Options for Ground or Mid Floor | S45: Drop-Down List | T45: U-Value Selector | U45: Temp Diff Selector
B46: Width (m) | D46: Height (m) | F46: Area (m²) | G46: 0 | H46: U Value (W/m²K) | I46: =IF($C$3="Ground floor",'Design Details'!C$53,IF($C$3="Mid-floor",'Design Details'!C$63,IF($C$3="Upper floor",'Design Details'!C$73,IF($C$3="Single Storey",'Design Details'!C$83,0)))) -> 0 | J46: 2.5 | K46: 0 | L46: =G46*I46*$D$7*24/1000 -> 0
B47: Width (m) | D47: Height (m) | F47: Area (m²) | G47: 0 | H47: U Value (W/m²K) | I47: =IF($C$3="Ground floor",'Design Details'!C$53,IF($C$3="Mid-floor",'Design Details'!C$63,IF($C$3="Upper floor",'Design Details'!C$73,IF($C$3="Single Storey",'Design Details'!C$83,0)))) -> 0 | J47: 2.5 | K47: 0 | L47: =G47*I47*$D$7*24/1000 -> 0
B48: Width (m) | D48: Height (m) | F48: Area (m²) | G48: 0 | H48: U Value (W/m²K) | I48: =IF($C$3="Ground floor",'Design Details'!C$53,IF($C$3="Mid-floor",'Design Details'!C$63,IF($C$3="Upper floor",'Design Details'!C$73,IF($C$3="Single Storey",'Design Details'!C$83,0)))) -> 0 | J48: 2.5 | K48: 0 | L48: =G48*I48*$D$7*24/1000 -> 0
B49: Width (m) | D49: Height (m) | F49: Area (m²) | G49: 0 | H49: U Value (W/m²K) | I49: =IF($C$3="Ground floor",'Design Details'!C$53,IF($C$3="Mid-floor",'Design Details'!C$63,IF($C$3="Upper floor",'Design Details'!C$73,IF($C$3="Single Storey",'Design Details'!C$83,0)))) -> 0 | J49: 2.5 | K49: 0 | L49: =G49*I49*$D$7*24/1000 -> 0
B50: External Doors | S50: Select...
B51: Width (m) | D51: Height (m) | F51: Area (m²) | G51: 0 | H51: U Value (W/m²K) | I51: =IF($C$3="Ground floor",'Design Details'!C$47,IF($C$3="Mid-floor",'Design Details'!C$57,IF($C$3="Upper floor",'Design Details'!C$67,IF($C$3="Single Storey",'Design Details'!C$77,0)))) -> 0 | J51: 2.5 | K51: 0 | L51: =G51*I51*$D$7*24/1000 -> 0 | Q51: Outside | R51: Unheated | S51: =IF(OR($C$3="Ground Floor",$C$3="Mid-floor"),R51,Q51) -> Outside | T51: =IF(M32="Unheated",1,0) -> 0 | U51: =IF(M32="Select...",0,(IF(M32="Outside",D6,IF(M32="Unheated",D4-10,D4-M32)))) -> 0
B52: Width (m) | D52: Height (m) | F52: Area (m²) | G52: 0 | H52: U Value (W/m²K) | I52: =IF($C$3="Ground floor",'Design Details'!C$47,IF($C$3="Mid-floor",'Design Details'!C$57,IF($C$3="Upper floor",'Design Details'!C$67,IF($C$3="Single Storey",'Design Details'!C$77,0)))) -> 0 | J52: 2.5 | K52: 0 | L52: =G52*I52*$D$7*24/1000 -> 0 | Q52: Unheated | R52: 16 | S52: =IF(OR($C$3="Ground Floor",$C$3="Mid-floor"),R52,Q52) -> Unheated | T52: ="'Design Details'!C$"&69+T51 -> 'Design Details'!C$69
B53: Width (m) | D53: Height (m) | F53: Area (m²) | G53: 0 | H53: U Value (W/m²K) | I53: =IF($C$3="Ground floor",'Design Details'!C$47,IF($C$3="Mid-floor",'Design Details'!C$57,IF($C$3="Upper floor",'Design Details'!C$67,IF($C$3="Single Storey",'Design Details'!C$77,0)))) -> 0 | J53: 2.5 | K53: 0 | L53: =G53*I53*$D$7*24/1000 -> 0 | R53: 18 | S53: =IF(OR($C$3="Ground Floor",$C$3="Mid-floor"),R53,Q53) -> 0 | T53: ="'Design Details'!C$"&79+T51 -> 'Design Details'!C$79
B54: Width (m) | D54: Height (m) | F54: Area (m²) | G54: 0 | H54: U Value (W/m²K) | I54: =IF($C$3="Ground floor",'Design Details'!C$47,IF($C$3="Mid-floor",'Design Details'!C$57,IF($C$3="Upper floor",'Design Details'!C$67,IF($C$3="Single Storey",'Design Details'!C$77,0)))) -> 0 | J54: 2.5 | K54: 0 | L54: =G54*I54*$D$7*24/1000 -> 0 | R54: 21 | S54: =IF(OR($C$3="Ground Floor",$C$3="Mid-floor"),R54,Q54) -> 0
B55: Internal Walls | M55: Adjoining Room Temp (°C) | R55: 22 | S55: =IF(OR($C$3="Ground Floor",$C$3="Mid-floor"),R55,Q37) -> 0
B56: Length (m) | D56: Height (m) | F56: Area (m²) | G56: 0 | H56: U Value (W/m²K) | I56: =IF($C$3="Ground floor",'Design Details'!C$51,IF($C$3="Mid-floor",'Design Details'!C$61,IF($C$3="Upper floor",'Design Details'!C$71,IF($C$3="Single Storey",'Design Details'!C$81,0)))) -> 0 | J56: =IF(M56="",0,IF(M56="unheated",D$4-10,D$4-M56)) -> 0 | K56: 0
B57: Length (m) | D57: Height (m) | F57: Area (m²) | G57: 0 | H57: U Value (W/m²K) | I57: =IF($C$3="Ground floor",'Design Details'!C$51,IF($C$3="Mid-floor",'Design Details'!C$61,IF($C$3="Upper floor",'Design Details'!C$71,IF($C$3="Single Storey",'Design Details'!C$81,0)))) -> 0 | J57: =IF(M57="",0,IF(M57="unheated",D$4-10,D$4-M57)) -> 0 | K57: 0
B58: Length (m) | D58: Height (m) | F58: Area (m²) | G58: 0 | H58: U Value (W/m²K) | I58: =IF($C$3="Ground floor",'Design Details'!C$51,IF($C$3="Mid-floor",'Design Details'!C$61,IF($C$3="Upper floor",'Design Details'!C$71,IF($C$3="Single Storey",'Design Details'!C$81,0)))) -> 0 | J58: =IF(M58="",0,IF(M58="unheated",D$4-10,D$4-M58)) -> 0 | K58: 0
B59: Length (m) | D59: Height (m) | F59: Area (m²) | G59: 0 | H59: U Value (W/m²K) | I59: =IF($C$3="Ground floor",'Design Details'!C$51,IF($C$3="Mid-floor",'Design Details'!C$61,IF($C$3="Upper floor",'Design Details'!C$71,IF($C$3="Single Storey",'Design Details'!C$81,0)))) -> 0 | J59: =IF(M59="",0,IF(M59="unheated",D$4-10,D$4-M59)) -> 0 | K59: 0
B60: Party Wall
B61: Length (m) | D61: Height (m) | F61: Area (m²) | G61: 0 | H61: U Value (W/m²K) | I61: =IF($C$3="Ground floor",'Design Details'!C$52,IF($C$3="Mid-floor",'Design Details'!C$62,IF($C$3="Upper floor",'Design Details'!C$72,IF($C$3="Single Storey",'Design Details'!C$82,0)))) -> 0 | J61: =D4-10 -> -10 | K61: 0 | L61: =G61*I61*$D$7*24/1000 -> 0

Sheet 7
B1: Room Information | E1: Ventilation Heat Loss | H1: Fabric | I1: Heat Loss (W) | J1: Usage (kWh) | K1: Additional heat loss | M1: Addition | N1: Watts | O1: kWh
B2: Room | E2: Air Changes per hour | G2: ='Design Details'!G93 -> 0 | H2: Floor | I2: =SUM(K20:K22) -> 0 | J2: =SUM(L20:L22) -> 0 | K2: Thermal Bridging (New Build >2006) | M2: 0 | N2: =SUM(I$2:I$6)*M2 -> 0 | O2: =SUM(J$2:J$6)*M2 -> 0 | Q2: 3 edges (long single) | R2: Level | Y2: 1
B3: Level | E3: Air Change Factor (W/m³K) | G3: 0.33 | H3: Ext Wall | I3: =K27 -> 0 | J3: =L27 -> 0 | K3: Exposed location | M3: 0 | N3: =SUM(I$2:I$6)*M3 -> 0 | O3: =SUM(J$2:J$6)*M3 -> 0 | Q3: 3 edges (short single) | R3: Please Select Floor | S3: =IF($C$3="Ground floor","Solid Floor (in contact with ground)",IF($C$3="Single Storey","Solid Floor (in contact with ground)","n/a")) -> n/a | T3: ='Design Details'!C21 -> 10 | U3: unheated | V3: 0 | W3: 0 | X3: 0 | Y3: 2
B4: Design Room Temp (°C) | D4: ='Design Details'!E93 -> 0 | E4: Total Volume (m³) | G4: =SUM(I10:I12,I14:I18) -> 0 | H4: Roof | I4: =SUM(K32,K36) -> 0 | J4: =SUM(L32,L36) -> 0 | K4: High ceiling | M4: 0 | N4: =SUM(I$2:I$6)*M4 -> 0 | O4: =SUM(J$2:J$6)*M4 -> 0 | Q4: One edge | R4: Ground floor | S4: =IF($C$3="Ground floor","Suspended Floor",IF($C$3="Single Storey","Suspended Floor","n/a")) -> n/a | U4: 16 | V4: 0.1 | W4: 0.2 | X4: 0.025 | Y4: 3
B5: Outside Design Temp (°C) | D5: ='Design Details'!C19 -> -2.5 | E5: Heat loss (W) | G5: =G4*G3*D6*G2 -> 0 | H5: Glazing | I5: =SUM(K38:K44,K46:K49,K51:K54) -> 0 | J5: =SUM(L38:L44,L46:L49,L51:L54) -> 0 | K5: Intermittent heating | M5: 0 | N5: =SUM(I$2:I$6)*M5 -> 0 | O5: =SUM(J$2:J$6)*M5 -> 0 | Q5: Two adjacent | R5: Mid-floor | U5: 18 | X5: 0.05 | Y5: 4
B6: Temp Difference (°C) | D6: =D4-D5 -> 2.5 | E6: Estimated Energy usage (kWh) | G6: =G4*G3*D7*24/1000 -> 0 | H6: Int./Party Wall | I6: =SUM(K56:K59,K61) -> 0 | J6: =SUM(L61) -> 0 | N6: Total Room Heat Loss (W) | O6: =SUM(G5,I2:I6,N2:N5) -> 0 | Q6: Two opposite | R6: Single storey | U6: 21 | X6: 0.075 | Y6: 5
B7: Degree Days | D7: ='Design Details'!C20 -> 2228 | N7: Total Room Energy Usage (kWh) | O7: =SUM(G6,J2:J6,O2:O5) -> 0 | R7: Upper floor | U7: 22 | X7: 0.1 | Y7: 6
R8: =IF($C$3="Ground floor",'Design Details'!C$45,IF($C$3="Mid-floor",'Design Details'!C$55,IF($C$3="Upper floor",'Design Details'!C$65,IF($C$3="Single Storey",'Design Details'!C$75,0)))) -> 0 | Y8: 7
B9: Room Dimensions | Y9: 8
B10: Length (m) | D10: Width (m) | F10: Height (m) | H10: Volume (m³) | I10: =C10*E10*G10 -> 0 | Y10: 9
B11: Length (m) | D11: Width (m) | F11: Height (m) | H11: Volume (m³) | I11: =C11*E11*G11 -> 0 | Y11: 10
B12: Length (m) | D12: Width (m) | F12: Height (m) | H12: Volume (m³) | I12: =C12*E12*G12 -> 0
B13: Awkward Room Dimensions
B14: Length (m) | D14: Width (m) | F14: Height (m) | H14: Volume (m³) | I14: =((G14*E14)/2)*C14 -> 0 | J14: Pitched
B15: Length (m) | D15: Width (m) | F15: Height (m) | H15: Volume (m³) | I15: =C15*E15*G15/2 -> 0 | J15: Single Pitch
B16: Length (m) | D16: Height (m) | F16: Depth (m) | H16: Volume (m³) | I16: =E16*G16*C16/2 -> 0 | J16: Dormer 1
B17: Length (m) | D17: Height (m) | F17: Depth (m) | H17: Volume (m³) | I17: =E17*G17*C17/2 -> 0 | J17: Dormer 2
B18: Length (m) | D18: Height (m) | F18: Depth (m) | H18: Volume (m³) | I18: =E18*G18*C18/2 -> 0 | J18: Dormer 3
B19: Floor | J19: Temp Difference | K19: Heat Loss (W) | L19: Usage (kWh) | M19: =IF($C$3="Ground Floor","Select type of Ground Floor",IF($C$3="Single Storey","Select type of Ground Floor","#N/A")) -> #N/A
B20: =B10 -> Length (m) | D20: =D10 -> Width (m) | F20: Area (m²) | G20: =C20*E20 -> 0 | H20: U Value (W/m²K) | I20: =IF(M22="",R8,'floor u values'!K8) -> 0 | J20: =IF(C$3="Ground Floor",IF(M20="Solid Floor (in contact with ground)",D$4-T$3,D$4-D$5),IF(C$3="Single Storey",IF(M20="Solid Floor (in contact with ground)",D$4-T$3,D$4-D$5),0)) -> 0 | K20: =G20*I20*J20 -> 0 | L20: =IF($C$3=$R$5,0,IF($C$3=$R$7,0,G20*I20*$D$7*24/1000)) -> 0 | M20: n/a
B21: Length (m) | D21: Width (m) | F21: Area (m²) | G21: =C21*E21 -> 0 | H21: U Value (W/m²K) | I21: =I20 -> 0 | J21: =IF(C$3="Ground Floor",IF(M20="Solid Floor (in contact with ground)",D$4-T$3,D$4-D$5),IF(C$3="Single Storey",IF(M20="Solid Floor (in contact with ground)",D$4-T$3,D$4-D$5),0)) -> 0 | K21: =G21*I21*J21 -> 0 | L21: =IF($C$3=$R$5,0,IF($C$3=$R$7,0,G21*I21*$D$7*24/1000)) -> 0 | M21: Exposed floor (external)
B22: Length (m) | D22: Width (m) | F22: Area (m²) | G22: 0 | H22: U Value (W/m²K) | I22: =I20 -> 0 | J22: =IF(C$3="Ground Floor",IF(M20="Solid Floor (in contact with ground)",D$4-T$3,D$4-D$5),IF(C$3="Single Storey",IF(M20="Solid Floor (in contact with ground)",D$4-T$3,D$4-D$5),0)) -> 0 | K22: =G22*I22*J22 -> 0 | L22: =IF($C$3=$R$5,0,IF($C$3=$R$7,0,G22*I22*$D$7*24/1000)) -> 0
B23: External Wall | M23: =IF(M22="Two opposite","Between edges",IF(M22="One edge","Depth of room",IF(M22="3 edges (short single)","Short length",IF(M22="3 edges (long single)","Short length","")))) ->  | O23: =IF(M22="3 edges (short single)","Long length",IF(M22="3 edges (long single)","Long length","")) -> 
B24: Length (m) | D24: Height (m) | F24: Area (m²) | G24: 0
B25: Length (m) | D25: Height (m) | F25: Area (m²) | G25: 0
B26: Length (m) | D26: Height (m) | F26: Area (m²) | G26: 0
E27: Total | F27: Area (m²) | G27: =SUM(G24:G26)-SUM(G38:G44,G51:G54) -> 0 | H27: U Value (W/m²K) | I27: =IF($C$3="Ground floor",'Design Details'!C$48,IF($C$3="Mid-floor",'Design Details'!C$58,IF($C$3="Upper floor",'Design Details'!C$68,IF($C$3="Single Storey",'Design Details'!C$78,0)))) -> 0 | J27: =$D$6 -> 2.5 | K27: =G27*I27*J27 -> 0 | L27: =G27*I27*$D$7*24/1000 -> 0
B28: Ceiling (Flat)
B29: Length (m) | D29: Width (m) | F29: Area (m²) | G29: 0
B30: Length (m) | D30: Width (m) | F30: Area (m²) | G30: 0
B31: Length (m) | D31: Width (m) | F31: Area (m²) | G31: 0 | M31: Select Temp/Type of Space Above
E32: Total | F32: Area (m²) | G32: =SUM(G29:G31)-SUM(G46:G49) -> 0 | H32: U Value (W/m²K) | I32: =IF($C$3="Ground floor",'Design Details'!C$49,IF($C$3="Mid-floor",'Design Details'!C$59,IF($C$3="Upper floor",INDIRECT(T52),IF($C$3="Single Storey",INDIRECT(T53),0)))) -> 0 | J32: =U51 -> 0 | K32: =G32*I32*J32 -> 0 | L32: =IF($C$3=$R$4,0,IF($C$3=$R$5,0,G32*I32*$D$7*24/1000)) -> 0 | M32: Select...
B33: Ceiling (Awkward)
B34: Length (m) | C34: =C14*2 -> 0 | D34: Pitch (m) | E34: =SQRT(POWER(E14,2)+POWER(G14,2)) -> 0 | F34: Area (m²) | G34: =C34*E34 -> 0 | H34: Pitched
B35: Length (m) | C35: =C15 -> 0 | D35: Pitch (m) | E35: =SQRT(POWER(E15,2)+POWER(G15,2)) -> 0 | F35: Area (m²) | G35: 0 | H35: Single Pitch
E36: Total | F36: Area (m²) | G36: =SUM(G34:G35)-SUM(G46:G49) -> 0 | H36: U Value (W/m²K) | I36: =IF($C$3="Ground floor",'Design Details'!C$50,IF($C$3="Mid-floor",'Design Details'!C$60,IF($C$3="Upper floor",'Design Details'!C$70,IF($C$3="Single Storey",'Design Details'!C$80,0)))) -> 0 | J36: =$D$6 -> 2.5 | K36: 0 | L36: =IF($C$3=$R$4,0,IF($C$3=$R$5,0,G36*I36*$D$7*24/1000)) -> 0
B37: Windows
B38: Width (m) | D38: Height (m) | F38: Area (m²) | G38: 0 | H38: U Value (W/m²K) | I38: =IF($C$3="Ground floor",'Design Details'!C$46,IF($C$3="Mid-floor",'Design Details'!C$56,IF($C$3="Upper floor",'Design Details'!C$66,IF($C$3="Single Storey",'Design Details'!C$76,0)))) -> 0 | J38: 2.5 | K38: 0 | L38: =G38*I38*$D$7*24/1000 -> 0
B39: Width (m) | D39: Height (m) | F39: Area (m²) | G39: 0 | H39: U Value (W/m²K) | I39: =IF($C$3="Ground floor",'Design Details'!C$46,IF($C$3="Mid-floor",'Design Details'!C$56,IF($C$3="Upper floor",'Design Details'!C$66,IF($C$3="Single Storey",'Design Details'!C$76,0)))) -> 0 | J39: 2.5 | K39: 0 | L39: 0
B40: Width (m) | D40: Height (m) | F40: Area (m²) | G40: 0 | H40: U Value (W/m²K) | I40: =IF($C$3="Ground floor",'Design Details'!C$46,IF($C$3="Mid-floor",'Design Details'!C$56,IF($C$3="Upper floor",'Design Details'!C$66,IF($C$3="Single Storey",'Design Details'!C$76,0)))) -> 0 | J40: 2.5 | K40: 0 | L40: 0
B41: Width (m) | D41: Height (m) | F41: Area (m²) | G41: 0 | H41: U Value (W/m²K) | I41: =IF($C$3="Ground floor",'Design Details'!C$46,IF($C$3="Mid-floor",'Design Details'!C$56,IF($C$3="Upper floor",'Design Details'!C$66,IF($C$3="Single Storey",'Design Details'!C$76,0)))) -> 0 | J41: 2.5 | K41: 0 | L41: 0
B42: Width (m) | D42: Height (m) | F42: Area (m²) | G42: 0 | H42: U Value (W/m²K) | I42: =IF($C$3="Ground floor",'Design Details'!C$46,IF($C$3="Mid-floor",'Design Details'!C$56,IF($C$3="Upper floor",'Design Details'!C$66,IF($C$3="Single Storey",'Design Details'!C$76,0)))) -> 0 | J42: 2.5 | K42: 0 | L42: 0
B43: Width (m) | D43: Height (m) | F43: Area (m²) | G43: 0 | H43: U Value (W/m²K) | I43: =IF($C$3="Ground floor",'Design Details'!C$46,IF($C$3="Mid-floor",'Design Details'!C$56,IF($C$3="Upper floor",'Design Details'!C$66,IF($C$3="Single Storey",'Design Details'!C$76,0)))) -> 0 | J43: 2.5 | K43: 0 | L43: 0
B44: Width (m) | D44: Height (m) | F44: Area (m²) | G44: 0 | H44: U Value (W/m²K) | I44: =IF($C$3="Ground floor",'Design Details'!C$46,IF($C$3="Mid-floor",'Design Details'!C$56,IF($C$3="Upper floor",'Design Details'!C$66,IF($C$3="Single Storey",'Design Details'!C$76,0)))) -> 0 | J44: 2.5 | K44: 0 | L44: 0
B45: Roof Glazing | Q45: Options for upper floor or single storey | R45: Options for Ground or Mid Floor | S45: Drop-Down List | T45: U-Value Selector | U45: Temp Diff Selector
B46: Width (m) | D46: Height (m) | F46: Area (m²) | G46: 0 | H46: U Value (W/m²K) | I46: =IF($C$3="Ground floor",'Design Details'!C$53,IF($C$3="Mid-floor",'Design Details'!C$63,IF($C$3="Upper floor",'Design Details'!C$73,IF($C$3="Single Storey",'Design Details'!C$83,0)))) -> 0 | J46: 2.5 | K46: 0 | L46: =G46*I46*$D$7*24/1000 -> 0
B47: Width (m) | D47: Height (m) | F47: Area (m²) | G47: 0 | H47: U Value (W/m²K) | I47: =IF($C$3="Ground floor",'Design Details'!C$53,IF($C$3="Mid-floor",'Design Details'!C$63,IF($C$3="Upper floor",'Design Details'!C$73,IF($C$3="Single Storey",'Design Details'!C$83,0)))) -> 0 | J47: 2.5 | K47: 0 | L47: =G47*I47*$D$7*24/1000 -> 0
B48: Width (m) | D48: Height (m) | F48: Area (m²) | G48: 0 | H48: U Value (W/m²K) | I48: =IF($C$3="Ground floor",'Design Details'!C$53,IF($C$3="Mid-floor",'Design Details'!C$63,IF($C$3="Upper floor",'Design Details'!C$73,IF($C$3="Single Storey",'Design Details'!C$83,0)))) -> 0 | J48: 2.5 | K48: 0 | L48: =G48*I48*$D$7*24/1000 -> 0
B49: Width (m) | D49: Height (m) | F49: Area (m²) | G49: 0 | H49: U Value (W/m²K) | I49: =IF($C$3="Ground floor",'Design Details'!C$53,IF($C$3="Mid-floor",'Design Details'!C$63,IF($C$3="Upper floor",'Design Details'!C$73,IF($C$3="Single Storey",'Design Details'!C$83,0)))) -> 0 | J49: 2.5 | K49: 0 | L49: =G49*I49*$D$7*24/1000 -> 0
B50: External Doors | S50: Select...
B51: Width (m) | D51: Height (m) | F51: Area (m²) | G51: 0 | H51: U Value (W/m²K) | I51: =IF($C$3="Ground floor",'Design Details'!C$47,IF($C$3="Mid-floor",'Design Details'!C$57,IF($C$3="Upper floor",'Design Details'!C$67,IF($C$3="Single Storey",'Design Details'!C$77,0)))) -> 0 | J51: 2.5 | K51: 0 | L51: =G51*I51*$D$7*24/1000 -> 0 | Q51: Outside | R51: Unheated | S51: =IF(OR($C$3="Ground Floor",$C$3="Mid-floor"),R51,Q51) -> Outside | T51: =IF(M32="Unheated",1,0) -> 0 | U51: =IF(M32="Select...",0,(IF(M32="Outside",D6,IF(M32="Unheated",D4-10,D4-M32)))) -> 0
B52: Width (m) | D52: Height (m) | F52: Area (m²) | G52: 0 | H52: U Value (W/m²K) | I52: =IF($C$3="Ground floor",'Design Details'!C$47,IF($C$3="Mid-floor",'Design Details'!C$57,IF($C$3="Upper floor",'Design Details'!C$67,IF($C$3="Single Storey",'Design Details'!C$77,0)))) -> 0 | J52: 2.5 | K52: 0 | L52: =G52*I52*$D$7*24/1000 -> 0 | Q52: Unheated | R52: 16 | S52: =IF(OR($C$3="Ground Floor",$C$3="Mid-floor"),R52,Q52) -> Unheated | T52: ="'Design Details'!C$"&69+T51 -> 'Design Details'!C$69
B53: Width (m) | D53: Height (m) | F53: Area (m²) | G53: 0 | H53: U Value (W/m²K) | I53: =IF($C$3="Ground floor",'Design Details'!C$47,IF($C$3="Mid-floor",'Design Details'!C$57,IF($C$3="Upper floor",'Design Details'!C$67,IF($C$3="Single Storey",'Design Details'!C$77,0)))) -> 0 | J53: 2.5 | K53: 0 | L53: =G53*I53*$D$7*24/1000 -> 0 | R53: 18 | S53: =IF(OR($C$3="Ground Floor",$C$3="Mid-floor"),R53,Q53) -> 0 | T53: ="'Design Details'!C$"&79+T51 -> 'Design Details'!C$79
B54: Width (m) | D54: Height (m) | F54: Area (m²) | G54: 0 | H54: U Value (W/m²K) | I54: =IF($C$3="Ground floor",'Design Details'!C$47,IF($C$3="Mid-floor",'Design Details'!C$57,IF($C$3="Upper floor",'Design Details'!C$67,IF($C$3="Single Storey",'Design Details'!C$77,0)))) -> 0 | J54: 2.5 | K54: 0 | L54: =G54*I54*$D$7*24/1000 -> 0 | R54: 21 | S54: =IF(OR($C$3="Ground Floor",$C$3="Mid-floor"),R54,Q54) -> 0
B55: Internal Walls | M55: Adjoining Room Temp (°C) | R55: 22 | S55: =IF(OR($C$3="Ground Floor",$C$3="Mid-floor"),R55,Q37) -> 0
B56: Length (m) | D56: Height (m) | F56: Area (m²) | G56: 0 | H56: U Value (W/m²K) | I56: =IF($C$3="Ground floor",'Design Details'!C$51,IF($C$3="Mid-floor",'Design Details'!C$61,IF($C$3="Upper floor",'Design Details'!C$71,IF($C$3="Single Storey",'Design Details'!C$81,0)))) -> 0 | J56: =IF(M56="",0,IF(M56="unheated",D$4-10,D$4-M56)) -> 0 | K56: 0
B57: Length (m) | D57: Height (m) | F57: Area (m²) | G57: 0 | H57: U Value (W/m²K) | I57: =IF($C$3="Ground floor",'Design Details'!C$51,IF($C$3="Mid-floor",'Design Details'!C$61,IF($C$3="Upper floor",'Design Details'!C$71,IF($C$3="Single Storey",'Design Details'!C$81,0)))) -> 0 | J57: =IF(M57="",0,IF(M57="unheated",D$4-10,D$4-M57)) -> 0 | K57: 0
B58: Length (m) | D58: Height (m) | F58: Area (m²) | G58: 0 | H58: U Value (W/m²K) | I58: =IF($C$3="Ground floor",'Design Details'!C$51,IF($C$3="Mid-floor",'Design Details'!C$61,IF($C$3="Upper floor",'Design Details'!C$71,IF($C$3="Single Storey",'Design Details'!C$81,0)))) -> 0 | J58: =IF(M58="",0,IF(M58="unheated",D$4-10,D$4-M58)) -> 0 | K58: 0
B59: Length (m) | D59: Height (m) | F59: Area (m²) | G59: 0 | H59: U Value (W/m²K) | I59: =IF($C$3="Ground floor",'Design Details'!C$51,IF($C$3="Mid-floor",'Design Details'!C$61,IF($C$3="Upper floor",'Design Details'!C$71,IF($C$3="Single Storey",'Design Details'!C$81,0)))) -> 0 | J59: =IF(M59="",0,IF(M59="unheated",D$4-10,D$4-M59)) -> 0 | K59: 0
B60: Party Wall
B61: Length (m) | D61: Height (m) | F61: Area (m²) | G61: 0 | H61: U Value (W/m²K) | I61: =IF($C$3="Ground floor",'Design Details'!C$52,IF($C$3="Mid-floor",'Design Details'!C$62,IF($C$3="Upper floor",'Design Details'!C$72,IF($C$3="Single Storey",'Design Details'!C$82,0)))) -> 0 | J61: =D4-10 -> -10 | K61: 0 | L61: =G61*I61*$D$7*24/1000 -> 0

Sheet 8
B1: Room Information | E1: Ventilation Heat Loss | H1: Fabric | I1: Heat Loss (W) | J1: Usage (kWh) | K1: Additional heat loss | M1: Addition | N1: Watts | O1: kWh
B2: Room | E2: Air Changes per hour | G2: ='Design Details'!G94 -> 0 | H2: Floor | I2: =SUM(K20:K22) -> 0 | J2: =SUM(L20:L22) -> 0 | K2: Thermal Bridging (New Build >2006) | M2: 0 | N2: =SUM(I$2:I$6)*M2 -> 0 | O2: =SUM(J$2:J$6)*M2 -> 0 | Q2: 3 edges (long single) | R2: Level | Y2: 1
B3: Level | E3: Air Change Factor (W/m³K) | G3: 0.33 | H3: Ext Wall | I3: =K27 -> 0 | J3: =L27 -> 0 | K3: Exposed location | M3: 0 | N3: =SUM(I$2:I$6)*M3 -> 0 | O3: =SUM(J$2:J$6)*M3 -> 0 | Q3: 3 edges (short single) | R3: Please Select Floor | S3: =IF($C$3="Ground floor","Solid Floor (in contact with ground)",IF($C$3="Single Storey","Solid Floor (in contact with ground)","n/a")) -> n/a | T3: ='Design Details'!C21 -> 10 | U3: unheated | V3: 0 | W3: 0 | X3: 0 | Y3: 2
B4: Design Room Temp (°C) | D4: ='Design Details'!E94 -> 0 | E4: Total Volume (m³) | G4: =SUM(I10:I12,I14:I18) -> 0 | H4: Roof | I4: =SUM(K32,K36) -> 0 | J4: =SUM(L32,L36) -> 0 | K4: High ceiling | M4: 0 | N4: =SUM(I$2:I$6)*M4 -> 0 | O4: =SUM(J$2:J$6)*M4 -> 0 | Q4: One edge | R4: Ground floor | S4: =IF($C$3="Ground floor","Suspended Floor",IF($C$3="Single Storey","Suspended Floor","n/a")) -> n/a | U4: 16 | V4: 0.1 | W4: 0.2 | X4: 0.025 | Y4: 3
B5: Outside Design Temp (°C) | D5: ='Design Details'!C19 -> -2.5 | E5: Heat loss (W) | G5: =G4*G3*D6*G2 -> 0 | H5: Glazing | I5: =SUM(K38:K44,K46:K49,K51:K54) -> 0 | J5: =SUM(L38:L44,L46:L49,L51:L54) -> 0 | K5: Intermittent heating | M5: 0 | N5: =SUM(I$2:I$6)*M5 -> 0 | O5: =SUM(J$2:J$6)*M5 -> 0 | Q5: Two adjacent | R5: Mid-floor | U5: 18 | X5: 0.05 | Y5: 4
B6: Temp Difference (°C) | D6: =D4-D5 -> 2.5 | E6: Estimated Energy usage (kWh) | G6: =G4*G3*D7*24/1000 -> 0 | H6: Int./Party Wall | I6: =SUM(K56:K59,K61) -> 0 | J6: =SUM(L61) -> 0 | N6: Total Room Heat Loss (W) | O6: =SUM(G5,I2:I6,N2:N5) -> 0 | Q6: Two opposite | R6: Single storey | U6: 21 | X6: 0.075 | Y6: 5
B7: Degree Days | D7: ='Design Details'!C20 -> 2228 | N7: Total Room Energy Usage (kWh) | O7: =SUM(G6,J2:J6,O2:O5) -> 0 | R7: Upper floor | U7: 22 | X7: 0.1 | Y7: 6
R8: =IF($C$3="Ground floor",'Design Details'!C$45,IF($C$3="Mid-floor",'Design Details'!C$55,IF($C$3="Upper floor",'Design Details'!C$65,IF($C$3="Single Storey",'Design Details'!C$75,0)))) -> 0 | Y8: 7
B9: Room Dimensions | Y9: 8
B10: Length (m) | D10: Width (m) | F10: Height (m) | H10: Volume (m³) | I10: =C10*E10*G10 -> 0 | Y10: 9
B11: Length (m) | D11: Width (m) | F11: Height (m) | H11: Volume (m³) | I11: =C11*E11*G11 -> 0 | Y11: 10
B12: Length (m) | D12: Width (m) | F12: Height (m) | H12: Volume (m³) | I12: =C12*E12*G12 -> 0
B13: Awkward Room Dimensions
B14: Length (m) | D14: Width (m) | F14: Height (m) | H14: Volume (m³) | I14: =((G14*E14)/2)*C14 -> 0 | J14: Pitched
B15: Length (m) | D15: Width (m) | F15: Height (m) | H15: Volume (m³) | I15: =C15*E15*G15/2 -> 0 | J15: Single Pitch
B16: Length (m) | D16: Height (m) | F16: Depth (m) | H16: Volume (m³) | I16: =E16*G16*C16/2 -> 0 | J16: Dormer 1
B17: Length (m) | D17: Height (m) | F17: Depth (m) | H17: Volume (m³) | I17: =E17*G17*C17/2 -> 0 | J17: Dormer 2
B18: Length (m) | D18: Height (m) | F18: Depth (m) | H18: Volume (m³) | I18: =E18*G18*C18/2 -> 0 | J18: Dormer 3
B19: Floor | J19: Temp Difference | K19: Heat Loss (W) | L19: Usage (kWh) | M19: =IF($C$3="Ground Floor","Select type of Ground Floor",IF($C$3="Single Storey","Select type of Ground Floor","#N/A")) -> #N/A
B20: =B10 -> Length (m) | D20: =D10 -> Width (m) | F20: Area (m²) | G20: =C20*E20 -> 0 | H20: U Value (W/m²K) | I20: =IF(M22="",R8,'floor u values'!K9) -> 0 | J20: =IF(C$3="Ground Floor",IF(M20="Solid Floor (in contact with ground)",D$4-T$3,D$4-D$5),IF(C$3="Single Storey",IF(M20="Solid Floor (in contact with ground)",D$4-T$3,D$4-D$5),0)) -> 0 | K20: =G20*I20*J20 -> 0 | L20: =IF($C$3=$R$5,0,IF($C$3=$R$7,0,G20*I20*$D$7*24/1000)) -> 0 | M20: n/a
B21: Length (m) | D21: Width (m) | F21: Area (m²) | G21: =C21*E21 -> 0 | H21: U Value (W/m²K) | I21: =I20 -> 0 | J21: =IF(C$3="Ground Floor",IF(M20="Solid Floor (in contact with ground)",D$4-T$3,D$4-D$5),IF(C$3="Single Storey",IF(M20="Solid Floor (in contact with ground)",D$4-T$3,D$4-D$5),0)) -> 0 | K21: =G21*I21*J21 -> 0 | L21: =IF($C$3=$R$5,0,IF($C$3=$R$7,0,G21*I21*$D$7*24/1000)) -> 0 | M21: Exposed floor (external)
B22: Length (m) | D22: Width (m) | F22: Area (m²) | G22: 0 | H22: U Value (W/m²K) | I22: =I20 -> 0 | J22: =IF(C$3="Ground Floor",IF(M20="Solid Floor (in contact with ground)",D$4-T$3,D$4-D$5),IF(C$3="Single Storey",IF(M20="Solid Floor (in contact with ground)",D$4-T$3,D$4-D$5),0)) -> 0 | K22: =G22*I22*J22 -> 0 | L22: =IF($C$3=$R$5,0,IF($C$3=$R$7,0,G22*I22*$D$7*24/1000)) -> 0
B23: External Wall | M23: =IF(M22="Two opposite","Between edges",IF(M22="One edge","Depth of room",IF(M22="3 edges (short single)","Short length",IF(M22="3 edges (long single)","Short length","")))) ->  | O23: =IF(M22="3 edges (short single)","Long length",IF(M22="3 edges (long single)","Long length","")) -> 
B24: Length (m) | D24: Height (m) | F24: Area (m²) | G24: 0
B25: Length (m) | D25: Height (m) | F25: Area (m²) | G25: 0
B26: Length (m) | D26: Height (m) | F26: Area (m²) | G26: 0
E27: Total | F27: Area (m²) | G27: =SUM(G24:G26)-SUM(G38:G44,G51:G54) -> 0 | H27: U Value (W/m²K) | I27: =IF($C$3="Ground floor",'Design Details'!C$48,IF($C$3="Mid-floor",'Design Details'!C$58,IF($C$3="Upper floor",'Design Details'!C$68,IF($C$3="Single Storey",'Design Details'!C$78,0)))) -> 0 | J27: =$D$6 -> 2.5 | K27: =G27*I27*J27 -> 0 | L27: =G27*I27*$D$7*24/1000 -> 0
B28: Ceiling (Flat)
B29: Length (m) | D29: Width (m) | F29: Area (m²) | G29: 0
B30: Length (m) | D30: Width (m) | F30: Area (m²) | G30: 0
B31: Length (m) | D31: Width (m) | F31: Area (m²) | G31: 0 | M31: Select Temp/Type of Space Above
E32: Total | F32: Area (m²) | G32: =SUM(G29:G31)-SUM(G46:G49) -> 0 | H32: U Value (W/m²K) | I32: =IF($C$3="Ground floor",'Design Details'!C$49,IF($C$3="Mid-floor",'Design Details'!C$59,IF($C$3="Upper floor",INDIRECT(T52),IF($C$3="Single Storey",INDIRECT(T53),0)))) -> 0 | J32: =U51 -> 0 | K32: =G32*I32*J32 -> 0 | L32: =IF($C$3=$R$4,0,IF($C$3=$R$5,0,G32*I32*$D$7*24/1000)) -> 0 | M32: Select...
B33: Ceiling (Awkward)
B34: Length (m) | C34: =C14*2 -> 0 | D34: Pitch (m) | E34: =SQRT(POWER(E14,2)+POWER(G14,2)) -> 0 | F34: Area (m²) | G34: =C34*E34 -> 0 | H34: Pitched
B35: Length (m) | C35: =C15 -> 0 | D35: Pitch (m) | E35: =SQRT(POWER(E15,2)+POWER(G15,2)) -> 0 | F35: Area (m²) | G35: 0 | H35: Single Pitch
E36: Total | F36: Area (m²) | G36: =SUM(G34:G35)-SUM(G46:G49) -> 0 | H36: U Value (W/m²K) | I36: =IF($C$3="Ground floor",'Design Details'!C$50,IF($C$3="Mid-floor",'Design Details'!C$60,IF($C$3="Upper floor",'Design Details'!C$70,IF($C$3="Single Storey",'Design Details'!C$80,0)))) -> 0 | J36: =$D$6 -> 2.5 | K36: 0 | L36: =IF($C$3=$R$4,0,IF($C$3=$R$5,0,G36*I36*$D$7*24/1000)) -> 0
B37: Windows
B38: Width (m) | D38: Height (m) | F38: Area (m²) | G38: 0 | H38: U Value (W/m²K) | I38: =IF($C$3="Ground floor",'Design Details'!C$46,IF($C$3="Mid-floor",'Design Details'!C$56,IF($C$3="Upper floor",'Design Details'!C$66,IF($C$3="Single Storey",'Design Details'!C$76,0)))) -> 0 | J38: 2.5 | K38: 0 | L38: =G38*I38*$D$7*24/1000 -> 0
B39: Width (m) | D39: Height (m) | F39: Area (m²) | G39: 0 | H39: U Value (W/m²K) | I39: =IF($C$3="Ground floor",'Design Details'!C$46,IF($C$3="Mid-floor",'Design Details'!C$56,IF($C$3="Upper floor",'Design Details'!C$66,IF($C$3="Single Storey",'Design Details'!C$76,0)))) -> 0 | J39: 2.5 | K39: 0 | L39: 0
B40: Width (m) | D40: Height (m) | F40: Area (m²) | G40: 0 | H40: U Value (W/m²K) | I40: =IF($C$3="Ground floor",'Design Details'!C$46,IF($C$3="Mid-floor",'Design Details'!C$56,IF($C$3="Upper floor",'Design Details'!C$66,IF($C$3="Single Storey",'Design Details'!C$76,0)))) -> 0 | J40: 2.5 | K40: 0 | L40: 0
B41: Width (m) | D41: Height (m) | F41: Area (m²) | G41: 0 | H41: U Value (W/m²K) | I41: =IF($C$3="Ground floor",'Design Details'!C$46,IF($C$3="Mid-floor",'Design Details'!C$56,IF($C$3="Upper floor",'Design Details'!C$66,IF($C$3="Single Storey",'Design Details'!C$76,0)))) -> 0 | J41: 2.5 | K41: 0 | L41: 0
B42: Width (m) | D42: Height (m) | F42: Area (m²) | G42: 0 | H42: U Value (W/m²K) | I42: =IF($C$3="Ground floor",'Design Details'!C$46,IF($C$3="Mid-floor",'Design Details'!C$56,IF($C$3="Upper floor",'Design Details'!C$66,IF($C$3="Single Storey",'Design Details'!C$76,0)))) -> 0 | J42: 2.5 | K42: 0 | L42: 0
B43: Width (m) | D43: Height (m) | F43: Area (m²) | G43: 0 | H43: U Value (W/m²K) | I43: =IF($C$3="Ground floor",'Design Details'!C$46,IF($C$3="Mid-floor",'Design Details'!C$56,IF($C$3="Upper floor",'Design Details'!C$66,IF($C$3="Single Storey",'Design Details'!C$76,0)))) -> 0 | J43: 2.5 | K43: 0 | L43: 0
B44: Width (m) | D44: Height (m) | F44: Area (m²) | G44: 0 | H44: U Value (W/m²K) | I44: =IF($C$3="Ground floor",'Design Details'!C$46,IF($C$3="Mid-floor",'Design Details'!C$56,IF($C$3="Upper floor",'Design Details'!C$66,IF($C$3="Single Storey",'Design Details'!C$76,0)))) -> 0 | J44: 2.5 | K44: 0 | L44: 0
B45: Roof Glazing | Q45: Options for upper floor or single storey | R45: Options for Ground or Mid Floor | S45: Drop-Down List | T45: U-Value Selector | U45: Temp Diff Selector
B46: Width (m) | D46: Height (m) | F46: Area (m²) | G46: 0 | H46: U Value (W/m²K) | I46: =IF($C$3="Ground floor",'Design Details'!C$53,IF($C$3="Mid-floor",'Design Details'!C$63,IF($C$3="Upper floor",'Design Details'!C$73,IF($C$3="Single Storey",'Design Details'!C$83,0)))) -> 0 | J46: 2.5 | K46: 0 | L46: =G46*I46*$D$7*24/1000 -> 0
B47: Width (m) | D47: Height (m) | F47: Area (m²) | G47: 0 | H47: U Value (W/m²K) | I47: =IF($C$3="Ground floor",'Design Details'!C$53,IF($C$3="Mid-floor",'Design Details'!C$63,IF($C$3="Upper floor",'Design Details'!C$73,IF($C$3="Single Storey",'Design Details'!C$83,0)))) -> 0 | J47: 2.5 | K47: 0 | L47: =G47*I47*$D$7*24/1000 -> 0
B48: Width (m) | D48: Height (m) | F48: Area (m²) | G48: 0 | H48: U Value (W/m²K) | I48: =IF($C$3="Ground floor",'Design Details'!C$53,IF($C$3="Mid-floor",'Design Details'!C$63,IF($C$3="Upper floor",'Design Details'!C$73,IF($C$3="Single Storey",'Design Details'!C$83,0)))) -> 0 | J48: 2.5 | K48: 0 | L48: =G48*I48*$D$7*24/1000 -> 0
B49: Width (m) | D49: Height (m) | F49: Area (m²) | G49: 0 | H49: U Value (W/m²K) | I49: =IF($C$3="Ground floor",'Design Details'!C$53,IF($C$3="Mid-floor",'Design Details'!C$63,IF($C$3="Upper floor",'Design Details'!C$73,IF($C$3="Single Storey",'Design Details'!C$83,0)))) -> 0 | J49: 2.5 | K49: 0 | L49: =G49*I49*$D$7*24/1000 -> 0
B50: External Doors | S50: Select...
B51: Width (m) | D51: Height (m) | F51: Area (m²) | G51: 0 | H51: U Value (W/m²K) | I51: =IF($C$3="Ground floor",'Design Details'!C$47,IF($C$3="Mid-floor",'Design Details'!C$57,IF($C$3="Upper floor",'Design Details'!C$67,IF($C$3="Single Storey",'Design Details'!C$77,0)))) -> 0 | J51: 2.5 | K51: 0 | L51: =G51*I51*$D$7*24/1000 -> 0 | Q51: Outside | R51: Unheated | S51: =IF(OR($C$3="Ground Floor",$C$3="Mid-floor"),R51,Q51) -> Outside | T51: =IF(M32="Unheated",1,0) -> 0 | U51: =IF(M32="Select...",0,(IF(M32="Outside",D6,IF(M32="Unheated",D4-10,D4-M32)))) -> 0
B52: Width (m) | D52: Height (m) | F52: Area (m²) | G52: 0 | H52: U Value (W/m²K) | I52: =IF($C$3="Ground floor",'Design Details'!C$47,IF($C$3="Mid-floor",'Design Details'!C$57,IF($C$3="Upper floor",'Design Details'!C$67,IF($C$3="Single Storey",'Design Details'!C$77,0)))) -> 0 | J52: 2.5 | K52: 0 | L52: =G52*I52*$D$7*24/1000 -> 0 | Q52: Unheated | R52: 16 | S52: =IF(OR($C$3="Ground Floor",$C$3="Mid-floor"),R52,Q52) -> Unheated | T52: ="'Design Details'!C$"&69+T51 -> 'Design Details'!C$69
B53: Width (m) | D53: Height (m) | F53: Area (m²) | G53: 0 | H53: U Value (W/m²K) | I53: =IF($C$3="Ground floor",'Design Details'!C$47,IF($C$3="Mid-floor",'Design Details'!C$57,IF($C$3="Upper floor",'Design Details'!C$67,IF($C$3="Single Storey",'Design Details'!C$77,0)))) -> 0 | J53: 2.5 | K53: 0 | L53: =G53*I53*$D$7*24/1000 -> 0 | R53: 18 | S53: =IF(OR($C$3="Ground Floor",$C$3="Mid-floor"),R53,Q53) -> 0 | T53: ="'Design Details'!C$"&79+T51 -> 'Design Details'!C$79
B54: Width (m) | D54: Height (m) | F54: Area (m²) | G54: 0 | H54: U Value (W/m²K) | I54: =IF($C$3="Ground floor",'Design Details'!C$47,IF($C$3="Mid-floor",'Design Details'!C$57,IF($C$3="Upper floor",'Design Details'!C$67,IF($C$3="Single Storey",'Design Details'!C$77,0)))) -> 0 | J54: 2.5 | K54: 0 | L54: =G54*I54*$D$7*24/1000 -> 0 | R54: 21 | S54: =IF(OR($C$3="Ground Floor",$C$3="Mid-floor"),R54,Q54) -> 0
B55: Internal Walls | M55: Adjoining Room Temp (°C) | R55: 22 | S55: =IF(OR($C$3="Ground Floor",$C$3="Mid-floor"),R55,Q37) -> 0
B56: Length (m) | D56: Height (m) | F56: Area (m²) | G56: 0 | H56: U Value (W/m²K) | I56: =IF($C$3="Ground floor",'Design Details'!C$51,IF($C$3="Mid-floor",'Design Details'!C$61,IF($C$3="Upper floor",'Design Details'!C$71,IF($C$3="Single Storey",'Design Details'!C$81,0)))) -> 0 | J56: =IF(M56="",0,IF(M56="unheated",D$4-10,D$4-M56)) -> 0 | K56: 0
B57: Length (m) | D57: Height (m) | F57: Area (m²) | G57: 0 | H57: U Value (W/m²K) | I57: =IF($C$3="Ground floor",'Design Details'!C$51,IF($C$3="Mid-floor",'Design Details'!C$61,IF($C$3="Upper floor",'Design Details'!C$71,IF($C$3="Single Storey",'Design Details'!C$81,0)))) -> 0 | J57: =IF(M57="",0,IF(M57="unheated",D$4-10,D$4-M57)) -> 0 | K57: 0
B58: Length (m) | D58: Height (m) | F58: Area (m²) | G58: 0 | H58: U Value (W/m²K) | I58: =IF($C$3="Ground floor",'Design Details'!C$51,IF($C$3="Mid-floor",'Design Details'!C$61,IF($C$3="Upper floor",'Design Details'!C$71,IF($C$3="Single Storey",'Design Details'!C$81,0)))) -> 0 | J58: =IF(M58="",0,IF(M58="unheated",D$4-10,D$4-M58)) -> 0 | K58: 0
B59: Length (m) | D59: Height (m) | F59: Area (m²) | G59: 0 | H59: U Value (W/m²K) | I59: =IF($C$3="Ground floor",'Design Details'!C$51,IF($C$3="Mid-floor",'Design Details'!C$61,IF($C$3="Upper floor",'Design Details'!C$71,IF($C$3="Single Storey",'Design Details'!C$81,0)))) -> 0 | J59: =IF(M59="",0,IF(M59="unheated",D$4-10,D$4-M59)) -> 0 | K59: 0
B60: Party Wall
B61: Length (m) | D61: Height (m) | F61: Area (m²) | G61: 0 | H61: U Value (W/m²K) | I61: =IF($C$3="Ground floor",'Design Details'!C$52,IF($C$3="Mid-floor",'Design Details'!C$62,IF($C$3="Upper floor",'Design Details'!C$72,IF($C$3="Single Storey",'Design Details'!C$82,0)))) -> 0 | J61: =D4-10 -> -10 | K61: 0 | L61: =G61*I61*$D$7*24/1000 -> 0

Sheet 9
B1: Room Information | E1: Ventilation Heat Loss | H1: Fabric | I1: Heat Loss (W) | J1: Usage (kWh) | K1: Additional heat loss | M1: Addition | N1: Watts | O1: kWh
B2: Room | E2: Air Changes per hour | G2: ='Design Details'!G95 -> 0 | H2: Floor | I2: =SUM(K20:K22) -> 0 | J2: =SUM(L20:L22) -> 0 | K2: Thermal Bridging (New Build >2006) | M2: 0 | N2: =SUM(I$2:I$6)*M2 -> 0 | O2: =SUM(J$2:J$6)*M2 -> 0 | Q2: 3 edges (long single) | R2: Level | Y2: 1
B3: Level | E3: Air Change Factor (W/m³K) | G3: 0.33 | H3: Ext Wall | I3: =K27 -> 0 | J3: =L27 -> 0 | K3: Exposed location | M3: 0 | N3: =SUM(I$2:I$6)*M3 -> 0 | O3: =SUM(J$2:J$6)*M3 -> 0 | Q3: 3 edges (short single) | R3: Please Select Floor | S3: =IF($C$3="Ground floor","Solid Floor (in contact with ground)",IF($C$3="Single Storey","Solid Floor (in contact with ground)","n/a")) -> n/a | T3: ='Design Details'!C21 -> 10 | U3: unheated | V3: 0 | W3: 0 | X3: 0 | Y3: 2
B4: Design Room Temp (°C) | D4: ='Design Details'!E95 -> 0 | E4: Total Volume (m³) | G4: =SUM(I10:I12,I14:I18) -> 0 | H4: Roof | I4: =SUM(K32,K36) -> 0 | J4: =SUM(L32,L36) -> 0 | K4: High ceiling | M4: 0 | N4: =SUM(I$2:I$6)*M4 -> 0 | O4: =SUM(J$2:J$6)*M4 -> 0 | Q4: One edge | R4: Ground floor | S4: =IF($C$3="Ground floor","Suspended Floor",IF($C$3="Single Storey","Suspended Floor","n/a")) -> n/a | U4: 16 | V4: 0.1 | W4: 0.2 | X4: 0.025 | Y4: 3
B5: Outside Design Temp (°C) | D5: ='Design Details'!C19 -> -2.5 | E5: Heat loss (W) | G5: =G4*G3*D6*G2 -> 0 | H5: Glazing | I5: =SUM(K38:K44,K46:K49,K51:K54) -> 0 | J5: =SUM(L38:L44,L46:L49,L51:L54) -> 0 | K5: Intermittent heating | M5: 0 | N5: =SUM(I$2:I$6)*M5 -> 0 | O5: =SUM(J$2:J$6)*M5 -> 0 | Q5: Two adjacent | R5: Mid-floor | U5: 18 | X5: 0.05 | Y5: 4
B6: Temp Difference (°C) | D6: =D4-D5 -> 2.5 | E6: Estimated Energy usage (kWh) | G6: =G4*G3*D7*24/1000 -> 0 | H6: Int./Party Wall | I6: =SUM(K56:K59,K61) -> 0 | J6: =SUM(L61) -> 0 | N6: Total Room Heat Loss (W) | O6: =SUM(G5,I2:I6,N2:N5) -> 0 | Q6: Two opposite | R6: Single storey | U6: 21 | X6: 0.075 | Y6: 5
B7: Degree Days | D7: ='Design Details'!C20 -> 2228 | N7: Total Room Energy Usage (kWh) | O7: =SUM(G6,J2:J6,O2:O5) -> 0 | R7: Upper floor | U7: 22 | X7: 0.1 | Y7: 6
R8: =IF($C$3="Ground floor",'Design Details'!C$45,IF($C$3="Mid-floor",'Design Details'!C$55,IF($C$3="Upper floor",'Design Details'!C$65,IF($C$3="Single Storey",'Design Details'!C$75,0)))) -> 0 | Y8: 7
B9: Room Dimensions | Y9: 8
B10: Length (m) | D10: Width (m) | F10: Height (m) | H10: Volume (m³) | I10: =C10*E10*G10 -> 0 | Y10: 9
B11: Length (m) | D11: Width (m) | F11: Height (m) | H11: Volume (m³) | I11: =C11*E11*G11 -> 0 | Y11: 10
B12: Length (m) | D12: Width (m) | F12: Height (m) | H12: Volume (m³) | I12: =C12*E12*G12 -> 0
B13: Awkward Room Dimensions
B14: Length (m) | D14: Width (m) | F14: Height (m) | H14: Volume (m³) | I14: =((G14*E14)/2)*C14 -> 0 | J14: Pitched
B15: Length (m) | D15: Width (m) | F15: Height (m) | H15: Volume (m³) | I15: =C15*E15*G15/2 -> 0 | J15: Single Pitch
B16: Length (m) | D16: Height (m) | F16: Depth (m) | H16: Volume (m³) | I16: =E16*G16*C16/2 -> 0 | J16: Dormer 1
B17: Length (m) | D17: Height (m) | F17: Depth (m) | H17: Volume (m³) | I17: =E17*G17*C17/2 -> 0 | J17: Dormer 2
B18: Length (m) | D18: Height (m) | F18: Depth (m) | H18: Volume (m³) | I18: =E18*G18*C18/2 -> 0 | J18: Dormer 3
B19: Floor | J19: Temp Difference | K19: Heat Loss (W) | L19: Usage (kWh) | M19: =IF($C$3="Ground Floor","Select type of Ground Floor",IF($C$3="Single Storey","Select type of Ground Floor","#N/A")) -> #N/A
B20: =B10 -> Length (m) | D20: =D10 -> Width (m) | F20: Area (m²) | G20: =C20*E20 -> 0 | H20: U Value (W/m²K) | I20: =IF(M22="",R8,'floor u values'!K10) -> 0 | J20: =IF(C$3="Ground Floor",IF(M20="Solid Floor (in contact with ground)",D$4-T$3,D$4-D$5),IF(C$3="Single Storey",IF(M20="Solid Floor (in contact with ground)",D$4-T$3,D$4-D$5),0)) -> 0 | K20: =G20*I20*J20 -> 0 | L20: =IF($C$3=$R$5,0,IF($C$3=$R$7,0,G20*I20*$D$7*24/1000)) -> 0 | M20: n/a
B21: Length (m) | D21: Width (m) | F21: Area (m²) | G21: =C21*E21 -> 0 | H21: U Value (W/m²K) | I21: =I20 -> 0 | J21: =IF(C$3="Ground Floor",IF(M20="Solid Floor (in contact with ground)",D$4-T$3,D$4-D$5),IF(C$3="Single Storey",IF(M20="Solid Floor (in contact with ground)",D$4-T$3,D$4-D$5),0)) -> 0 | K21: =G21*I21*J21 -> 0 | L21: =IF($C$3=$R$5,0,IF($C$3=$R$7,0,G21*I21*$D$7*24/1000)) -> 0 | M21: Exposed floor (external)
B22: Length (m) | D22: Width (m) | F22: Area (m²) | G22: 0 | H22: U Value (W/m²K) | I22: =I20 -> 0 | J22: =IF(C$3="Ground Floor",IF(M20="Solid Floor (in contact with ground)",D$4-T$3,D$4-D$5),IF(C$3="Single Storey",IF(M20="Solid Floor (in contact with ground)",D$4-T$3,D$4-D$5),0)) -> 0 | K22: =G22*I22*J22 -> 0 | L22: =IF($C$3=$R$5,0,IF($C$3=$R$7,0,G22*I22*$D$7*24/1000)) -> 0
B23: External Wall | M23: =IF(M22="Two opposite","Between edges",IF(M22="One edge","Depth of room",IF(M22="3 edges (short single)","Short length",IF(M22="3 edges (long single)","Short length","")))) ->  | O23: =IF(M22="3 edges (short single)","Long length",IF(M22="3 edges (long single)","Long length","")) -> 
B24: Length (m) | D24: Height (m) | F24: Area (m²) | G24: 0
B25: Length (m) | D25: Height (m) | F25: Area (m²) | G25: 0
B26: Length (m) | D26: Height (m) | F26: Area (m²) | G26: 0
E27: Total | F27: Area (m²) | G27: =SUM(G24:G26)-SUM(G38:G44,G51:G54) -> 0 | H27: U Value (W/m²K) | I27: =IF($C$3="Ground floor",'Design Details'!C$48,IF($C$3="Mid-floor",'Design Details'!C$58,IF($C$3="Upper floor",'Design Details'!C$68,IF($C$3="Single Storey",'Design Details'!C$78,0)))) -> 0 | J27: =$D$6 -> 2.5 | K27: =G27*I27*J27 -> 0 | L27: =G27*I27*$D$7*24/1000 -> 0
B28: Ceiling (Flat)
B29: Length (m) | D29: Width (m) | F29: Area (m²) | G29: 0
B30: Length (m) | D30: Width (m) | F30: Area (m²) | G30: 0
B31: Length (m) | D31: Width (m) | F31: Area (m²) | G31: 0 | M31: Select Temp/Type of Space Above
E32: Total | F32: Area (m²) | G32: =SUM(G29:G31)-SUM(G46:G49) -> 0 | H32: U Value (W/m²K) | I32: =IF($C$3="Ground floor",'Design Details'!C$49,IF($C$3="Mid-floor",'Design Details'!C$59,IF($C$3="Upper floor",INDIRECT(T52),IF($C$3="Single Storey",INDIRECT(T53),0)))) -> 0 | J32: =U51 -> 0 | K32: =G32*I32*J32 -> 0 | L32: =IF($C$3=$R$4,0,IF($C$3=$R$5,0,G32*I32*$D$7*24/1000)) -> 0 | M32: Select...
B33: Ceiling (Awkward)
B34: Length (m) | C34: =C14*2 -> 0 | D34: Pitch (m) | E34: =SQRT(POWER(E14,2)+POWER(G14,2)) -> 0 | F34: Area (m²) | G34: =C34*E34 -> 0 | H34: Pitched
B35: Length (m) | C35: =C15 -> 0 | D35: Pitch (m) | E35: =SQRT(POWER(E15,2)+POWER(G15,2)) -> 0 | F35: Area (m²) | G35: 0 | H35: Single Pitch
E36: Total | F36: Area (m²) | G36: =SUM(G34:G35)-SUM(G46:G49) -> 0 | H36: U Value (W/m²K) | I36: =IF($C$3="Ground floor",'Design Details'!C$50,IF($C$3="Mid-floor",'Design Details'!C$60,IF($C$3="Upper floor",'Design Details'!C$70,IF($C$3="Single Storey",'Design Details'!C$80,0)))) -> 0 | J36: =$D$6 -> 2.5 | K36: 0 | L36: =IF($C$3=$R$4,0,IF($C$3=$R$5,0,G36*I36*$D$7*24/1000)) -> 0
B37: Windows
B38: Width (m) | D38: Height (m) | F38: Area (m²) | G38: 0 | H38: U Value (W/m²K) | I38: =IF($C$3="Ground floor",'Design Details'!C$46,IF($C$3="Mid-floor",'Design Details'!C$56,IF($C$3="Upper floor",'Design Details'!C$66,IF($C$3="Single Storey",'Design Details'!C$76,0)))) -> 0 | J38: 2.5 | K38: 0 | L38: =G38*I38*$D$7*24/1000 -> 0
B39: Width (m) | D39: Height (m) | F39: Area (m²) | G39: 0 | H39: U Value (W/m²K) | I39: =IF($C$3="Ground floor",'Design Details'!C$46,IF($C$3="Mid-floor",'Design Details'!C$56,IF($C$3="Upper floor",'Design Details'!C$66,IF($C$3="Single Storey",'Design Details'!C$76,0)))) -> 0 | J39: 2.5 | K39: 0 | L39: 0
B40: Width (m) | D40: Height (m) | F40: Area (m²) | G40: 0 | H40: U Value (W/m²K) | I40: =IF($C$3="Ground floor",'Design Details'!C$46,IF($C$3="Mid-floor",'Design Details'!C$56,IF($C$3="Upper floor",'Design Details'!C$66,IF($C$3="Single Storey",'Design Details'!C$76,0)))) -> 0 | J40: 2.5 | K40: 0 | L40: 0
B41: Width (m) | D41: Height (m) | F41: Area (m²) | G41: 0 | H41: U Value (W/m²K) | I41: =IF($C$3="Ground floor",'Design Details'!C$46,IF($C$3="Mid-floor",'Design Details'!C$56,IF($C$3="Upper floor",'Design Details'!C$66,IF($C$3="Single Storey",'Design Details'!C$76,0)))) -> 0 | J41: 2.5 | K41: 0 | L41: 0
B42: Width (m) | D42: Height (m) | F42: Area (m²) | G42: 0 | H42: U Value (W/m²K) | I42: =IF($C$3="Ground floor",'Design Details'!C$46,IF($C$3="Mid-floor",'Design Details'!C$56,IF($C$3="Upper floor",'Design Details'!C$66,IF($C$3="Single Storey",'Design Details'!C$76,0)))) -> 0 | J42: 2.5 | K42: 0 | L42: 0
B43: Width (m) | D43: Height (m) | F43: Area (m²) | G43: 0 | H43: U Value (W/m²K) | I43: =IF($C$3="Ground floor",'Design Details'!C$46,IF($C$3="Mid-floor",'Design Details'!C$56,IF($C$3="Upper floor",'Design Details'!C$66,IF($C$3="Single Storey",'Design Details'!C$76,0)))) -> 0 | J43: 2.5 | K43: 0 | L43: 0
B44: Width (m) | D44: Height (m) | F44: Area (m²) | G44: 0 | H44: U Value (W/m²K) | I44: =IF($C$3="Ground floor",'Design Details'!C$46,IF($C$3="Mid-floor",'Design Details'!C$56,IF($C$3="Upper floor",'Design Details'!C$66,IF($C$3="Single Storey",'Design Details'!C$76,0)))) -> 0 | J44: 2.5 | K44: 0 | L44: 0
B45: Roof Glazing | Q45: Options for upper floor or single storey | R45: Options for Ground or Mid Floor | S45: Drop-Down List | T45: U-Value Selector | U45: Temp Diff Selector
B46: Width (m) | D46: Height (m) | F46: Area (m²) | G46: 0 | H46: U Value (W/m²K) | I46: =IF($C$3="Ground floor",'Design Details'!C$53,IF($C$3="Mid-floor",'Design Details'!C$63,IF($C$3="Upper floor",'Design Details'!C$73,IF($C$3="Single Storey",'Design Details'!C$83,0)))) -> 0 | J46: 2.5 | K46: 0 | L46: =G46*I46*$D$7*24/1000 -> 0
B47: Width (m) | D47: Height (m) | F47: Area (m²) | G47: 0 | H47: U Value (W/m²K) | I47: =IF($C$3="Ground floor",'Design Details'!C$53,IF($C$3="Mid-floor",'Design Details'!C$63,IF($C$3="Upper floor",'Design Details'!C$73,IF($C$3="Single Storey",'Design Details'!C$83,0)))) -> 0 | J47: 2.5 | K47: 0 | L47: =G47*I47*$D$7*24/1000 -> 0
B48: Width (m) | D48: Height (m) | F48: Area (m²) | G48: 0 | H48: U Value (W/m²K) | I48: =IF($C$3="Ground floor",'Design Details'!C$53,IF($C$3="Mid-floor",'Design Details'!C$63,IF($C$3="Upper floor",'Design Details'!C$73,IF($C$3="Single Storey",'Design Details'!C$83,0)))) -> 0 | J48: 2.5 | K48: 0 | L48: =G48*I48*$D$7*24/1000 -> 0
B49: Width (m) | D49: Height (m) | F49: Area (m²) | G49: 0 | H49: U Value (W/m²K) | I49: =IF($C$3="Ground floor",'Design Details'!C$53,IF($C$3="Mid-floor",'Design Details'!C$63,IF($C$3="Upper floor",'Design Details'!C$73,IF($C$3="Single Storey",'Design Details'!C$83,0)))) -> 0 | J49: 2.5 | K49: 0 | L49: =G49*I49*$D$7*24/1000 -> 0
B50: External Doors | S50: Select...
B51: Width (m) | D51: Height (m) | F51: Area (m²) | G51: 0 | H51: U Value (W/m²K) | I51: =IF($C$3="Ground floor",'Design Details'!C$47,IF($C$3="Mid-floor",'Design Details'!C$57,IF($C$3="Upper floor",'Design Details'!C$67,IF($C$3="Single Storey",'Design Details'!C$77,0)))) -> 0 | J51: 2.5 | K51: 0 | L51: =G51*I51*$D$7*24/1000 -> 0 | Q51: Outside | R51: Unheated | S51: =IF(OR($C$3="Ground Floor",$C$3="Mid-floor"),R51,Q51) -> Outside | T51: =IF(M32="Unheated",1,0) -> 0 | U51: =IF(M32="Select...",0,(IF(M32="Outside",D6,IF(M32="Unheated",D4-10,D4-M32)))) -> 0
B52: Width (m) | D52: Height (m) | F52: Area (m²) | G52: 0 | H52: U Value (W/m²K) | I52: =IF($C$3="Ground floor",'Design Details'!C$47,IF($C$3="Mid-floor",'Design Details'!C$57,IF($C$3="Upper floor",'Design Details'!C$67,IF($C$3="Single Storey",'Design Details'!C$77,0)))) -> 0 | J52: 2.5 | K52: 0 | L52: =G52*I52*$D$7*24/1000 -> 0 | Q52: Unheated | R52: 16 | S52: =IF(OR($C$3="Ground Floor",$C$3="Mid-floor"),R52,Q52) -> Unheated | T52: ="'Design Details'!C$"&69+T51 -> 'Design Details'!C$69
B53: Width (m) | D53: Height (m) | F53: Area (m²) | G53: 0 | H53: U Value (W/m²K) | I53: =IF($C$3="Ground floor",'Design Details'!C$47,IF($C$3="Mid-floor",'Design Details'!C$57,IF($C$3="Upper floor",'Design Details'!C$67,IF($C$3="Single Storey",'Design Details'!C$77,0)))) -> 0 | J53: 2.5 | K53: 0 | L53: =G53*I53*$D$7*24/1000 -> 0 | R53: 18 | S53: =IF(OR($C$3="Ground Floor",$C$3="Mid-floor"),R53,Q53) -> 0 | T53: ="'Design Details'!C$"&79+T51 -> 'Design Details'!C$79
B54: Width (m) | D54: Height (m) | F54: Area (m²) | G54: 0 | H54: U Value (W/m²K) | I54: =IF($C$3="Ground floor",'Design Details'!C$47,IF($C$3="Mid-floor",'Design Details'!C$57,IF($C$3="Upper floor",'Design Details'!C$67,IF($C$3="Single Storey",'Design Details'!C$77,0)))) -> 0 | J54: 2.5 | K54: 0 | L54: =G54*I54*$D$7*24/1000 -> 0 | R54: 21 | S54: =IF(OR($C$3="Ground Floor",$C$3="Mid-floor"),R54,Q54) -> 0
B55: Internal Walls | M55: Adjoining Room Temp (°C) | R55: 22 | S55: =IF(OR($C$3="Ground Floor",$C$3="Mid-floor"),R55,Q37) -> 0
B56: Length (m) | D56: Height (m) | F56: Area (m²) | G56: 0 | H56: U Value (W/m²K) | I56: =IF($C$3="Ground floor",'Design Details'!C$51,IF($C$3="Mid-floor",'Design Details'!C$61,IF($C$3="Upper floor",'Design Details'!C$71,IF($C$3="Single Storey",'Design Details'!C$81,0)))) -> 0 | J56: =IF(M56="",0,IF(M56="unheated",D$4-10,D$4-M56)) -> 0 | K56: 0
B57: Length (m) | D57: Height (m) | F57: Area (m²) | G57: 0 | H57: U Value (W/m²K) | I57: =IF($C$3="Ground floor",'Design Details'!C$51,IF($C$3="Mid-floor",'Design Details'!C$61,IF($C$3="Upper floor",'Design Details'!C$71,IF($C$3="Single Storey",'Design Details'!C$81,0)))) -> 0 | J57: =IF(M57="",0,IF(M57="unheated",D$4-10,D$4-M57)) -> 0 | K57: 0
B58: Length (m) | D58: Height (m) | F58: Area (m²) | G58: 0 | H58: U Value (W/m²K) | I58: =IF($C$3="Ground floor",'Design Details'!C$51,IF($C$3="Mid-floor",'Design Details'!C$61,IF($C$3="Upper floor",'Design Details'!C$71,IF($C$3="Single Storey",'Design Details'!C$81,0)))) -> 0 | J58: =IF(M58="",0,IF(M58="unheated",D$4-10,D$4-M58)) -> 0 | K58: 0
B59: Length (m) | D59: Height (m) | F59: Area (m²) | G59: 0 | H59: U Value (W/m²K) | I59: =IF($C$3="Ground floor",'Design Details'!C$51,IF($C$3="Mid-floor",'Design Details'!C$61,IF($C$3="Upper floor",'Design Details'!C$71,IF($C$3="Single Storey",'Design Details'!C$81,0)))) -> 0 | J59: =IF(M59="",0,IF(M59="unheated",D$4-10,D$4-M59)) -> 0 | K59: 0
B60: Party Wall
B61: Length (m) | D61: Height (m) | F61: Area (m²) | G61: 0 | H61: U Value (W/m²K) | I61: =IF($C$3="Ground floor",'Design Details'!C$52,IF($C$3="Mid-floor",'Design Details'!C$62,IF($C$3="Upper floor",'Design Details'!C$72,IF($C$3="Single Storey",'Design Details'!C$82,0)))) -> 0 | J61: =D4-10 -> -10 | K61: 0 | L61: =G61*I61*$D$7*24/1000 -> 0

Sheet 10
B1: Room Information | E1: Ventilation Heat Loss | H1: Fabric | I1: Heat Loss (W) | J1: Usage (kWh) | K1: Additional heat loss | M1: Addition | N1: Watts | O1: kWh
B2: Room | E2: Air Changes per hour | G2: ='Design Details'!G96 -> 0 | H2: Floor | I2: =SUM(K20:K22) -> 0 | J2: =SUM(L20:L22) -> 0 | K2: Thermal Bridging (New Build >2006) | M2: 0 | N2: =SUM(I$2:I$6)*M2 -> 0 | O2: =SUM(J$2:J$6)*M2 -> 0 | Q2: 3 edges (long single) | R2: Level | Y2: 1
B3: Level | E3: Air Change Factor (W/m³K) | G3: 0.33 | H3: Ext Wall | I3: =K27 -> 0 | J3: =L27 -> 0 | K3: Exposed location | M3: 0 | N3: =SUM(I$2:I$6)*M3 -> 0 | O3: =SUM(J$2:J$6)*M3 -> 0 | Q3: 3 edges (short single) | R3: Please Select Floor | S3: =IF($C$3="Ground floor","Solid Floor (in contact with ground)",IF($C$3="Single Storey","Solid Floor (in contact with ground)","n/a")) -> n/a | T3: ='Design Details'!C21 -> 10 | U3: unheated | V3: 0 | W3: 0 | X3: 0 | Y3: 2
B4: Design Room Temp (°C) | D4: ='Design Details'!E96 -> 0 | E4: Total Volume (m³) | G4: =SUM(I10:I12,I14:I18) -> 0 | H4: Roof | I4: =SUM(K32,K36) -> 0 | J4: =SUM(L32,L36) -> 0 | K4: High ceiling | M4: 0 | N4: =SUM(I$2:I$6)*M4 -> 0 | O4: =SUM(J$2:J$6)*M4 -> 0 | Q4: One edge | R4: Ground floor | S4: =IF($C$3="Ground floor","Suspended Floor",IF($C$3="Single Storey","Suspended Floor","n/a")) -> n/a | U4: 16 | V4: 0.1 | W4: 0.2 | X4: 0.025 | Y4: 3
B5: Outside Design Temp (°C) | D5: ='Design Details'!C19 -> -2.5 | E5: Heat loss (W) | G5: =G4*G3*D6*G2 -> 0 | H5: Glazing | I5: =SUM(K38:K44,K46:K49,K51:K54) -> 0 | J5: =SUM(L38:L44,L46:L49,L51:L54) -> 0 | K5: Intermittent heating | M5: 0 | N5: =SUM(I$2:I$6)*M5 -> 0 | O5: =SUM(J$2:J$6)*M5 -> 0 | Q5: Two adjacent | R5: Mid-floor | U5: 18 | X5: 0.05 | Y5: 4
B6: Temp Difference (°C) | D6: =D4-D5 -> 2.5 | E6: Estimated Energy usage (kWh) | G6: =G4*G3*D7*24/1000 -> 0 | H6: Int./Party Wall | I6: =SUM(K56:K59,K61) -> 0 | J6: =SUM(L61) -> 0 | N6: Total Room Heat Loss (W) | O6: =SUM(G5,I2:I6,N2:N5) -> 0 | Q6: Two opposite | R6: Single storey | U6: 21 | X6: 0.075 | Y6: 5
B7: Degree Days | D7: ='Design Details'!C20 -> 2228 | N7: Total Room Energy Usage (kWh) | O7: =SUM(G6,J2:J6,O2:O5) -> 0 | R7: Upper floor | U7: 22 | X7: 0.1 | Y7: 6
R8: =IF($C$3="Ground floor",'Design Details'!C$45,IF($C$3="Mid-floor",'Design Details'!C$55,IF($C$3="Upper floor",'Design Details'!C$65,IF($C$3="Single Storey",'Design Details'!C$75,0)))) -> 0 | Y8: 7
B9: Room Dimensions | Y9: 8
B10: Length (m) | D10: Width (m) | F10: Height (m) | H10: Volume (m³) | I10: =C10*E10*G10 -> 0 | Y10: 9
B11: Length (m) | D11: Width (m) | F11: Height (m) | H11: Volume (m³) | I11: =C11*E11*G11 -> 0 | Y11: 10
B12: Length (m) | D12: Width (m) | F12: Height (m) | H12: Volume (m³) | I12: =C12*E12*G12 -> 0
B13: Awkward Room Dimensions
B14: Length (m) | D14: Width (m) | F14: Height (m) | H14: Volume (m³) | I14: =((G14*E14)/2)*C14 -> 0 | J14: Pitched
B15: Length (m) | D15: Width (m) | F15: Height (m) | H15: Volume (m³) | I15: =C15*E15*G15/2 -> 0 | J15: Single Pitch
B16: Length (m) | D16: Height (m) | F16: Depth (m) | H16: Volume (m³) | I16: =E16*G16*C16/2 -> 0 | J16: Dormer 1
B17: Length (m) | D17: Height (m) | F17: Depth (m) | H17: Volume (m³) | I17: =E17*G17*C17/2 -> 0 | J17: Dormer 2
B18: Length (m) | D18: Height (m) | F18: Depth (m) | H18: Volume (m³) | I18: =E18*G18*C18/2 -> 0 | J18: Dormer 3
B19: Floor | J19: Temp Difference | K19: Heat Loss (W) | L19: Usage (kWh) | M19: =IF($C$3="Ground Floor","Select type of Ground Floor",IF($C$3="Single Storey","Select type of Ground Floor","#N/A")) -> #N/A
B20: =B10 -> Length (m) | D20: =D10 -> Width (m) | F20: Area (m²) | G20: =C20*E20 -> 0 | H20: U Value (W/m²K) | I20: =IF(M22="",R8,'floor u values'!K11) -> 0 | J20: =IF(C$3="Ground Floor",IF(M20="Solid Floor (in contact with ground)",D$4-T$3,D$4-D$5),IF(C$3="Single Storey",IF(M20="Solid Floor (in contact with ground)",D$4-T$3,D$4-D$5),0)) -> 0 | K20: =G20*I20*J20 -> 0 | L20: =IF($C$3=$R$5,0,IF($C$3=$R$7,0,G20*I20*$D$7*24/1000)) -> 0 | M20: n/a
B21: Length (m) | D21: Width (m) | F21: Area (m²) | G21: =C21*E21 -> 0 | H21: U Value (W/m²K) | I21: =I20 -> 0 | J21: =IF(C$3="Ground Floor",IF(M20="Solid Floor (in contact with ground)",D$4-T$3,D$4-D$5),IF(C$3="Single Storey",IF(M20="Solid Floor (in contact with ground)",D$4-T$3,D$4-D$5),0)) -> 0 | K21: =G21*I21*J21 -> 0 | L21: =IF($C$3=$R$5,0,IF($C$3=$R$7,0,G21*I21*$D$7*24/1000)) -> 0 | M21: Exposed floor (external)
B22: Length (m) | D22: Width (m) | F22: Area (m²) | G22: 0 | H22: U Value (W/m²K) | I22: =I20 -> 0 | J22: =IF(C$3="Ground Floor",IF(M20="Solid Floor (in contact with ground)",D$4-T$3,D$4-D$5),IF(C$3="Single Storey",IF(M20="Solid Floor (in contact with ground)",D$4-T$3,D$4-D$5),0)) -> 0 | K22: =G22*I22*J22 -> 0 | L22: =IF($C$3=$R$5,0,IF($C$3=$R$7,0,G22*I22*$D$7*24/1000)) -> 0
B23: External Wall | M23: =IF(M22="Two opposite","Between edges",IF(M22="One edge","Depth of room",IF(M22="3 edges (short single)","Short length",IF(M22="3 edges (long single)","Short length","")))) ->  | O23: =IF(M22="3 edges (short single)","Long length",IF(M22="3 edges (long single)","Long length","")) -> 
B24: Length (m) | D24: Height (m) | F24: Area (m²) | G24: 0
B25: Length (m) | D25: Height (m) | F25: Area (m²) | G25: 0
B26: Length (m) | D26: Height (m) | F26: Area (m²) | G26: 0
E27: Total | F27: Area (m²) | G27: =SUM(G24:G26)-SUM(G38:G44,G51:G54) -> 0 | H27: U Value (W/m²K) | I27: =IF($C$3="Ground floor",'Design Details'!C$48,IF($C$3="Mid-floor",'Design Details'!C$58,IF($C$3="Upper floor",'Design Details'!C$68,IF($C$3="Single Storey",'Design Details'!C$78,0)))) -> 0 | J27: =$D$6 -> 2.5 | K27: =G27*I27*J27 -> 0 | L27: =G27*I27*$D$7*24/1000 -> 0
B28: Ceiling (Flat)
B29: Length (m) | D29: Width (m) | F29: Area (m²) | G29: 0
B30: Length (m) | D30: Width (m) | F30: Area (m²) | G30: 0
B31: Length (m) | D31: Width (m) | F31: Area (m²) | G31: 0 | M31: Select Temp/Type of Space Above
E32: Total | F32: Area (m²) | G32: =SUM(G29:G31)-SUM(G46:G49) -> 0 | H32: U Value (W/m²K) | I32: =IF($C$3="Ground floor",'Design Details'!C$49,IF($C$3="Mid-floor",'Design Details'!C$59,IF($C$3="Upper floor",INDIRECT(T52),IF($C$3="Single Storey",INDIRECT(T53),0)))) -> 0 | J32: =U51 -> 0 | K32: =G32*I32*J32 -> 0 | L32: =IF($C$3=$R$4,0,IF($C$3=$R$5,0,G32*I32*$D$7*24/1000)) -> 0 | M32: Select...
B33: Ceiling (Awkward)
B34: Length (m) | C34: =C14*2 -> 0 | D34: Pitch (m) | E34: =SQRT(POWER(E14,2)+POWER(G14,2)) -> 0 | F34: Area (m²) | G34: =C34*E34 -> 0 | H34: Pitched
B35: Length (m) | C35: =C15 -> 0 | D35: Pitch (m) | E35: =SQRT(POWER(E15,2)+POWER(G15,2)) -> 0 | F35: Area (m²) | G35: 0 | H35: Single Pitch
E36: Total | F36: Area (m²) | G36: =SUM(G34:G35)-SUM(G46:G49) -> 0 | H36: U Value (W/m²K) | I36: =IF($C$3="Ground floor",'Design Details'!C$50,IF($C$3="Mid-floor",'Design Details'!C$60,IF($C$3="Upper floor",'Design Details'!C$70,IF($C$3="Single Storey",'Design Details'!C$80,0)))) -> 0 | J36: =$D$6 -> 2.5 | K36: 0 | L36: =IF($C$3=$R$4,0,IF($C$3=$R$5,0,G36*I36*$D$7*24/1000)) -> 0
B37: Windows
B38: Width (m) | D38: Height (m) | F38: Area (m²) | G38: 0 | H38: U Value (W/m²K) | I38: =IF($C$3="Ground floor",'Design Details'!C$46,IF($C$3="Mid-floor",'Design Details'!C$56,IF($C$3="Upper floor",'Design Details'!C$66,IF($C$3="Single Storey",'Design Details'!C$76,0)))) -> 0 | J38: 2.5 | K38: 0 | L38: =G38*I38*$D$7*24/1000 -> 0
B39: Width (m) | D39: Height (m) | F39: Area (m²) | G39: 0 | H39: U Value (W/m²K) | I39: =IF($C$3="Ground floor",'Design Details'!C$46,IF($C$3="Mid-floor",'Design Details'!C$56,IF($C$3="Upper floor",'Design Details'!C$66,IF($C$3="Single Storey",'Design Details'!C$76,0)))) -> 0 | J39: 2.5 | K39: 0 | L39: 0
B40: Width (m) | D40: Height (m) | F40: Area (m²) | G40: 0 | H40: U Value (W/m²K) | I40: =IF($C$3="Ground floor",'Design Details'!C$46,IF($C$3="Mid-floor",'Design Details'!C$56,IF($C$3="Upper floor",'Design Details'!C$66,IF($C$3="Single Storey",'Design Details'!C$76,0)))) -> 0 | J40: 2.5 | K40: 0 | L40: 0
B41: Width (m) | D41: Height (m) | F41: Area (m²) | G41: 0 | H41: U Value (W/m²K) | I41: =IF($C$3="Ground floor",'Design Details'!C$46,IF($C$3="Mid-floor",'Design Details'!C$56,IF($C$3="Upper floor",'Design Details'!C$66,IF($C$3="Single Storey",'Design Details'!C$76,0)))) -> 0 | J41: 2.5 | K41: 0 | L41: 0
B42: Width (m) | D42: Height (m) | F42: Area (m²) | G42: 0 | H42: U Value (W/m²K) | I42: =IF($C$3="Ground floor",'Design Details'!C$46,IF($C$3="Mid-floor",'Design Details'!C$56,IF($C$3="Upper floor",'Design Details'!C$66,IF($C$3="Single Storey",'Design Details'!C$76,0)))) -> 0 | J42: 2.5 | K42: 0 | L42: 0
B43: Width (m) | D43: Height (m) | F43: Area (m²) | G43: 0 | H43: U Value (W/m²K) | I43: =IF($C$3="Ground floor",'Design Details'!C$46,IF($C$3="Mid-floor",'Design Details'!C$56,IF($C$3="Upper floor",'Design Details'!C$66,IF($C$3="Single Storey",'Design Details'!C$76,0)))) -> 0 | J43: 2.5 | K43: 0 | L43: 0
B44: Width (m) | D44: Height (m) | F44: Area (m²) | G44: 0 | H44: U Value (W/m²K) | I44: =IF($C$3="Ground floor",'Design Details'!C$46,IF($C$3="Mid-floor",'Design Details'!C$56,IF($C$3="Upper floor",'Design Details'!C$66,IF($C$3="Single Storey",'Design Details'!C$76,0)))) -> 0 | J44: 2.5 | K44: 0 | L44: 0
B45: Roof Glazing | Q45: Options for upper floor or single storey | R45: Options for Ground or Mid Floor | S45: Drop-Down List | T45: U-Value Selector | U45: Temp Diff Selector
B46: Width (m) | D46: Height (m) | F46: Area (m²) | G46: 0 | H46: U Value (W/m²K) | I46: =IF($C$3="Ground floor",'Design Details'!C$53,IF($C$3="Mid-floor",'Design Details'!C$63,IF($C$3="Upper floor",'Design Details'!C$73,IF($C$3="Single Storey",'Design Details'!C$83,0)))) -> 0 | J46: 2.5 | K46: 0 | L46: =G46*I46*$D$7*24/1000 -> 0
B47: Width (m) | D47: Height (m) | F47: Area (m²) | G47: 0 | H47: U Value (W/m²K) | I47: =IF($C$3="Ground floor",'Design Details'!C$53,IF($C$3="Mid-floor",'Design Details'!C$63,IF($C$3="Upper floor",'Design Details'!C$73,IF($C$3="Single Storey",'Design Details'!C$83,0)))) -> 0 | J47: 2.5 | K47: 0 | L47: =G47*I47*$D$7*24/1000 -> 0
B48: Width (m) | D48: Height (m) | F48: Area (m²) | G48: 0 | H48: U Value (W/m²K) | I48: =IF($C$3="Ground floor",'Design Details'!C$53,IF($C$3="Mid-floor",'Design Details'!C$63,IF($C$3="Upper floor",'Design Details'!C$73,IF($C$3="Single Storey",'Design Details'!C$83,0)))) -> 0 | J48: 2.5 | K48: 0 | L48: =G48*I48*$D$7*24/1000 -> 0
B49: Width (m) | D49: Height (m) | F49: Area (m²) | G49: 0 | H49: U Value (W/m²K) | I49: =IF($C$3="Ground floor",'Design Details'!C$53,IF($C$3="Mid-floor",'Design Details'!C$63,IF($C$3="Upper floor",'Design Details'!C$73,IF($C$3="Single Storey",'Design Details'!C$83,0)))) -> 0 | J49: 2.5 | K49: 0 | L49: =G49*I49*$D$7*24/1000 -> 0
B50: External Doors | S50: Select...
B51: Width (m) | D51: Height (m) | F51: Area (m²) | G51: 0 | H51: U Value (W/m²K) | I51: =IF($C$3="Ground floor",'Design Details'!C$47,IF($C$3="Mid-floor",'Design Details'!C$57,IF($C$3="Upper floor",'Design Details'!C$67,IF($C$3="Single Storey",'Design Details'!C$77,0)))) -> 0 | J51: 2.5 | K51: 0 | L51: =G51*I51*$D$7*24/1000 -> 0 | Q51: Outside | R51: Unheated | S51: =IF(OR($C$3="Ground Floor",$C$3="Mid-floor"),R51,Q51) -> Outside | T51: =IF(M32="Unheated",1,0) -> 0 | U51: =IF(M32="Select...",0,(IF(M32="Outside",D6,IF(M32="Unheated",D4-10,D4-M32)))) -> 0
B52: Width (m) | D52: Height (m) | F52: Area (m²) | G52: 0 | H52: U Value (W/m²K) | I52: =IF($C$3="Ground floor",'Design Details'!C$47,IF($C$3="Mid-floor",'Design Details'!C$57,IF($C$3="Upper floor",'Design Details'!C$67,IF($C$3="Single Storey",'Design Details'!C$77,0)))) -> 0 | J52: 2.5 | K52: 0 | L52: =G52*I52*$D$7*24/1000 -> 0 | Q52: Unheated | R52: 16 | S52: =IF(OR($C$3="Ground Floor",$C$3="Mid-floor"),R52,Q52) -> Unheated | T52: ="'Design Details'!C$"&69+T51 -> 'Design Details'!C$69
B53: Width (m) | D53: Height (m) | F53: Area (m²) | G53: 0 | H53: U Value (W/m²K) | I53: =IF($C$3="Ground floor",'Design Details'!C$47,IF($C$3="Mid-floor",'Design Details'!C$57,IF($C$3="Upper floor",'Design Details'!C$67,IF($C$3="Single Storey",'Design Details'!C$77,0)))) -> 0 | J53: 2.5 | K53: 0 | L53: =G53*I53*$D$7*24/1000 -> 0 | R53: 18 | S53: =IF(OR($C$3="Ground Floor",$C$3="Mid-floor"),R53,Q53) -> 0 | T53: ="'Design Details'!C$"&79+T51 -> 'Design Details'!C$79
B54: Width (m) | D54: Height (m) | F54: Area (m²) | G54: 0 | H54: U Value (W/m²K) | I54: =IF($C$3="Ground floor",'Design Details'!C$47,IF($C$3="Mid-floor",'Design Details'!C$57,IF($C$3="Upper floor",'Design Details'!C$67,IF($C$3="Single Storey",'Design Details'!C$77,0)))) -> 0 | J54: 2.5 | K54: 0 | L54: =G54*I54*$D$7*24/1000 -> 0 | R54: 21 | S54: =IF(OR($C$3="Ground Floor",$C$3="Mid-floor"),R54,Q54) -> 0
B55: Internal Walls | M55: Adjoining Room Temp (°C) | R55: 22 | S55: =IF(OR($C$3="Ground Floor",$C$3="Mid-floor"),R55,Q37) -> 0
B56: Length (m) | D56: Height (m) | F56: Area (m²) | G56: 0 | H56: U Value (W/m²K) | I56: =IF($C$3="Ground floor",'Design Details'!C$51,IF($C$3="Mid-floor",'Design Details'!C$61,IF($C$3="Upper floor",'Design Details'!C$71,IF($C$3="Single Storey",'Design Details'!C$81,0)))) -> 0 | J56: =IF(M56="",0,IF(M56="unheated",D$4-10,D$4-M56)) -> 0 | K56: 0
B57: Length (m) | D57: Height (m) | F57: Area (m²) | G57: 0 | H57: U Value (W/m²K) | I57: =IF($C$3="Ground floor",'Design Details'!C$51,IF($C$3="Mid-floor",'Design Details'!C$61,IF($C$3="Upper floor",'Design Details'!C$71,IF($C$3="Single Storey",'Design Details'!C$81,0)))) -> 0 | J57: =IF(M57="",0,IF(M57="unheated",D$4-10,D$4-M57)) -> 0 | K57: 0
B58: Length (m) | D58: Height (m) | F58: Area (m²) | G58: 0 | H58: U Value (W/m²K) | I58: =IF($C$3="Ground floor",'Design Details'!C$51,IF($C$3="Mid-floor",'Design Details'!C$61,IF($C$3="Upper floor",'Design Details'!C$71,IF($C$3="Single Storey",'Design Details'!C$81,0)))) -> 0 | J58: =IF(M58="",0,IF(M58="unheated",D$4-10,D$4-M58)) -> 0 | K58: 0
B59: Length (m) | D59: Height (m) | F59: Area (m²) | G59: 0 | H59: U Value (W/m²K) | I59: =IF($C$3="Ground floor",'Design Details'!C$51,IF($C$3="Mid-floor",'Design Details'!C$61,IF($C$3="Upper floor",'Design Details'!C$71,IF($C$3="Single Storey",'Design Details'!C$81,0)))) -> 0 | J59: =IF(M59="",0,IF(M59="unheated",D$4-10,D$4-M59)) -> 0 | K59: 0
B60: Party Wall
B61: Length (m) | D61: Height (m) | F61: Area (m²) | G61: 0 | H61: U Value (W/m²K) | I61: =IF($C$3="Ground floor",'Design Details'!C$52,IF($C$3="Mid-floor",'Design Details'!C$62,IF($C$3="Upper floor",'Design Details'!C$72,IF($C$3="Single Storey",'Design Details'!C$82,0)))) -> 0 | J61: =D4-10 -> -10 | K61: 0 | L61: =G61*I61*$D$7*24/1000 -> 0

Sheet 11
B1: Room Information | E1: Ventilation Heat Loss | H1: Fabric | I1: Heat Loss (W) | J1: Usage (kWh) | K1: Additional heat loss | M1: Addition | N1: Watts | O1: kWh
B2: Room | E2: Air Changes per hour | G2: ='Design Details'!G97 -> 0 | H2: Floor | I2: =SUM(K20:K22) -> 0 | J2: =SUM(L20:L22) -> 0 | K2: Thermal Bridging (New Build >2006) | M2: 0 | N2: =SUM(I$2:I$6)*M2 -> 0 | O2: =SUM(J$2:J$6)*M2 -> 0 | Q2: 3 edges (long single) | R2: Level | Y2: 1
B3: Level | E3: Air Change Factor (W/m³K) | G3: 0.33 | H3: Ext Wall | I3: =K27 -> 0 | J3: =L27 -> 0 | K3: Exposed location | M3: 0 | N3: =SUM(I$2:I$6)*M3 -> 0 | O3: =SUM(J$2:J$6)*M3 -> 0 | Q3: 3 edges (short single) | R3: Please Select Floor | S3: =IF($C$3="Ground floor","Solid Floor (in contact with ground)",IF($C$3="Single Storey","Solid Floor (in contact with ground)","n/a")) -> n/a | T3: ='Design Details'!C21 -> 10 | U3: unheated | V3: 0 | W3: 0 | X3: 0 | Y3: 2
B4: Design Room Temp (°C) | D4: ='Design Details'!E97 -> 0 | E4: Total Volume (m³) | G4: =SUM(I10:I12,I14:I18) -> 0 | H4: Roof | I4: =SUM(K32,K36) -> 0 | J4: =SUM(L32,L36) -> 0 | K4: High ceiling | M4: 0 | N4: =SUM(I$2:I$6)*M4 -> 0 | O4: =SUM(J$2:J$6)*M4 -> 0 | Q4: One edge | R4: Ground floor | S4: =IF($C$3="Ground floor","Suspended Floor",IF($C$3="Single Storey","Suspended Floor","n/a")) -> n/a | U4: 16 | V4: 0.1 | W4: 0.2 | X4: 0.025 | Y4: 3
B5: Outside Design Temp (°C) | D5: ='Design Details'!C19 -> -2.5 | E5: Heat loss (W) | G5: =G4*G3*D6*G2 -> 0 | H5: Glazing | I5: =SUM(K38:K44,K46:K49,K51:K54) -> 0 | J5: =SUM(L38:L44,L46:L49,L51:L54) -> 0 | K5: Intermittent heating | M5: 0 | N5: =SUM(I$2:I$6)*M5 -> 0 | O5: =SUM(J$2:J$6)*M5 -> 0 | Q5: Two adjacent | R5: Mid-floor | U5: 18 | X5: 0.05 | Y5: 4
B6: Temp Difference (°C) | D6: =D4-D5 -> 2.5 | E6: Estimated Energy usage (kWh) | G6: =G4*G3*D7*24/1000 -> 0 | H6: Int./Party Wall | I6: =SUM(K56:K59,K61) -> 0 | J6: =SUM(L61) -> 0 | N6: Total Room Heat Loss (W) | O6: =SUM(G5,I2:I6,N2:N5) -> 0 | Q6: Two opposite | R6: Single storey | U6: 21 | X6: 0.075 | Y6: 5
B7: Degree Days | D7: ='Design Details'!C20 -> 2228 | N7: Total Room Energy Usage (kWh) | O7: =SUM(G6,J2:J6,O2:O5) -> 0 | R7: Upper floor | U7: 22 | X7: 0.1 | Y7: 6
R8: =IF($C$3="Ground floor",'Design Details'!C$45,IF($C$3="Mid-floor",'Design Details'!C$55,IF($C$3="Upper floor",'Design Details'!C$65,IF($C$3="Single Storey",'Design Details'!C$75,0)))) -> 0 | Y8: 7
B9: Room Dimensions | Y9: 8
B10: Length (m) | D10: Width (m) | F10: Height (m) | H10: Volume (m³) | I10: =C10*E10*G10 -> 0 | Y10: 9
B11: Length (m) | D11: Width (m) | F11: Height (m) | H11: Volume (m³) | I11: =C11*E11*G11 -> 0 | Y11: 10
B12: Length (m) | D12: Width (m) | F12: Height (m) | H12: Volume (m³) | I12: =C12*E12*G12 -> 0
B13: Awkward Room Dimensions
B14: Length (m) | D14: Width (m) | F14: Height (m) | H14: Volume (m³) | I14: =((G14*E14)/2)*C14 -> 0 | J14: Pitched
B15: Length (m) | D15: Width (m) | F15: Height (m) | H15: Volume (m³) | I15: =C15*E15*G15/2 -> 0 | J15: Single Pitch
B16: Length (m) | D16: Height (m) | F16: Depth (m) | H16: Volume (m³) | I16: =E16*G16*C16/2 -> 0 | J16: Dormer 1
B17: Length (m) | D17: Height (m) | F17: Depth (m) | H17: Volume (m³) | I17: =E17*G17*C17/2 -> 0 | J17: Dormer 2
B18: Length (m) | D18: Height (m) | F18: Depth (m) | H18: Volume (m³) | I18: =E18*G18*C18/2 -> 0 | J18: Dormer 3
B19: Floor | J19: Temp Difference | K19: Heat Loss (W) | L19: Usage (kWh) | M19: =IF($C$3="Ground Floor","Select type of Ground Floor",IF($C$3="Single Storey","Select type of Ground Floor","#N/A")) -> #N/A
B20: =B10 -> Length (m) | D20: =D10 -> Width (m) | F20: Area (m²) | G20: =C20*E20 -> 0 | H20: U Value (W/m²K) | I20: =IF(M22="",R8,'floor u values'!K12) -> 0 | J20: =IF(C$3="Ground Floor",IF(M20="Solid Floor (in contact with ground)",D$4-T$3,D$4-D$5),IF(C$3="Single Storey",IF(M20="Solid Floor (in contact with ground)",D$4-T$3,D$4-D$5),0)) -> 0 | K20: =G20*I20*J20 -> 0 | L20: =IF($C$3=$R$5,0,IF($C$3=$R$7,0,G20*I20*$D$7*24/1000)) -> 0 | M20: n/a
B21: Length (m) | D21: Width (m) | F21: Area (m²) | G21: =C21*E21 -> 0 | H21: U Value (W/m²K) | I21: =I20 -> 0 | J21: =IF(C$3="Ground Floor",IF(M20="Solid Floor (in contact with ground)",D$4-T$3,D$4-D$5),IF(C$3="Single Storey",IF(M20="Solid Floor (in contact with ground)",D$4-T$3,D$4-D$5),0)) -> 0 | K21: =G21*I21*J21 -> 0 | L21: =IF($C$3=$R$5,0,IF($C$3=$R$7,0,G21*I21*$D$7*24/1000)) -> 0 | M21: Exposed floor (external)
B22: Length (m) | D22: Width (m) | F22: Area (m²) | G22: 0 | H22: U Value (W/m²K) | I22: =I20 -> 0 | J22: =IF(C$3="Ground Floor",IF(M20="Solid Floor (in contact with ground)",D$4-T$3,D$4-D$5),IF(C$3="Single Storey",IF(M20="Solid Floor (in contact with ground)",D$4-T$3,D$4-D$5),0)) -> 0 | K22: =G22*I22*J22 -> 0 | L22: =IF($C$3=$R$5,0,IF($C$3=$R$7,0,G22*I22*$D$7*24/1000)) -> 0
B23: External Wall | M23: =IF(M22="Two opposite","Between edges",IF(M22="One edge","Depth of room",IF(M22="3 edges (short single)","Short length",IF(M22="3 edges (long single)","Short length","")))) ->  | O23: =IF(M22="3 edges (short single)","Long length",IF(M22="3 edges (long single)","Long length","")) -> 
B24: Length (m) | D24: Height (m) | F24: Area (m²) | G24: 0
B25: Length (m) | D25: Height (m) | F25: Area (m²) | G25: 0
B26: Length (m) | D26: Height (m) | F26: Area (m²) | G26: 0
E27: Total | F27: Area (m²) | G27: =SUM(G24:G26)-SUM(G38:G44,G51:G54) -> 0 | H27: U Value (W/m²K) | I27: =IF($C$3="Ground floor",'Design Details'!C$48,IF($C$3="Mid-floor",'Design Details'!C$58,IF($C$3="Upper floor",'Design Details'!C$68,IF($C$3="Single Storey",'Design Details'!C$78,0)))) -> 0 | J27: =$D$6 -> 2.5 | K27: =G27*I27*J27 -> 0 | L27: =G27*I27*$D$7*24/1000 -> 0
B28: Ceiling (Flat)
B29: Length (m) | D29: Width (m) | F29: Area (m²) | G29: 0
B30: Length (m) | D30: Width (m) | F30: Area (m²) | G30: 0
B31: Length (m) | D31: Width (m) | F31: Area (m²) | G31: 0 | M31: Select Temp/Type of Space Above
E32: Total | F32: Area (m²) | G32: =SUM(G29:G31)-SUM(G46:G49) -> 0 | H32: U Value (W/m²K) | I32: =IF($C$3="Ground floor",'Design Details'!C$49,IF($C$3="Mid-floor",'Design Details'!C$59,IF($C$3="Upper floor",INDIRECT(T52),IF($C$3="Single Storey",INDIRECT(T53),0)))) -> 0 | J32: =U51 -> 0 | K32: =G32*I32*J32 -> 0 | L32: =IF($C$3=$R$4,0,IF($C$3=$R$5,0,G32*I32*$D$7*24/1000)) -> 0 | M32: Select...
B33: Ceiling (Awkward)
B34: Length (m) | C34: =C14*2 -> 0 | D34: Pitch (m) | E34: =SQRT(POWER(E14,2)+POWER(G14,2)) -> 0 | F34: Area (m²) | G34: =C34*E34 -> 0 | H34: Pitched
B35: Length (m) | C35: =C15 -> 0 | D35: Pitch (m) | E35: =SQRT(POWER(E15,2)+POWER(G15,2)) -> 0 | F35: Area (m²) | G35: 0 | H35: Single Pitch
E36: Total | F36: Area (m²) | G36: =SUM(G34:G35)-SUM(G46:G49) -> 0 | H36: U Value (W/m²K) | I36: =IF($C$3="Ground floor",'Design Details'!C$50,IF($C$3="Mid-floor",'Design Details'!C$60,IF($C$3="Upper floor",'Design Details'!C$70,IF($C$3="Single Storey",'Design Details'!C$80,0)))) -> 0 | J36: =$D$6 -> 2.5 | K36: 0 | L36: =IF($C$3=$R$4,0,IF($C$3=$R$5,0,G36*I36*$D$7*24/1000)) -> 0
B37: Windows
B38: Width (m) | D38: Height (m) | F38: Area (m²) | G38: 0 | H38: U Value (W/m²K) | I38: =IF($C$3="Ground floor",'Design Details'!C$46,IF($C$3="Mid-floor",'Design Details'!C$56,IF($C$3="Upper floor",'Design Details'!C$66,IF($C$3="Single Storey",'Design Details'!C$76,0)))) -> 0 | J38: 2.5 | K38: 0 | L38: =G38*I38*$D$7*24/1000 -> 0
B39: Width (m) | D39: Height (m) | F39: Area (m²) | G39: 0 | H39: U Value (W/m²K) | I39: =IF($C$3="Ground floor",'Design Details'!C$46,IF($C$3="Mid-floor",'Design Details'!C$56,IF($C$3="Upper floor",'Design Details'!C$66,IF($C$3="Single Storey",'Design Details'!C$76,0)))) -> 0 | J39: 2.5 | K39: 0 | L39: 0
B40: Width (m) | D40: Height (m) | F40: Area (m²) | G40: 0 | H40: U Value (W/m²K) | I40: =IF($C$3="Ground floor",'Design Details'!C$46,IF($C$3="Mid-floor",'Design Details'!C$56,IF($C$3="Upper floor",'Design Details'!C$66,IF($C$3="Single Storey",'Design Details'!C$76,0)))) -> 0 | J40: 2.5 | K40: 0 | L40: 0
B41: Width (m) | D41: Height (m) | F41: Area (m²) | G41: 0 | H41: U Value (W/m²K) | I41: =IF($C$3="Ground floor",'Design Details'!C$46,IF($C$3="Mid-floor",'Design Details'!C$56,IF($C$3="Upper floor",'Design Details'!C$66,IF($C$3="Single Storey",'Design Details'!C$76,0)))) -> 0 | J41: 2.5 | K41: 0 | L41: 0
B42: Width (m) | D42: Height (m) | F42: Area (m²) | G42: 0 | H42: U Value (W/m²K) | I42: =IF($C$3="Ground floor",'Design Details'!C$46,IF($C$3="Mid-floor",'Design Details'!C$56,IF($C$3="Upper floor",'Design Details'!C$66,IF($C$3="Single Storey",'Design Details'!C$76,0)))) -> 0 | J42: 2.5 | K42: 0 | L42: 0
B43: Width (m) | D43: Height (m) | F43: Area (m²) | G43: 0 | H43: U Value (W/m²K) | I43: =IF($C$3="Ground floor",'Design Details'!C$46,IF($C$3="Mid-floor",'Design Details'!C$56,IF($C$3="Upper floor",'Design Details'!C$66,IF($C$3="Single Storey",'Design Details'!C$76,0)))) -> 0 | J43: 2.5 | K43: 0 | L43: 0
B44: Width (m) | D44: Height (m) | F44: Area (m²) | G44: 0 | H44: U Value (W/m²K) | I44: =IF($C$3="Ground floor",'Design Details'!C$46,IF($C$3="Mid-floor",'Design Details'!C$56,IF($C$3="Upper floor",'Design Details'!C$66,IF($C$3="Single Storey",'Design Details'!C$76,0)))) -> 0 | J44: 2.5 | K44: 0 | L44: 0
B45: Roof Glazing | Q45: Options for upper floor or single storey | R45: Options for Ground or Mid Floor | S45: Drop-Down List | T45: U-Value Selector | U45: Temp Diff Selector
B46: Width (m) | D46: Height (m) | F46: Area (m²) | G46: 0 | H46: U Value (W/m²K) | I46: =IF($C$3="Ground floor",'Design Details'!C$53,IF($C$3="Mid-floor",'Design Details'!C$63,IF($C$3="Upper floor",'Design Details'!C$73,IF($C$3="Single Storey",'Design Details'!C$83,0)))) -> 0 | J46: 2.5 | K46: 0 | L46: =G46*I46*$D$7*24/1000 -> 0
B47: Width (m) | D47: Height (m) | F47: Area (m²) | G47: 0 | H47: U Value (W/m²K) | I47: =IF($C$3="Ground floor",'Design Details'!C$53,IF($C$3="Mid-floor",'Design Details'!C$63,IF($C$3="Upper floor",'Design Details'!C$73,IF($C$3="Single Storey",'Design Details'!C$83,0)))) -> 0 | J47: 2.5 | K47: 0 | L47: =G47*I47*$D$7*24/1000 -> 0
B48: Width (m) | D48: Height (m) | F48: Area (m²) | G48: 0 | H48: U Value (W/m²K) | I48: =IF($C$3="Ground floor",'Design Details'!C$53,IF($C$3="Mid-floor",'Design Details'!C$63,IF($C$3="Upper floor",'Design Details'!C$73,IF($C$3="Single Storey",'Design Details'!C$83,0)))) -> 0 | J48: 2.5 | K48: 0 | L48: =G48*I48*$D$7*24/1000 -> 0
B49: Width (m) | D49: Height (m) | F49: Area (m²) | G49: 0 | H49: U Value (W/m²K) | I49: =IF($C$3="Ground floor",'Design Details'!C$53,IF($C$3="Mid-floor",'Design Details'!C$63,IF($C$3="Upper floor",'Design Details'!C$73,IF($C$3="Single Storey",'Design Details'!C$83,0)))) -> 0 | J49: 2.5 | K49: 0 | L49: =G49*I49*$D$7*24/1000 -> 0
B50: External Doors | S50: Select...
B51: Width (m) | D51: Height (m) | F51: Area (m²) | G51: 0 | H51: U Value (W/m²K) | I51: =IF($C$3="Ground floor",'Design Details'!C$47,IF($C$3="Mid-floor",'Design Details'!C$57,IF($C$3="Upper floor",'Design Details'!C$67,IF($C$3="Single Storey",'Design Details'!C$77,0)))) -> 0 | J51: 2.5 | K51: 0 | L51: =G51*I51*$D$7*24/1000 -> 0 | Q51: Outside | R51: Unheated | S51: =IF(OR($C$3="Ground Floor",$C$3="Mid-floor"),R51,Q51) -> Outside | T51: =IF(M32="Unheated",1,0) -> 0 | U51: =IF(M32="Select...",0,(IF(M32="Outside",D6,IF(M32="Unheated",D4-10,D4-M32)))) -> 0
B52: Width (m) | D52: Height (m) | F52: Area (m²) | G52: 0 | H52: U Value (W/m²K) | I52: =IF($C$3="Ground floor",'Design Details'!C$47,IF($C$3="Mid-floor",'Design Details'!C$57,IF($C$3="Upper floor",'Design Details'!C$67,IF($C$3="Single Storey",'Design Details'!C$77,0)))) -> 0 | J52: 2.5 | K52: 0 | L52: =G52*I52*$D$7*24/1000 -> 0 | Q52: Unheated | R52: 16 | S52: =IF(OR($C$3="Ground Floor",$C$3="Mid-floor"),R52,Q52) -> Unheated | T52: ="'Design Details'!C$"&69+T51 -> 'Design Details'!C$69
B53: Width (m) | D53: Height (m) | F53: Area (m²) | G53: 0 | H53: U Value (W/m²K) | I53: =IF($C$3="Ground floor",'Design Details'!C$47,IF($C$3="Mid-floor",'Design Details'!C$57,IF($C$3="Upper floor",'Design Details'!C$67,IF($C$3="Single Storey",'Design Details'!C$77,0)))) -> 0 | J53: 2.5 | K53: 0 | L53: =G53*I53*$D$7*24/1000 -> 0 | R53: 18 | S53: =IF(OR($C$3="Ground Floor",$C$3="Mid-floor"),R53,Q53) -> 0 | T53: ="'Design Details'!C$"&79+T51 -> 'Design Details'!C$79
B54: Width (m) | D54: Height (m) | F54: Area (m²) | G54: 0 | H54: U Value (W/m²K) | I54: =IF($C$3="Ground floor",'Design Details'!C$47,IF($C$3="Mid-floor",'Design Details'!C$57,IF($C$3="Upper floor",'Design Details'!C$67,IF($C$3="Single Storey",'Design Details'!C$77,0)))) -> 0 | J54: 2.5 | K54: 0 | L54: =G54*I54*$D$7*24/1000 -> 0 | R54: 21 | S54: =IF(OR($C$3="Ground Floor",$C$3="Mid-floor"),R54,Q54) -> 0
B55: Internal Walls | M55: Adjoining Room Temp (°C) | R55: 22 | S55: =IF(OR($C$3="Ground Floor",$C$3="Mid-floor"),R55,Q37) -> 0
B56: Length (m) | D56: Height (m) | F56: Area (m²) | G56: 0 | H56: U Value (W/m²K) | I56: =IF($C$3="Ground floor",'Design Details'!C$51,IF($C$3="Mid-floor",'Design Details'!C$61,IF($C$3="Upper floor",'Design Details'!C$71,IF($C$3="Single Storey",'Design Details'!C$81,0)))) -> 0 | J56: =IF(M56="",0,IF(M56="unheated",D$4-10,D$4-M56)) -> 0 | K56: 0
B57: Length (m) | D57: Height (m) | F57: Area (m²) | G57: 0 | H57: U Value (W/m²K) | I57: =IF($C$3="Ground floor",'Design Details'!C$51,IF($C$3="Mid-floor",'Design Details'!C$61,IF($C$3="Upper floor",'Design Details'!C$71,IF($C$3="Single Storey",'Design Details'!C$81,0)))) -> 0 | J57: =IF(M57="",0,IF(M57="unheated",D$4-10,D$4-M57)) -> 0 | K57: 0
B58: Length (m) | D58: Height (m) | F58: Area (m²) | G58: 0 | H58: U Value (W/m²K) | I58: =IF($C$3="Ground floor",'Design Details'!C$51,IF($C$3="Mid-floor",'Design Details'!C$61,IF($C$3="Upper floor",'Design Details'!C$71,IF($C$3="Single Storey",'Design Details'!C$81,0)))) -> 0 | J58: =IF(M58="",0,IF(M58="unheated",D$4-10,D$4-M58)) -> 0 | K58: 0
B59: Length (m) | D59: Height (m) | F59: Area (m²) | G59: 0 | H59: U Value (W/m²K) | I59: =IF($C$3="Ground floor",'Design Details'!C$51,IF($C$3="Mid-floor",'Design Details'!C$61,IF($C$3="Upper floor",'Design Details'!C$71,IF($C$3="Single Storey",'Design Details'!C$81,0)))) -> 0 | J59: =IF(M59="",0,IF(M59="unheated",D$4-10,D$4-M59)) -> 0 | K59: 0
B60: Party Wall
B61: Length (m) | D61: Height (m) | F61: Area (m²) | G61: 0 | H61: U Value (W/m²K) | I61: =IF($C$3="Ground floor",'Design Details'!C$52,IF($C$3="Mid-floor",'Design Details'!C$62,IF($C$3="Upper floor",'Design Details'!C$72,IF($C$3="Single Storey",'Design Details'!C$82,0)))) -> 0 | J61: =D4-10 -> -10 | K61: 0 | L61: =G61*I61*$D$7*24/1000 -> 0

Sheet 12
B1: Room Information | E1: Ventilation Heat Loss | H1: Fabric | I1: Heat Loss (W) | J1: Usage (kWh) | K1: Additional heat loss | M1: Addition | N1: Watts | O1: kWh
B2: Room | E2: Air Changes per hour | G2: ='Design Details'!G98 -> 0 | H2: Floor | I2: =SUM(K20:K22) -> 0 | J2: =SUM(L20:L22) -> 0 | K2: Thermal Bridging (New Build >2006) | M2: 0 | N2: =SUM(I$2:I$6)*M2 -> 0 | O2: =SUM(J$2:J$6)*M2 -> 0 | Q2: 3 edges (long single) | R2: Level | Y2: 1
B3: Level | E3: Air Change Factor (W/m³K) | G3: 0.33 | H3: Ext Wall | I3: =K27 -> 0 | J3: =L27 -> 0 | K3: Exposed location | M3: 0 | N3: =SUM(I$2:I$6)*M3 -> 0 | O3: =SUM(J$2:J$6)*M3 -> 0 | Q3: 3 edges (short single) | R3: Please Select Floor | S3: =IF($C$3="Ground floor","Solid Floor (in contact with ground)",IF($C$3="Single Storey","Solid Floor (in contact with ground)","n/a")) -> n/a | T3: ='Design Details'!C21 -> 10 | U3: unheated | V3: 0 | W3: 0 | X3: 0 | Y3: 2
B4: Design Room Temp (°C) | D4: ='Design Details'!E98 -> 0 | E4: Total Volume (m³) | G4: =SUM(I10:I12,I14:I18) -> 0 | H4: Roof | I4: =SUM(K32,K36) -> 0 | J4: =SUM(L32,L36) -> 0 | K4: High ceiling | M4: 0 | N4: =SUM(I$2:I$6)*M4 -> 0 | O4: =SUM(J$2:J$6)*M4 -> 0 | Q4: One edge | R4: Ground floor | S4: =IF($C$3="Ground floor","Suspended Floor",IF($C$3="Single Storey","Suspended Floor","n/a")) -> n/a | U4: 16 | V4: 0.1 | W4: 0.2 | X4: 0.025 | Y4: 3
B5: Outside Design Temp (°C) | D5: ='Design Details'!C19 -> -2.5 | E5: Heat loss (W) | G5: =G4*G3*D6*G2 -> 0 | H5: Glazing | I5: =SUM(K38:K44,K46:K49,K51:K54) -> 0 | J5: =SUM(L38:L44,L46:L49,L51:L54) -> 0 | K5: Intermittent heating | M5: 0 | N5: =SUM(I$2:I$6)*M5 -> 0 | O5: =SUM(J$2:J$6)*M5 -> 0 | Q5: Two adjacent | R5: Mid-floor | U5: 18 | X5: 0.05 | Y5: 4
B6: Temp Difference (°C) | D6: =D4-D5 -> 2.5 | E6: Estimated Energy usage (kWh) | G6: =G4*G3*D7*24/1000 -> 0 | H6: Int./Party Wall | I6: =SUM(K56:K59,K61) -> 0 | J6: =SUM(L61) -> 0 | N6: Total Room Heat Loss (W) | O6: =SUM(G5,I2:I6,N2:N5) -> 0 | Q6: Two opposite | R6: Single storey | U6: 21 | X6: 0.075 | Y6: 5
B7: Degree Days | D7: ='Design Details'!C20 -> 2228 | N7: Total Room Energy Usage (kWh) | O7: =SUM(G6,J2:J6,O2:O5) -> 0 | R7: Upper floor | U7: 22 | X7: 0.1 | Y7: 6
R8: =IF($C$3="Ground floor",'Design Details'!C$45,IF($C$3="Mid-floor",'Design Details'!C$55,IF($C$3="Upper floor",'Design Details'!C$65,IF($C$3="Single Storey",'Design Details'!C$75,0)))) -> 0 | Y8: 7
B9: Room Dimensions | Y9: 8
B10: Length (m) | D10: Width (m) | F10: Height (m) | H10: Volume (m³) | I10: =C10*E10*G10 -> 0 | Y10: 9
B11: Length (m) | D11: Width (m) | F11: Height (m) | H11: Volume (m³) | I11: =C11*E11*G11 -> 0 | Y11: 10
B12: Length (m) | D12: Width (m) | F12: Height (m) | H12: Volume (m³) | I12: =C12*E12*G12 -> 0
B13: Awkward Room Dimensions
B14: Length (m) | D14: Width (m) | F14: Height (m) | H14: Volume (m³) | I14: =((G14*E14)/2)*C14 -> 0 | J14: Pitched
B15: Length (m) | D15: Width (m) | F15: Height (m) | H15: Volume (m³) | I15: =C15*E15*G15/2 -> 0 | J15: Single Pitch
B16: Length (m) | D16: Height (m) | F16: Depth (m) | H16: Volume (m³) | I16: =E16*G16*C16/2 -> 0 | J16: Dormer 1
B17: Length (m) | D17: Height (m) | F17: Depth (m) | H17: Volume (m³) | I17: =E17*G17*C17/2 -> 0 | J17: Dormer 2
B18: Length (m) | D18: Height (m) | F18: Depth (m) | H18: Volume (m³) | I18: =E18*G18*C18/2 -> 0 | J18: Dormer 3
B19: Floor | J19: Temp Difference | K19: Heat Loss (W) | L19: Usage (kWh) | M19: =IF($C$3="Ground Floor","Select type of Ground Floor",IF($C$3="Single Storey","Select type of Ground Floor","#N/A")) -> #N/A
B20: =B10 -> Length (m) | D20: =D10 -> Width (m) | F20: Area (m²) | G20: =C20*E20 -> 0 | H20: U Value (W/m²K) | I20: =IF(M22="",R8,'floor u values'!K13) -> 0 | J20: =IF(C$3="Ground Floor",IF(M20="Solid Floor (in contact with ground)",D$4-T$3,D$4-D$5),IF(C$3="Single Storey",IF(M20="Solid Floor (in contact with ground)",D$4-T$3,D$4-D$5),0)) -> 0 | K20: =G20*I20*J20 -> 0 | L20: =IF($C$3=$R$5,0,IF($C$3=$R$7,0,G20*I20*$D$7*24/1000)) -> 0 | M20: n/a
B21: Length (m) | D21: Width (m) | F21: Area (m²) | G21: =C21*E21 -> 0 | H21: U Value (W/m²K) | I21: =I20 -> 0 | J21: =IF(C$3="Ground Floor",IF(M20="Solid Floor (in contact with ground)",D$4-T$3,D$4-D$5),IF(C$3="Single Storey",IF(M20="Solid Floor (in contact with ground)",D$4-T$3,D$4-D$5),0)) -> 0 | K21: =G21*I21*J21 -> 0 | L21: =IF($C$3=$R$5,0,IF($C$3=$R$7,0,G21*I21*$D$7*24/1000)) -> 0 | M21: Exposed floor (external)
B22: Length (m) | D22: Width (m) | F22: Area (m²) | G22: 0 | H22: U Value (W/m²K) | I22: =I20 -> 0 | J22: =IF(C$3="Ground Floor",IF(M20="Solid Floor (in contact with ground)",D$4-T$3,D$4-D$5),IF(C$3="Single Storey",IF(M20="Solid Floor (in contact with ground)",D$4-T$3,D$4-D$5),0)) -> 0 | K22: =G22*I22*J22 -> 0 | L22: =IF($C$3=$R$5,0,IF($C$3=$R$7,0,G22*I22*$D$7*24/1000)) -> 0
B23: External Wall | M23: =IF(M22="Two opposite","Between edges",IF(M22="One edge","Depth of room",IF(M22="3 edges (short single)","Short length",IF(M22="3 edges (long single)","Short length","")))) ->  | O23: =IF(M22="3 edges (short single)","Long length",IF(M22="3 edges (long single)","Long length","")) -> 
B24: Length (m) | D24: Height (m) | F24: Area (m²) | G24: 0
B25: Length (m) | D25: Height (m) | F25: Area (m²) | G25: 0
B26: Length (m) | D26: Height (m) | F26: Area (m²) | G26: 0
E27: Total | F27: Area (m²) | G27: =SUM(G24:G26)-SUM(G38:G44,G51:G54) -> 0 | H27: U Value (W/m²K) | I27: =IF($C$3="Ground floor",'Design Details'!C$48,IF($C$3="Mid-floor",'Design Details'!C$58,IF($C$3="Upper floor",'Design Details'!C$68,IF($C$3="Single Storey",'Design Details'!C$78,0)))) -> 0 | J27: =$D$6 -> 2.5 | K27: =G27*I27*J27 -> 0 | L27: =G27*I27*$D$7*24/1000 -> 0
B28: Ceiling (Flat)
B29: Length (m) | D29: Width (m) | F29: Area (m²) | G29: 0
B30: Length (m) | D30: Width (m) | F30: Area (m²) | G30: 0
B31: Length (m) | D31: Width (m) | F31: Area (m²) | G31: 0 | M31: Select Temp/Type of Space Above
E32: Total | F32: Area (m²) | G32: =SUM(G29:G31)-SUM(G46:G49) -> 0 | H32: U Value (W/m²K) | I32: =IF($C$3="Ground floor",'Design Details'!C$49,IF($C$3="Mid-floor",'Design Details'!C$59,IF($C$3="Upper floor",INDIRECT(T52),IF($C$3="Single Storey",INDIRECT(T53),0)))) -> 0 | J32: =U51 -> 0 | K32: =G32*I32*J32 -> 0 | L32: =IF($C$3=$R$4,0,IF($C$3=$R$5,0,G32*I32*$D$7*24/1000)) -> 0 | M32: Select...
B33: Ceiling (Awkward)
B34: Length (m) | C34: =C14*2 -> 0 | D34: Pitch (m) | E34: =SQRT(POWER(E14,2)+POWER(G14,2)) -> 0 | F34: Area (m²) | G34: =C34*E34 -> 0 | H34: Pitched
B35: Length (m) | C35: =C15 -> 0 | D35: Pitch (m) | E35: =SQRT(POWER(E15,2)+POWER(G15,2)) -> 0 | F35: Area (m²) | G35: 0 | H35: Single Pitch
E36: Total | F36: Area (m²) | G36: =SUM(G34:G35)-SUM(G46:G49) -> 0 | H36: U Value (W/m²K) | I36: =IF($C$3="Ground floor",'Design Details'!C$50,IF($C$3="Mid-floor",'Design Details'!C$60,IF($C$3="Upper floor",'Design Details'!C$70,IF($C$3="Single Storey",'Design Details'!C$80,0)))) -> 0 | J36: =$D$6 -> 2.5 | K36: 0 | L36: =IF($C$3=$R$4,0,IF($C$3=$R$5,0,G36*I36*$D$7*24/1000)) -> 0
B37: Windows
B38: Width (m) | D38: Height (m) | F38: Area (m²) | G38: 0 | H38: U Value (W/m²K) | I38: =IF($C$3="Ground floor",'Design Details'!C$46,IF($C$3="Mid-floor",'Design Details'!C$56,IF($C$3="Upper floor",'Design Details'!C$66,IF($C$3="Single Storey",'Design Details'!C$76,0)))) -> 0 | J38: 2.5 | K38: 0 | L38: =G38*I38*$D$7*24/1000 -> 0
B39: Width (m) | D39: Height (m) | F39: Area (m²) | G39: 0 | H39: U Value (W/m²K) | I39: =IF($C$3="Ground floor",'Design Details'!C$46,IF($C$3="Mid-floor",'Design Details'!C$56,IF($C$3="Upper floor",'Design Details'!C$66,IF($C$3="Single Storey",'Design Details'!C$76,0)))) -> 0 | J39: 2.5 | K39: 0 | L39: 0
B40: Width (m) | D40: Height (m) | F40: Area (m²) | G40: 0 | H40: U Value (W/m²K) | I40: =IF($C$3="Ground floor",'Design Details'!C$46,IF($C$3="Mid-floor",'Design Details'!C$56,IF($C$3="Upper floor",'Design Details'!C$66,IF($C$3="Single Storey",'Design Details'!C$76,0)))) -> 0 | J40: 2.5 | K40: 0 | L40: 0
B41: Width (m) | D41: Height (m) | F41: Area (m²) | G41: 0 | H41: U Value (W/m²K) | I41: =IF($C$3="Ground floor",'Design Details'!C$46,IF($C$3="Mid-floor",'Design Details'!C$56,IF($C$3="Upper floor",'Design Details'!C$66,IF($C$3="Single Storey",'Design Details'!C$76,0)))) -> 0 | J41: 2.5 | K41: 0 | L41: 0
B42: Width (m) | D42: Height (m) | F42: Area (m²) | G42: 0 | H42: U Value (W/m²K) | I42: =IF($C$3="Ground floor",'Design Details'!C$46,IF($C$3="Mid-floor",'Design Details'!C$56,IF($C$3="Upper floor",'Design Details'!C$66,IF($C$3="Single Storey",'Design Details'!C$76,0)))) -> 0 | J42: 2.5 | K42: 0 | L42: 0
B43: Width (m) | D43: Height (m) | F43: Area (m²) | G43: 0 | H43: U Value (W/m²K) | I43: =IF($C$3="Ground floor",'Design Details'!C$46,IF($C$3="Mid-floor",'Design Details'!C$56,IF($C$3="Upper floor",'Design Details'!C$66,IF($C$3="Single Storey",'Design Details'!C$76,0)))) -> 0 | J43: 2.5 | K43: 0 | L43: 0
B44: Width (m) | D44: Height (m) | F44: Area (m²) | G44: 0 | H44: U Value (W/m²K) | I44: =IF($C$3="Ground floor",'Design Details'!C$46,IF($C$3="Mid-floor",'Design Details'!C$56,IF($C$3="Upper floor",'Design Details'!C$66,IF($C$3="Single Storey",'Design Details'!C$76,0)))) -> 0 | J44: 2.5 | K44: 0 | L44: 0
B45: Roof Glazing | Q45: Options for upper floor or single storey | R45: Options for Ground or Mid Floor | S45: Drop-Down List | T45: U-Value Selector | U45: Temp Diff Selector
B46: Width (m) | D46: Height (m) | F46: Area (m²) | G46: 0 | H46: U Value (W/m²K) | I46: =IF($C$3="Ground floor",'Design Details'!C$53,IF($C$3="Mid-floor",'Design Details'!C$63,IF($C$3="Upper floor",'Design Details'!C$73,IF($C$3="Single Storey",'Design Details'!C$83,0)))) -> 0 | J46: 2.5 | K46: 0 | L46: =G46*I46*$D$7*24/1000 -> 0
B47: Width (m) | D47: Height (m) | F47: Area (m²) | G47: 0 | H47: U Value (W/m²K) | I47: =IF($C$3="Ground floor",'Design Details'!C$53,IF($C$3="Mid-floor",'Design Details'!C$63,IF($C$3="Upper floor",'Design Details'!C$73,IF($C$3="Single Storey",'Design Details'!C$83,0)))) -> 0 | J47: 2.5 | K47: 0 | L47: =G47*I47*$D$7*24/1000 -> 0
B48: Width (m) | D48: Height (m) | F48: Area (m²) | G48: 0 | H48: U Value (W/m²K) | I48: =IF($C$3="Ground floor",'Design Details'!C$53,IF($C$3="Mid-floor",'Design Details'!C$63,IF($C$3="Upper floor",'Design Details'!C$73,IF($C$3="Single Storey",'Design Details'!C$83,0)))) -> 0 | J48: 2.5 | K48: 0 | L48: =G48*I48*$D$7*24/1000 -> 0
B49: Width (m) | D49: Height (m) | F49: Area (m²) | G49: 0 | H49: U Value (W/m²K) | I49: =IF($C$3="Ground floor",'Design Details'!C$53,IF($C$3="Mid-floor",'Design Details'!C$63,IF($C$3="Upper floor",'Design Details'!C$73,IF($C$3="Single Storey",'Design Details'!C$83,0)))) -> 0 | J49: 2.5 | K49: 0 | L49: =G49*I49*$D$7*24/1000 -> 0
B50: External Doors | S50: Select...
B51: Width (m) | D51: Height (m) | F51: Area (m²) | G51: 0 | H51: U Value (W/m²K) | I51: =IF($C$3="Ground floor",'Design Details'!C$47,IF($C$3="Mid-floor",'Design Details'!C$57,IF($C$3="Upper floor",'Design Details'!C$67,IF($C$3="Single Storey",'Design Details'!C$77,0)))) -> 0 | J51: 2.5 | K51: 0 | L51: =G51*I51*$D$7*24/1000 -> 0 | Q51: Outside | R51: Unheated | S51: =IF(OR($C$3="Ground Floor",$C$3="Mid-floor"),R51,Q51) -> Outside | T51: =IF(M32="Unheated",1,0) -> 0 | U51: =IF(M32="Select...",0,(IF(M32="Outside",D6,IF(M32="Unheated",D4-10,D4-M32)))) -> 0
B52: Width (m) | D52: Height (m) | F52: Area (m²) | G52: 0 | H52: U Value (W/m²K) | I52: =IF($C$3="Ground floor",'Design Details'!C$47,IF($C$3="Mid-floor",'Design Details'!C$57,IF($C$3="Upper floor",'Design Details'!C$67,IF($C$3="Single Storey",'Design Details'!C$77,0)))) -> 0 | J52: 2.5 | K52: 0 | L52: =G52*I52*$D$7*24/1000 -> 0 | Q52: Unheated | R52: 16 | S52: =IF(OR($C$3="Ground Floor",$C$3="Mid-floor"),R52,Q52) -> Unheated | T52: ="'Design Details'!C$"&69+T51 -> 'Design Details'!C$69
B53: Width (m) | D53: Height (m) | F53: Area (m²) | G53: 0 | H53: U Value (W/m²K) | I53: =IF($C$3="Ground floor",'Design Details'!C$47,IF($C$3="Mid-floor",'Design Details'!C$57,IF($C$3="Upper floor",'Design Details'!C$67,IF($C$3="Single Storey",'Design Details'!C$77,0)))) -> 0 | J53: 2.5 | K53: 0 | L53: =G53*I53*$D$7*24/1000 -> 0 | R53: 18 | S53: =IF(OR($C$3="Ground Floor",$C$3="Mid-floor"),R53,Q53) -> 0 | T53: ="'Design Details'!C$"&79+T51 -> 'Design Details'!C$79
B54: Width (m) | D54: Height (m) | F54: Area (m²) | G54: 0 | H54: U Value (W/m²K) | I54: =IF($C$3="Ground floor",'Design Details'!C$47,IF($C$3="Mid-floor",'Design Details'!C$57,IF($C$3="Upper floor",'Design Details'!C$67,IF($C$3="Single Storey",'Design Details'!C$77,0)))) -> 0 | J54: 2.5 | K54: 0 | L54: =G54*I54*$D$7*24/1000 -> 0 | R54: 21 | S54: =IF(OR($C$3="Ground Floor",$C$3="Mid-floor"),R54,Q54) -> 0
B55: Internal Walls | M55: Adjoining Room Temp (°C) | R55: 22 | S55: =IF(OR($C$3="Ground Floor",$C$3="Mid-floor"),R55,Q37) -> 0
B56: Length (m) | D56: Height (m) | F56: Area (m²) | G56: 0 | H56: U Value (W/m²K) | I56: =IF($C$3="Ground floor",'Design Details'!C$51,IF($C$3="Mid-floor",'Design Details'!C$61,IF($C$3="Upper floor",'Design Details'!C$71,IF($C$3="Single Storey",'Design Details'!C$81,0)))) -> 0 | J56: =IF(M56="",0,IF(M56="unheated",D$4-10,D$4-M56)) -> 0 | K56: 0
B57: Length (m) | D57: Height (m) | F57: Area (m²) | G57: 0 | H57: U Value (W/m²K) | I57: =IF($C$3="Ground floor",'Design Details'!C$51,IF($C$3="Mid-floor",'Design Details'!C$61,IF($C$3="Upper floor",'Design Details'!C$71,IF($C$3="Single Storey",'Design Details'!C$81,0)))) -> 0 | J57: =IF(M57="",0,IF(M57="unheated",D$4-10,D$4-M57)) -> 0 | K57: 0
B58: Length (m) | D58: Height (m) | F58: Area (m²) | G58: 0 | H58: U Value (W/m²K) | I58: =IF($C$3="Ground floor",'Design Details'!C$51,IF($C$3="Mid-floor",'Design Details'!C$61,IF($C$3="Upper floor",'Design Details'!C$71,IF($C$3="Single Storey",'Design Details'!C$81,0)))) -> 0 | J58: =IF(M58="",0,IF(M58="unheated",D$4-10,D$4-M58)) -> 0 | K58: 0
B59: Length (m) | D59: Height (m) | F59: Area (m²) | G59: 0 | H59: U Value (W/m²K) | I59: =IF($C$3="Ground floor",'Design Details'!C$51,IF($C$3="Mid-floor",'Design Details'!C$61,IF($C$3="Upper floor",'Design Details'!C$71,IF($C$3="Single Storey",'Design Details'!C$81,0)))) -> 0 | J59: =IF(M59="",0,IF(M59="unheated",D$4-10,D$4-M59)) -> 0 | K59: 0
B60: Party Wall
B61: Length (m) | D61: Height (m) | F61: Area (m²) | G61: 0 | H61: U Value (W/m²K) | I61: =IF($C$3="Ground floor",'Design Details'!C$52,IF($C$3="Mid-floor",'Design Details'!C$62,IF($C$3="Upper floor",'Design Details'!C$72,IF($C$3="Single Storey",'Design Details'!C$82,0)))) -> 0 | J61: =D4-10 -> -10 | K61: 0 | L61: =G61*I61*$D$7*24/1000 -> 0

Sheet 13
B1: Room Information | E1: Ventilation Heat Loss | H1: Fabric | I1: Heat Loss (W) | J1: Usage (kWh) | K1: Additional heat loss | M1: Addition | N1: Watts | O1: kWh
B2: Room | E2: Air Changes per hour | G2: ='Design Details'!G99 -> 0 | H2: Floor | I2: =SUM(K20:K22) -> 0 | J2: =SUM(L20:L22) -> 0 | K2: Thermal Bridging (New Build >2006) | M2: 0 | N2: =SUM(I$2:I$6)*M2 -> 0 | O2: =SUM(J$2:J$6)*M2 -> 0 | Q2: 3 edges (long single) | R2: Level | Y2: 1
B3: Level | E3: Air Change Factor (W/m³K) | G3: 0.33 | H3: Ext Wall | I3: =K27 -> 0 | J3: =L27 -> 0 | K3: Exposed location | M3: 0 | N3: =SUM(I$2:I$6)*M3 -> 0 | O3: =SUM(J$2:J$6)*M3 -> 0 | Q3: 3 edges (short single) | R3: Please Select Floor | S3: =IF($C$3="Ground floor","Solid Floor (in contact with ground)",IF($C$3="Single Storey","Solid Floor (in contact with ground)","n/a")) -> n/a | T3: ='Design Details'!C21 -> 10 | U3: unheated | V3: 0 | W3: 0 | X3: 0 | Y3: 2
B4: Design Room Temp (°C) | D4: ='Design Details'!E99 -> 0 | E4: Total Volume (m³) | G4: =SUM(I10:I12,I14:I18) -> 0 | H4: Roof | I4: =SUM(K32,K36) -> 0 | J4: =SUM(L32,L36) -> 0 | K4: High ceiling | M4: 0 | N4: =SUM(I$2:I$6)*M4 -> 0 | O4: =SUM(J$2:J$6)*M4 -> 0 | Q4: One edge | R4: Ground floor | S4: =IF($C$3="Ground floor","Suspended Floor",IF($C$3="Single Storey","Suspended Floor","n/a")) -> n/a | U4: 16 | V4: 0.1 | W4: 0.2 | X4: 0.025 | Y4: 3
B5: Outside Design Temp (°C) | D5: ='Design Details'!C19 -> -2.5 | E5: Heat loss (W) | G5: =G4*G3*D6*G2 -> 0 | H5: Glazing | I5: =SUM(K38:K44,K46:K49,K51:K54) -> 0 | J5: =SUM(L38:L44,L46:L49,L51:L54) -> 0 | K5: Intermittent heating | M5: 0 | N5: =SUM(I$2:I$6)*M5 -> 0 | O5: =SUM(J$2:J$6)*M5 -> 0 | Q5: Two adjacent | R5: Mid-floor | U5: 18 | X5: 0.05 | Y5: 4
B6: Temp Difference (°C) | D6: =D4-D5 -> 2.5 | E6: Estimated Energy usage (kWh) | G6: =G4*G3*D7*24/1000 -> 0 | H6: Int./Party Wall | I6: =SUM(K56:K59,K61) -> 0 | J6: =SUM(L61) -> 0 | N6: Total Room Heat Loss (W) | O6: =SUM(G5,I2:I6,N2:N5) -> 0 | Q6: Two opposite | R6: Single storey | U6: 21 | X6: 0.075 | Y6: 5
B7: Degree Days | D7: ='Design Details'!C20 -> 2228 | N7: Total Room Energy Usage (kWh) | O7: =SUM(G6,J2:J6,O2:O5) -> 0 | R7: Upper floor | U7: 22 | X7: 0.1 | Y7: 6
R8: =IF($C$3="Ground floor",'Design Details'!C$45,IF($C$3="Mid-floor",'Design Details'!C$55,IF($C$3="Upper floor",'Design Details'!C$65,IF($C$3="Single Storey",'Design Details'!C$75,0)))) -> 0 | Y8: 7
B9: Room Dimensions | Y9: 8
B10: Length (m) | D10: Width (m) | F10: Height (m) | H10: Volume (m³) | I10: =C10*E10*G10 -> 0 | Y10: 9
B11: Length (m) | D11: Width (m) | F11: Height (m) | H11: Volume (m³) | I11: =C11*E11*G11 -> 0 | Y11: 10
B12: Length (m) | D12: Width (m) | F12: Height (m) | H12: Volume (m³) | I12: =C12*E12*G12 -> 0
B13: Awkward Room Dimensions
B14: Length (m) | D14: Width (m) | F14: Height (m) | H14: Volume (m³) | I14: =((G14*E14)/2)*C14 -> 0 | J14: Pitched
B15: Length (m) | D15: Width (m) | F15: Height (m) | H15: Volume (m³) | I15: =C15*E15*G15/2 -> 0 | J15: Single Pitch
B16: Length (m) | D16: Height (m) | F16: Depth (m) | H16: Volume (m³) | I16: =E16*G16*C16/2 -> 0 | J16: Dormer 1
B17: Length (m) | D17: Height (m) | F17: Depth (m) | H17: Volume (m³) | I17: =E17*G17*C17/2 -> 0 | J17: Dormer 2
B18: Length (m) | D18: Height (m) | F18: Depth (m) | H18: Volume (m³) | I18: =E18*G18*C18/2 -> 0 | J18: Dormer 3
B19: Floor | J19: Temp Difference | K19: Heat Loss (W) | L19: Usage (kWh) | M19: =IF($C$3="Ground Floor","Select type of Ground Floor",IF($C$3="Single Storey","Select type of Ground Floor","#N/A")) -> #N/A
B20: =B10 -> Length (m) | D20: =D10 -> Width (m) | F20: Area (m²) | G20: =C20*E20 -> 0 | H20: U Value (W/m²K) | I20: =IF(M22="",R8,'floor u values'!K14) -> 0 | J20: =IF(C$3="Ground Floor",IF(M20="Solid Floor (in contact with ground)",D$4-T$3,D$4-D$5),IF(C$3="Single Storey",IF(M20="Solid Floor (in contact with ground)",D$4-T$3,D$4-D$5),0)) -> 0 | K20: =G20*I20*J20 -> 0 | L20: =IF($C$3=$R$5,0,IF($C$3=$R$7,0,G20*I20*$D$7*24/1000)) -> 0 | M20: n/a
B21: Length (m) | D21: Width (m) | F21: Area (m²) | G21: =C21*E21 -> 0 | H21: U Value (W/m²K) | I21: =I20 -> 0 | J21: =IF(C$3="Ground Floor",IF(M20="Solid Floor (in contact with ground)",D$4-T$3,D$4-D$5),IF(C$3="Single Storey",IF(M20="Solid Floor (in contact with ground)",D$4-T$3,D$4-D$5),0)) -> 0 | K21: =G21*I21*J21 -> 0 | L21: =IF($C$3=$R$5,0,IF($C$3=$R$7,0,G21*I21*$D$7*24/1000)) -> 0 | M21: Exposed floor (external)
B22: Length (m) | D22: Width (m) | F22: Area (m²) | G22: 0 | H22: U Value (W/m²K) | I22: =I20 -> 0 | J22: =IF(C$3="Ground Floor",IF(M20="Solid Floor (in contact with ground)",D$4-T$3,D$4-D$5),IF(C$3="Single Storey",IF(M20="Solid Floor (in contact with ground)",D$4-T$3,D$4-D$5),0)) -> 0 | K22: =G22*I22*J22 -> 0 | L22: =IF($C$3=$R$5,0,IF($C$3=$R$7,0,G22*I22*$D$7*24/1000)) -> 0
B23: External Wall | M23: =IF(M22="Two opposite","Between edges",IF(M22="One edge","Depth of room",IF(M22="3 edges (short single)","Short length",IF(M22="3 edges (long single)","Short length","")))) ->  | O23: =IF(M22="3 edges (short single)","Long length",IF(M22="3 edges (long single)","Long length","")) -> 
B24: Length (m) | D24: Height (m) | F24: Area (m²) | G24: 0
B25: Length (m) | D25: Height (m) | F25: Area (m²) | G25: 0
B26: Length (m) | D26: Height (m) | F26: Area (m²) | G26: 0
E27: Total | F27: Area (m²) | G27: =SUM(G24:G26)-SUM(G38:G44,G51:G54) -> 0 | H27: U Value (W/m²K) | I27: =IF($C$3="Ground floor",'Design Details'!C$48,IF($C$3="Mid-floor",'Design Details'!C$58,IF($C$3="Upper floor",'Design Details'!C$68,IF($C$3="Single Storey",'Design Details'!C$78,0)))) -> 0 | J27: =$D$6 -> 2.5 | K27: =G27*I27*J27 -> 0 | L27: =G27*I27*$D$7*24/1000 -> 0
B28: Ceiling (Flat)
B29: Length (m) | D29: Width (m) | F29: Area (m²) | G29: 0
B30: Length (m) | D30: Width (m) | F30: Area (m²) | G30: 0
B31: Length (m) | D31: Width (m) | F31: Area (m²) | G31: 0 | M31: Select Temp/Type of Space Above
E32: Total | F32: Area (m²) | G32: =SUM(G29:G31)-SUM(G46:G49) -> 0 | H32: U Value (W/m²K) | I32: =IF($C$3="Ground floor",'Design Details'!C$49,IF($C$3="Mid-floor",'Design Details'!C$59,IF($C$3="Upper floor",INDIRECT(T52),IF($C$3="Single Storey",INDIRECT(T53),0)))) -> 0 | J32: =U51 -> 0 | K32: =G32*I32*J32 -> 0 | L32: =IF($C$3=$R$4,0,IF($C$3=$R$5,0,G32*I32*$D$7*24/1000)) -> 0 | M32: Select...
B33: Ceiling (Awkward)
B34: Length (m) | C34: =C14*2 -> 0 | D34: Pitch (m) | E34: =SQRT(POWER(E14,2)+POWER(G14,2)) -> 0 | F34: Area (m²) | G34: =C34*E34 -> 0 | H34: Pitched
B35: Length (m) | C35: =C15 -> 0 | D35: Pitch (m) | E35: =SQRT(POWER(E15,2)+POWER(G15,2)) -> 0 | F35: Area (m²) | G35: 0 | H35: Single Pitch
E36: Total | F36: Area (m²) | G36: =SUM(G34:G35)-SUM(G46:G49) -> 0 | H36: U Value (W/m²K) | I36: =IF($C$3="Ground floor",'Design Details'!C$50,IF($C$3="Mid-floor",'Design Details'!C$60,IF($C$3="Upper floor",'Design Details'!C$70,IF($C$3="Single Storey",'Design Details'!C$80,0)))) -> 0 | J36: =$D$6 -> 2.5 | K36: 0 | L36: =IF($C$3=$R$4,0,IF($C$3=$R$5,0,G36*I36*$D$7*24/1000)) -> 0
B37: Windows
B38: Width (m) | D38: Height (m) | F38: Area (m²) | G38: 0 | H38: U Value (W/m²K) | I38: =IF($C$3="Ground floor",'Design Details'!C$46,IF($C$3="Mid-floor",'Design Details'!C$56,IF($C$3="Upper floor",'Design Details'!C$66,IF($C$3="Single Storey",'Design Details'!C$76,0)))) -> 0 | J38: 2.5 | K38: 0 | L38: =G38*I38*$D$7*24/1000 -> 0
B39: Width (m) | D39: Height (m) | F39: Area (m²) | G39: 0 | H39: U Value (W/m²K) | I39: =IF($C$3="Ground floor",'Design Details'!C$46,IF($C$3="Mid-floor",'Design Details'!C$56,IF($C$3="Upper floor",'Design Details'!C$66,IF($C$3="Single Storey",'Design Details'!C$76,0)))) -> 0 | J39: 2.5 | K39: 0 | L39: 0
B40: Width (m) | D40: Height (m) | F40: Area (m²) | G40: 0 | H40: U Value (W/m²K) | I40: =IF($C$3="Ground floor",'Design Details'!C$46,IF($C$3="Mid-floor",'Design Details'!C$56,IF($C$3="Upper floor",'Design Details'!C$66,IF($C$3="Single Storey",'Design Details'!C$76,0)))) -> 0 | J40: 2.5 | K40: 0 | L40: 0
B41: Width (m) | D41: Height (m) | F41: Area (m²) | G41: 0 | H41: U Value (W/m²K) | I41: =IF($C$3="Ground floor",'Design Details'!C$46,IF($C$3="Mid-floor",'Design Details'!C$56,IF($C$3="Upper floor",'Design Details'!C$66,IF($C$3="Single Storey",'Design Details'!C$76,0)))) -> 0 | J41: 2.5 | K41: 0 | L41: 0
B42: Width (m) | D42: Height (m) | F42: Area (m²) | G42: 0 | H42: U Value (W/m²K) | I42: =IF($C$3="Ground floor",'Design Details'!C$46,IF($C$3="Mid-floor",'Design Details'!C$56,IF($C$3="Upper floor",'Design Details'!C$66,IF($C$3="Single Storey",'Design Details'!C$76,0)))) -> 0 | J42: 2.5 | K42: 0 | L42: 0
B43: Width (m) | D43: Height (m) | F43: Area (m²) | G43: 0 | H43: U Value (W/m²K) | I43: =IF($C$3="Ground floor",'Design Details'!C$46,IF($C$3="Mid-floor",'Design Details'!C$56,IF($C$3="Upper floor",'Design Details'!C$66,IF($C$3="Single Storey",'Design Details'!C$76,0)))) -> 0 | J43: 2.5 | K43: 0 | L43: 0
B44: Width (m) | D44: Height (m) | F44: Area (m²) | G44: 0 | H44: U Value (W/m²K) | I44: =IF($C$3="Ground floor",'Design Details'!C$46,IF($C$3="Mid-floor",'Design Details'!C$56,IF($C$3="Upper floor",'Design Details'!C$66,IF($C$3="Single Storey",'Design Details'!C$76,0)))) -> 0 | J44: 2.5 | K44: 0 | L44: 0
B45: Roof Glazing | Q45: Options for upper floor or single storey | R45: Options for Ground or Mid Floor | S45: Drop-Down List | T45: U-Value Selector | U45: Temp Diff Selector
B46: Width (m) | D46: Height (m) | F46: Area (m²) | G46: 0 | H46: U Value (W/m²K) | I46: =IF($C$3="Ground floor",'Design Details'!C$53,IF($C$3="Mid-floor",'Design Details'!C$63,IF($C$3="Upper floor",'Design Details'!C$73,IF($C$3="Single Storey",'Design Details'!C$83,0)))) -> 0 | J46: 2.5 | K46: 0 | L46: =G46*I46*$D$7*24/1000 -> 0
B47: Width (m) | D47: Height (m) | F47: Area (m²) | G47: 0 | H47: U Value (W/m²K) | I47: =IF($C$3="Ground floor",'Design Details'!C$53,IF($C$3="Mid-floor",'Design Details'!C$63,IF($C$3="Upper floor",'Design Details'!C$73,IF($C$3="Single Storey",'Design Details'!C$83,0)))) -> 0 | J47: 2.5 | K47: 0 | L47: =G47*I47*$D$7*24/1000 -> 0
B48: Width (m) | D48: Height (m) | F48: Area (m²) | G48: 0 | H48: U Value (W/m²K) | I48: =IF($C$3="Ground floor",'Design Details'!C$53,IF($C$3="Mid-floor",'Design Details'!C$63,IF($C$3="Upper floor",'Design Details'!C$73,IF($C$3="Single Storey",'Design Details'!C$83,0)))) -> 0 | J48: 2.5 | K48: 0 | L48: =G48*I48*$D$7*24/1000 -> 0
B49: Width (m) | D49: Height (m) | F49: Area (m²) | G49: 0 | H49: U Value (W/m²K) | I49: =IF($C$3="Ground floor",'Design Details'!C$53,IF($C$3="Mid-floor",'Design Details'!C$63,IF($C$3="Upper floor",'Design Details'!C$73,IF($C$3="Single Storey",'Design Details'!C$83,0)))) -> 0 | J49: 2.5 | K49: 0 | L49: =G49*I49*$D$7*24/1000 -> 0
B50: External Doors | S50: Select...
B51: Width (m) | D51: Height (m) | F51: Area (m²) | G51: 0 | H51: U Value (W/m²K) | I51: =IF($C$3="Ground floor",'Design Details'!C$47,IF($C$3="Mid-floor",'Design Details'!C$57,IF($C$3="Upper floor",'Design Details'!C$67,IF($C$3="Single Storey",'Design Details'!C$77,0)))) -> 0 | J51: 2.5 | K51: 0 | L51: =G51*I51*$D$7*24/1000 -> 0 | Q51: Outside | R51: Unheated | S51: =IF(OR($C$3="Ground Floor",$C$3="Mid-floor"),R51,Q51) -> Outside | T51: =IF(M32="Unheated",1,0) -> 0 | U51: =IF(M32="Select...",0,(IF(M32="Outside",D6,IF(M32="Unheated",D4-10,D4-M32)))) -> 0
B52: Width (m) | D52: Height (m) | F52: Area (m²) | G52: 0 | H52: U Value (W/m²K) | I52: =IF($C$3="Ground floor",'Design Details'!C$47,IF($C$3="Mid-floor",'Design Details'!C$57,IF($C$3="Upper floor",'Design Details'!C$67,IF($C$3="Single Storey",'Design Details'!C$77,0)))) -> 0 | J52: 2.5 | K52: 0 | L52: =G52*I52*$D$7*24/1000 -> 0 | Q52: Unheated | R52: 16 | S52: =IF(OR($C$3="Ground Floor",$C$3="Mid-floor"),R52,Q52) -> Unheated | T52: ="'Design Details'!C$"&69+T51 -> 'Design Details'!C$69
B53: Width (m) | D53: Height (m) | F53: Area (m²) | G53: 0 | H53: U Value (W/m²K) | I53: =IF($C$3="Ground floor",'Design Details'!C$47,IF($C$3="Mid-floor",'Design Details'!C$57,IF($C$3="Upper floor",'Design Details'!C$67,IF($C$3="Single Storey",'Design Details'!C$77,0)))) -> 0 | J53: 2.5 | K53: 0 | L53: =G53*I53*$D$7*24/1000 -> 0 | R53: 18 | S53: =IF(OR($C$3="Ground Floor",$C$3="Mid-floor"),R53,Q53) -> 0 | T53: ="'Design Details'!C$"&79+T51 -> 'Design Details'!C$79
B54: Width (m) | D54: Height (m) | F54: Area (m²) | G54: 0 | H54: U Value (W/m²K) | I54: =IF($C$3="Ground floor",'Design Details'!C$47,IF($C$3="Mid-floor",'Design Details'!C$57,IF($C$3="Upper floor",'Design Details'!C$67,IF($C$3="Single Storey",'Design Details'!C$77,0)))) -> 0 | J54: 2.5 | K54: 0 | L54: =G54*I54*$D$7*24/1000 -> 0 | R54: 21 | S54: =IF(OR($C$3="Ground Floor",$C$3="Mid-floor"),R54,Q54) -> 0
B55: Internal Walls | M55: Adjoining Room Temp (°C) | R55: 22 | S55: =IF(OR($C$3="Ground Floor",$C$3="Mid-floor"),R55,Q37) -> 0
B56: Length (m) | D56: Height (m) | F56: Area (m²) | G56: 0 | H56: U Value (W/m²K) | I56: =IF($C$3="Ground floor",'Design Details'!C$51,IF($C$3="Mid-floor",'Design Details'!C$61,IF($C$3="Upper floor",'Design Details'!C$71,IF($C$3="Single Storey",'Design Details'!C$81,0)))) -> 0 | J56: =IF(M56="",0,IF(M56="unheated",D$4-10,D$4-M56)) -> 0 | K56: 0
B57: Length (m) | D57: Height (m) | F57: Area (m²) | G57: 0 | H57: U Value (W/m²K) | I57: =IF($C$3="Ground floor",'Design Details'!C$51,IF($C$3="Mid-floor",'Design Details'!C$61,IF($C$3="Upper floor",'Design Details'!C$71,IF($C$3="Single Storey",'Design Details'!C$81,0)))) -> 0 | J57: =IF(M57="",0,IF(M57="unheated",D$4-10,D$4-M57)) -> 0 | K57: 0
B58: Length (m) | D58: Height (m) | F58: Area (m²) | G58: 0 | H58: U Value (W/m²K) | I58: =IF($C$3="Ground floor",'Design Details'!C$51,IF($C$3="Mid-floor",'Design Details'!C$61,IF($C$3="Upper floor",'Design Details'!C$71,IF($C$3="Single Storey",'Design Details'!C$81,0)))) -> 0 | J58: =IF(M58="",0,IF(M58="unheated",D$4-10,D$4-M58)) -> 0 | K58: 0
B59: Length (m) | D59: Height (m) | F59: Area (m²) | G59: 0 | H59: U Value (W/m²K) | I59: =IF($C$3="Ground floor",'Design Details'!C$51,IF($C$3="Mid-floor",'Design Details'!C$61,IF($C$3="Upper floor",'Design Details'!C$71,IF($C$3="Single Storey",'Design Details'!C$81,0)))) -> 0 | J59: =IF(M59="",0,IF(M59="unheated",D$4-10,D$4-M59)) -> 0 | K59: 0
B60: Party Wall
B61: Length (m) | D61: Height (m) | F61: Area (m²) | G61: 0 | H61: U Value (W/m²K) | I61: =IF($C$3="Ground floor",'Design Details'!C$52,IF($C$3="Mid-floor",'Design Details'!C$62,IF($C$3="Upper floor",'Design Details'!C$72,IF($C$3="Single Storey",'Design Details'!C$82,0)))) -> 0 | J61: =D4-10 -> -10 | K61: 0 | L61: =G61*I61*$D$7*24/1000 -> 0

Sheet 14
B1: Room Information | E1: Ventilation Heat Loss | H1: Fabric | I1: Heat Loss (W) | J1: Usage (kWh) | K1: Additional heat loss | M1: Addition | N1: Watts | O1: kWh
B2: Room | E2: Air Changes per hour | G2: ='Design Details'!G100 -> 0 | H2: Floor | I2: =SUM(K20:K22) -> 0 | J2: =SUM(L20:L22) -> 0 | K2: Thermal Bridging (New Build >2006) | M2: 0 | N2: =SUM(I$2:I$6)*M2 -> 0 | O2: =SUM(J$2:J$6)*M2 -> 0 | Q2: 3 edges (long single) | R2: Level | Y2: 1
B3: Level | E3: Air Change Factor (W/m³K) | G3: 0.33 | H3: Ext Wall | I3: =K27 -> 0 | J3: =L27 -> 0 | K3: Exposed location | M3: 0 | N3: =SUM(I$2:I$6)*M3 -> 0 | O3: =SUM(J$2:J$6)*M3 -> 0 | Q3: 3 edges (short single) | R3: Please Select Floor | S3: =IF($C$3="Ground floor","Solid Floor (in contact with ground)",IF($C$3="Single Storey","Solid Floor (in contact with ground)","n/a")) -> n/a | T3: ='Design Details'!C21 -> 10 | U3: unheated | V3: 0 | W3: 0 | X3: 0 | Y3: 2
B4: Design Room Temp (°C) | D4: ='Design Details'!E100 -> 0 | E4: Total Volume (m³) | G4: =SUM(I10:I12,I14:I18) -> 0 | H4: Roof | I4: =SUM(K32,K36) -> 0 | J4: =SUM(L32,L36) -> 0 | K4: High ceiling | M4: 0 | N4: =SUM(I$2:I$6)*M4 -> 0 | O4: =SUM(J$2:J$6)*M4 -> 0 | Q4: One edge | R4: Ground floor | S4: =IF($C$3="Ground floor","Suspended Floor",IF($C$3="Single Storey","Suspended Floor","n/a")) -> n/a | U4: 16 | V4: 0.1 | W4: 0.2 | X4: 0.025 | Y4: 3
B5: Outside Design Temp (°C) | D5: ='Design Details'!C19 -> -2.5 | E5: Heat loss (W) | G5: =G4*G3*D6*G2 -> 0 | H5: Glazing | I5: =SUM(K38:K44,K46:K49,K51:K54) -> 0 | J5: =SUM(L38:L44,L46:L49,L51:L54) -> 0 | K5: Intermittent heating | M5: 0 | N5: =SUM(I$2:I$6)*M5 -> 0 | O5: =SUM(J$2:J$6)*M5 -> 0 | Q5: Two adjacent | R5: Mid-floor | U5: 18 | X5: 0.05 | Y5: 4
B6: Temp Difference (°C) | D6: =D4-D5 -> 2.5 | E6: Estimated Energy usage (kWh) | G6: =G4*G3*D7*24/1000 -> 0 | H6: Int./Party Wall | I6: =SUM(K56:K59,K61) -> 0 | J6: =SUM(L61) -> 0 | N6: Total Room Heat Loss (W) | O6: =SUM(G5,I2:I6,N2:N5) -> 0 | Q6: Two opposite | R6: Single storey | U6: 21 | X6: 0.075 | Y6: 5
B7: Degree Days | D7: ='Design Details'!C20 -> 2228 | N7: Total Room Energy Usage (kWh) | O7: =SUM(G6,J2:J6,O2:O5) -> 0 | R7: Upper floor | U7: 22 | X7: 0.1 | Y7: 6
R8: =IF($C$3="Ground floor",'Design Details'!C$45,IF($C$3="Mid-floor",'Design Details'!C$55,IF($C$3="Upper floor",'Design Details'!C$65,IF($C$3="Single Storey",'Design Details'!C$75,0)))) -> 0 | Y8: 7
B9: Room Dimensions | Y9: 8
B10: Length (m) | D10: Width (m) | F10: Height (m) | H10: Volume (m³) | I10: =C10*E10*G10 -> 0 | Y10: 9
B11: Length (m) | D11: Width (m) | F11: Height (m) | H11: Volume (m³) | I11: =C11*E11*G11 -> 0 | Y11: 10
B12: Length (m) | D12: Width (m) | F12: Height (m) | H12: Volume (m³) | I12: =C12*E12*G12 -> 0
B13: Awkward Room Dimensions
B14: Length (m) | D14: Width (m) | F14: Height (m) | H14: Volume (m³) | I14: =((G14*E14)/2)*C14 -> 0 | J14: Pitched
B15: Length (m) | D15: Width (m) | F15: Height (m) | H15: Volume (m³) | I15: =C15*E15*G15/2 -> 0 | J15: Single Pitch
B16: Length (m) | D16: Height (m) | F16: Depth (m) | H16: Volume (m³) | I16: =E16*G16*C16/2 -> 0 | J16: Dormer 1
B17: Length (m) | D17: Height (m) | F17: Depth (m) | H17: Volume (m³) | I17: =E17*G17*C17/2 -> 0 | J17: Dormer 2
B18: Length (m) | D18: Height (m) | F18: Depth (m) | H18: Volume (m³) | I18: =E18*G18*C18/2 -> 0 | J18: Dormer 3
B19: Floor | J19: Temp Difference | K19: Heat Loss (W) | L19: Usage (kWh) | M19: =IF($C$3="Ground Floor","Select type of Ground Floor",IF($C$3="Single Storey","Select type of Ground Floor","#N/A")) -> #N/A
B20: =B10 -> Length (m) | D20: =D10 -> Width (m) | F20: Area (m²) | G20: =C20*E20 -> 0 | H20: U Value (W/m²K) | I20: =IF(M22="",R8,'floor u values'!K15) -> 0 | J20: =IF(C$3="Ground Floor",IF(M20="Solid Floor (in contact with ground)",D$4-T$3,D$4-D$5),IF(C$3="Single Storey",IF(M20="Solid Floor (in contact with ground)",D$4-T$3,D$4-D$5),0)) -> 0 | K20: =G20*I20*J20 -> 0 | L20: =IF($C$3=$R$5,0,IF($C$3=$R$7,0,G20*I20*$D$7*24/1000)) -> 0 | M20: n/a
B21: Length (m) | D21: Width (m) | F21: Area (m²) | G21: =C21*E21 -> 0 | H21: U Value (W/m²K) | I21: =I20 -> 0 | J21: =IF(C$3="Ground Floor",IF(M20="Solid Floor (in contact with ground)",D$4-T$3,D$4-D$5),IF(C$3="Single Storey",IF(M20="Solid Floor (in contact with ground)",D$4-T$3,D$4-D$5),0)) -> 0 | K21: =G21*I21*J21 -> 0 | L21: =IF($C$3=$R$5,0,IF($C$3=$R$7,0,G21*I21*$D$7*24/1000)) -> 0 | M21: Exposed floor (external)
B22: Length (m) | D22: Width (m) | F22: Area (m²) | G22: 0 | H22: U Value (W/m²K) | I22: =I20 -> 0 | J22: =IF(C$3="Ground Floor",IF(M20="Solid Floor (in contact with ground)",D$4-T$3,D$4-D$5),IF(C$3="Single Storey",IF(M20="Solid Floor (in contact with ground)",D$4-T$3,D$4-D$5),0)) -> 0 | K22: =G22*I22*J22 -> 0 | L22: =IF($C$3=$R$5,0,IF($C$3=$R$7,0,G22*I22*$D$7*24/1000)) -> 0
B23: External Wall | M23: =IF(M22="Two opposite","Between edges",IF(M22="One edge","Depth of room",IF(M22="3 edges (short single)","Short length",IF(M22="3 edges (long single)","Short length","")))) ->  | O23: =IF(M22="3 edges (short single)","Long length",IF(M22="3 edges (long single)","Long length","")) -> 
B24: Length (m) | D24: Height (m) | F24: Area (m²) | G24: 0
B25: Length (m) | D25: Height (m) | F25: Area (m²) | G25: 0
B26: Length (m) | D26: Height (m) | F26: Area (m²) | G26: 0
E27: Total | F27: Area (m²) | G27: =SUM(G24:G26)-SUM(G38:G44,G51:G54) -> 0 | H27: U Value (W/m²K) | I27: =IF($C$3="Ground floor",'Design Details'!C$48,IF($C$3="Mid-floor",'Design Details'!C$58,IF($C$3="Upper floor",'Design Details'!C$68,IF($C$3="Single Storey",'Design Details'!C$78,0)))) -> 0 | J27: =$D$6 -> 2.5 | K27: =G27*I27*J27 -> 0 | L27: =G27*I27*$D$7*24/1000 -> 0
B28: Ceiling (Flat)
B29: Length (m) | D29: Width (m) | F29: Area (m²) | G29: 0
B30: Length (m) | D30: Width (m) | F30: Area (m²) | G30: 0
B31: Length (m) | D31: Width (m) | F31: Area (m²) | G31: 0 | M31: Select Temp/Type of Space Above
E32: Total | F32: Area (m²) | G32: =SUM(G29:G31)-SUM(G46:G49) -> 0 | H32: U Value (W/m²K) | I32: =IF($C$3="Ground floor",'Design Details'!C$49,IF($C$3="Mid-floor",'Design Details'!C$59,IF($C$3="Upper floor",INDIRECT(T52),IF($C$3="Single Storey",INDIRECT(T53),0)))) -> 0 | J32: =U51 -> 0 | K32: =G32*I32*J32 -> 0 | L32: =IF($C$3=$R$4,0,IF($C$3=$R$5,0,G32*I32*$D$7*24/1000)) -> 0 | M32: Select...
B33: Ceiling (Awkward)
B34: Length (m) | C34: =C14*2 -> 0 | D34: Pitch (m) | E34: =SQRT(POWER(E14,2)+POWER(G14,2)) -> 0 | F34: Area (m²) | G34: =C34*E34 -> 0 | H34: Pitched
B35: Length (m) | C35: =C15 -> 0 | D35: Pitch (m) | E35: =SQRT(POWER(E15,2)+POWER(G15,2)) -> 0 | F35: Area (m²) | G35: 0 | H35: Single Pitch
E36: Total | F36: Area (m²) | G36: =SUM(G34:G35)-SUM(G46:G49) -> 0 | H36: U Value (W/m²K) | I36: =IF($C$3="Ground floor",'Design Details'!C$50,IF($C$3="Mid-floor",'Design Details'!C$60,IF($C$3="Upper floor",'Design Details'!C$70,IF($C$3="Single Storey",'Design Details'!C$80,0)))) -> 0 | J36: =$D$6 -> 2.5 | K36: 0 | L36: =IF($C$3=$R$4,0,IF($C$3=$R$5,0,G36*I36*$D$7*24/1000)) -> 0
B37: Windows
B38: Width (m) | D38: Height (m) | F38: Area (m²) | G38: 0 | H38: U Value (W/m²K) | I38: =IF($C$3="Ground floor",'Design Details'!C$46,IF($C$3="Mid-floor",'Design Details'!C$56,IF($C$3="Upper floor",'Design Details'!C$66,IF($C$3="Single Storey",'Design Details'!C$76,0)))) -> 0 | J38: 2.5 | K38: 0 | L38: =G38*I38*$D$7*24/1000 -> 0
B39: Width (m) | D39: Height (m) | F39: Area (m²) | G39: 0 | H39: U Value (W/m²K) | I39: =IF($C$3="Ground floor",'Design Details'!C$46,IF($C$3="Mid-floor",'Design Details'!C$56,IF($C$3="Upper floor",'Design Details'!C$66,IF($C$3="Single Storey",'Design Details'!C$76,0)))) -> 0 | J39: 2.5 | K39: 0 | L39: 0
B40: Width (m) | D40: Height (m) | F40: Area (m²) | G40: 0 | H40: U Value (W/m²K) | I40: =IF($C$3="Ground floor",'Design Details'!C$46,IF($C$3="Mid-floor",'Design Details'!C$56,IF($C$3="Upper floor",'Design Details'!C$66,IF($C$3="Single Storey",'Design Details'!C$76,0)))) -> 0 | J40: 2.5 | K40: 0 | L40: 0
B41: Width (m) | D41: Height (m) | F41: Area (m²) | G41: 0 | H41: U Value (W/m²K) | I41: =IF($C$3="Ground floor",'Design Details'!C$46,IF($C$3="Mid-floor",'Design Details'!C$56,IF($C$3="Upper floor",'Design Details'!C$66,IF($C$3="Single Storey",'Design Details'!C$76,0)))) -> 0 | J41: 2.5 | K41: 0 | L41: 0
B42: Width (m) | D42: Height (m) | F42: Area (m²) | G42: 0 | H42: U Value (W/m²K) | I42: =IF($C$3="Ground floor",'Design Details'!C$46,IF($C$3="Mid-floor",'Design Details'!C$56,IF($C$3="Upper floor",'Design Details'!C$66,IF($C$3="Single Storey",'Design Details'!C$76,0)))) -> 0 | J42: 2.5 | K42: 0 | L42: 0
B43: Width (m) | D43: Height (m) | F43: Area (m²) | G43: 0 | H43: U Value (W/m²K) | I43: =IF($C$3="Ground floor",'Design Details'!C$46,IF($C$3="Mid-floor",'Design Details'!C$56,IF($C$3="Upper floor",'Design Details'!C$66,IF($C$3="Single Storey",'Design Details'!C$76,0)))) -> 0 | J43: 2.5 | K43: 0 | L43: 0
B44: Width (m) | D44: Height (m) | F44: Area (m²) | G44: 0 | H44: U Value (W/m²K) | I44: =IF($C$3="Ground floor",'Design Details'!C$46,IF($C$3="Mid-floor",'Design Details'!C$56,IF($C$3="Upper floor",'Design Details'!C$66,IF($C$3="Single Storey",'Design Details'!C$76,0)))) -> 0 | J44: 2.5 | K44: 0 | L44: 0
B45: Roof Glazing | Q45: Options for upper floor or single storey | R45: Options for Ground or Mid Floor | S45: Drop-Down List | T45: U-Value Selector | U45: Temp Diff Selector
B46: Width (m) | D46: Height (m) | F46: Area (m²) | G46: 0 | H46: U Value (W/m²K) | I46: =IF($C$3="Ground floor",'Design Details'!C$53,IF($C$3="Mid-floor",'Design Details'!C$63,IF($C$3="Upper floor",'Design Details'!C$73,IF($C$3="Single Storey",'Design Details'!C$83,0)))) -> 0 | J46: 2.5 | K46: 0 | L46: =G46*I46*$D$7*24/1000 -> 0
B47: Width (m) | D47: Height (m) | F47: Area (m²) | G47: 0 | H47: U Value (W/m²K) | I47: =IF($C$3="Ground floor",'Design Details'!C$53,IF($C$3="Mid-floor",'Design Details'!C$63,IF($C$3="Upper floor",'Design Details'!C$73,IF($C$3="Single Storey",'Design Details'!C$83,0)))) -> 0 | J47: 2.5 | K47: 0 | L47: =G47*I47*$D$7*24/1000 -> 0
B48: Width (m) | D48: Height (m) | F48: Area (m²) | G48: 0 | H48: U Value (W/m²K) | I48: =IF($C$3="Ground floor",'Design Details'!C$53,IF($C$3="Mid-floor",'Design Details'!C$63,IF($C$3="Upper floor",'Design Details'!C$73,IF($C$3="Single Storey",'Design Details'!C$83,0)))) -> 0 | J48: 2.5 | K48: 0 | L48: =G48*I48*$D$7*24/1000 -> 0
B49: Width (m) | D49: Height (m) | F49: Area (m²) | G49: 0 | H49: U Value (W/m²K) | I49: =IF($C$3="Ground floor",'Design Details'!C$53,IF($C$3="Mid-floor",'Design Details'!C$63,IF($C$3="Upper floor",'Design Details'!C$73,IF($C$3="Single Storey",'Design Details'!C$83,0)))) -> 0 | J49: 2.5 | K49: 0 | L49: =G49*I49*$D$7*24/1000 -> 0
B50: External Doors | S50: Select...
B51: Width (m) | D51: Height (m) | F51: Area (m²) | G51: 0 | H51: U Value (W/m²K) | I51: =IF($C$3="Ground floor",'Design Details'!C$47,IF($C$3="Mid-floor",'Design Details'!C$57,IF($C$3="Upper floor",'Design Details'!C$67,IF($C$3="Single Storey",'Design Details'!C$77,0)))) -> 0 | J51: 2.5 | K51: 0 | L51: =G51*I51*$D$7*24/1000 -> 0 | Q51: Outside | R51: Unheated | S51: =IF(OR($C$3="Ground Floor",$C$3="Mid-floor"),R51,Q51) -> Outside | T51: =IF(M32="Unheated",1,0) -> 0 | U51: =IF(M32="Select...",0,(IF(M32="Outside",D6,IF(M32="Unheated",D4-10,D4-M32)))) -> 0
B52: Width (m) | D52: Height (m) | F52: Area (m²) | G52: 0 | H52: U Value (W/m²K) | I52: =IF($C$3="Ground floor",'Design Details'!C$47,IF($C$3="Mid-floor",'Design Details'!C$57,IF($C$3="Upper floor",'Design Details'!C$67,IF($C$3="Single Storey",'Design Details'!C$77,0)))) -> 0 | J52: 2.5 | K52: 0 | L52: =G52*I52*$D$7*24/1000 -> 0 | Q52: Unheated | R52: 16 | S52: =IF(OR($C$3="Ground Floor",$C$3="Mid-floor"),R52,Q52) -> Unheated | T52: ="'Design Details'!C$"&69+T51 -> 'Design Details'!C$69
B53: Width (m) | D53: Height (m) | F53: Area (m²) | G53: 0 | H53: U Value (W/m²K) | I53: =IF($C$3="Ground floor",'Design Details'!C$47,IF($C$3="Mid-floor",'Design Details'!C$57,IF($C$3="Upper floor",'Design Details'!C$67,IF($C$3="Single Storey",'Design Details'!C$77,0)))) -> 0 | J53: 2.5 | K53: 0 | L53: =G53*I53*$D$7*24/1000 -> 0 | R53: 18 | S53: =IF(OR($C$3="Ground Floor",$C$3="Mid-floor"),R53,Q53) -> 0 | T53: ="'Design Details'!C$"&79+T51 -> 'Design Details'!C$79
B54: Width (m) | D54: Height (m) | F54: Area (m²) | G54: 0 | H54: U Value (W/m²K) | I54: =IF($C$3="Ground floor",'Design Details'!C$47,IF($C$3="Mid-floor",'Design Details'!C$57,IF($C$3="Upper floor",'Design Details'!C$67,IF($C$3="Single Storey",'Design Details'!C$77,0)))) -> 0 | J54: 2.5 | K54: 0 | L54: =G54*I54*$D$7*24/1000 -> 0 | R54: 21 | S54: =IF(OR($C$3="Ground Floor",$C$3="Mid-floor"),R54,Q54) -> 0
B55: Internal Walls | M55: Adjoining Room Temp (°C) | R55: 22 | S55: =IF(OR($C$3="Ground Floor",$C$3="Mid-floor"),R55,Q37) -> 0
B56: Length (m) | D56: Height (m) | F56: Area (m²) | G56: 0 | H56: U Value (W/m²K) | I56: =IF($C$3="Ground floor",'Design Details'!C$51,IF($C$3="Mid-floor",'Design Details'!C$61,IF($C$3="Upper floor",'Design Details'!C$71,IF($C$3="Single Storey",'Design Details'!C$81,0)))) -> 0 | J56: =IF(M56="",0,IF(M56="unheated",D$4-10,D$4-M56)) -> 0 | K56: 0
B57: Length (m) | D57: Height (m) | F57: Area (m²) | G57: 0 | H57: U Value (W/m²K) | I57: =IF($C$3="Ground floor",'Design Details'!C$51,IF($C$3="Mid-floor",'Design Details'!C$61,IF($C$3="Upper floor",'Design Details'!C$71,IF($C$3="Single Storey",'Design Details'!C$81,0)))) -> 0 | J57: =IF(M57="",0,IF(M57="unheated",D$4-10,D$4-M57)) -> 0 | K57: 0
B58: Length (m) | D58: Height (m) | F58: Area (m²) | G58: 0 | H58: U Value (W/m²K) | I58: =IF($C$3="Ground floor",'Design Details'!C$51,IF($C$3="Mid-floor",'Design Details'!C$61,IF($C$3="Upper floor",'Design Details'!C$71,IF($C$3="Single Storey",'Design Details'!C$81,0)))) -> 0 | J58: =IF(M58="",0,IF(M58="unheated",D$4-10,D$4-M58)) -> 0 | K58: 0
B59: Length (m) | D59: Height (m) | F59: Area (m²) | G59: 0 | H59: U Value (W/m²K) | I59: =IF($C$3="Ground floor",'Design Details'!C$51,IF($C$3="Mid-floor",'Design Details'!C$61,IF($C$3="Upper floor",'Design Details'!C$71,IF($C$3="Single Storey",'Design Details'!C$81,0)))) -> 0 | J59: =IF(M59="",0,IF(M59="unheated",D$4-10,D$4-M59)) -> 0 | K59: 0
B60: Party Wall
B61: Length (m) | D61: Height (m) | F61: Area (m²) | G61: 0 | H61: U Value (W/m²K) | I61: =IF($C$3="Ground floor",'Design Details'!C$52,IF($C$3="Mid-floor",'Design Details'!C$62,IF($C$3="Upper floor",'Design Details'!C$72,IF($C$3="Single Storey",'Design Details'!C$82,0)))) -> 0 | J61: =D4-10 -> -10 | K61: 0 | L61: =G61*I61*$D$7*24/1000 -> 0

Sheet 15
B1: Room Information | E1: Ventilation Heat Loss | H1: Fabric | I1: Heat Loss (W) | J1: Usage (kWh) | K1: Additional heat loss | M1: Addition | N1: Watts | O1: kWh
B2: Room | E2: Air Changes per hour | G2: ='Design Details'!G101 -> 0 | H2: Floor | I2: =SUM(K20:K22) -> 0 | J2: =SUM(L20:L22) -> 0 | K2: Thermal Bridging (New Build >2006) | M2: 0 | N2: =SUM(I$2:I$6)*M2 -> 0 | O2: =SUM(J$2:J$6)*M2 -> 0 | Q2: 3 edges (long single) | R2: Level | Y2: 1
B3: Level | E3: Air Change Factor (W/m³K) | G3: 0.33 | H3: Ext Wall | I3: =K27 -> 0 | J3: =L27 -> 0 | K3: Exposed location | M3: 0 | N3: =SUM(I$2:I$6)*M3 -> 0 | O3: =SUM(J$2:J$6)*M3 -> 0 | Q3: 3 edges (short single) | R3: Please Select Floor | S3: =IF($C$3="Ground floor","Solid Floor (in contact with ground)",IF($C$3="Single Storey","Solid Floor (in contact with ground)","n/a")) -> n/a | T3: ='Design Details'!C21 -> 10 | U3: unheated | V3: 0 | W3: 0 | X3: 0 | Y3: 2
B4: Design Room Temp (°C) | D4: ='Design Details'!E101 -> 0 | E4: Total Volume (m³) | G4: =SUM(I10:I12,I14:I18) -> 0 | H4: Roof | I4: =SUM(K32,K36) -> 0 | J4: =SUM(L32,L36) -> 0 | K4: High ceiling | M4: 0 | N4: =SUM(I$2:I$6)*M4 -> 0 | O4: =SUM(J$2:J$6)*M4 -> 0 | Q4: One edge | R4: Ground floor | S4: =IF($C$3="Ground floor","Suspended Floor",IF($C$3="Single Storey","Suspended Floor","n/a")) -> n/a | U4: 16 | V4: 0.1 | W4: 0.2 | X4: 0.025 | Y4: 3
B5: Outside Design Temp (°C) | D5: ='Design Details'!C19 -> -2.5 | E5: Heat loss (W) | G5: =G4*G3*D6*G2 -> 0 | H5: Glazing | I5: =SUM(K38:K44,K46:K49,K51:K54) -> 0 | J5: =SUM(L38:L44,L46:L49,L51:L54) -> 0 | K5: Intermittent heating | M5: 0 | N5: =SUM(I$2:I$6)*M5 -> 0 | O5: =SUM(J$2:J$6)*M5 -> 0 | Q5: Two adjacent | R5: Mid-floor | U5: 18 | X5: 0.05 | Y5: 4
B6: Temp Difference (°C) | D6: =D4-D5 -> 2.5 | E6: Estimated Energy usage (kWh) | G6: =G4*G3*D7*24/1000 -> 0 | H6: Int./Party Wall | I6: =SUM(K56:K59,K61) -> 0 | J6: =SUM(L61) -> 0 | N6: Total Room Heat Loss (W) | O6: =SUM(G5,I2:I6,N2:N5) -> 0 | Q6: Two opposite | R6: Single storey | U6: 21 | X6: 0.075 | Y6: 5
B7: Degree Days | D7: ='Design Details'!C20 -> 2228 | N7: Total Room Energy Usage (kWh) | O7: =SUM(G6,J2:J6,O2:O5) -> 0 | R7: Upper floor | U7: 22 | X7: 0.1 | Y7: 6
R8: =IF($C$3="Ground floor",'Design Details'!C$45,IF($C$3="Mid-floor",'Design Details'!C$55,IF($C$3="Upper floor",'Design Details'!C$65,IF($C$3="Single Storey",'Design Details'!C$75,0)))) -> 0 | Y8: 7
B9: Room Dimensions | Y9: 8
B10: Length (m) | D10: Width (m) | F10: Height (m) | H10: Volume (m³) | I10: =C10*E10*G10 -> 0 | Y10: 9
B11: Length (m) | D11: Width (m) | F11: Height (m) | H11: Volume (m³) | I11: =C11*E11*G11 -> 0 | Y11: 10
B12: Length (m) | D12: Width (m) | F12: Height (m) | H12: Volume (m³) | I12: =C12*E12*G12 -> 0
B13: Awkward Room Dimensions
B14: Length (m) | D14: Width (m) | F14: Height (m) | H14: Volume (m³) | I14: =((G14*E14)/2)*C14 -> 0 | J14: Pitched
B15: Length (m) | D15: Width (m) | F15: Height (m) | H15: Volume (m³) | I15: =C15*E15*G15/2 -> 0 | J15: Single Pitch
B16: Length (m) | D16: Height (m) | F16: Depth (m) | H16: Volume (m³) | I16: =E16*G16*C16/2 -> 0 | J16: Dormer 1
B17: Length (m) | D17: Height (m) | F17: Depth (m) | H17: Volume (m³) | I17: =E17*G17*C17/2 -> 0 | J17: Dormer 2
B18: Length (m) | D18: Height (m) | F18: Depth (m) | H18: Volume (m³) | I18: =E18*G18*C18/2 -> 0 | J18: Dormer 3
B19: Floor | J19: Temp Difference | K19: Heat Loss (W) | L19: Usage (kWh) | M19: =IF($C$3="Ground Floor","Select type of Ground Floor",IF($C$3="Single Storey","Select type of Ground Floor","#N/A")) -> #N/A
B20: =B10 -> Length (m) | D20: =D10 -> Width (m) | F20: Area (m²) | G20: =C20*E20 -> 0 | H20: U Value (W/m²K) | I20: =IF(M22="",R8,'floor u values'!K16) -> 0 | J20: =IF(C$3="Ground Floor",IF(M20="Solid Floor (in contact with ground)",D$4-T$3,D$4-D$5),IF(C$3="Single Storey",IF(M20="Solid Floor (in contact with ground)",D$4-T$3,D$4-D$5),0)) -> 0 | K20: =G20*I20*J20 -> 0 | L20: =IF($C$3=$R$5,0,IF($C$3=$R$7,0,G20*I20*$D$7*24/1000)) -> 0 | M20: n/a
B21: Length (m) | D21: Width (m) | F21: Area (m²) | G21: =C21*E21 -> 0 | H21: U Value (W/m²K) | I21: =I20 -> 0 | J21: =IF(C$3="Ground Floor",IF(M20="Solid Floor (in contact with ground)",D$4-T$3,D$4-D$5),IF(C$3="Single Storey",IF(M20="Solid Floor (in contact with ground)",D$4-T$3,D$4-D$5),0)) -> 0 | K21: =G21*I21*J21 -> 0 | L21: =IF($C$3=$R$5,0,IF($C$3=$R$7,0,G21*I21*$D$7*24/1000)) -> 0 | M21: Exposed floor (external)
B22: Length (m) | D22: Width (m) | F22: Area (m²) | G22: 0 | H22: U Value (W/m²K) | I22: =I20 -> 0 | J22: =IF(C$3="Ground Floor",IF(M20="Solid Floor (in contact with ground)",D$4-T$3,D$4-D$5),IF(C$3="Single Storey",IF(M20="Solid Floor (in contact with ground)",D$4-T$3,D$4-D$5),0)) -> 0 | K22: =G22*I22*J22 -> 0 | L22: =IF($C$3=$R$5,0,IF($C$3=$R$7,0,G22*I22*$D$7*24/1000)) -> 0
B23: External Wall | M23: =IF(M22="Two opposite","Between edges",IF(M22="One edge","Depth of room",IF(M22="3 edges (short single)","Short length",IF(M22="3 edges (long single)","Short length","")))) ->  | O23: =IF(M22="3 edges (short single)","Long length",IF(M22="3 edges (long single)","Long length","")) -> 
B24: Length (m) | D24: Height (m) | F24: Area (m²) | G24: 0
B25: Length (m) | D25: Height (m) | F25: Area (m²) | G25: 0
B26: Length (m) | D26: Height (m) | F26: Area (m²) | G26: 0
E27: Total | F27: Area (m²) | G27: =SUM(G24:G26)-SUM(G38:G44,G51:G54) -> 0 | H27: U Value (W/m²K) | I27: =IF($C$3="Ground floor",'Design Details'!C$48,IF($C$3="Mid-floor",'Design Details'!C$58,IF($C$3="Upper floor",'Design Details'!C$68,IF($C$3="Single Storey",'Design Details'!C$78,0)))) -> 0 | J27: =$D$6 -> 2.5 | K27: =G27*I27*J27 -> 0 | L27: =G27*I27*$D$7*24/1000 -> 0
B28: Ceiling (Flat)
B29: Length (m) | D29: Width (m) | F29: Area (m²) | G29: 0
B30: Length (m) | D30: Width (m) | F30: Area (m²) | G30: 0
B31: Length (m) | D31: Width (m) | F31: Area (m²) | G31: 0 | M31: Select Temp/Type of Space Above
E32: Total | F32: Area (m²) | G32: =SUM(G29:G31)-SUM(G46:G49) -> 0 | H32: U Value (W/m²K) | I32: =IF($C$3="Ground floor",'Design Details'!C$49,IF($C$3="Mid-floor",'Design Details'!C$59,IF($C$3="Upper floor",INDIRECT(T52),IF($C$3="Single Storey",INDIRECT(T53),0)))) -> 0 | J32: =U51 -> 0 | K32: =G32*I32*J32 -> 0 | L32: =IF($C$3=$R$4,0,IF($C$3=$R$5,0,G32*I32*$D$7*24/1000)) -> 0 | M32: Select...
B33: Ceiling (Awkward)
B34: Length (m) | C34: =C14*2 -> 0 | D34: Pitch (m) | E34: =SQRT(POWER(E14,2)+POWER(G14,2)) -> 0 | F34: Area (m²) | G34: =C34*E34 -> 0 | H34: Pitched
B35: Length (m) | C35: =C15 -> 0 | D35: Pitch (m) | E35: =SQRT(POWER(E15,2)+POWER(G15,2)) -> 0 | F35: Area (m²) | G35: 0 | H35: Single Pitch
E36: Total | F36: Area (m²) | G36: =SUM(G34:G35)-SUM(G46:G49) -> 0 | H36: U Value (W/m²K) | I36: =IF($C$3="Ground floor",'Design Details'!C$50,IF($C$3="Mid-floor",'Design Details'!C$60,IF($C$3="Upper floor",'Design Details'!C$70,IF($C$3="Single Storey",'Design Details'!C$80,0)))) -> 0 | J36: =$D$6 -> 2.5 | K36: 0 | L36: =IF($C$3=$R$4,0,IF($C$3=$R$5,0,G36*I36*$D$7*24/1000)) -> 0
B37: Windows
B38: Width (m) | D38: Height (m) | F38: Area (m²) | G38: 0 | H38: U Value (W/m²K) | I38: =IF($C$3="Ground floor",'Design Details'!C$46,IF($C$3="Mid-floor",'Design Details'!C$56,IF($C$3="Upper floor",'Design Details'!C$66,IF($C$3="Single Storey",'Design Details'!C$76,0)))) -> 0 | J38: 2.5 | K38: 0 | L38: =G38*I38*$D$7*24/1000 -> 0
B39: Width (m) | D39: Height (m) | F39: Area (m²) | G39: 0 | H39: U Value (W/m²K) | I39: =IF($C$3="Ground floor",'Design Details'!C$46,IF($C$3="Mid-floor",'Design Details'!C$56,IF($C$3="Upper floor",'Design Details'!C$66,IF($C$3="Single Storey",'Design Details'!C$76,0)))) -> 0 | J39: 2.5 | K39: 0 | L39: 0
B40: Width (m) | D40: Height (m) | F40: Area (m²) | G40: 0 | H40: U Value (W/m²K) | I40: =IF($C$3="Ground floor",'Design Details'!C$46,IF($C$3="Mid-floor",'Design Details'!C$56,IF($C$3="Upper floor",'Design Details'!C$66,IF($C$3="Single Storey",'Design Details'!C$76,0)))) -> 0 | J40: 2.5 | K40: 0 | L40: 0
B41: Width (m) | D41: Height (m) | F41: Area (m²) | G41: 0 | H41: U Value (W/m²K) | I41: =IF($C$3="Ground floor",'Design Details'!C$46,IF($C$3="Mid-floor",'Design Details'!C$56,IF($C$3="Upper floor",'Design Details'!C$66,IF($C$3="Single Storey",'Design Details'!C$76,0)))) -> 0 | J41: 2.5 | K41: 0 | L41: 0
B42: Width (m) | D42: Height (m) | F42: Area (m²) | G42: 0 | H42: U Value (W/m²K) | I42: =IF($C$3="Ground floor",'Design Details'!C$46,IF($C$3="Mid-floor",'Design Details'!C$56,IF($C$3="Upper floor",'Design Details'!C$66,IF($C$3="Single Storey",'Design Details'!C$76,0)))) -> 0 | J42: 2.5 | K42: 0 | L42: 0
B43: Width (m) | D43: Height (m) | F43: Area (m²) | G43: 0 | H43: U Value (W/m²K) | I43: =IF($C$3="Ground floor",'Design Details'!C$46,IF($C$3="Mid-floor",'Design Details'!C$56,IF($C$3="Upper floor",'Design Details'!C$66,IF($C$3="Single Storey",'Design Details'!C$76,0)))) -> 0 | J43: 2.5 | K43: 0 | L43: 0
B44: Width (m) | D44: Height (m) | F44: Area (m²) | G44: 0 | H44: U Value (W/m²K) | I44: =IF($C$3="Ground floor",'Design Details'!C$46,IF($C$3="Mid-floor",'Design Details'!C$56,IF($C$3="Upper floor",'Design Details'!C$66,IF($C$3="Single Storey",'Design Details'!C$76,0)))) -> 0 | J44: 2.5 | K44: 0 | L44: 0
B45: Roof Glazing | Q45: Options for upper floor or single storey | R45: Options for Ground or Mid Floor | S45: Drop-Down List | T45: U-Value Selector | U45: Temp Diff Selector
B46: Width (m) | D46: Height (m) | F46: Area (m²) | G46: 0 | H46: U Value (W/m²K) | I46: =IF($C$3="Ground floor",'Design Details'!C$53,IF($C$3="Mid-floor",'Design Details'!C$63,IF($C$3="Upper floor",'Design Details'!C$73,IF($C$3="Single Storey",'Design Details'!C$83,0)))) -> 0 | J46: 2.5 | K46: 0 | L46: =G46*I46*$D$7*24/1000 -> 0
B47: Width (m) | D47: Height (m) | F47: Area (m²) | G47: 0 | H47: U Value (W/m²K) | I47: =IF($C$3="Ground floor",'Design Details'!C$53,IF($C$3="Mid-floor",'Design Details'!C$63,IF($C$3="Upper floor",'Design Details'!C$73,IF($C$3="Single Storey",'Design Details'!C$83,0)))) -> 0 | J47: 2.5 | K47: 0 | L47: =G47*I47*$D$7*24/1000 -> 0
B48: Width (m) | D48: Height (m) | F48: Area (m²) | G48: 0 | H48: U Value (W/m²K) | I48: =IF($C$3="Ground floor",'Design Details'!C$53,IF($C$3="Mid-floor",'Design Details'!C$63,IF($C$3="Upper floor",'Design Details'!C$73,IF($C$3="Single Storey",'Design Details'!C$83,0)))) -> 0 | J48: 2.5 | K48: 0 | L48: =G48*I48*$D$7*24/1000 -> 0
